Workbook

Sheet Table of Contents (Hyperlinks)
B6: Table of Contents
B9: Offshore Asset Book
B11: Onshore Asset Book
B13: Bioenergy & Other Asset Book
B15: OF statistics 2011-Q3 2024
B17: ON statistics 2018-Q3 2024
B19: BO statistics 2018-Q3 2024
B21: Business drivers highlights

Sheet OF Asset Book
B2: OFFSHORE 1 - Asset Book updated as of 30 September 2024
L3: 0.14
D4: Park capacity, MW2 | E4: Renewable capacity15, MW | F4: Orsted ownership share, % | G4: Generation capacity, MW | H4: Financial consolidation | I4: Commercial operational date | L4: Fixed feed-in tariff, DKK/MWh
B5: Denmark | C5: Partners | J5: Subsidy regime | K5: Subsidy expiry | M5: Excahnge Rate | N5: USD/MWH
B6: Anholt (111 x SWT-3.6-120) | C6: Pension Danmark, AIP Management | D6: 399.6 | E6: 399.6 | F6: 50% | G6: 199.8 | H6: Pro rata | I6: 2013 | J6: Fixed feed-in tariff | K6: 20 TWh (17,32 TWh produced)2 | L6: 1051 | M6: 0.14 | N6: =M6*L6 -> 147.14
B7: Horns Rev 2 (91 x SWT-2.3-93) | C7: - | D7: 209.3 | E7: 209.3 | F7: 100% | G7: 209.3 | H7: Full | I7: 2010 | J7: Expired 2020, market price | K7: 10 TWh | L7: 518 | M7: 0.14 | N7: =M7*L7 -> 72.52
B8: Nysted (70 x (Bonus) SWT-2.3-82) | C8: Pension Danmark, Stadtwerke Lübeck | D8: 165.5 | E8: 165.5 | F8: 42.75% | G8: 81 | H8: Pro rata | I8: 2003 | J8: Expired 2016, market price | K8: 2016 8 | L8: 453 | M8: 0.14 | N8: =M8*L8 -> 63.42
B9: Horns Rev 1 (8012 x Vestas V80-2.0) | C9: Vattenfall | D9: 158 | E9: 160 | F9: 40% | G9: 64 | H9: Pro rata | I9: 2003 | J9: Market price + 100DKK/MWh3 | K9: Expiry after 20 years | L9: -
B10: Avedøre Holme (2 x SWT-3.6-120)4 | C10: - | D10: 7.2 | E10: 10.8 | F10: 100% | G10: 7.2 | H10: Full | I10: 2009 and 2011 | J10: Fixed feed-in tariff | K10: 22,000 full-load hours5 | L10: Market price + 250 | M10: 0.14 | N10: =M10*250 -> 35
B11: Vindeby (11 x Bonus B35-0.45) | C11: - | D11: 0 | E11: 4.95 | F11: 100% | G11: 0 | H11: Full | I11: 1991 (decomissioned 2017) | J11: 0 | K11: 0 | L11: -
B12: Total, Installed | E12: 950.15
B13: Total, Divested, but constructed by Ørsted6 | E13: 56
B14: Total, Denmark | E14: 1006.15 | G14: 561.3
B17: United Kingdom | C17: Partners | J17: Subsidy regime | K17: Subsidy expiry | L17: CFD Price | M17: ROCs/MWh | N17: ROC Price in 2023 | O17: CROC Price in 2023 | P17: Exchange | Q17: Subsidy or Contract/MWH
B18: West of Duddon Sands (108 x SWT-3.6-120) | C18: Scottish Power Renewables (Iberdrola) | D18: 388.8 | E18: 388.8 | F18: 0.5 | G18: 194.4 | H18: Pro rata | I18: 2014 | J18: Renewable Obligation Certificates | K18: 2034 | L18: - | M18: 2 | N18: 59.21 | O18: =N18*M18 -> 118.42 | P18: 1.22 | Q18: =O18*P18 -> 144.4724
B19: Walney 1&2 (51 x SWT-3.6-107 & 51 x SWT-3.6-120) | C19: PGGM, Greencoat | D19: 367.2 | E19: 367.2 | F19: 0.501 | G19: 183.9672 | H19: Full | I19: 2011 and 2012 | J19: Renewable Obligation Certificates | K19: 2031 and 2032 | L19: - | M19: 2 | N19: 59.21 | O19: =N19*M19 -> 118.42 | P19: 1.22 | Q19: =O19*P19 -> 144.4724
B20: Lincs (75 x SWT-3.6-120) | C20: Green Investment Group (GIG), Octopus Renewables | D20: 270 | E20: - | F20: 0.25 | G20: 67.5 | H20: Pro rata | I20: 2013 | J20: Renewable Obligation Certificates | K20: 2033 | L20: - | M20: 2 | N20: 59.21 | O20: 118.42 | P20: 1.22 | Q20: 144.4724
B21: Westermost Rough (35 x SWT-6.0-154) | C21: Equitix, USS, Stepstone, BAE Systems Pension Funds, CLAL Insurance | D21: 210 | E21: 210 | F21: 0.5 | G21: 105 | H21: Pro rata | I21: 2015 | J21: Renewable Obligation Certificates | K21: 2035 | L21: - | M21: 2 | N21: 59.21 | O21: 118.42 | P21: 1.22 | Q21: 144.4724
B22: Gunfleet Sands 1&2 (48 x SWT-3.6-107) | C22: JERA, Development Bank of Japan (DBJ) | D22: 172.8 | E22: 172.8 | F22: 0.501 | G22: 86.5728 | H22: Full | I22: 2010 | J22: Renewable Obligation Certificates | K22: 2029 | L22: - | M22: 1.5 | N22: 59.21 | O22: 88.815 | P22: 1.22 | Q22: 108.3543
B23: Barrow (30 x Vestas V90-3.0) | C23: - | D23: 90 | E23: 45 | F23: 1 | G23: 90 | H23: Full | I23: 2006 | J23: Renewable Obligation Certificates | K23: 2027 | L23: - | M23: 1 | N23: 59.21 | O23: 59.21 | P23: 1.22 | Q23: 72.2362
B24: Burbo Bank (25 x SWT-3.6-107) | C24: - | D24: 90 | E24: 90 | F24: 1 | G24: 90 | H24: Full | I24: 2007 | J24: Renewable Obligation Certificates | K24: 2027 | L24: - | M24: 1.5 | N24: 59.21 | O24: 88.815 | P24: 1.22 | Q24: 108.3543
B25: Gunfleet Sands 3 (2 x SWT-6.0-120) | C25: - | D25: 12 | E25: 12 | F25: 1 | G25: 12 | H25: Full | I25: 2013 | J25: Renewable Obligation Certificates | K25: 2033 | L25: - | M25: 2 | N25: 59.21 | O25: 118.42 | P25: 1.22 | Q25: 144.4724
B26: Burbo Bank Extension (32 x MVOW V164-8.0) | C26: LEGO (Kirkbi), Greencoat | D26: 259 | E26: 259 | F26: 0.5 | G26: 129.5 | H26: Pro rata | I26: 2017 | J26: Contract for Difference | K26: 2032 | L26: 150 | M26: - | P26: 1.22 | Q26: =L26*P26 -> 183
B27: Race Bank (91 x SWT-6.0-154) | C27: Macquarie (MIRA), RE Fund by Sumitomo/SMBC/DBJ, Funds managed by Arjun and Gravis | D27: 546 | E27: 546 | F27: 0.5 | G27: 273 | H27: Pro rata | I27: 2018 | J27: Renewable Obligation Certificates | K27: 2037 | L27: - | M27: 1.8 | N27: 59.21 | O27: 106.578 | P27: 1.22 | Q27: 130.02516
B28: Walney Extension (40 x MVOW V164-8.25 & 47 x SWT-7.0-154) | C28: AIP Management, PFA | D28: 659 | E28: 659 | F28: 0.5 | G28: 329.5 | H28: Pro rata | I28: 2018 | J28: Contract for Difference | K28: 2033 | L28: 150 | M28: - | P28: 1.22 | Q28: =P28*L28 -> 183
B29: Hornsea 1 (174 x SWT-7.0-154) | C29: Greencoat, TRIG & Equitix, GLIL & Octopus Renewables | D29: 1218 | E29: 1218 | F29: 0.5 | G29: 609 | H29: Pro rata | I29: 2019 | J29: Contract for Difference | K29: 2036 | L29: 140 | M29: - | P29: 1.22 | Q29: =P29*L29 -> 170.8
B30: Hornsea 2 (165 x SGRE-8.0-167) | C30: AXA IM Alts and Crédit Agricole Assurances | D30: 1320 | E30: 1320 | F30: 0.5 | G30: 660 | H30: Pro rata | I30: 2022 | J30: Contract for Difference | K30: 2036 | L30: 57.5 | M30: - | P30: 1.22 | Q30: =L30*P30 -> 70.15
B31: Total, Installed | E31: 5287.8 | G31: 2830.44 | Q31: 0
B32: Total, Divested, but constructed by Ørsted6 | E32: 405 | Q32: 0
B33: Hornsea 3 18 | D33: 2852 | E33: 2852 | F33: 1 | G33: 0 | H33: Full | I33: 2027 7 | J33: Contract for Difference | K33: 2042 | L33: 37.35 / 54.23 | M33: - | P33: 1.22 | Q33: =P33*37.35 -> 45.567
B34: Hornsea 3 BESS (ICENI) | D34: 300 | E34: 300 | F34: 100% | G34: 0 | H34: Full | I34: 2026 7
B35: Total Decided (FID'ed) | E35: 3152
B36: Hornsea 4 | E36: 2400 | F36: 100% | G36: 0 | H36: Full | I36: 2030 7 | J36: Contract for Difference | K36: 2045 | L36: 58.87 | P36: 1.22 | Q36: =L36*P36 -> 71.8214
B37: Total, Awarded | E37: 2400 | G37: 0
B38: Total, United Kingdom | E38: 11244.8 | G38: 2830.44
D40: Park capacity, MW | E40: Renewable capacity15, MW | F40: Orsted ownership share, % | G40: Generation capacity, MW | H40: Financial consolidation | I40: Commercial operational date | K40: Subsidy expiry Period 1 | L40: Subsidy expiry Period 2 | M40: Fixed feed-in tariff Period 1, EUR/MWh | N40: Fixed feed-in tariff Period 2, EUR/MWh
B41: Germany | C41: Partners | J41: Subsidy regime
B42: Borkum Riffgrund 1 (78 x SWT-4.0-120) | C42: Greencoat Renewables | D42: 312 | E42: 312 | F42: 0.5 | G42: 156 | H42: Pro rata | I42: 2015 | J42: Fixed feed-in tariff | K42: 2023 | L42: 2025 9 | M42: 194 | N42: 154
B43: Borkum Riffgrund 2 (56 x MVOW V164-8.0) | C43: Gulf Energy, Keppel Infrastructure Trust ("KIT") | D43: 450 | E43: 450 | F43: 0.5 | G43: 225 | H43: Pro rata | I43: 2018 | J43: Fixed feed-in tariff | K43: 2026 | L43: 2028 | M43: 184 | N43: 149
B44: Gode Wind 1 (55 x SWT-6.0-154) | C44: Glennmont Partners, TRIG | D44: 332 | E44: 332 | F44: 0.5 | G44: 166 | H44: Pro rata | I44: 2016 | J44: Fixed feed-in tariff | K44: 2024 | L44: 2026 9 | M44: 194 | N44: 154
B45: Gode Wind 2 (42 x SWT-6.0-154) | C45: AIP, Industriens Pension, Lærerenes Pension, Lægernes Pensionskasse | D45: 252 | E45: 252 | F45: 0.5 | G45: 126 | H45: Pro rata | I45: 2016 | J45: Fixed feed-in tariff | K45: 2024 | L45: 2026 9 | M45: 194 | N45: 154
B46: Total, Installed | E46: 1346 | G46: 673
B47: Borkum Riffgrund 3 (83 x SGRE-11-200) | C47: Glennmont Partners | D47: 913 | E47: 913 | F47: 0.5 | G47: 0 | H47: Pro rata | I47: 2026 7 | J47: Market price | K47: - | L47: - | M47: - | N47: -
B48: Gode Wind 3 (23 x SGRE-11-200) | C48: Glennmont Partners | D48: 253 | E48: 253 | F48: 0.5 | G48: 94 | H48: Pro rata | I48: 2024 7 | J48: Fixed feed-in tariff | K48: 2044 | L48: - | M48: 81.65 | N48: -
B49: Total, Decided (FID'ed) | E49: 1166 | G49: 94
B50: Total, Germany | E50: 2512 | G50: 767
D52: Park capacity, MW | E52: Renewable capacity15, MW | F52: Orsted ownership share, % | G52: Generation capacity, MW | H52: Financial consolidation | I52: Commercial operational date | K52: Subsidy expiry | L52: Feed-in tariff, USD/MWh
B53: USA | C53: Partners | J53: Subsidy regime | M53: Price escalator, Period 1, %
B54: Block Island (5 x GE-6MW) | C54: - | D54: 30 | E54: 30 | F54: 1 | G54: 30 | H54: Full | I54: 2016 | J54: Offtake solution | K54: 2036 | L54: 236 | M54: 3.5
B55: South Fork Wind (12 x SGRE-11-200) | C55: Global Infrastructure Partners | D55: 132 | E55: 132 | F55: 0.5 | G55: 66 | H55: Pro rata | I55: 2024 7 | J55: Offtake solution | K55: 2048 | L55: 160 | M55: Variable
B56: Total, installed | E56: 162 | G56: 96
B57: Revolution Wind | C57: Global Infrastructure Partners | D57: 704 | E57: 704 | F57: 0.5 | G57: 0 | H57: Pro rata | I57: 2026 7 | J57: PPA | K57: 2045
B58: Sunrise Wind | D58: 924 | E58: 924 | F58: 1 | G58: 0 | H58: Pro rata | I58: 2025 7 | J58: Offshore Renewable Energy Certificate | K58: 2050
B59: Total, Decided (FID'ed) | E59: 1628 | G59: 0
B60: Total, USA | E60: 1790 | G60: 96
D62: Park capacity, MW | E62: Renewable capacity15, MW | F62: Orsted ownership share, % | G62: Generation capacity, MW | H62: Financial consolidation | I62: Commercial operational date | K62: Subsidy expiry | L62: Fixed feed-in tariff, EUR/MWh
B63: Netherlands | C63: Partners | J63: Subsidy regime
B64: Borssele 1 & 2 (94 x SWT-8.0) | C64: Norges Bank Investment Management (NBIM) | D64: 752 | E64: 752 | F64: 0.5 | G64: 376 | H64: Pro rata | I64: 2020 10 | J64: Fixed feed-in tariff | K64: 2035/203610 | L64: 72.7
B65: Total, Installed | E65: 752 | G65: 376
B66: Total, Netherlands | E66: 752 | G66: 376
D68: Park capacity, MW | E68: Renewable capacity15, MW | F68: Orsted ownership share, % | G68: Generation capacity, MW | H68: Financial consolidation | I68: Commercial operational date | K68: Subsidy expiry Period 1 | L68: Subsidy expiry Period 2 | M68: Fixed feed-in tariff Period 1, TWD/MWh | Q68: Fixed feed-in tariff Period 2, TWD/MWh
B69: Taiwan | C69: Partners | J69: Subsidy regime
B70: Formosa 1, Phase 1 (2 x SWT-4.0-120) | C70: JERA, Swancor Renewables, Mitsui Osk Lines (M.O.L.), Hokuriku Electric Power Company | D70: 8 | E70: 2.8 | F70: 0.35 | G70: 0 | H70: One-line | I70: 2017 | J70: Fixed feed-in tariff | K70: 2027 | L70: 2037 | M70: 7109 | Q70: 3459
B71: Formosa 1, Phase 2 (20 x SWT-6.0-154) | C71: JERA, Swancor Renewables, Mitsui Osk Lines (M.O.L.), Hokuriku Electric Power Company | D71: 120 | E71: 42 | F71: 0.35 | G71: 0 | H71: One-line | I71: 2019 | J71: Fixed feed-in tariff | K71: 2029 | L71: 2039 | M71: 7403 | Q71: 3595
B72: Greater Changhua 1 (75 x SGRE-8.0-167) | C72: CDPQ & Cathay Private Equity | D72: 605 | E72: 605 | F72: 0.5 | G72: 302.5 | H72: Pro rata | I72: 2024 | J72: Fixed feed-in tariff13 | K72: 2033 13 | L72: 2043 13 | M72: 6,279 13 | Q72: 4,142 13
B73: Greater Changhua 2a (36 x SGRE-8.0-167) | C73: - | D73: 295 | E73: 295 | F73: 1 | G73: 295 | H73: Full | I73: 2024 | J73: Fixed feed-in tariff13 | K73: 2033 13 | L73: 2043 13 | M73: 6,279 13 | Q73: 4,142 13
B74: Total, Installed | E74: 944.8 | G74: 597.5
B75: Greater Changhua 2b and 4 (66 x SGRE-14.0) | C75: - | D75: 920 | E75: 920 | F75: 1 | G75: 0 | H75: Full | I75: 2025 7 | J75: CPPA | K75: 2045 | L75: - | M75: - | Q75: -
B76: Total, Decided (FID'ed) | E76: 920 | G76: 0
B77: Total, Taiwan | E77: 1864.8 | G77: 597.5
D79: Park capacity, MW | E79: Renewable capacity15, MW | F79: Orsted ownership share, % | G79: Generation capacity, MW | H79: Financial consolidation | I79: Commercial operational date | K79: Subsidy expiry | L79: Fixed feed-in tariff PLN/MWh
B80: Poland | C80: Partners | J80: Subsidy regime
B81: Baltica 2 (107 x SGRE - 14.0) | C81: PGE | E81: 1498 | F81: 0.5 | G81: - | H81: Pro rata | I81: 2027 7 | J81: CfD | K81: 2052 | L81: 319.6
B82: Baltica 3 17 | C82: PGE | E82: 1255 | F82: 0.5 | G82: - | H82: Pro rata | I82: By 2029 7 | J82: CfD | K82: By 2054 | L82: 319.6
B83: Total, Awarded | E83: 2753 | G83: 0
B84: Total, Poland | E84: 2753 | G84: 0
B86: Totals | E86: MW
B87: Total, Renewable capacity (installed capacity (incl. divested farms), decided capacity (parks under construction), and awarded capacity) | E87: 21921.75
B88: Installed capacity (incl. divested farms) and decided capacity (parks under construction) | E88: 16768.75
B89: Installed capacity (incl. divested farms) | E89: 9902.75
B90: Generation capacity (incl. parks under construction but excl. divested and one-line consolidated farms) | E90: 5228.24
B92: 1 Includes awarded, FID'ed and assets in operation.
B93: 2 By 31 December 2022
B94: 3 The supplement depends on the development of market price and is increased pro rata – a market price below 260 DKK/MWh equals 100 DKK/MWh and over 360 DKK/MWh 0 DKK/MWh
B95: 4 Ørsted has installed Avedøre Holme (10,8 MW), however Ørsted has two of the three turbines on Avedøre Holme.
B96: 5 The first turbine reached approximately 20,019 Full Load Hours, whereas the second turbine is out of subsidy, by 31 December 2016
B97: 6 Denmark: Frederikshavn (11MW), Tunø Knob (5MW) and Middelgrunden (40MW); United Kingdom: Kentish Flats (90MW), London Array (315MW)
B98: 7 Expected year of commissioning
B99: 8 After expiry of fixed feed-in-tariff period expected in 2016, Nysted will receive market price + supplement dependent on the development of market price which is increased pro rata – a market price below 260 DKK/MWh equals 100 DKK/MWh and over 360 DKK/MWh 0 DKK/MWh
B100: 9 Floor price of 39 EUR/MWh for up to 20 years
B101: 10 The 15 year subsidy is based on a "banking system", potentially allowing for subsidy to run into year 16. 72,7/MWh Eur subsidy is the avarage subsidy price for both BSW1 and BSW2
B102: 12 80 turbines were constructed, however, today the wind farm consists of 79 turbines as one turbine was not replaced after a lightning incident in 2014
B103: 13 Developers have the option to choose between a 20-year flat tariff of TWD5,516 per MWh or a tiered tariff of TWD6,279.5 per MWh for the first 10 years and TWD4,142.2 per MWh for the subsequent 10 years. Ørsted has chosen the tiered rate.
B104: 14 12 months window to start CfD subsidy. Expiry date dependent on start date.
B105: 15 Renewable capacity is the sum of installed, decided (FID'ed), and awarded capacity
B106: 16 COD is subject to possible reconfiguration to accomodate potential schedule adjustments due to ongoing implementation of regulatory reforms to interconnectin processess, and to ensure sufficient value creation.
B107: 17 Includes boh Baltica 3 (1,045 MW) and the awarded lease capacity for Baltica 2+ (210 MW). Baltica 2+ has not received a CfD on the terms stated for Baltica 3
B108: 18 Nameplate capacity of 2,758 MW

Sheet OF Asset Book (3)
B2: OFFSHORE - Asset Book updated as of 30 June 2025
C4: Partners | D4: Park capacity, MW | E4: Renewable capacity, MW | F4: Generation capacity, MW | G4: Financial consolidation | H4: Consolidation, % | I4: Ownership interest, % | J4: Commercial operational date | M4: Fixed feed-in tariff, DKK/MWh
B5: Denmark | C5: Partners | K5: Subsidy regime | L5: Subsidy expiry | N5: Subsidy note
B6: Anholt (111 x SWT-3.6-120) | C6: Pension Danmark, AIP Management | D6: 399.6 | E6: 399.6 | F6: 199.8 | G6: Pro rata | H6: 50% | I6: 50% | J6: 2013 | K6: Expired 2024, market price | L6: 20 TWh limit (Reached in 2024) | M6: 1051 | N6: The 20 TWh subsidy expiry limit has passed and the subsidy has now expired.
B7: Horns Rev 2 (91 x SWT-2.3-93) | C7: - | D7: 209.3 | E7: 209.3 | F7: 209.3 | G7: Full | H7: 1 | I7: 100% | J7: 2010 | K7: Expired 2020, market price | L7: 10 TWh limit (Reached in 2020) | M7: 518 | N7: The 10 TWh subsidy expiry limit has passed and the subsidy has now expired.
B8: Nysted (70 x (Bonus) SWT-2.3-82) | C8: Pension Danmark, Stadtwerke Lübeck | D8: 165.5 | E8: 165.5 | F8: 80.5 | G8: Pro rata | H8: 0.5 | I8: 42.75% | J8: 2003 | K8: Expired 2016, market price | L8: 2016 | M8: 453 | N8: Following subsidy expiry in 2016, Nysted received market price + supplement dependent on the development of market price which is increased pro rata. A market price below 260 DKK/MWh equals 100 DKK/MWh and over 360 DKK/MWh 0 DKK/MWh. The supplement has now expired.
B9: Horns Rev 1 (80 x Vestas V80-2.0) | C9: Vattenfall | D9: 158 | E9: 160 | F9: 64 | G9: Pro rata | H9: 0.4 | I9: 40% | J9: 2003 | K9: Fixed feed-in tariff (expired) | L9: Expiry after 20 years (2023) | M9: Market price + 100 DKK/MWh | N9: The supplement depends on the development of market price and is increased pro rata – a market price below 260 DKK/MWh equals 100 DKK/MWh and over 360 DKK/MWh 0 DKK/MWh. The supplement expired in 2023.
B10: Avedøre Holme (2 x SWT-3.6-120) | C10: - | D10: 7.2 | E10: 10.8 | F10: 7.2 | G10: Full | H10: 1 | I10: 100% | J10: 2009 and 2011 | K10: Fixed feed-in tariff | L10: 22,000 full-load hours (2016/2018) | M10: Market price + 250 DKK/MWh | N10: Subsidy expiry after 22,000 FLH. The first turbine has been out of subsidy as of 2018 and the second turbine has been out of subsidy as of 2016.
B11: Vindeby (11 x Bonus B35-0.45) | C11: - | D11: 0 | E11: 5 | F11: 0 | G11: Full | H11: 1 | I11: 100% | J11: 1991 (decommissioned 2017) | K11: 0 | L11: 0 | M11: -
B12: Total divested, but installed by Ørsted | E12: 55.6
B13: Total, Installed | E13: 950.2
B14: Total, Denmark | E14: 1005.8 | F14: 561
C16: Partners | D16: Park capacity, MW | E16: Renewable capacity, MW | F16: Generation capacity, MW | G16: Financial consolidation | H16: Consolidation, % | I16: Ownership interest, % | J16: Commercial operational date | M16: CfD, GBP/MWh (Real 2012)
B17: United Kingdom | C17: Partners | K17: Subsidy regime | L17: Subsidy expiry | N17: ROCs/MWh | O17: Subsidy note
B18: West of Duddon Sands (108 x SWT-3.6-120) | C18: Scottish Power Renewables (Iberdrola), Schroders Greencoat | D18: 388.8 | E18: 388.8 | F18: 99.1 | G18: Pro rata | H18: 0.255 | I18: 0.255 | J18: 2014 | K18: ROC | L18: 2034 | M18: - | N18: 2
B19: Walney 1&2 (51 x SWT-3.6-107 & 51 x SWT-3.6-120) | C19: PGGM, Greencoat | D19: 367.2 | E19: 367.2 | F19: 367 | G19: Full | H19: 1 | I19: 0.501 | J19: 2011 and 2012 | K19: ROC | L19: 2031 and 2032 | M19: - | N19: 2
B20: Lincs (75 x SWT-3.6-120) | C20: Octopus Renewables, Macquarie | D20: 270 | E20: - | F20: 67.5 | G20: Pro rata | H20: 0.25 | I20: 0.25 | J20: 2013 | K20: ROC | L20: 2033 | M20: - | N20: 2
B21: Westermost Rough (35 x SWT-6.0-154) | C21: Arjun Infrastructure, USS, Equitix, Macquaire | D21: 210 | E21: 210 | F21: 105 | G21: Pro rata | H21: 0.5 | I21: 0.5 | J21: 2015 | K21: ROC | L21: 2035 | M21: - | N21: 2
B22: Gunfleet Sands 1&2 (48 x SWT-3.6-107) | C22: JERA, Development Bank of Japan (DBJ) | D22: 172.8 | E22: 172.8 | F22: 172.8 | G22: Full | H22: 1 | I22: 0.501 | J22: 2010 | K22: ROC | L22: 2029 | M22: - | N22: 1.5
B23: Barrow (30 x Vestas V90-3.0) | D23: 90 | E23: 45 | F23: 90 | G23: Full | H23: 1 | I23: 1 | J23: 2006 | K23: ROC | L23: 2027 | M23: - | N23: 1
B24: Burbo Bank (25 x SWT-3.6-107) | D24: 90 | E24: 90 | F24: 90 | G24: Full | H24: 1 | I24: 1 | J24: 2007 | K24: ROC | L24: 2027 | M24: - | N24: 1.5
B25: Gunfleet Sands 3 (2 x SWT-6.0-120) | D25: 12 | E25: 12 | F25: 12 | G25: Full | H25: 1 | I25: 1 | J25: 2013 | K25: ROC | L25: 2033 | M25: - | N25: 2
B26: Burbo Bank Extension (32 x MVOW V164-8.0) | C26: KIRKBY (LEGO), Greencoat, Brookfield Asset Management | D26: 259 | E26: 259 | F26: 129.5 | G26: Pro rata | H26: 0.5 | I26: 0.3755 | J26: 2017 | K26: CFD | L26: 2032 | M26: 150 | N26: -
B27: Race Bank (91 x SWT-6.0-154) | C27: Arjun Infrastructure, Norges Bank Investment Management | D27: 546 | E27: 546 | F27: 273 | G27: Pro rata | H27: 0.5 | I27: 0.5 | J27: 2018 | K27: ROC | L27: 2037 | M27: - | N27: 1.8
B28: Walney Extension (40 x MVOW V164-8.25 & 47 x SWT-7.0-154) | C28: AIP Management, PFA, Brookfield Asset Management, Octopus Renewables | D28: 659 | E28: 659 | F28: 329.5 | G28: Pro rata | H28: 0.5 | I28: 0.3755 | J28: 2018 | K28: CFD | L28: 2033 | M28: 150 | N28: -
B29: Hornsea 1 (174 x SWT-7.0-154) | C29: Greencoat, TRIG, Equitix, GLIL & Octopus Renewables, Brookfield Asset Management, Daiwa | D29: 1218 | E29: 1218 | F29: 609 | G29: Pro rata | H29: 0.5 | I29: 0.3755 | J29: 2019 | K29: CFD | L29: 2036 | M29: 140 | N29: -
B30: Hornsea 2 (165 x SGRE-8.0-167) | C30: AXA IM Alts and Crédit Agricole Assurances, Brookfield Asset Management | D30: 1320 | E30: 1320 | F30: 660 | G30: Pro rata | H30: 0.5 | I30: 0.3755 | J30: 2022 | K30: CFD | L30: 2038/2039 | M30: 57.5 | N30: - | O30: Phase 1 / Phase 2 and 3 expiry
B31: Total, Divested but installed by Ørsted | E31: 405
B32: Total, Installed | E32: 5692.8
B33: Hornsea 3 (197 x SGRE-14.0)1 | D33: 2852 | E33: 2852 | F33: 0 | G33: Full | H33: 1 | I33: 1 | J33: expected 2027 | K33: CFD | L33: 2042 | M33: 37.35 / 54.23 | N33: -
B34: Hornsea 3 BESS (ICENI) | D34: 300 | E34: 300 | F34: 0 | G34: Full | H34: 1 | I34: 100% | J34: expected 2026
B35: Total Decided (FID'ed) | E35: 3152
B36: Hornsea 4 | E36: 2400 | F36: 0 | G36: Full | H36: 1 | I36: 100% | K36: CFD | L36: 2045 | M36: 58.87
B37: Total, Awarded | E37: 2400
B38: Total, United Kingdom | E38: 11244.8 | F38: 3005
C40: Partners | D40: Park capacity, MW | E40: Renewable capacity, MW | F40: Generation capacity, MW | G40: Financial consolidation | H40: Consolidation, % | I40: Ownership interest, % | J40: Commercial operational date | L40: Subsidy expiry Period 1 | M40: Subsidy expiry Period 2 | N40: Fixed feed-in tariff Period 1, EUR/MWh | O40: Fixed feed-in tariff Period 2, EUR/MWh
B41: Germany | C41: Partners | K41: Subsidy regime | P41: Subsidy note
B42: Borkum Riffgrund 1 (78 x SWT-4.0-120) | C42: Greencoat Renewables | D42: 312 | E42: 312 | F42: 156 | G42: Pro rata | H42: 0.5 | I42: 0.5 | J42: 2015 | K42: Fixed feed-in tariff | L42: 2023 | M42: 2025 | N42: 194 | O42: 154 | P42: Regarding the subsidy expiry for period 2, the floor price of 39 EUR/MWh will remain for up to 20 years
B43: Borkum Riffgrund 2 (56 x MVOW V164-8.0) | C43: Gulf Energy, Keppel Infrastructure Trust ("KIT") | D43: 450 | E43: 450 | F43: 225 | G43: Pro rata | H43: 0.5 | I43: 0.5 | J43: 2018 | K43: Fixed feed-in tariff | L43: 2026 | M43: 2028 | N43: 184 | O43: 149
B44: Gode Wind 1 (55 x SWT-6.0-154) | C44: Glennmont Partners, TRIG | D44: 332 | E44: 332 | F44: 166 | G44: Pro rata | H44: 0.5 | I44: 0.5 | J44: 2016 | K44: Fixed feed-in tariff | L44: 2024 | M44: 2026 | N44: 194 | O44: 154 | P44: Regarding the subsidy expiry for period 2, the floor price of 39 EUR/MWh will remain for up to 20 years
B45: Gode Wind 2 (42 x SWT-6.0-154) | C45: AIP, Industriens Pension, Lærerenes Pension, Lægernes Pensionskasse | D45: 252 | E45: 252 | F45: 126 | G45: Pro rata | H45: 0.5 | I45: 0.5 | J45: 2016 | K45: Fixed feed-in tariff | L45: 2024 | M45: 2026 | N45: 194 | O45: 154 | P45: Regarding the subsidy expiry for period 2, the floor price of 39 EUR/MWh will remain for up to 20 years
B46: Gode Wind 3 (23 x SGRE-11-200) | C46: Glennmont Partners | D46: 253 | E46: 253 | F46: 126.5 | G46: Pro rata | H46: 0.5 | I46: 0.5 | J46: 2025 | K46: Fixed feed-in tariff | L46: 2044 | M46: - | N46: 81.65 | O46: -
B47: Total, Installed | E47: 1599
B48: Borkum Riffgrund 3 (83 x SGRE-11-200) | C48: Glennmont Partners | D48: 913 | E48: 913 | F48: 0 | G48: Pro rata | H48: 0.5 | I48: 0.5 | J48: expected 2026 | K48: Market price | L48: - | M48: - | N48: - | O48: -
B49: Total, Decided (FID'ed) | E49: 913
B50: Total, Germany | E50: 2512 | F50: 799
C52: Partners | D52: Park capacity, MW | E52: Renewable capacity, MW | F52: Generation capacity, MW | G52: Financial consolidation | H52: Consolidation, % | I52: Ownership interest, % | J52: Commercial operational date | L52: Subsidy expiry | M52: Feed-in tariff, USD/MWh
B53: USA | C53: Partners | K53: Subsidy regime | N53: Price escalator, Period 1, % | O53: Subsidy note
B54: Block Island (5 x GE-6MW) | D54: 30 | E54: 30 | F54: 30 | G54: Full | H54: 1 | I54: 1 | J54: 2016 | K54: Offtake solution | L54: 2036 | M54: 236 | N54: 3.5
B55: South Fork Wind (12 x SGRE-11-200) | C55: Global Infrastructure Partners | D55: 132 | E55: 132 | F55: 66 | G55: Pro rata | H55: 0.5 | I55: 0.5 | J55: 2024 | K55: Offtake solution | L55: 2048 | M55: 160 | N55: Variable
B56: Total, installed | E56: 162
B57: Revolution Wind | C57: Global Infrastructure Partners | D57: 704 | E57: 704 | F57: 0 | G57: Pro rata | H57: 0.5 | I57: 0.5 | J57: expected 2026 | K57: PPA | L57: 2045
B58: Sunrise Wind | D58: 924 | E58: 924 | F58: 0 | G58: Full | H58: 1 | I58: 1 | J58: expected 2027 | K58: Offshore Renewable Energy Certificate | L58: 2050
B59: Total, Decided (FID'ed) | E59: 1628
B60: Total, USA | E60: 1790 | F60: 96
C62: Partners | D62: Park capacity, MW | E62: Renewable capacity, MW | F62: Generation capacity, MW | G62: Financial consolidation | H62: Consolidation, % | I62: Ownership interest, % | J62: Commercial operational date | L62: Subsidy expiry | M62: Fixed feed-in tariff, EUR/MWh
B63: Netherlands | C63: Partners | K63: Subsidy regime | N63: Subsidy note
B64: Borssele 1 & 2 (94 x SWT-8.0) | C64: Norges Bank Investment Management (NBIM) | D64: 752 | E64: 752 | F64: 376 | G64: Pro rata | H64: 0.5 | I64: 0.5 | J64: 2020 | K64: Fixed feed-in tariff | L64: 2035/2036 | M64: 72.7 | N64: The 15 year subsidy is based on a "banking system", potentially allowing for subsidy to run into year 16. The EUR 72.7/MWh subsidy is the average subsidy price for both BSW1 and BSW2
B65: Total, Installed | E65: 752
B66: Total, Netherlands | E66: 752 | F66: 376
C68: Partners | D68: Park capacity, MW | E68: Renewable capacity, MW | F68: Generation capacity, MW | G68: Financial consolidation | H68: Consolidation, % | I68: Ownership interest, % | J68: Commercial operational date | L68: Subsidy expiry Period 1 | M68: Subsidy expiry Period 2 | N68: Fixed feed-in tariff Period 1, TWD/MWh | O68: Fixed feed-in tariff Period 2, TWD/MWh
B69: Taiwan | C69: Partners | K69: Subsidy regime | P69: Subsidy note
B70: Formosa 1, Phase 1 (2 x SWT-4.0-120) | C70: JERA, Swancor Renewables, Mitsui Osk Lines (M.O.L.), Hokuriku Electric Power Company, Toho Gas | D70: 8 | E70: 2.8 | F70: 0 | G70: One-line | H70: 0 | I70: 0.35 | J70: 2017 | K70: Fixed feed-in tariff | L70: 2027 | M70: 2037 | N70: 7109 | O70: 3459
B71: Formosa 1, Phase 2 (20 x SWT-6.0-154) | C71: JERA, Swancor Renewables, Mitsui Osk Lines (M.O.L.), Hokuriku Electric Power Company, Toho Gas | D71: 120 | E71: 42 | F71: 0 | G71: One-line | H71: 0 | I71: 0.35 | J71: 2019 | K71: Fixed feed-in tariff | L71: 2029 | M71: 2039 | N71: 7403 | O71: 3595
B72: Greater Changhua 1 (75 x SGRE-8.0-167) | C72: CDPQ & Cathay Private Equity | D72: 605 | E72: 605 | F72: 302.5 | G72: Pro rata | H72: 0.5 | I72: 0.5 | J72: 2024 | K72: Fixed feed-in tariff | L72: 2033 | M72: 2043 | N72: 6279 | O72: 4142 | P72: Developers have the option to choose between a 20-year flat tariff of TWD5,516 per MWh or a tiered tariff of TWD6,279.5 per MWh for the first 10 years and TWD4,142.2 per MWh for the subsequent 10 years. Ørsted has chosen the tiered rate.
B73: Greater Changhua 2a (36 x SGRE-8.0-167) | C73: - | D73: 295 | E73: 295 | F73: 295 | G73: Full | H73: 1 | I73: 1 | J73: 2024 | K73: Fixed feed-in tariff | L73: 2033 | M73: 2043 | N73: 6279 | O73: 4142 | P73: Developers have the option to choose between a 20-year flat tariff of TWD5,516 per MWh or a tiered tariff of TWD6,279.5 per MWh for the first 10 years and TWD4,142.2 per MWh for the subsequent 10 years. Ørsted has chosen the tiered rate.
B74: Total, Installed | E74: 944.8
B75: Greater Changhua 2b (24 x SGRE-14.0) | C75: - | D75: 337 | E75: 337.1 | F75: 0 | G75: Full | H75: 1 | I75: 1 | J75: expected 2026 | K75: CPPA | L75: 2045 | M75: - | N75: - | O75: -
B76: Greater Changhua 4 (42 x SGRE-14.0) | C76: Cathay Life Insurance | D76: 583 | E76: 582.9 | F76: 0 | G76: Pro rata | H76: 0.5 | I76: 0.5 | J76: expected 2026 | K76: CPPA | L76: 2045 | M76: - | N76: - | O76: -
B77: Total, Decided (FID'ed) | E77: 920
B78: Total, Taiwan | E78: 1864.8 | F78: 598
C80: Partners | D80: Park capacity, MW | E80: Renewable capacity, MW | F80: Generation capacity, MW | G80: Financial consolidation | H80: Consolidation, % | I80: Ownership interest, % | J80: Commercial operational date | L80: Subsidy expiry | M80: Fixed feed-in tariff PLN/MWh
B81: Poland | C81: Partners | K81: Subsidy regime | N81: Subsidy note
B82: Baltica 2 (107 x SGRE-14.0) | C82: PGE | E82: 1498 | F82: 0 | G82: Pro rata | H82: 0.5 | I82: 0.5 | J82: expected 2027 | K82: CfD | L82: 2052 | M82: 319.6
B83: Total, Decided (FID'ed) | E83: 1498
B84: Baltica 3 | C84: PGE | E84: 1255 | F84: 0 | G84: Pro rata | H84: 0.5 | I84: 0.5 | J84: - | K84: CfD | L84: By 2054 | M84: 319.6 | N84: Renewable Capacity includes both Baltica 3 (1,045 MW) and the awarded lease capacity for Baltica 2+ (210 MW). Baltica 2+ has not received a CfD on the terms stated for Baltica 3
B85: Total, Awarded | E85: 1255
B86: Total, Poland | E86: 2753 | F86: 0
B88: Totals | E88: MW
B89: Total, Renewable capacity (installed capacity (incl. divested farms), decided capacity, and awarded capacity) | E89: 21922
B90: Installed capacity (incl. divested farms) and decided capacity (parks under construction) | E90: 18267
B91: Installed capacity (incl. divested farms) | E91: 10156
B92: Generation capacity (incl. parks under construction but excl. divested and one-line consolidated farms) | E92: 5435
B94: 1 Nameplate capacity of 2,758 MW

Sheet OF Asset Book (2)
B2: OFFSHORE 1 - Asset Book updated as of 30 September 2024
L3: 0.14
B5: Denmark | C5: Partners | D5: Park capacity, MW2 | E5: Renewable capacity15, MW | F5: Orsted ownership share, % | G5: Generation capacity, MW | H5: Financial consolidation | I5: Commercial operational date | J5: Subsidy regime | K5: Subsidy expiry Period 1 | L5: Subsidy expiry Period 2 | M5: Period 1 Price Local Currency | N5: Period 2 Price Local Currency | O5: Excahnge Rate | P5: Period 1 USD/MWH | Q5: Period 2 USD/MWH
B6: Anholt (111 x SWT-3.6-120) | C6: Pension Danmark, AIP Management | D6: 399.6 | E6: 399.6 | F6: 50% | G6: 199.8 | H6: Pro rata | I6: 2013 | J6: Fixed feed-in tariff | K6: 20 TWh (17,32 TWh produced)2 | M6: 1051 | O6: 0.14 | P6: =O6*M6 -> 147.14
B7: Horns Rev 2 (91 x SWT-2.3-93) | C7: - | D7: 209.3 | E7: 209.3 | F7: 100% | G7: 209.3 | H7: Full | I7: 2010 | J7: Expired 2020, market price | K7: 10 TWh | M7: 518 | O7: 0.14 | P7: =O7*M7 -> 72.52
B8: Nysted (70 x (Bonus) SWT-2.3-82) | C8: Pension Danmark, Stadtwerke Lübeck | D8: 165.5 | E8: 165.5 | F8: 42.75% | G8: 81 | H8: Pro rata | I8: 2003 | J8: Expired 2016, market price | K8: 2016 8 | M8: 453 | O8: 0.14 | P8: =O8*M8 -> 63.42
B9: Horns Rev 1 (8012 x Vestas V80-2.0) | C9: Vattenfall | D9: 158 | E9: 160 | F9: 40% | G9: 64 | H9: Pro rata | I9: 2003 | J9: Market price + 100DKK/MWh3 | K9: Expiry after 20 years
B10: Avedøre Holme (2 x SWT-3.6-120)4 | C10: - | D10: 7.2 | E10: 10.8 | F10: 100% | G10: 7.2 | H10: Full | I10: 2009 and 2011 | J10: Fixed feed-in tariff | K10: 22,000 full-load hours5 | M10: Mkt + 250
B11: Vindeby (11 x Bonus B35-0.45) | C11: - | D11: 0 | E11: 4.95 | F11: 100% | G11: 0 | H11: Full | I11: 1991 (decomissioned 2017) | J11: 0 | K11: 0 | M11: -
B12: Total, Installed | E12: 950.15
B13: Total, Divested, but constructed by Ørsted6 | E13: 56
B14: Total, Denmark | E14: 1006.15 | G14: 561.3
B16: United Kingdom | C16: Partners | J16: Subsidy regime | K16: Subsidy expiry | M16: CFD Price | O16: ROCs/MWh | P16: ROC Price in 2023 | Q16: Subsidy or Contract/MWH
B17: West of Duddon Sands (108 x SWT-3.6-120) | C17: Scottish Power Renewables (Iberdrola) | D17: 388.8 | E17: 388.8 | F17: 0.5 | G17: 194.4 | H17: Pro rata | I17: 2014 | J17: Renewable Obligation Certificates | K17: 2034 | M17: - | O17: 2 | P17: 59.21 | Q17: =#REF!*#REF! -> 
B18: Walney 1&2 (51 x SWT-3.6-107 & 51 x SWT-3.6-120) | C18: PGGM, Greencoat | D18: 367.2 | E18: 367.2 | F18: 0.501 | G18: 183.9672 | H18: Full | I18: 2011 and 2012 | J18: Renewable Obligation Certificates | K18: 2031 and 2032 | M18: - | O18: 2 | P18: 59.21 | Q18: =#REF!*#REF! -> 
B19: Lincs (75 x SWT-3.6-120) | C19: Green Investment Group (GIG), Octopus Renewables | D19: 270 | E19: - | F19: 0.25 | G19: 67.5 | H19: Pro rata | I19: 2013 | J19: Renewable Obligation Certificates | K19: 2033 | M19: - | O19: 2 | P19: 59.21 | Q19: =#REF!*#REF! -> 
B20: Westermost Rough (35 x SWT-6.0-154) | C20: Equitix, USS, Stepstone, BAE Systems Pension Funds, CLAL Insurance | D20: 210 | E20: 210 | F20: 0.5 | G20: 105 | H20: Pro rata | I20: 2015 | J20: Renewable Obligation Certificates | K20: 2035 | M20: - | O20: 2 | P20: 59.21 | Q20: =#REF!*#REF! -> 
B21: Gunfleet Sands 1&2 (48 x SWT-3.6-107) | C21: JERA, Development Bank of Japan (DBJ) | D21: 172.8 | E21: 172.8 | F21: 0.501 | G21: 86.5728 | H21: Full | I21: 2010 | J21: Renewable Obligation Certificates | K21: 2029 | M21: - | O21: 1.5 | P21: 59.21 | Q21: =#REF!*#REF! -> 
B22: Barrow (30 x Vestas V90-3.0) | C22: - | D22: 90 | E22: 45 | F22: 1 | G22: 90 | H22: Full | I22: 2006 | J22: Renewable Obligation Certificates | K22: 2027 | M22: - | O22: 1 | P22: 59.21 | Q22: =#REF!*#REF! -> 
B23: Burbo Bank (25 x SWT-3.6-107) | C23: - | D23: 90 | E23: 90 | F23: 1 | G23: 90 | H23: Full | I23: 2007 | J23: Renewable Obligation Certificates | K23: 2027 | M23: - | O23: 1.5 | P23: 59.21 | Q23: =#REF!*#REF! -> 
B24: Gunfleet Sands 3 (2 x SWT-6.0-120) | C24: - | D24: 12 | E24: 12 | F24: 1 | G24: 12 | H24: Full | I24: 2013 | J24: Renewable Obligation Certificates | K24: 2033 | M24: - | O24: 2 | P24: 59.21 | Q24: =#REF!*#REF! -> 
B25: Burbo Bank Extension (32 x MVOW V164-8.0) | C25: LEGO (Kirkbi), Greencoat | D25: 259 | E25: 259 | F25: 0.5 | G25: 129.5 | H25: Pro rata | I25: 2017 | J25: Contract for Difference | K25: 2032 | M25: 150 | O25: - | Q25: =M25*#REF! -> 
B26: Race Bank (91 x SWT-6.0-154) | C26: Macquarie (MIRA), RE Fund by Sumitomo/SMBC/DBJ, Funds managed by Arjun and Gravis | D26: 546 | E26: 546 | F26: 0.5 | G26: 273 | H26: Pro rata | I26: 2018 | J26: Renewable Obligation Certificates | K26: 2037 | M26: - | O26: 1.8 | P26: 59.21 | Q26: =#REF!*#REF! -> 
B27: Walney Extension (40 x MVOW V164-8.25 & 47 x SWT-7.0-154) | C27: AIP Management, PFA | D27: 659 | E27: 659 | F27: 0.5 | G27: 329.5 | H27: Pro rata | I27: 2018 | J27: Contract for Difference | K27: 2033 | M27: 150 | O27: - | Q27: =#REF!*M27 -> 
B28: Hornsea 1 (174 x SWT-7.0-154) | C28: Greencoat, TRIG & Equitix, GLIL & Octopus Renewables | D28: 1218 | E28: 1218 | F28: 0.5 | G28: 609 | H28: Pro rata | I28: 2019 | J28: Contract for Difference | K28: 2036 | M28: 140 | O28: - | Q28: =#REF!*M28 -> 
B29: Hornsea 2 (165 x SGRE-8.0-167) | C29: AXA IM Alts and Crédit Agricole Assurances | D29: 1320 | E29: 1320 | F29: 0.5 | G29: 660 | H29: Pro rata | I29: 2022 | J29: Contract for Difference | K29: 2036 | M29: 57.5 | O29: - | Q29: =M29*#REF! -> 
B30: Total, Installed | E30: 5287.8 | G30: 2830.44 | Q30: =#REF!*#REF! -> 
B31: Total, Divested, but constructed by Ørsted6 | E31: 405 | Q31: =#REF!*#REF! -> 
B32: Hornsea 3 18 | D32: 2852 | E32: 2852 | F32: 1 | G32: 0 | H32: Full | I32: 2027 7 | J32: Contract for Difference | K32: 2042 | M32: 37.35 / 54.23 | O32: - | Q32: =#REF!*37.35 -> 
B33: Hornsea 3 BESS (ICENI) | D33: 300 | E33: 300 | F33: 100% | G33: 0 | H33: Full | I33: 2026 7
B34: Total Decided (FID'ed) | E34: 3152
B35: Hornsea 4 | E35: 2400 | F35: 100% | G35: 0 | H35: Full | I35: 2030 7 | J35: Contract for Difference | K35: 2045 | M35: 58.87 | Q35: =M35*#REF! -> 
B36: Total, Awarded | E36: 2400 | G36: 0
B37: Total, United Kingdom | E37: 11244.8 | G37: 2830.44
D39: Park capacity, MW | E39: Renewable capacity15, MW | F39: Orsted ownership share, % | G39: Generation capacity, MW | H39: Financial consolidation | I39: Commercial operational date | K39: Subsidy expiry | M39: Fixed feed-in tariff, EUR/MWh
B40: Netherlands
B41: Borssele 1 & 2 (94 x SWT-8.0) | C41: Norges Bank Investment Management (NBIM) | D41: 752 | E41: 752 | F41: 0.5 | G41: 376 | H41: Pro rata | I41: 2020 | J41: Fixed feed-in tariff | K41: 2035/203610 | M41: 72.7 | O41: 1.03 | P41: =O41*M41 -> 74.881
B42: Total, Installed | E42: 752 | G42: 376
B43: Total, Netherlands | E43: 752 | G43: 376
D44: Park capacity, MW | E44: Renewable capacity15, MW | F44: Orsted ownership share, % | G44: Generation capacity, MW | H44: Financial consolidation | I44: Commercial operational date | K44: Subsidy expiry | M44: Fixed feed-in tariff PLN/MWh
B45: Poland
B46: Baltica 2 (107 x SGRE - 14.0) | C46: PGE | E46: 1498 | F46: 0.5 | G46: - | H46: Pro rata | I46: 2027 7 | J46: Contract for Difference | K46: 2052 | M46: 319.6 | O46: 0.24 | P46: =O46*M46 -> 76.704
B47: Baltica 3 17 | C47: PGE | E47: 1255 | F47: 0.5 | G47: - | H47: Pro rata | I47: By 2029 7 | J47: Contract for Difference | K47: By 2054 | M47: 319.6 | O47: 0.24 | P47: =O47*M47 -> 76.704
B48: Total, Awarded | E48: 2753 | G48: 0
B49: Total, Poland | E49: 2753 | G49: 0
K50: Subsidy expiry Period 1 | L50: Subsidy expiry Period 2 | M50: Fixed feed-in tariff Period 1, EUR/MWh | N50: Fixed feed-in tariff Period 2, EUR/MWh
B51: Germany | C51: Partners | J51: Subsidy regime
B52: Borkum Riffgrund 1 (78 x SWT-4.0-120) | C52: Greencoat Renewables | D52: 312 | E52: 312 | F52: 0.5 | G52: 156 | H52: Pro rata | I52: 2015 | J52: Fixed feed-in tariff | K52: 2023 | L52: 2025 9 | M52: 194 | N52: 154 | O52: 1.03 | P52: =O52*M52 -> 199.82 | Q52: =N52*O52 -> 158.62
B53: Borkum Riffgrund 2 (56 x MVOW V164-8.0) | C53: Gulf Energy, Keppel Infrastructure Trust ("KIT") | D53: 450 | E53: 450 | F53: 0.5 | G53: 225 | H53: Pro rata | I53: 2018 | J53: Fixed feed-in tariff | K53: 2026 | L53: 2028 | M53: 184 | N53: 149 | O53: 1.03 | P53: =O53*M53 -> 189.52 | Q53: =N53*O53 -> 153.47
B54: Gode Wind 1 (55 x SWT-6.0-154) | C54: Glennmont Partners, TRIG | D54: 332 | E54: 332 | F54: 0.5 | G54: 166 | H54: Pro rata | I54: 2016 | J54: Fixed feed-in tariff | K54: 2024 | L54: 2026 9 | M54: 194 | N54: 154 | O54: 1.03 | P54: 199.82 | Q54: 158.62
B55: Gode Wind 2 (42 x SWT-6.0-154) | C55: AIP, Industriens Pension, Lærerenes Pension, Lægernes Pensionskasse | D55: 252 | E55: 252 | F55: 0.5 | G55: 126 | H55: Pro rata | I55: 2016 | J55: Fixed feed-in tariff | K55: 2024 | L55: 2026 9 | M55: 194 | N55: 154 | O55: 1.03 | P55: 199.82 | Q55: 158.62
B56: Total, Installed | E56: 1346 | G56: 673
B57: Borkum Riffgrund 3 (83 x SGRE-11-200) | C57: Glennmont Partners | D57: 913 | E57: 913 | F57: 0.5 | G57: 0 | H57: Pro rata | I57: 2026 7 | J57: Market price | K57: - | L57: - | M57: - | N57: -
B58: Gode Wind 3 (23 x SGRE-11-200) | C58: Glennmont Partners | D58: 253 | E58: 253 | F58: 0.5 | G58: 94 | H58: Pro rata | I58: 2024 7 | J58: Fixed feed-in tariff | K58: 2044 | L58: - | M58: 81.65 | N58: -
B59: Total, Decided (FID'ed) | E59: 1166 | G59: 94
B60: Total, Germany | E60: 2512 | G60: 767
D62: Park capacity, MW | E62: Renewable capacity15, MW | F62: Orsted ownership share, % | G62: Generation capacity, MW | H62: Financial consolidation | I62: Commercial operational date | K62: Subsidy expiry Period 1 | L62: Subsidy expiry Period 2 | M62: Fixed feed-in tariff Period 1, TWD/MWh | Q62: Fixed feed-in tariff Period 2, TWD/MWh
B63: Taiwan | C63: Partners
B64: Formosa 1, Phase 1 (2 x SWT-4.0-120) | C64: JERA, Swancor Renewables, Mitsui Osk Lines (M.O.L.), Hokuriku Electric Power Company | D64: 8 | E64: 2.8 | F64: 0.35 | G64: 0 | H64: One-line | I64: 2017 | J64: Fixed feed-in tariff | K64: 2027 | L64: 2037 | M64: 7109 | N64: 3459 | O64: 0.03 | P64: =O64*M64 -> 213.27 | Q64: =N64*O64 -> 103.77
B65: Formosa 1, Phase 2 (20 x SWT-6.0-154) | C65: JERA, Swancor Renewables, Mitsui Osk Lines (M.O.L.), Hokuriku Electric Power Company | D65: 120 | E65: 42 | F65: 0.35 | G65: 0 | H65: One-line | I65: 2019 | J65: Fixed feed-in tariff | K65: 2029 | L65: 2039 | M65: 7403 | N65: 3595 | O65: 0.03 | P65: 222.09 | Q65: =N65*O65 -> 107.85
B66: Greater Changhua 1 (75 x SGRE-8.0-167) | C66: CDPQ & Cathay Private Equity | D66: 605 | E66: 605 | F66: 0.5 | G66: 302.5 | H66: Pro rata | I66: 2024 | J66: Fixed feed-in tariff13 | K66: 2033 13 | L66: 2043 13 | M66: 6279 | N66: 4142 | O66: 0.03 | P66: 188.37 | Q66: 124.26
B67: Greater Changhua 2a (36 x SGRE-8.0-167) | C67: - | D67: 295 | E67: 295 | F67: 1 | G67: 295 | H67: Full | I67: 2024 | J67: Fixed feed-in tariff13 | K67: 2033 13 | L67: 2043 13 | M67: 6279 | N67: 4142 | O67: 0.03 | P67: 188.37 | Q67: 124.26
B68: Total, Installed | E68: 944.8 | G68: 597.5
B69: Greater Changhua 2b and 4 (66 x SGRE-14.0) | C69: - | D69: 920 | E69: 920 | F69: 1 | G69: 0 | H69: Full | I69: 2025 7 | J69: Corporate PPA | K69: 2045 | L69: - | M69: - | Q69: -
B70: Total, Decided (FID'ed) | E70: 920 | G70: 0
B71: Total, Taiwan | E71: 1864.8 | G71: 597.5
D72: Park capacity, MW | E72: Renewable capacity15, MW | F72: Orsted ownership share, % | G72: Generation capacity, MW | H72: Financial consolidation | I72: Commercial operational date | K72: Subsidy expiry | L72: Feed-in tariff, USD/MWh
B73: USA | C73: Partners | M73: Esclator
B74: Block Island (5 x GE-6MW) | C74: - | D74: 30 | E74: 30 | F74: 1 | G74: 30 | H74: Full | I74: 2016 | J74: Offtake solution | K74: 2036 | L74: 236 | M74: 3.5 | O74: 1 | P74: =O74*L74 -> 236
B75: South Fork Wind (12 x SGRE-11-200) | C75: Global Infrastructure Partners | D75: 132 | E75: 132 | F75: 0.5 | G75: 66 | H75: Pro rata | I75: 2024 7 | J75: Offtake solution | K75: 2048 | L75: 160 | M75: Variable | O75: 1 | P75: =O75*L75 -> 160
B76: Total, installed | E76: 162 | G76: 96
B77: Revolution Wind | C77: Global Infrastructure Partners | D77: 704 | E77: 704 | F77: 0.5 | G77: 0 | H77: Pro rata | I77: 2026 7 | J77: PPA | K77: 2045
B78: Sunrise Wind | D78: 924 | E78: 924 | F78: 1 | G78: 0 | H78: Pro rata | I78: 2025 7 | J78: Renewable Energy Certificate | K78: 2050
B79: Total, Decided (FID'ed) | E79: 1628 | G79: 0
B80: Total, USA | E80: 1790 | G80: 96
B85: Totals | E85: MW
B86: Total, Renewable capacity (installed capacity (incl. divested farms), decided capacity (parks under construction), and awarded capacity) | E86: 21921.75
B87: Installed capacity (incl. divested farms) and decided capacity (parks under construction) | E87: 16768.75
B88: Installed capacity (incl. divested farms) | E88: 9902.75
B89: Generation capacity (incl. parks under construction but excl. divested and one-line consolidated farms) | E89: 5228.24
B91: 1 Includes awarded, FID'ed and assets in operation.
B92: 2 By 31 December 2022
B93: 3 The supplement depends on the development of market price and is increased pro rata – a market price below 260 DKK/MWh equals 100 DKK/MWh and over 360 DKK/MWh 0 DKK/MWh
B94: 4 Ørsted has installed Avedøre Holme (10,8 MW), however Ørsted has two of the three turbines on Avedøre Holme.
B95: 5 The first turbine reached approximately 20,019 Full Load Hours, whereas the second turbine is out of subsidy, by 31 December 2016
B96: 6 Denmark: Frederikshavn (11MW), Tunø Knob (5MW) and Middelgrunden (40MW); United Kingdom: Kentish Flats (90MW), London Array (315MW)
B97: 7 Expected year of commissioning
B98: 8 After expiry of fixed feed-in-tariff period expected in 2016, Nysted will receive market price + supplement dependent on the development of market price which is increased pro rata – a market price below 260 DKK/MWh equals 100 DKK/MWh and over 360 DKK/MWh 0 DKK/MWh
B99: 9 Floor price of 39 EUR/MWh for up to 20 years
B100: 10 The 15 year subsidy is based on a "banking system", potentially allowing for subsidy to run into year 16. 72,7/MWh Eur subsidy is the avarage subsidy price for both BSW1 and BSW2
B101: 12 80 turbines were constructed, however, today the wind farm consists of 79 turbines as one turbine was not replaced after a lightning incident in 2014
B102: 13 Developers have the option to choose between a 20-year flat tariff of TWD5,516 per MWh or a tiered tariff of TWD6,279.5 per MWh for the first 10 years and TWD4,142.2 per MWh for the subsequent 10 years. Ørsted has chosen the tiered rate.
B103: 14 12 months window to start CfD subsidy. Expiry date dependent on start date.
B104: 15 Renewable capacity is the sum of installed, decided (FID'ed), and awarded capacity
B105: 16 COD is subject to possible reconfiguration to accomodate potential schedule adjustments due to ongoing implementation of regulatory reforms to interconnectin processess, and to ensure sufficient value creation.
B106: 17 Includes boh Baltica 3 (1,045 MW) and the awarded lease capacity for Baltica 2+ (210 MW). Baltica 2+ has not received a CfD on the terms stated for Baltica 3
B107: 18 Nameplate capacity of 2,758 MW

Sheet Off-Shore Graph Data
P2: Capacity
C3: Denmark | R3: ='OF Statistics 2011-Q3 2024'!E4 -> FY 2025 | S3: ='OF Statistics 2011-Q3 2024'!F4 -> FY 2024 | T3: ='OF Statistics 2011-Q3 2024'!G4 -> FY 2023 | U3: ='OF Statistics 2011-Q3 2024'!H4 -> FY 2022 | V3: ='OF Statistics 2011-Q3 2024'!I4 -> FY 2021 | W3: ='OF Statistics 2011-Q3 2024'!J4 -> FY 2020 | X3: ='OF Statistics 2011-Q3 2024'!K4 -> FY 2019 | Y3: ='OF Statistics 2011-Q3 2024'!L4 -> FY 20181 | Z3: ='OF Statistics 2011-Q3 2024'!M4 -> FY 2017 | AA3: ='OF Statistics 2011-Q3 2024'!N4 -> FY 2016 | AB3: ='OF Statistics 2011-Q3 2024'!O4 -> FY 2015 | AC3: ='OF Statistics 2011-Q3 2024'!P4 -> FY 2014 | AD3: ='OF Statistics 2011-Q3 2024'!Q4 -> FY 2013 | AE3: ='OF Statistics 2011-Q3 2024'!R4 -> FY 2012 | AF3: ='OF Statistics 2011-Q3 2024'!S4 -> FY 2011 | AG3: ='OF Statistics 2011-Q3 2024'!T4 -> 0 | AH3: ='OF Statistics 2011-Q3 2024'!U4 -> Q3 2024 | AI3: ='OF Statistics 2011-Q3 2024'!V4 -> Q2 2024 | AJ3: ='OF Statistics 2011-Q3 2024'!W4 -> Q1 2024 | AK3: ='OF Statistics 2011-Q3 2024'!X4 -> Q4 2023 | AL3: ='OF Statistics 2011-Q3 2024'!Y4 -> Q3 2023 | AM3: ='OF Statistics 2011-Q3 2024'!Z4 -> Q2 2023 | AN3: ='OF Statistics 2011-Q3 2024'!AA4 -> Q1 2023 | AO3: ='OF Statistics 2011-Q3 2024'!AB4 -> Q4 2022 | AP3: ='OF Statistics 2011-Q3 2024'!AC4 -> Q3 2022 | AQ3: ='OF Statistics 2011-Q3 2024'!AD4 -> Q2 2022 | AR3: ='OF Statistics 2011-Q3 2024'!AE4 -> Q1 2022 | AS3: ='OF Statistics 2011-Q3 2024'!AF4 -> Q4 2021 | AT3: ='OF Statistics 2011-Q3 2024'!AG4 -> Q3 2021 | AU3: ='OF Statistics 2011-Q3 2024'!AH4 -> Q2 2021 | AV3: ='OF Statistics 2011-Q3 2024'!AI4 -> Q1 2021 | AW3: ='OF Statistics 2011-Q3 2024'!AJ4 -> Q4 2020 | AX3: ='OF Statistics 2011-Q3 2024'!AK4 -> Q3 2020 | AY3: ='OF Statistics 2011-Q3 2024'!AL4 -> Q2 2020 | AZ3: ='OF Statistics 2011-Q3 2024'!AM4 -> Q1 2020 | BA3: ='OF Statistics 2011-Q3 2024'!AN4 -> Q4 2019 | BB3: ='OF Statistics 2011-Q3 2024'!AO4 -> Q3 20192 | BC3: ='OF Statistics 2011-Q3 2024'!AP4 -> Q2 20191 | BD3: ='OF Statistics 2011-Q3 2024'!AQ4 -> Q1 20191 | BE3: ='OF Statistics 2011-Q3 2024'!AR4 -> Q4 20181 | BF3: ='OF Statistics 2011-Q3 2024'!AS4 -> Q3 20181 | BG3: ='OF Statistics 2011-Q3 2024'!AT4 -> Q2 20181 | BH3: ='OF Statistics 2011-Q3 2024'!AU4 -> Q1 20181 | BI3: ='OF Statistics 2011-Q3 2024'!AV4 -> Q4 2017 | BJ3: ='OF Statistics 2011-Q3 2024'!AW4 -> Q3 2017 | BK3: ='OF Statistics 2011-Q3 2024'!AX4 -> Q2 2017 | BL3: ='OF Statistics 2011-Q3 2024'!AY4 -> Q1 2017 | BM3: ='OF Statistics 2011-Q3 2024'!AZ4 -> Q4 2016 | BN3: ='OF Statistics 2011-Q3 2024'!BA4 -> Q3 2016 | BO3: ='OF Statistics 2011-Q3 2024'!BB4 -> Q2 2016 | BP3: ='OF Statistics 2011-Q3 2024'!BC4 -> Q1 2016 | BQ3: ='OF Statistics 2011-Q3 2024'!BD4 -> Q4 2015 | BR3: ='OF Statistics 2011-Q3 2024'!BE4 -> Q3 2015 | BS3: ='OF Statistics 2011-Q3 2024'!BF4 -> Q2 2015 | BT3: ='OF Statistics 2011-Q3 2024'!BG4 -> Q1 2015 | BU3: ='OF Statistics 2011-Q3 2024'!BH4 -> Q4 2014 | BV3: ='OF Statistics 2011-Q3 2024'!BI4 -> Q3 2014 | BW3: ='OF Statistics 2011-Q3 2024'!BJ4 -> Q2 2014 | BX3: ='OF Statistics 2011-Q3 2024'!BK4 -> Q1 2014
B4: 1 | C4: Anholt | J4: 1 | K4: =_xlfn.XLOOKUP(J4,B:B,C:C) -> Anholt | L4: =$C$3 -> Denmark | P4: =_xlfn.XLOOKUP($K4,'OF Statistics 2011-Q3 2024'!$B:$B,'OF Statistics 2011-Q3 2024'!D:D,0,0) -> 199.8 | R4: =_xlfn.XLOOKUP($K4,'OF Statistics 2011-Q3 2024'!$B:$B,'OF Statistics 2011-Q3 2024'!E:E,0,0) -> 0 | S4: =_xlfn.XLOOKUP($K4,'OF Statistics 2011-Q3 2024'!$B:$B,'OF Statistics 2011-Q3 2024'!F:F,0,0) -> 802.32 | T4: =_xlfn.XLOOKUP($K4,'OF Statistics 2011-Q3 2024'!$B:$B,'OF Statistics 2011-Q3 2024'!G:G,0,0) -> 791.18 | U4: =_xlfn.XLOOKUP($K4,'OF Statistics 2011-Q3 2024'!$B:$B,'OF Statistics 2011-Q3 2024'!H:H,0,0) -> 827.51 | V4: =_xlfn.XLOOKUP($K4,'OF Statistics 2011-Q3 2024'!$B:$B,'OF Statistics 2011-Q3 2024'!I:I,0,0) -> 754.18 | W4: =_xlfn.XLOOKUP($K4,'OF Statistics 2011-Q3 2024'!$B:$B,'OF Statistics 2011-Q3 2024'!J:J,0,0) -> 913.927944 | X4: =_xlfn.XLOOKUP($K4,'OF Statistics 2011-Q3 2024'!$B:$B,'OF Statistics 2011-Q3 2024'!K:K,0,0) -> 884 | Y4: =_xlfn.XLOOKUP($K4,'OF Statistics 2011-Q3 2024'!$B:$B,'OF Statistics 2011-Q3 2024'!L:L,0,0) -> 837.3 | Z4: =_xlfn.XLOOKUP($K4,'OF Statistics 2011-Q3 2024'!$B:$B,'OF Statistics 2011-Q3 2024'!M:M,0,0) -> 944 | AA4: =_xlfn.XLOOKUP($K4,'OF Statistics 2011-Q3 2024'!$B:$B,'OF Statistics 2011-Q3 2024'!N:N,0,0) -> 839 | AB4: =_xlfn.XLOOKUP($K4,'OF Statistics 2011-Q3 2024'!$B:$B,'OF Statistics 2011-Q3 2024'!O:O,0,0) -> 797 | AC4: =_xlfn.XLOOKUP($K4,'OF Statistics 2011-Q3 2024'!$B:$B,'OF Statistics 2011-Q3 2024'!P:P,0,0) -> 908 | AD4: =_xlfn.XLOOKUP($K4,'OF Statistics 2011-Q3 2024'!$B:$B,'OF Statistics 2011-Q3 2024'!Q:Q,0,0) -> 593 | AE4: =_xlfn.XLOOKUP($K4,'OF Statistics 2011-Q3 2024'!$B:$B,'OF Statistics 2011-Q3 2024'!R:R,0,0) -> 16 | AF4: =_xlfn.XLOOKUP($K4,'OF Statistics 2011-Q3 2024'!$B:$B,'OF Statistics 2011-Q3 2024'!S:S,0,0) -> 0 | AG4: =_xlfn.XLOOKUP($K4,'OF Statistics 2011-Q3 2024'!$B:$B,'OF Statistics 2011-Q3 2024'!T:T,0,0) -> 0 | AH4: =_xlfn.XLOOKUP($K4,'OF Statistics 2011-Q3 2024'!$B:$B,'OF Statistics 2011-Q3 2024'!U:U,0,0) -> 136.638852 | AI4: =_xlfn.XLOOKUP($K4,'OF Statistics 2011-Q3 2024'!$B:$B,'OF Statistics 2011-Q3 2024'!V:V,0,0) -> 166.24 | AJ4: =_xlfn.XLOOKUP($K4,'OF Statistics 2011-Q3 2024'!$B:$B,'OF Statistics 2011-Q3 2024'!W:W,0,0) -> 255.44 | AK4: =_xlfn.XLOOKUP($K4,'OF Statistics 2011-Q3 2024'!$B:$B,'OF Statistics 2011-Q3 2024'!X:X,0,0) -> 259.13 | AL4: =_xlfn.XLOOKUP($K4,'OF Statistics 2011-Q3 2024'!$B:$B,'OF Statistics 2011-Q3 2024'!Y:Y,0,0) -> 150.38 | AM4: =_xlfn.XLOOKUP($K4,'OF Statistics 2011-Q3 2024'!$B:$B,'OF Statistics 2011-Q3 2024'!Z:Z,0,0) -> 143.45 | AN4: =_xlfn.XLOOKUP($K4,'OF Statistics 2011-Q3 2024'!$B:$B,'OF Statistics 2011-Q3 2024'!AA:AA,0,0) -> 238.22 | AO4: =_xlfn.XLOOKUP($K4,'OF Statistics 2011-Q3 2024'!$B:$B,'OF Statistics 2011-Q3 2024'!AB:AB,0,0) -> 257.67 | AP4: =_xlfn.XLOOKUP($K4,'OF Statistics 2011-Q3 2024'!$B:$B,'OF Statistics 2011-Q3 2024'!AC:AC,0,0) -> 155.59 | AQ4: =_xlfn.XLOOKUP($K4,'OF Statistics 2011-Q3 2024'!$B:$B,'OF Statistics 2011-Q3 2024'!AD:AD,0,0) -> 157.07 | AR4: =_xlfn.XLOOKUP($K4,'OF Statistics 2011-Q3 2024'!$B:$B,'OF Statistics 2011-Q3 2024'!AE:AE,0,0) -> 257.18 | AS4: =_xlfn.XLOOKUP($K4,'OF Statistics 2011-Q3 2024'!$B:$B,'OF Statistics 2011-Q3 2024'!AF:AF,0,0) -> 234.67 | AT4: =_xlfn.XLOOKUP($K4,'OF Statistics 2011-Q3 2024'!$B:$B,'OF Statistics 2011-Q3 2024'!AG:AG,0,0) -> 157.32 | AU4: =_xlfn.XLOOKUP($K4,'OF Statistics 2011-Q3 2024'!$B:$B,'OF Statistics 2011-Q3 2024'!AH:AH,0,0) -> 150.4321535 | AV4: =_xlfn.XLOOKUP($K4,'OF Statistics 2011-Q3 2024'!$B:$B,'OF Statistics 2011-Q3 2024'!AI:AI,0,0) -> 211.8 | AW4: =_xlfn.XLOOKUP($K4,'OF Statistics 2011-Q3 2024'!$B:$B,'OF Statistics 2011-Q3 2024'!AJ:AJ,0,0) -> 261.806587 | AX4: =_xlfn.XLOOKUP($K4,'OF Statistics 2011-Q3 2024'!$B:$B,'OF Statistics 2011-Q3 2024'!AK:AK,0,0) -> 190.3 | AY4: =_xlfn.XLOOKUP($K4,'OF Statistics 2011-Q3 2024'!$B:$B,'OF Statistics 2011-Q3 2024'!AL:AL,0,0) -> 162.6 | AZ4: =_xlfn.XLOOKUP($K4,'OF Statistics 2011-Q3 2024'!$B:$B,'OF Statistics 2011-Q3 2024'!AM:AM,0,0) -> 299 | BA4: =_xlfn.XLOOKUP($K4,'OF Statistics 2011-Q3 2024'!$B:$B,'OF Statistics 2011-Q3 2024'!AN:AN,0,0) -> 248 | BB4: =_xlfn.XLOOKUP($K4,'OF Statistics 2011-Q3 2024'!$B:$B,'OF Statistics 2011-Q3 2024'!AO:AO,0,0) -> 194.2 | BC4: =_xlfn.XLOOKUP($K4,'OF Statistics 2011-Q3 2024'!$B:$B,'OF Statistics 2011-Q3 2024'!AP:AP,0,0) -> 190.3 | BD4: =_xlfn.XLOOKUP($K4,'OF Statistics 2011-Q3 2024'!$B:$B,'OF Statistics 2011-Q3 2024'!AQ:AQ,0,0) -> 251.1 | BE4: =_xlfn.XLOOKUP($K4,'OF Statistics 2011-Q3 2024'!$B:$B,'OF Statistics 2011-Q3 2024'!AR:AR,0,0) -> 275.8 | BF4: =_xlfn.XLOOKUP($K4,'OF Statistics 2011-Q3 2024'!$B:$B,'OF Statistics 2011-Q3 2024'!AS:AS,0,0) -> 177.3 | BG4: =_xlfn.XLOOKUP($K4,'OF Statistics 2011-Q3 2024'!$B:$B,'OF Statistics 2011-Q3 2024'!AT:AT,0,0) -> 164 | BH4: =_xlfn.XLOOKUP($K4,'OF Statistics 2011-Q3 2024'!$B:$B,'OF Statistics 2011-Q3 2024'!AU:AU,0,0) -> 220 | BI4: =_xlfn.XLOOKUP($K4,'OF Statistics 2011-Q3 2024'!$B:$B,'OF Statistics 2011-Q3 2024'!AV:AV,0,0) -> 298 | BJ4: =_xlfn.XLOOKUP($K4,'OF Statistics 2011-Q3 2024'!$B:$B,'OF Statistics 2011-Q3 2024'!AW:AW,0,0) -> 173 | BK4: =_xlfn.XLOOKUP($K4,'OF Statistics 2011-Q3 2024'!$B:$B,'OF Statistics 2011-Q3 2024'!AX:AX,0,0) -> 224 | BL4: =_xlfn.XLOOKUP($K4,'OF Statistics 2011-Q3 2024'!$B:$B,'OF Statistics 2011-Q3 2024'!AY:AY,0,0) -> 249 | BM4: =_xlfn.XLOOKUP($K4,'OF Statistics 2011-Q3 2024'!$B:$B,'OF Statistics 2011-Q3 2024'!AZ:AZ,0,0) -> 294 | BN4: =_xlfn.XLOOKUP($K4,'OF Statistics 2011-Q3 2024'!$B:$B,'OF Statistics 2011-Q3 2024'!BA:BA,0,0) -> 158 | BO4: =_xlfn.XLOOKUP($K4,'OF Statistics 2011-Q3 2024'!$B:$B,'OF Statistics 2011-Q3 2024'!BB:BB,0,0) -> 176 | BP4: =_xlfn.XLOOKUP($K4,'OF Statistics 2011-Q3 2024'!$B:$B,'OF Statistics 2011-Q3 2024'!BC:BC,0,0) -> 211 | BQ4: =_xlfn.XLOOKUP($K4,'OF Statistics 2011-Q3 2024'!$B:$B,'OF Statistics 2011-Q3 2024'!BD:BD,0,0) -> 189 | BR4: =_xlfn.XLOOKUP($K4,'OF Statistics 2011-Q3 2024'!$B:$B,'OF Statistics 2011-Q3 2024'!BE:BE,0,0) -> 210 | BS4: =_xlfn.XLOOKUP($K4,'OF Statistics 2011-Q3 2024'!$B:$B,'OF Statistics 2011-Q3 2024'!BF:BF,0,0) -> 227 | BT4: =_xlfn.XLOOKUP($K4,'OF Statistics 2011-Q3 2024'!$B:$B,'OF Statistics 2011-Q3 2024'!BG:BG,0,0) -> 171 | BU4: =_xlfn.XLOOKUP($K4,'OF Statistics 2011-Q3 2024'!$B:$B,'OF Statistics 2011-Q3 2024'!BH:BH,0,0) -> 287 | BV4: =_xlfn.XLOOKUP($K4,'OF Statistics 2011-Q3 2024'!$B:$B,'OF Statistics 2011-Q3 2024'!BI:BI,0,0) -> 160 | BW4: =_xlfn.XLOOKUP($K4,'OF Statistics 2011-Q3 2024'!$B:$B,'OF Statistics 2011-Q3 2024'!BJ:BJ,0,0) -> 132 | BX4: =_xlfn.XLOOKUP($K4,'OF Statistics 2011-Q3 2024'!$B:$B,'OF Statistics 2011-Q3 2024'!BK:BK,0,0) -> 329 | BY4: =_xlfn.XLOOKUP($K4,'OF Statistics 2011-Q3 2024'!$B:$B,'OF Statistics 2011-Q3 2024'!BL:BL,0,0) -> 0
B5: 2 | C5: Horns Rev 1 | J5: 2 | K5: Horns Rev 1 | L5: =$C$3 -> Denmark | P5: ='OF Asset Book'!G9 -> 64 | R5: =_xlfn.XLOOKUP($K5,'OF Statistics 2011-Q3 2024'!$B:$B,'OF Statistics 2011-Q3 2024'!E:E,0,0) -> 0 | S5: =_xlfn.XLOOKUP($K5,'OF Statistics 2011-Q3 2024'!$B:$B,'OF Statistics 2011-Q3 2024'!F:F,0,0) -> 227.82 | T5: =_xlfn.XLOOKUP($K5,'OF Statistics 2011-Q3 2024'!$B:$B,'OF Statistics 2011-Q3 2024'!G:G,0,0) -> 225.45 | U5: =_xlfn.XLOOKUP($K5,'OF Statistics 2011-Q3 2024'!$B:$B,'OF Statistics 2011-Q3 2024'!H:H,0,0) -> 216.74 | V5: =_xlfn.XLOOKUP($K5,'OF Statistics 2011-Q3 2024'!$B:$B,'OF Statistics 2011-Q3 2024'!I:I,0,0) -> 193.18 | W5: =_xlfn.XLOOKUP($K5,'OF Statistics 2011-Q3 2024'!$B:$B,'OF Statistics 2011-Q3 2024'!J:J,0,0) -> 172.84153 | X5: =_xlfn.XLOOKUP($K5,'OF Statistics 2011-Q3 2024'!$B:$B,'OF Statistics 2011-Q3 2024'!K:K,0,0) -> 156 | Y5: =_xlfn.XLOOKUP($K5,'OF Statistics 2011-Q3 2024'!$B:$B,'OF Statistics 2011-Q3 2024'!L:L,0,0) -> 168.5 | Z5: =_xlfn.XLOOKUP($K5,'OF Statistics 2011-Q3 2024'!$B:$B,'OF Statistics 2011-Q3 2024'!M:M,0,0) -> 233 | AA5: =_xlfn.XLOOKUP($K5,'OF Statistics 2011-Q3 2024'!$B:$B,'OF Statistics 2011-Q3 2024'!N:N,0,0) -> 235 | AB5: =_xlfn.XLOOKUP($K5,'OF Statistics 2011-Q3 2024'!$B:$B,'OF Statistics 2011-Q3 2024'!O:O,0,0) -> 246 | AC5: =_xlfn.XLOOKUP($K5,'OF Statistics 2011-Q3 2024'!$B:$B,'OF Statistics 2011-Q3 2024'!P:P,0,0) -> 264 | AD5: =_xlfn.XLOOKUP($K5,'OF Statistics 2011-Q3 2024'!$B:$B,'OF Statistics 2011-Q3 2024'!Q:Q,0,0) -> 239 | AE5: =_xlfn.XLOOKUP($K5,'OF Statistics 2011-Q3 2024'!$B:$B,'OF Statistics 2011-Q3 2024'!R:R,0,0) -> 264 | AF5: =_xlfn.XLOOKUP($K5,'OF Statistics 2011-Q3 2024'!$B:$B,'OF Statistics 2011-Q3 2024'!S:S,0,0) -> 268 | AG5: =_xlfn.XLOOKUP($K5,'OF Statistics 2011-Q3 2024'!$B:$B,'OF Statistics 2011-Q3 2024'!T:T,0,0) -> 0 | AH5: =_xlfn.XLOOKUP($K5,'OF Statistics 2011-Q3 2024'!$B:$B,'OF Statistics 2011-Q3 2024'!U:U,0,0) -> 37.815 | AI5: =_xlfn.XLOOKUP($K5,'OF Statistics 2011-Q3 2024'!$B:$B,'OF Statistics 2011-Q3 2024'!V:V,0,0) -> 50.55 | AJ5: =_xlfn.XLOOKUP($K5,'OF Statistics 2011-Q3 2024'!$B:$B,'OF Statistics 2011-Q3 2024'!W:W,0,0) -> 78.25 | AK5: =_xlfn.XLOOKUP($K5,'OF Statistics 2011-Q3 2024'!$B:$B,'OF Statistics 2011-Q3 2024'!X:X,0,0) -> 70.73 | AL5: =_xlfn.XLOOKUP($K5,'OF Statistics 2011-Q3 2024'!$B:$B,'OF Statistics 2011-Q3 2024'!Y:Y,0,0) -> 46.09 | AM5: =_xlfn.XLOOKUP($K5,'OF Statistics 2011-Q3 2024'!$B:$B,'OF Statistics 2011-Q3 2024'!Z:Z,0,0) -> 43.55 | AN5: =_xlfn.XLOOKUP($K5,'OF Statistics 2011-Q3 2024'!$B:$B,'OF Statistics 2011-Q3 2024'!AA:AA,0,0) -> 65.09 | AO5: =_xlfn.XLOOKUP($K5,'OF Statistics 2011-Q3 2024'!$B:$B,'OF Statistics 2011-Q3 2024'!AB:AB,0,0) -> 64 | AP5: =_xlfn.XLOOKUP($K5,'OF Statistics 2011-Q3 2024'!$B:$B,'OF Statistics 2011-Q3 2024'!AC:AC,0,0) -> 46.47 | AQ5: =_xlfn.XLOOKUP($K5,'OF Statistics 2011-Q3 2024'!$B:$B,'OF Statistics 2011-Q3 2024'!AD:AD,0,0) -> 39.84 | AR5: =_xlfn.XLOOKUP($K5,'OF Statistics 2011-Q3 2024'!$B:$B,'OF Statistics 2011-Q3 2024'!AE:AE,0,0) -> 66.43 | AS5: =_xlfn.XLOOKUP($K5,'OF Statistics 2011-Q3 2024'!$B:$B,'OF Statistics 2011-Q3 2024'!AF:AF,0,0) -> 57.51 | AT5: =_xlfn.XLOOKUP($K5,'OF Statistics 2011-Q3 2024'!$B:$B,'OF Statistics 2011-Q3 2024'!AG:AG,0,0) -> 28.85 | AU5: =_xlfn.XLOOKUP($K5,'OF Statistics 2011-Q3 2024'!$B:$B,'OF Statistics 2011-Q3 2024'!AH:AH,0,0) -> 46.72146905 | AV5: =_xlfn.XLOOKUP($K5,'OF Statistics 2011-Q3 2024'!$B:$B,'OF Statistics 2011-Q3 2024'!AI:AI,0,0) -> 60.09754 | AW5: =_xlfn.XLOOKUP($K5,'OF Statistics 2011-Q3 2024'!$B:$B,'OF Statistics 2011-Q3 2024'!AJ:AJ,0,0) -> 35.90046 | AX5: =_xlfn.XLOOKUP($K5,'OF Statistics 2011-Q3 2024'!$B:$B,'OF Statistics 2011-Q3 2024'!AK:AK,0,0) -> 41.8 | AY5: =_xlfn.XLOOKUP($K5,'OF Statistics 2011-Q3 2024'!$B:$B,'OF Statistics 2011-Q3 2024'!AL:AL,0,0) -> 33.4 | AZ5: =_xlfn.XLOOKUP($K5,'OF Statistics 2011-Q3 2024'!$B:$B,'OF Statistics 2011-Q3 2024'!AM:AM,0,0) -> 62 | BA5: =_xlfn.XLOOKUP($K5,'OF Statistics 2011-Q3 2024'!$B:$B,'OF Statistics 2011-Q3 2024'!AN:AN,0,0) -> 67 | BB5: =_xlfn.XLOOKUP($K5,'OF Statistics 2011-Q3 2024'!$B:$B,'OF Statistics 2011-Q3 2024'!AO:AO,0,0) -> 44.2 | BC5: =_xlfn.XLOOKUP($K5,'OF Statistics 2011-Q3 2024'!$B:$B,'OF Statistics 2011-Q3 2024'!AP:AP,0,0) -> 41.4 | BD5: =_xlfn.XLOOKUP($K5,'OF Statistics 2011-Q3 2024'!$B:$B,'OF Statistics 2011-Q3 2024'!AQ:AQ,0,0) -> 3.6 | BE5: =_xlfn.XLOOKUP($K5,'OF Statistics 2011-Q3 2024'!$B:$B,'OF Statistics 2011-Q3 2024'!AR:AR,0,0) -> 14.6 | BF5: =_xlfn.XLOOKUP($K5,'OF Statistics 2011-Q3 2024'!$B:$B,'OF Statistics 2011-Q3 2024'!AS:AS,0,0) -> 42.4 | BG5: =_xlfn.XLOOKUP($K5,'OF Statistics 2011-Q3 2024'!$B:$B,'OF Statistics 2011-Q3 2024'!AT:AT,0,0) -> 47 | BH5: =_xlfn.XLOOKUP($K5,'OF Statistics 2011-Q3 2024'!$B:$B,'OF Statistics 2011-Q3 2024'!AU:AU,0,0) -> 65 | BI5: =_xlfn.XLOOKUP($K5,'OF Statistics 2011-Q3 2024'!$B:$B,'OF Statistics 2011-Q3 2024'!AV:AV,0,0) -> 66 | BJ5: =_xlfn.XLOOKUP($K5,'OF Statistics 2011-Q3 2024'!$B:$B,'OF Statistics 2011-Q3 2024'!AW:AW,0,0) -> 50 | BK5: =_xlfn.XLOOKUP($K5,'OF Statistics 2011-Q3 2024'!$B:$B,'OF Statistics 2011-Q3 2024'!AX:AX,0,0) -> 53 | BL5: =_xlfn.XLOOKUP($K5,'OF Statistics 2011-Q3 2024'!$B:$B,'OF Statistics 2011-Q3 2024'!AY:AY,0,0) -> 64 | BM5: =_xlfn.XLOOKUP($K5,'OF Statistics 2011-Q3 2024'!$B:$B,'OF Statistics 2011-Q3 2024'!AZ:AZ,0,0) -> 66 | BN5: =_xlfn.XLOOKUP($K5,'OF Statistics 2011-Q3 2024'!$B:$B,'OF Statistics 2011-Q3 2024'!BA:BA,0,0) -> 51 | BO5: =_xlfn.XLOOKUP($K5,'OF Statistics 2011-Q3 2024'!$B:$B,'OF Statistics 2011-Q3 2024'!BB:BB,0,0) -> 46 | BP5: =_xlfn.XLOOKUP($K5,'OF Statistics 2011-Q3 2024'!$B:$B,'OF Statistics 2011-Q3 2024'!BC:BC,0,0) -> 72 | BQ5: =_xlfn.XLOOKUP($K5,'OF Statistics 2011-Q3 2024'!$B:$B,'OF Statistics 2011-Q3 2024'!BD:BD,0,0) -> 63 | BR5: =_xlfn.XLOOKUP($K5,'OF Statistics 2011-Q3 2024'!$B:$B,'OF Statistics 2011-Q3 2024'!BE:BE,0,0) -> 50 | BS5: =_xlfn.XLOOKUP($K5,'OF Statistics 2011-Q3 2024'!$B:$B,'OF Statistics 2011-Q3 2024'!BF:BF,0,0) -> 58 | BT5: =_xlfn.XLOOKUP($K5,'OF Statistics 2011-Q3 2024'!$B:$B,'OF Statistics 2011-Q3 2024'!BG:BG,0,0) -> 75 | BU5: =_xlfn.XLOOKUP($K5,'OF Statistics 2011-Q3 2024'!$B:$B,'OF Statistics 2011-Q3 2024'!BH:BH,0,0) -> 73 | BV5: =_xlfn.XLOOKUP($K5,'OF Statistics 2011-Q3 2024'!$B:$B,'OF Statistics 2011-Q3 2024'!BI:BI,0,0) -> 51 | BW5: =_xlfn.XLOOKUP($K5,'OF Statistics 2011-Q3 2024'!$B:$B,'OF Statistics 2011-Q3 2024'!BJ:BJ,0,0) -> 65 | BX5: =_xlfn.XLOOKUP($K5,'OF Statistics 2011-Q3 2024'!$B:$B,'OF Statistics 2011-Q3 2024'!BK:BK,0,0) -> 75 | BY5: =_xlfn.XLOOKUP($K5,'OF Statistics 2011-Q3 2024'!$B:$B,'OF Statistics 2011-Q3 2024'!BL:BL,0,0) -> 0
B6: 3 | C6: Horns Rev 2 | J6: 3 | K6: Horns Rev 2 | L6: Denmark | P6: ='OF Asset Book'!G7 -> 209.3 | R6: =_xlfn.XLOOKUP($K6,'OF Statistics 2011-Q3 2024'!$B:$B,'OF Statistics 2011-Q3 2024'!E:E,0,0) -> 0 | S6: =_xlfn.XLOOKUP($K6,'OF Statistics 2011-Q3 2024'!$B:$B,'OF Statistics 2011-Q3 2024'!F:F,0,0) -> 764.34 | T6: =_xlfn.XLOOKUP($K6,'OF Statistics 2011-Q3 2024'!$B:$B,'OF Statistics 2011-Q3 2024'!G:G,0,0) -> 718.16 | U6: =_xlfn.XLOOKUP($K6,'OF Statistics 2011-Q3 2024'!$B:$B,'OF Statistics 2011-Q3 2024'!H:H,0,0) -> 812.3 | V6: =_xlfn.XLOOKUP($K6,'OF Statistics 2011-Q3 2024'!$B:$B,'OF Statistics 2011-Q3 2024'!I:I,0,0) -> 728.17 | W6: =_xlfn.XLOOKUP($K6,'OF Statistics 2011-Q3 2024'!$B:$B,'OF Statistics 2011-Q3 2024'!J:J,0,0) -> 821.58358 | X6: =_xlfn.XLOOKUP($K6,'OF Statistics 2011-Q3 2024'!$B:$B,'OF Statistics 2011-Q3 2024'!K:K,0,0) -> 899 | Y6: =_xlfn.XLOOKUP($K6,'OF Statistics 2011-Q3 2024'!$B:$B,'OF Statistics 2011-Q3 2024'!L:L,0,0) -> 878.8 | Z6: =_xlfn.XLOOKUP($K6,'OF Statistics 2011-Q3 2024'!$B:$B,'OF Statistics 2011-Q3 2024'!M:M,0,0) -> 932 | AA6: =_xlfn.XLOOKUP($K6,'OF Statistics 2011-Q3 2024'!$B:$B,'OF Statistics 2011-Q3 2024'!N:N,0,0) -> 847 | AB6: =_xlfn.XLOOKUP($K6,'OF Statistics 2011-Q3 2024'!$B:$B,'OF Statistics 2011-Q3 2024'!O:O,0,0) -> 769 | AC6: =_xlfn.XLOOKUP($K6,'OF Statistics 2011-Q3 2024'!$B:$B,'OF Statistics 2011-Q3 2024'!P:P,0,0) -> 950 | AD6: =_xlfn.XLOOKUP($K6,'OF Statistics 2011-Q3 2024'!$B:$B,'OF Statistics 2011-Q3 2024'!Q:Q,0,0) -> 886 | AE6: =_xlfn.XLOOKUP($K6,'OF Statistics 2011-Q3 2024'!$B:$B,'OF Statistics 2011-Q3 2024'!R:R,0,0) -> 956 | AF6: =_xlfn.XLOOKUP($K6,'OF Statistics 2011-Q3 2024'!$B:$B,'OF Statistics 2011-Q3 2024'!S:S,0,0) -> 911 | AG6: =_xlfn.XLOOKUP($K6,'OF Statistics 2011-Q3 2024'!$B:$B,'OF Statistics 2011-Q3 2024'!T:T,0,0) -> 0 | AH6: =_xlfn.XLOOKUP($K6,'OF Statistics 2011-Q3 2024'!$B:$B,'OF Statistics 2011-Q3 2024'!U:U,0,0) -> 140.114151 | AI6: =_xlfn.XLOOKUP($K6,'OF Statistics 2011-Q3 2024'!$B:$B,'OF Statistics 2011-Q3 2024'!V:V,0,0) -> 150.75 | AJ6: =_xlfn.XLOOKUP($K6,'OF Statistics 2011-Q3 2024'!$B:$B,'OF Statistics 2011-Q3 2024'!W:W,0,0) -> 257.14 | AK6: =_xlfn.XLOOKUP($K6,'OF Statistics 2011-Q3 2024'!$B:$B,'OF Statistics 2011-Q3 2024'!X:X,0,0) -> 225.23 | AL6: =_xlfn.XLOOKUP($K6,'OF Statistics 2011-Q3 2024'!$B:$B,'OF Statistics 2011-Q3 2024'!Y:Y,0,0) -> 139.35 | AM6: =_xlfn.XLOOKUP($K6,'OF Statistics 2011-Q3 2024'!$B:$B,'OF Statistics 2011-Q3 2024'!Z:Z,0,0) -> 136.34 | AN6: =_xlfn.XLOOKUP($K6,'OF Statistics 2011-Q3 2024'!$B:$B,'OF Statistics 2011-Q3 2024'!AA:AA,0,0) -> 217.25 | AO6: =_xlfn.XLOOKUP($K6,'OF Statistics 2011-Q3 2024'!$B:$B,'OF Statistics 2011-Q3 2024'!AB:AB,0,0) -> 245.37 | AP6: =_xlfn.XLOOKUP($K6,'OF Statistics 2011-Q3 2024'!$B:$B,'OF Statistics 2011-Q3 2024'!AC:AC,0,0) -> 179.68 | AQ6: =_xlfn.XLOOKUP($K6,'OF Statistics 2011-Q3 2024'!$B:$B,'OF Statistics 2011-Q3 2024'!AD:AD,0,0) -> 145.86 | AR6: =_xlfn.XLOOKUP($K6,'OF Statistics 2011-Q3 2024'!$B:$B,'OF Statistics 2011-Q3 2024'!AE:AE,0,0) -> 241.4 | AS6: =_xlfn.XLOOKUP($K6,'OF Statistics 2011-Q3 2024'!$B:$B,'OF Statistics 2011-Q3 2024'!AF:AF,0,0) -> 247.57 | AT6: =_xlfn.XLOOKUP($K6,'OF Statistics 2011-Q3 2024'!$B:$B,'OF Statistics 2011-Q3 2024'!AG:AG,0,0) -> 142.49 | AU6: =_xlfn.XLOOKUP($K6,'OF Statistics 2011-Q3 2024'!$B:$B,'OF Statistics 2011-Q3 2024'!AH:AH,0,0) -> 141.483142 | AV6: =_xlfn.XLOOKUP($K6,'OF Statistics 2011-Q3 2024'!$B:$B,'OF Statistics 2011-Q3 2024'!AI:AI,0,0) -> 196.616545 | AW6: =_xlfn.XLOOKUP($K6,'OF Statistics 2011-Q3 2024'!$B:$B,'OF Statistics 2011-Q3 2024'!AJ:AJ,0,0) -> 232.628484 | AX6: =_xlfn.XLOOKUP($K6,'OF Statistics 2011-Q3 2024'!$B:$B,'OF Statistics 2011-Q3 2024'!AK:AK,0,0) -> 154.8 | AY6: =_xlfn.XLOOKUP($K6,'OF Statistics 2011-Q3 2024'!$B:$B,'OF Statistics 2011-Q3 2024'!AL:AL,0,0) -> 146.6 | AZ6: =_xlfn.XLOOKUP($K6,'OF Statistics 2011-Q3 2024'!$B:$B,'OF Statistics 2011-Q3 2024'!AM:AM,0,0) -> 288 | BA6: =_xlfn.XLOOKUP($K6,'OF Statistics 2011-Q3 2024'!$B:$B,'OF Statistics 2011-Q3 2024'!AN:AN,0,0) -> 260 | BB6: =_xlfn.XLOOKUP($K6,'OF Statistics 2011-Q3 2024'!$B:$B,'OF Statistics 2011-Q3 2024'!AO:AO,0,0) -> 204.2 | BC6: =_xlfn.XLOOKUP($K6,'OF Statistics 2011-Q3 2024'!$B:$B,'OF Statistics 2011-Q3 2024'!AP:AP,0,0) -> 161.6 | BD6: =_xlfn.XLOOKUP($K6,'OF Statistics 2011-Q3 2024'!$B:$B,'OF Statistics 2011-Q3 2024'!AQ:AQ,0,0) -> 273.6 | BE6: =_xlfn.XLOOKUP($K6,'OF Statistics 2011-Q3 2024'!$B:$B,'OF Statistics 2011-Q3 2024'!AR:AR,0,0) -> 294.3 | BF6: =_xlfn.XLOOKUP($K6,'OF Statistics 2011-Q3 2024'!$B:$B,'OF Statistics 2011-Q3 2024'!AS:AS,0,0) -> 169 | BG6: =_xlfn.XLOOKUP($K6,'OF Statistics 2011-Q3 2024'!$B:$B,'OF Statistics 2011-Q3 2024'!AT:AT,0,0) -> 176 | BH6: =_xlfn.XLOOKUP($K6,'OF Statistics 2011-Q3 2024'!$B:$B,'OF Statistics 2011-Q3 2024'!AU:AU,0,0) -> 240 | BI6: =_xlfn.XLOOKUP($K6,'OF Statistics 2011-Q3 2024'!$B:$B,'OF Statistics 2011-Q3 2024'!AV:AV,0,0) -> 302 | BJ6: =_xlfn.XLOOKUP($K6,'OF Statistics 2011-Q3 2024'!$B:$B,'OF Statistics 2011-Q3 2024'!AW:AW,0,0) -> 164 | BK6: =_xlfn.XLOOKUP($K6,'OF Statistics 2011-Q3 2024'!$B:$B,'OF Statistics 2011-Q3 2024'!AX:AX,0,0) -> 197 | BL6: =_xlfn.XLOOKUP($K6,'OF Statistics 2011-Q3 2024'!$B:$B,'OF Statistics 2011-Q3 2024'!AY:AY,0,0) -> 269 | BM6: =_xlfn.XLOOKUP($K6,'OF Statistics 2011-Q3 2024'!$B:$B,'OF Statistics 2011-Q3 2024'!AZ:AZ,0,0) -> 260 | BN6: =_xlfn.XLOOKUP($K6,'OF Statistics 2011-Q3 2024'!$B:$B,'OF Statistics 2011-Q3 2024'!BA:BA,0,0) -> 177 | BO6: =_xlfn.XLOOKUP($K6,'OF Statistics 2011-Q3 2024'!$B:$B,'OF Statistics 2011-Q3 2024'!BB:BB,0,0) -> 216 | BP6: =_xlfn.XLOOKUP($K6,'OF Statistics 2011-Q3 2024'!$B:$B,'OF Statistics 2011-Q3 2024'!BC:BC,0,0) -> 194 | BQ6: =_xlfn.XLOOKUP($K6,'OF Statistics 2011-Q3 2024'!$B:$B,'OF Statistics 2011-Q3 2024'!BD:BD,0,0) -> 68 | BR6: =_xlfn.XLOOKUP($K6,'OF Statistics 2011-Q3 2024'!$B:$B,'OF Statistics 2011-Q3 2024'!BE:BE,0,0) -> 192 | BS6: =_xlfn.XLOOKUP($K6,'OF Statistics 2011-Q3 2024'!$B:$B,'OF Statistics 2011-Q3 2024'!BF:BF,0,0) -> 237 | BT6: =_xlfn.XLOOKUP($K6,'OF Statistics 2011-Q3 2024'!$B:$B,'OF Statistics 2011-Q3 2024'!BG:BG,0,0) -> 272 | BU6: =_xlfn.XLOOKUP($K6,'OF Statistics 2011-Q3 2024'!$B:$B,'OF Statistics 2011-Q3 2024'!BH:BH,0,0) -> 280 | BV6: =_xlfn.XLOOKUP($K6,'OF Statistics 2011-Q3 2024'!$B:$B,'OF Statistics 2011-Q3 2024'!BI:BI,0,0) -> 173 | BW6: =_xlfn.XLOOKUP($K6,'OF Statistics 2011-Q3 2024'!$B:$B,'OF Statistics 2011-Q3 2024'!BJ:BJ,0,0) -> 157 | BX6: =_xlfn.XLOOKUP($K6,'OF Statistics 2011-Q3 2024'!$B:$B,'OF Statistics 2011-Q3 2024'!BK:BK,0,0) -> 340 | BY6: =_xlfn.XLOOKUP($K6,'OF Statistics 2011-Q3 2024'!$B:$B,'OF Statistics 2011-Q3 2024'!BL:BL,0,0) -> 0
B7: 4 | C7: Nysted | J7: 4 | K7: Nysted | L7: Denmark | P7: ='OF Asset Book'!G8 -> 81 | R7: =_xlfn.XLOOKUP($K7,'OF Statistics 2011-Q3 2024'!$B:$B,'OF Statistics 2011-Q3 2024'!E:E,0,0) -> 0 | S7: =_xlfn.XLOOKUP($K7,'OF Statistics 2011-Q3 2024'!$B:$B,'OF Statistics 2011-Q3 2024'!F:F,0,0) -> 247.11 | T7: =_xlfn.XLOOKUP($K7,'OF Statistics 2011-Q3 2024'!$B:$B,'OF Statistics 2011-Q3 2024'!G:G,0,0) -> 211.75 | U7: =_xlfn.XLOOKUP($K7,'OF Statistics 2011-Q3 2024'!$B:$B,'OF Statistics 2011-Q3 2024'!H:H,0,0) -> 203 | V7: =_xlfn.XLOOKUP($K7,'OF Statistics 2011-Q3 2024'!$B:$B,'OF Statistics 2011-Q3 2024'!I:I,0,0) -> 220.54 | W7: =_xlfn.XLOOKUP($K7,'OF Statistics 2011-Q3 2024'!$B:$B,'OF Statistics 2011-Q3 2024'!J:J,0,0) -> 231.4753585 | X7: =_xlfn.XLOOKUP($K7,'OF Statistics 2011-Q3 2024'!$B:$B,'OF Statistics 2011-Q3 2024'!K:K,0,0) -> 247 | Y7: =_xlfn.XLOOKUP($K7,'OF Statistics 2011-Q3 2024'!$B:$B,'OF Statistics 2011-Q3 2024'!L:L,0,0) -> 254.9 | Z7: =_xlfn.XLOOKUP($K7,'OF Statistics 2011-Q3 2024'!$B:$B,'OF Statistics 2011-Q3 2024'!M:M,0,0) -> 290 | AA7: =_xlfn.XLOOKUP($K7,'OF Statistics 2011-Q3 2024'!$B:$B,'OF Statistics 2011-Q3 2024'!N:N,0,0) -> 253 | AB7: =_xlfn.XLOOKUP($K7,'OF Statistics 2011-Q3 2024'!$B:$B,'OF Statistics 2011-Q3 2024'!O:O,0,0) -> 288 | AC7: =_xlfn.XLOOKUP($K7,'OF Statistics 2011-Q3 2024'!$B:$B,'OF Statistics 2011-Q3 2024'!P:P,0,0) -> 293 | AD7: =_xlfn.XLOOKUP($K7,'OF Statistics 2011-Q3 2024'!$B:$B,'OF Statistics 2011-Q3 2024'!Q:Q,0,0) -> 261 | AE7: =_xlfn.XLOOKUP($K7,'OF Statistics 2011-Q3 2024'!$B:$B,'OF Statistics 2011-Q3 2024'!R:R,0,0) -> 288 | AF7: =_xlfn.XLOOKUP($K7,'OF Statistics 2011-Q3 2024'!$B:$B,'OF Statistics 2011-Q3 2024'!S:S,0,0) -> 300 | AG7: =_xlfn.XLOOKUP($K7,'OF Statistics 2011-Q3 2024'!$B:$B,'OF Statistics 2011-Q3 2024'!T:T,0,0) -> 0 | AH7: =_xlfn.XLOOKUP($K7,'OF Statistics 2011-Q3 2024'!$B:$B,'OF Statistics 2011-Q3 2024'!U:U,0,0) -> 39.1266215 | AI7: =_xlfn.XLOOKUP($K7,'OF Statistics 2011-Q3 2024'!$B:$B,'OF Statistics 2011-Q3 2024'!V:V,0,0) -> 46.06 | AJ7: =_xlfn.XLOOKUP($K7,'OF Statistics 2011-Q3 2024'!$B:$B,'OF Statistics 2011-Q3 2024'!W:W,0,0) -> 91.7 | AK7: =_xlfn.XLOOKUP($K7,'OF Statistics 2011-Q3 2024'!$B:$B,'OF Statistics 2011-Q3 2024'!X:X,0,0) -> 61.97 | AL7: =_xlfn.XLOOKUP($K7,'OF Statistics 2011-Q3 2024'!$B:$B,'OF Statistics 2011-Q3 2024'!Y:Y,0,0) -> 35.9 | AM7: =_xlfn.XLOOKUP($K7,'OF Statistics 2011-Q3 2024'!$B:$B,'OF Statistics 2011-Q3 2024'!Z:Z,0,0) -> 42.79 | AN7: =_xlfn.XLOOKUP($K7,'OF Statistics 2011-Q3 2024'!$B:$B,'OF Statistics 2011-Q3 2024'!AA:AA,0,0) -> 71.1 | AO7: =_xlfn.XLOOKUP($K7,'OF Statistics 2011-Q3 2024'!$B:$B,'OF Statistics 2011-Q3 2024'!AB:AB,0,0) -> 59.55 | AP7: =_xlfn.XLOOKUP($K7,'OF Statistics 2011-Q3 2024'!$B:$B,'OF Statistics 2011-Q3 2024'!AC:AC,0,0) -> 37.22 | AQ7: =_xlfn.XLOOKUP($K7,'OF Statistics 2011-Q3 2024'!$B:$B,'OF Statistics 2011-Q3 2024'!AD:AD,0,0) -> 38.31 | AR7: =_xlfn.XLOOKUP($K7,'OF Statistics 2011-Q3 2024'!$B:$B,'OF Statistics 2011-Q3 2024'!AE:AE,0,0) -> 67.92 | AS7: =_xlfn.XLOOKUP($K7,'OF Statistics 2011-Q3 2024'!$B:$B,'OF Statistics 2011-Q3 2024'!AF:AF,0,0) -> 64.9 | AT7: =_xlfn.XLOOKUP($K7,'OF Statistics 2011-Q3 2024'!$B:$B,'OF Statistics 2011-Q3 2024'!AG:AG,0,0) -> 42.16 | AU7: =_xlfn.XLOOKUP($K7,'OF Statistics 2011-Q3 2024'!$B:$B,'OF Statistics 2011-Q3 2024'!AH:AH,0,0) -> 42.9387425 | AV7: =_xlfn.XLOOKUP($K7,'OF Statistics 2011-Q3 2024'!$B:$B,'OF Statistics 2011-Q3 2024'!AI:AI,0,0) -> 70.5370195 | AW7: =_xlfn.XLOOKUP($K7,'OF Statistics 2011-Q3 2024'!$B:$B,'OF Statistics 2011-Q3 2024'!AJ:AJ,0,0) -> 66.247264 | AX7: =_xlfn.XLOOKUP($K7,'OF Statistics 2011-Q3 2024'!$B:$B,'OF Statistics 2011-Q3 2024'!AK:AK,0,0) -> 39.2 | AY7: =_xlfn.XLOOKUP($K7,'OF Statistics 2011-Q3 2024'!$B:$B,'OF Statistics 2011-Q3 2024'!AL:AL,0,0) -> 51.6 | AZ7: =_xlfn.XLOOKUP($K7,'OF Statistics 2011-Q3 2024'!$B:$B,'OF Statistics 2011-Q3 2024'!AM:AM,0,0) -> 75 | BA7: =_xlfn.XLOOKUP($K7,'OF Statistics 2011-Q3 2024'!$B:$B,'OF Statistics 2011-Q3 2024'!AN:AN,0,0) -> 56 | BB7: =_xlfn.XLOOKUP($K7,'OF Statistics 2011-Q3 2024'!$B:$B,'OF Statistics 2011-Q3 2024'!AO:AO,0,0) -> 55 | BC7: =_xlfn.XLOOKUP($K7,'OF Statistics 2011-Q3 2024'!$B:$B,'OF Statistics 2011-Q3 2024'!AP:AP,0,0) -> 54.3 | BD7: =_xlfn.XLOOKUP($K7,'OF Statistics 2011-Q3 2024'!$B:$B,'OF Statistics 2011-Q3 2024'!AQ:AQ,0,0) -> 81.5 | BE7: =_xlfn.XLOOKUP($K7,'OF Statistics 2011-Q3 2024'!$B:$B,'OF Statistics 2011-Q3 2024'!AR:AR,0,0) -> 78.9 | BF7: =_xlfn.XLOOKUP($K7,'OF Statistics 2011-Q3 2024'!$B:$B,'OF Statistics 2011-Q3 2024'!AS:AS,0,0) -> 45.9 | BG7: =_xlfn.XLOOKUP($K7,'OF Statistics 2011-Q3 2024'!$B:$B,'OF Statistics 2011-Q3 2024'!AT:AT,0,0) -> 55 | BH7: =_xlfn.XLOOKUP($K7,'OF Statistics 2011-Q3 2024'!$B:$B,'OF Statistics 2011-Q3 2024'!AU:AU,0,0) -> 75 | BI7: =_xlfn.XLOOKUP($K7,'OF Statistics 2011-Q3 2024'!$B:$B,'OF Statistics 2011-Q3 2024'!AV:AV,0,0) -> 96 | BJ7: =_xlfn.XLOOKUP($K7,'OF Statistics 2011-Q3 2024'!$B:$B,'OF Statistics 2011-Q3 2024'!AW:AW,0,0) -> 50 | BK7: =_xlfn.XLOOKUP($K7,'OF Statistics 2011-Q3 2024'!$B:$B,'OF Statistics 2011-Q3 2024'!AX:AX,0,0) -> 71 | BL7: =_xlfn.XLOOKUP($K7,'OF Statistics 2011-Q3 2024'!$B:$B,'OF Statistics 2011-Q3 2024'!AY:AY,0,0) -> 73 | BM7: =_xlfn.XLOOKUP($K7,'OF Statistics 2011-Q3 2024'!$B:$B,'OF Statistics 2011-Q3 2024'!AZ:AZ,0,0) -> 76 | BN7: =_xlfn.XLOOKUP($K7,'OF Statistics 2011-Q3 2024'!$B:$B,'OF Statistics 2011-Q3 2024'!BA:BA,0,0) -> 45 | BO7: =_xlfn.XLOOKUP($K7,'OF Statistics 2011-Q3 2024'!$B:$B,'OF Statistics 2011-Q3 2024'!BB:BB,0,0) -> 57 | BP7: =_xlfn.XLOOKUP($K7,'OF Statistics 2011-Q3 2024'!$B:$B,'OF Statistics 2011-Q3 2024'!BC:BC,0,0) -> 75 | BQ7: =_xlfn.XLOOKUP($K7,'OF Statistics 2011-Q3 2024'!$B:$B,'OF Statistics 2011-Q3 2024'!BD:BD,0,0) -> 82 | BR7: =_xlfn.XLOOKUP($K7,'OF Statistics 2011-Q3 2024'!$B:$B,'OF Statistics 2011-Q3 2024'!BE:BE,0,0) -> 66 | BS7: =_xlfn.XLOOKUP($K7,'OF Statistics 2011-Q3 2024'!$B:$B,'OF Statistics 2011-Q3 2024'!BF:BF,0,0) -> 47 | BT7: =_xlfn.XLOOKUP($K7,'OF Statistics 2011-Q3 2024'!$B:$B,'OF Statistics 2011-Q3 2024'!BG:BG,0,0) -> 93 | BU7: =_xlfn.XLOOKUP($K7,'OF Statistics 2011-Q3 2024'!$B:$B,'OF Statistics 2011-Q3 2024'!BH:BH,0,0) -> 83 | BV7: =_xlfn.XLOOKUP($K7,'OF Statistics 2011-Q3 2024'!$B:$B,'OF Statistics 2011-Q3 2024'!BI:BI,0,0) -> 59 | BW7: =_xlfn.XLOOKUP($K7,'OF Statistics 2011-Q3 2024'!$B:$B,'OF Statistics 2011-Q3 2024'!BJ:BJ,0,0) -> 50 | BX7: =_xlfn.XLOOKUP($K7,'OF Statistics 2011-Q3 2024'!$B:$B,'OF Statistics 2011-Q3 2024'!BK:BK,0,0) -> 101 | BY7: =_xlfn.XLOOKUP($K7,'OF Statistics 2011-Q3 2024'!$B:$B,'OF Statistics 2011-Q3 2024'!BL:BL,0,0) -> 0
C8: Other DK farms (Avedøre Holme) | J8: 5 | K8: Burbo Bank 1+2 | L8: =$C$11 -> United Kingdom | P8: ='OF Asset Book'!G24 -> 90 | R8: =_xlfn.XLOOKUP($K8,'OF Statistics 2011-Q3 2024'!$B:$B,'OF Statistics 2011-Q3 2024'!E:E,0,0) -> 0 | S8: =_xlfn.XLOOKUP($K8,'OF Statistics 2011-Q3 2024'!$B:$B,'OF Statistics 2011-Q3 2024'!F:F,0,0) -> 683.9165641 | T8: =_xlfn.XLOOKUP($K8,'OF Statistics 2011-Q3 2024'!$B:$B,'OF Statistics 2011-Q3 2024'!G:G,0,0) -> 657.29 | U8: =_xlfn.XLOOKUP($K8,'OF Statistics 2011-Q3 2024'!$B:$B,'OF Statistics 2011-Q3 2024'!H:H,0,0) -> 661.32 | V8: =_xlfn.XLOOKUP($K8,'OF Statistics 2011-Q3 2024'!$B:$B,'OF Statistics 2011-Q3 2024'!I:I,0,0) -> 615.12 | W8: =_xlfn.XLOOKUP($K8,'OF Statistics 2011-Q3 2024'!$B:$B,'OF Statistics 2011-Q3 2024'!J:J,0,0) -> 789.8 | X8: =_xlfn.XLOOKUP($K8,'OF Statistics 2011-Q3 2024'!$B:$B,'OF Statistics 2011-Q3 2024'!K:K,0,0) -> 711 | Y8: =_xlfn.XLOOKUP($K8,'OF Statistics 2011-Q3 2024'!$B:$B,'OF Statistics 2011-Q3 2024'!L:L,0,0) -> 690 | Z8: =_xlfn.XLOOKUP($K8,'OF Statistics 2011-Q3 2024'!$B:$B,'OF Statistics 2011-Q3 2024'!M:M,0,0) -> 618 | AA8: =_xlfn.XLOOKUP($K8,'OF Statistics 2011-Q3 2024'!$B:$B,'OF Statistics 2011-Q3 2024'!N:N,0,0) -> 264 | AB8: =_xlfn.XLOOKUP($K8,'OF Statistics 2011-Q3 2024'!$B:$B,'OF Statistics 2011-Q3 2024'!O:O,0,0) -> 325 | AC8: =_xlfn.XLOOKUP($K8,'OF Statistics 2011-Q3 2024'!$B:$B,'OF Statistics 2011-Q3 2024'!P:P,0,0) -> 293 | AD8: =_xlfn.XLOOKUP($K8,'OF Statistics 2011-Q3 2024'!$B:$B,'OF Statistics 2011-Q3 2024'!Q:Q,0,0) -> 294 | AE8: =_xlfn.XLOOKUP($K8,'OF Statistics 2011-Q3 2024'!$B:$B,'OF Statistics 2011-Q3 2024'!R:R,0,0) -> 257 | AF8: =_xlfn.XLOOKUP($K8,'OF Statistics 2011-Q3 2024'!$B:$B,'OF Statistics 2011-Q3 2024'!S:S,0,0) -> 293 | AG8: =_xlfn.XLOOKUP($K8,'OF Statistics 2011-Q3 2024'!$B:$B,'OF Statistics 2011-Q3 2024'!T:T,0,0) -> 0 | AH8: =_xlfn.XLOOKUP($K8,'OF Statistics 2011-Q3 2024'!$B:$B,'OF Statistics 2011-Q3 2024'!U:U,0,0) -> 145.39 | AI8: =_xlfn.XLOOKUP($K8,'OF Statistics 2011-Q3 2024'!$B:$B,'OF Statistics 2011-Q3 2024'!V:V,0,0) -> 143.86 | AJ8: =_xlfn.XLOOKUP($K8,'OF Statistics 2011-Q3 2024'!$B:$B,'OF Statistics 2011-Q3 2024'!W:W,0,0) -> 210 | AK8: =_xlfn.XLOOKUP($K8,'OF Statistics 2011-Q3 2024'!$B:$B,'OF Statistics 2011-Q3 2024'!X:X,0,0) -> 214.76 | AL8: =_xlfn.XLOOKUP($K8,'OF Statistics 2011-Q3 2024'!$B:$B,'OF Statistics 2011-Q3 2024'!Y:Y,0,0) -> 146.27 | AM8: =_xlfn.XLOOKUP($K8,'OF Statistics 2011-Q3 2024'!$B:$B,'OF Statistics 2011-Q3 2024'!Z:Z,0,0) -> 96.57 | AN8: =_xlfn.XLOOKUP($K8,'OF Statistics 2011-Q3 2024'!$B:$B,'OF Statistics 2011-Q3 2024'!AA:AA,0,0) -> 199.69 | AO8: =_xlfn.XLOOKUP($K8,'OF Statistics 2011-Q3 2024'!$B:$B,'OF Statistics 2011-Q3 2024'!AB:AB,0,0) -> 213.97 | AP8: =_xlfn.XLOOKUP($K8,'OF Statistics 2011-Q3 2024'!$B:$B,'OF Statistics 2011-Q3 2024'!AC:AC,0,0) -> 109.26 | AQ8: =_xlfn.XLOOKUP($K8,'OF Statistics 2011-Q3 2024'!$B:$B,'OF Statistics 2011-Q3 2024'!AD:AD,0,0) -> 133.07 | AR8: =_xlfn.XLOOKUP($K8,'OF Statistics 2011-Q3 2024'!$B:$B,'OF Statistics 2011-Q3 2024'!AE:AE,0,0) -> 205.02 | AS8: =_xlfn.XLOOKUP($K8,'OF Statistics 2011-Q3 2024'!$B:$B,'OF Statistics 2011-Q3 2024'!AF:AF,0,0) -> 218.23 | AT8: =_xlfn.XLOOKUP($K8,'OF Statistics 2011-Q3 2024'!$B:$B,'OF Statistics 2011-Q3 2024'!AG:AG,0,0) -> 83.62 | AU8: =_xlfn.XLOOKUP($K8,'OF Statistics 2011-Q3 2024'!$B:$B,'OF Statistics 2011-Q3 2024'!AH:AH,0,0) -> 100.824706 | AV8: =_xlfn.XLOOKUP($K8,'OF Statistics 2011-Q3 2024'!$B:$B,'OF Statistics 2011-Q3 2024'!AI:AI,0,0) -> 212.4 | AW8: =_xlfn.XLOOKUP($K8,'OF Statistics 2011-Q3 2024'!$B:$B,'OF Statistics 2011-Q3 2024'!AJ:AJ,0,0) -> 240 | AX8: =_xlfn.XLOOKUP($K8,'OF Statistics 2011-Q3 2024'!$B:$B,'OF Statistics 2011-Q3 2024'!AK:AK,0,0) -> 153.9 | AY8: =_xlfn.XLOOKUP($K8,'OF Statistics 2011-Q3 2024'!$B:$B,'OF Statistics 2011-Q3 2024'!AL:AL,0,0) -> 134.3 | AZ8: =_xlfn.XLOOKUP($K8,'OF Statistics 2011-Q3 2024'!$B:$B,'OF Statistics 2011-Q3 2024'!AM:AM,0,0) -> 262 | BA8: =_xlfn.XLOOKUP($K8,'OF Statistics 2011-Q3 2024'!$B:$B,'OF Statistics 2011-Q3 2024'!AN:AN,0,0) -> 214 | BB8: =_xlfn.XLOOKUP($K8,'OF Statistics 2011-Q3 2024'!$B:$B,'OF Statistics 2011-Q3 2024'!AO:AO,0,0) -> 160.9 | BC8: =_xlfn.XLOOKUP($K8,'OF Statistics 2011-Q3 2024'!$B:$B,'OF Statistics 2011-Q3 2024'!AP:AP,0,0) -> 122 | BD8: =_xlfn.XLOOKUP($K8,'OF Statistics 2011-Q3 2024'!$B:$B,'OF Statistics 2011-Q3 2024'!AQ:AQ,0,0) -> 214 | BE8: =_xlfn.XLOOKUP($K8,'OF Statistics 2011-Q3 2024'!$B:$B,'OF Statistics 2011-Q3 2024'!AR:AR,0,0) -> 234 | BF8: =_xlfn.XLOOKUP($K8,'OF Statistics 2011-Q3 2024'!$B:$B,'OF Statistics 2011-Q3 2024'!AS:AS,0,0) -> 126.3 | BG8: =_xlfn.XLOOKUP($K8,'OF Statistics 2011-Q3 2024'!$B:$B,'OF Statistics 2011-Q3 2024'!AT:AT,0,0) -> 87 | BH8: =_xlfn.XLOOKUP($K8,'OF Statistics 2011-Q3 2024'!$B:$B,'OF Statistics 2011-Q3 2024'!AU:AU,0,0) -> 243 | BI8: =_xlfn.XLOOKUP($K8,'OF Statistics 2011-Q3 2024'!$B:$B,'OF Statistics 2011-Q3 2024'!AV:AV,0,0) -> 175 | BJ8: =_xlfn.XLOOKUP($K8,'OF Statistics 2011-Q3 2024'!$B:$B,'OF Statistics 2011-Q3 2024'!AW:AW,0,0) -> 149 | BK8: =_xlfn.XLOOKUP($K8,'OF Statistics 2011-Q3 2024'!$B:$B,'OF Statistics 2011-Q3 2024'!AX:AX,0,0) -> 134 | BL8: =_xlfn.XLOOKUP($K8,'OF Statistics 2011-Q3 2024'!$B:$B,'OF Statistics 2011-Q3 2024'!AY:AY,0,0) -> 160 | BM8: =_xlfn.XLOOKUP($K8,'OF Statistics 2011-Q3 2024'!$B:$B,'OF Statistics 2011-Q3 2024'!AZ:AZ,0,0) -> 75 | BN8: =_xlfn.XLOOKUP($K8,'OF Statistics 2011-Q3 2024'!$B:$B,'OF Statistics 2011-Q3 2024'!BA:BA,0,0) -> 63 | BO8: =_xlfn.XLOOKUP($K8,'OF Statistics 2011-Q3 2024'!$B:$B,'OF Statistics 2011-Q3 2024'!BB:BB,0,0) -> 38 | BP8: =_xlfn.XLOOKUP($K8,'OF Statistics 2011-Q3 2024'!$B:$B,'OF Statistics 2011-Q3 2024'!BC:BC,0,0) -> 88 | BQ8: =_xlfn.XLOOKUP($K8,'OF Statistics 2011-Q3 2024'!$B:$B,'OF Statistics 2011-Q3 2024'!BD:BD,0,0) -> 102 | BR8: =_xlfn.XLOOKUP($K8,'OF Statistics 2011-Q3 2024'!$B:$B,'OF Statistics 2011-Q3 2024'!BE:BE,0,0) -> 54 | BS8: =_xlfn.XLOOKUP($K8,'OF Statistics 2011-Q3 2024'!$B:$B,'OF Statistics 2011-Q3 2024'!BF:BF,0,0) -> 71 | BT8: =_xlfn.XLOOKUP($K8,'OF Statistics 2011-Q3 2024'!$B:$B,'OF Statistics 2011-Q3 2024'!BG:BG,0,0) -> 98 | BU8: =_xlfn.XLOOKUP($K8,'OF Statistics 2011-Q3 2024'!$B:$B,'OF Statistics 2011-Q3 2024'!BH:BH,0,0) -> 95 | BV8: =_xlfn.XLOOKUP($K8,'OF Statistics 2011-Q3 2024'!$B:$B,'OF Statistics 2011-Q3 2024'!BI:BI,0,0) -> 48 | BW8: =_xlfn.XLOOKUP($K8,'OF Statistics 2011-Q3 2024'!$B:$B,'OF Statistics 2011-Q3 2024'!BJ:BJ,0,0) -> 46 | BX8: =_xlfn.XLOOKUP($K8,'OF Statistics 2011-Q3 2024'!$B:$B,'OF Statistics 2011-Q3 2024'!BK:BK,0,0) -> 104 | BY8: =_xlfn.XLOOKUP($K8,'OF Statistics 2011-Q3 2024'!$B:$B,'OF Statistics 2011-Q3 2024'!BL:BL,0,0) -> 0
C9: Sub total | J9: 6 | K9: Gunfleet Sands 1+2 | L9: =$C$11 -> United Kingdom | P9: ='OF Asset Book'!G22 -> 86.5728 | R9: =_xlfn.XLOOKUP($K9,'OF Statistics 2011-Q3 2024'!$B:$B,'OF Statistics 2011-Q3 2024'!E:E,0,0) -> 0 | S9: =_xlfn.XLOOKUP($K9,'OF Statistics 2011-Q3 2024'!$B:$B,'OF Statistics 2011-Q3 2024'!F:F,0,0) -> 265.4946363 | T9: =_xlfn.XLOOKUP($K9,'OF Statistics 2011-Q3 2024'!$B:$B,'OF Statistics 2011-Q3 2024'!G:G,0,0) -> 282.37 | U9: =_xlfn.XLOOKUP($K9,'OF Statistics 2011-Q3 2024'!$B:$B,'OF Statistics 2011-Q3 2024'!H:H,0,0) -> 248.09 | V9: =_xlfn.XLOOKUP($K9,'OF Statistics 2011-Q3 2024'!$B:$B,'OF Statistics 2011-Q3 2024'!I:I,0,0) -> 241.68 | W9: =_xlfn.XLOOKUP($K9,'OF Statistics 2011-Q3 2024'!$B:$B,'OF Statistics 2011-Q3 2024'!J:J,0,0) -> 298.8 | X9: =_xlfn.XLOOKUP($K9,'OF Statistics 2011-Q3 2024'!$B:$B,'OF Statistics 2011-Q3 2024'!K:K,0,0) -> 255 | Y9: =_xlfn.XLOOKUP($K9,'OF Statistics 2011-Q3 2024'!$B:$B,'OF Statistics 2011-Q3 2024'!L:L,0,0) -> 272.7 | Z9: =_xlfn.XLOOKUP($K9,'OF Statistics 2011-Q3 2024'!$B:$B,'OF Statistics 2011-Q3 2024'!M:M,0,0) -> 256 | AA9: =_xlfn.XLOOKUP($K9,'OF Statistics 2011-Q3 2024'!$B:$B,'OF Statistics 2011-Q3 2024'!N:N,0,0) -> 269 | AB9: =_xlfn.XLOOKUP($K9,'OF Statistics 2011-Q3 2024'!$B:$B,'OF Statistics 2011-Q3 2024'!O:O,0,0) -> 291 | AC9: =_xlfn.XLOOKUP($K9,'OF Statistics 2011-Q3 2024'!$B:$B,'OF Statistics 2011-Q3 2024'!P:P,0,0) -> 255 | AD9: =_xlfn.XLOOKUP($K9,'OF Statistics 2011-Q3 2024'!$B:$B,'OF Statistics 2011-Q3 2024'!Q:Q,0,0) -> 271 | AE9: =_xlfn.XLOOKUP($K9,'OF Statistics 2011-Q3 2024'!$B:$B,'OF Statistics 2011-Q3 2024'!R:R,0,0) -> 262 | AF9: =_xlfn.XLOOKUP($K9,'OF Statistics 2011-Q3 2024'!$B:$B,'OF Statistics 2011-Q3 2024'!S:S,0,0) -> 493 | AG9: =_xlfn.XLOOKUP($K9,'OF Statistics 2011-Q3 2024'!$B:$B,'OF Statistics 2011-Q3 2024'!T:T,0,0) -> 0 | AH9: =_xlfn.XLOOKUP($K9,'OF Statistics 2011-Q3 2024'!$B:$B,'OF Statistics 2011-Q3 2024'!U:U,0,0) -> 52.98 | AI9: =_xlfn.XLOOKUP($K9,'OF Statistics 2011-Q3 2024'!$B:$B,'OF Statistics 2011-Q3 2024'!V:V,0,0) -> 57.35 | AJ9: =_xlfn.XLOOKUP($K9,'OF Statistics 2011-Q3 2024'!$B:$B,'OF Statistics 2011-Q3 2024'!W:W,0,0) -> 88 | AK9: =_xlfn.XLOOKUP($K9,'OF Statistics 2011-Q3 2024'!$B:$B,'OF Statistics 2011-Q3 2024'!X:X,0,0) -> 91.33 | AL9: =_xlfn.XLOOKUP($K9,'OF Statistics 2011-Q3 2024'!$B:$B,'OF Statistics 2011-Q3 2024'!Y:Y,0,0) -> 53.23 | AM9: =_xlfn.XLOOKUP($K9,'OF Statistics 2011-Q3 2024'!$B:$B,'OF Statistics 2011-Q3 2024'!Z:Z,0,0) -> 58.89 | AN9: =_xlfn.XLOOKUP($K9,'OF Statistics 2011-Q3 2024'!$B:$B,'OF Statistics 2011-Q3 2024'!AA:AA,0,0) -> 78.93 | AO9: =_xlfn.XLOOKUP($K9,'OF Statistics 2011-Q3 2024'!$B:$B,'OF Statistics 2011-Q3 2024'!AB:AB,0,0) -> 80.92 | AP9: =_xlfn.XLOOKUP($K9,'OF Statistics 2011-Q3 2024'!$B:$B,'OF Statistics 2011-Q3 2024'!AC:AC,0,0) -> 35.56 | AQ9: =_xlfn.XLOOKUP($K9,'OF Statistics 2011-Q3 2024'!$B:$B,'OF Statistics 2011-Q3 2024'!AD:AD,0,0) -> 50.86 | AR9: =_xlfn.XLOOKUP($K9,'OF Statistics 2011-Q3 2024'!$B:$B,'OF Statistics 2011-Q3 2024'!AE:AE,0,0) -> 80.75 | AS9: =_xlfn.XLOOKUP($K9,'OF Statistics 2011-Q3 2024'!$B:$B,'OF Statistics 2011-Q3 2024'!AF:AF,0,0) -> 75.04 | AT9: =_xlfn.XLOOKUP($K9,'OF Statistics 2011-Q3 2024'!$B:$B,'OF Statistics 2011-Q3 2024'!AG:AG,0,0) -> 41.29 | AU9: =_xlfn.XLOOKUP($K9,'OF Statistics 2011-Q3 2024'!$B:$B,'OF Statistics 2011-Q3 2024'!AH:AH,0,0) -> 47.78105173 | AV9: =_xlfn.XLOOKUP($K9,'OF Statistics 2011-Q3 2024'!$B:$B,'OF Statistics 2011-Q3 2024'!AI:AI,0,0) -> 77.6 | AW9: =_xlfn.XLOOKUP($K9,'OF Statistics 2011-Q3 2024'!$B:$B,'OF Statistics 2011-Q3 2024'!AJ:AJ,0,0) -> 83.3 | AX9: =_xlfn.XLOOKUP($K9,'OF Statistics 2011-Q3 2024'!$B:$B,'OF Statistics 2011-Q3 2024'!AK:AK,0,0) -> 60.7 | AY9: =_xlfn.XLOOKUP($K9,'OF Statistics 2011-Q3 2024'!$B:$B,'OF Statistics 2011-Q3 2024'!AL:AL,0,0) -> 50.7 | AZ9: =_xlfn.XLOOKUP($K9,'OF Statistics 2011-Q3 2024'!$B:$B,'OF Statistics 2011-Q3 2024'!AM:AM,0,0) -> 104 | BA9: =_xlfn.XLOOKUP($K9,'OF Statistics 2011-Q3 2024'!$B:$B,'OF Statistics 2011-Q3 2024'!AN:AN,0,0) -> 85 | BB9: =_xlfn.XLOOKUP($K9,'OF Statistics 2011-Q3 2024'!$B:$B,'OF Statistics 2011-Q3 2024'!AO:AO,0,0) -> 51.1 | BC9: =_xlfn.XLOOKUP($K9,'OF Statistics 2011-Q3 2024'!$B:$B,'OF Statistics 2011-Q3 2024'!AP:AP,0,0) -> 41.8 | BD9: =_xlfn.XLOOKUP($K9,'OF Statistics 2011-Q3 2024'!$B:$B,'OF Statistics 2011-Q3 2024'!AQ:AQ,0,0) -> 75.8 | BE9: =_xlfn.XLOOKUP($K9,'OF Statistics 2011-Q3 2024'!$B:$B,'OF Statistics 2011-Q3 2024'!AR:AR,0,0) -> 84.8 | BF9: =_xlfn.XLOOKUP($K9,'OF Statistics 2011-Q3 2024'!$B:$B,'OF Statistics 2011-Q3 2024'!AS:AS,0,0) -> 48.9 | BG9: =_xlfn.XLOOKUP($K9,'OF Statistics 2011-Q3 2024'!$B:$B,'OF Statistics 2011-Q3 2024'!AT:AT,0,0) -> 43 | BH9: =_xlfn.XLOOKUP($K9,'OF Statistics 2011-Q3 2024'!$B:$B,'OF Statistics 2011-Q3 2024'!AU:AU,0,0) -> 96 | BI9: =_xlfn.XLOOKUP($K9,'OF Statistics 2011-Q3 2024'!$B:$B,'OF Statistics 2011-Q3 2024'!AV:AV,0,0) -> 85 | BJ9: =_xlfn.XLOOKUP($K9,'OF Statistics 2011-Q3 2024'!$B:$B,'OF Statistics 2011-Q3 2024'!AW:AW,0,0) -> 46 | BK9: =_xlfn.XLOOKUP($K9,'OF Statistics 2011-Q3 2024'!$B:$B,'OF Statistics 2011-Q3 2024'!AX:AX,0,0) -> 52 | BL9: =_xlfn.XLOOKUP($K9,'OF Statistics 2011-Q3 2024'!$B:$B,'OF Statistics 2011-Q3 2024'!AY:AY,0,0) -> 73 | BM9: =_xlfn.XLOOKUP($K9,'OF Statistics 2011-Q3 2024'!$B:$B,'OF Statistics 2011-Q3 2024'!AZ:AZ,0,0) -> 70 | BN9: =_xlfn.XLOOKUP($K9,'OF Statistics 2011-Q3 2024'!$B:$B,'OF Statistics 2011-Q3 2024'!BA:BA,0,0) -> 50 | BO9: =_xlfn.XLOOKUP($K9,'OF Statistics 2011-Q3 2024'!$B:$B,'OF Statistics 2011-Q3 2024'!BB:BB,0,0) -> 51 | BP9: =_xlfn.XLOOKUP($K9,'OF Statistics 2011-Q3 2024'!$B:$B,'OF Statistics 2011-Q3 2024'!BC:BC,0,0) -> 98 | BQ9: =_xlfn.XLOOKUP($K9,'OF Statistics 2011-Q3 2024'!$B:$B,'OF Statistics 2011-Q3 2024'!BD:BD,0,0) -> 94 | BR9: =_xlfn.XLOOKUP($K9,'OF Statistics 2011-Q3 2024'!$B:$B,'OF Statistics 2011-Q3 2024'!BE:BE,0,0) -> 50 | BS9: =_xlfn.XLOOKUP($K9,'OF Statistics 2011-Q3 2024'!$B:$B,'OF Statistics 2011-Q3 2024'!BF:BF,0,0) -> 62 | BT9: =_xlfn.XLOOKUP($K9,'OF Statistics 2011-Q3 2024'!$B:$B,'OF Statistics 2011-Q3 2024'!BG:BG,0,0) -> 85 | BU9: =_xlfn.XLOOKUP($K9,'OF Statistics 2011-Q3 2024'!$B:$B,'OF Statistics 2011-Q3 2024'!BH:BH,0,0) -> 80 | BV9: =_xlfn.XLOOKUP($K9,'OF Statistics 2011-Q3 2024'!$B:$B,'OF Statistics 2011-Q3 2024'!BI:BI,0,0) -> 38 | BW9: =_xlfn.XLOOKUP($K9,'OF Statistics 2011-Q3 2024'!$B:$B,'OF Statistics 2011-Q3 2024'!BJ:BJ,0,0) -> 41 | BX9: =_xlfn.XLOOKUP($K9,'OF Statistics 2011-Q3 2024'!$B:$B,'OF Statistics 2011-Q3 2024'!BK:BK,0,0) -> 96 | BY9: =_xlfn.XLOOKUP($K9,'OF Statistics 2011-Q3 2024'!$B:$B,'OF Statistics 2011-Q3 2024'!BL:BL,0,0) -> 0
J10: 7 | K10: Gunfleet Sand Demo | L10: United Kingdom | P10: ='OF Asset Book'!G25 -> 12 | R10: =_xlfn.XLOOKUP($K10,'OF Statistics 2011-Q3 2024'!$B:$B,'OF Statistics 2011-Q3 2024'!E:E,0,0) -> 0 | S10: =_xlfn.XLOOKUP($K10,'OF Statistics 2011-Q3 2024'!$B:$B,'OF Statistics 2011-Q3 2024'!F:F,0,0) -> 31.80674086 | T10: =_xlfn.XLOOKUP($K10,'OF Statistics 2011-Q3 2024'!$B:$B,'OF Statistics 2011-Q3 2024'!G:G,0,0) -> 30.47 | U10: =_xlfn.XLOOKUP($K10,'OF Statistics 2011-Q3 2024'!$B:$B,'OF Statistics 2011-Q3 2024'!H:H,0,0) -> 15.21 | V10: =_xlfn.XLOOKUP($K10,'OF Statistics 2011-Q3 2024'!$B:$B,'OF Statistics 2011-Q3 2024'!I:I,0,0) -> 23.47 | W10: =_xlfn.XLOOKUP($K10,'OF Statistics 2011-Q3 2024'!$B:$B,'OF Statistics 2011-Q3 2024'!J:J,0,0) -> 37 | X10: =_xlfn.XLOOKUP($K10,'OF Statistics 2011-Q3 2024'!$B:$B,'OF Statistics 2011-Q3 2024'!K:K,0,0) -> 32 | Y10: =_xlfn.XLOOKUP($K10,'OF Statistics 2011-Q3 2024'!$B:$B,'OF Statistics 2011-Q3 2024'!L:L,0,0) -> 34.2 | Z10: =_xlfn.XLOOKUP($K10,'OF Statistics 2011-Q3 2024'!$B:$B,'OF Statistics 2011-Q3 2024'!M:M,0,0) -> 35 | AA10: =_xlfn.XLOOKUP($K10,'OF Statistics 2011-Q3 2024'!$B:$B,'OF Statistics 2011-Q3 2024'!N:N,0,0) -> 35 | AB10: =_xlfn.XLOOKUP($K10,'OF Statistics 2011-Q3 2024'!$B:$B,'OF Statistics 2011-Q3 2024'!O:O,0,0) -> 39 | AC10: =_xlfn.XLOOKUP($K10,'OF Statistics 2011-Q3 2024'!$B:$B,'OF Statistics 2011-Q3 2024'!P:P,0,0) -> 28 | AD10: =_xlfn.XLOOKUP($K10,'OF Statistics 2011-Q3 2024'!$B:$B,'OF Statistics 2011-Q3 2024'!Q:Q,0,0) -> 15 | AE10: =_xlfn.XLOOKUP($K10,'OF Statistics 2011-Q3 2024'!$B:$B,'OF Statistics 2011-Q3 2024'!R:R,0,0) -> 0 | AF10: =_xlfn.XLOOKUP($K10,'OF Statistics 2011-Q3 2024'!$B:$B,'OF Statistics 2011-Q3 2024'!S:S,0,0) -> 0 | AG10: =_xlfn.XLOOKUP($K10,'OF Statistics 2011-Q3 2024'!$B:$B,'OF Statistics 2011-Q3 2024'!T:T,0,0) -> 0 | AH10: =_xlfn.XLOOKUP($K10,'OF Statistics 2011-Q3 2024'!$B:$B,'OF Statistics 2011-Q3 2024'!U:U,0,0) -> 5.76 | AI10: =_xlfn.XLOOKUP($K10,'OF Statistics 2011-Q3 2024'!$B:$B,'OF Statistics 2011-Q3 2024'!V:V,0,0) -> 8 | AJ10: =_xlfn.XLOOKUP($K10,'OF Statistics 2011-Q3 2024'!$B:$B,'OF Statistics 2011-Q3 2024'!W:W,0,0) -> 10 | AK10: =_xlfn.XLOOKUP($K10,'OF Statistics 2011-Q3 2024'!$B:$B,'OF Statistics 2011-Q3 2024'!X:X,0,0) -> 7.87 | AL10: =_xlfn.XLOOKUP($K10,'OF Statistics 2011-Q3 2024'!$B:$B,'OF Statistics 2011-Q3 2024'!Y:Y,0,0) -> 7.47 | AM10: =_xlfn.XLOOKUP($K10,'OF Statistics 2011-Q3 2024'!$B:$B,'OF Statistics 2011-Q3 2024'!Z:Z,0,0) -> 6.28 | AN10: =_xlfn.XLOOKUP($K10,'OF Statistics 2011-Q3 2024'!$B:$B,'OF Statistics 2011-Q3 2024'!AA:AA,0,0) -> 8.85 | AO10: =_xlfn.XLOOKUP($K10,'OF Statistics 2011-Q3 2024'!$B:$B,'OF Statistics 2011-Q3 2024'!AB:AB,0,0) -> 6.36 | AP10: =_xlfn.XLOOKUP($K10,'OF Statistics 2011-Q3 2024'!$B:$B,'OF Statistics 2011-Q3 2024'!AC:AC,0,0) -> 4.18 | AQ10: =_xlfn.XLOOKUP($K10,'OF Statistics 2011-Q3 2024'!$B:$B,'OF Statistics 2011-Q3 2024'!AD:AD,0,0) -> 4.37 | AR10: =_xlfn.XLOOKUP($K10,'OF Statistics 2011-Q3 2024'!$B:$B,'OF Statistics 2011-Q3 2024'!AE:AE,0,0) -> 0.29 | AS10: =_xlfn.XLOOKUP($K10,'OF Statistics 2011-Q3 2024'!$B:$B,'OF Statistics 2011-Q3 2024'!AF:AF,0,0) -> 8.1 | AT10: =_xlfn.XLOOKUP($K10,'OF Statistics 2011-Q3 2024'!$B:$B,'OF Statistics 2011-Q3 2024'!AG:AG,0,0) -> 1.72 | AU10: =_xlfn.XLOOKUP($K10,'OF Statistics 2011-Q3 2024'!$B:$B,'OF Statistics 2011-Q3 2024'!AH:AH,0,0) -> 5.353208524 | AV10: =_xlfn.XLOOKUP($K10,'OF Statistics 2011-Q3 2024'!$B:$B,'OF Statistics 2011-Q3 2024'!AI:AI,0,0) -> 8.3 | AW10: =_xlfn.XLOOKUP($K10,'OF Statistics 2011-Q3 2024'!$B:$B,'OF Statistics 2011-Q3 2024'!AJ:AJ,0,0) -> 9.4 | AX10: =_xlfn.XLOOKUP($K10,'OF Statistics 2011-Q3 2024'!$B:$B,'OF Statistics 2011-Q3 2024'!AK:AK,0,0) -> 6.8 | AY10: =_xlfn.XLOOKUP($K10,'OF Statistics 2011-Q3 2024'!$B:$B,'OF Statistics 2011-Q3 2024'!AL:AL,0,0) -> 6.3 | AZ10: =_xlfn.XLOOKUP($K10,'OF Statistics 2011-Q3 2024'!$B:$B,'OF Statistics 2011-Q3 2024'!AM:AM,0,0) -> 15 | BA10: =_xlfn.XLOOKUP($K10,'OF Statistics 2011-Q3 2024'!$B:$B,'OF Statistics 2011-Q3 2024'!AN:AN,0,0) -> 12 | BB10: =_xlfn.XLOOKUP($K10,'OF Statistics 2011-Q3 2024'!$B:$B,'OF Statistics 2011-Q3 2024'!AO:AO,0,0) -> 6.5 | BC10: =_xlfn.XLOOKUP($K10,'OF Statistics 2011-Q3 2024'!$B:$B,'OF Statistics 2011-Q3 2024'!AP:AP,0,0) -> 5.4 | BD10: =_xlfn.XLOOKUP($K10,'OF Statistics 2011-Q3 2024'!$B:$B,'OF Statistics 2011-Q3 2024'!AQ:AQ,0,0) -> 8.5 | BE10: =_xlfn.XLOOKUP($K10,'OF Statistics 2011-Q3 2024'!$B:$B,'OF Statistics 2011-Q3 2024'!AR:AR,0,0) -> 10.2 | BF10: =_xlfn.XLOOKUP($K10,'OF Statistics 2011-Q3 2024'!$B:$B,'OF Statistics 2011-Q3 2024'!AS:AS,0,0) -> 5.9 | BG10: =_xlfn.XLOOKUP($K10,'OF Statistics 2011-Q3 2024'!$B:$B,'OF Statistics 2011-Q3 2024'!AT:AT,0,0) -> 5 | BH10: =_xlfn.XLOOKUP($K10,'OF Statistics 2011-Q3 2024'!$B:$B,'OF Statistics 2011-Q3 2024'!AU:AU,0,0) -> 13 | BI10: =_xlfn.XLOOKUP($K10,'OF Statistics 2011-Q3 2024'!$B:$B,'OF Statistics 2011-Q3 2024'!AV:AV,0,0) -> 12 | BJ10: =_xlfn.XLOOKUP($K10,'OF Statistics 2011-Q3 2024'!$B:$B,'OF Statistics 2011-Q3 2024'!AW:AW,0,0) -> 7 | BK10: =_xlfn.XLOOKUP($K10,'OF Statistics 2011-Q3 2024'!$B:$B,'OF Statistics 2011-Q3 2024'!AX:AX,0,0) -> 7 | BL10: =_xlfn.XLOOKUP($K10,'OF Statistics 2011-Q3 2024'!$B:$B,'OF Statistics 2011-Q3 2024'!AY:AY,0,0) -> 9 | BM10: =_xlfn.XLOOKUP($K10,'OF Statistics 2011-Q3 2024'!$B:$B,'OF Statistics 2011-Q3 2024'!AZ:AZ,0,0) -> 9 | BN10: =_xlfn.XLOOKUP($K10,'OF Statistics 2011-Q3 2024'!$B:$B,'OF Statistics 2011-Q3 2024'!BA:BA,0,0) -> 7 | BO10: =_xlfn.XLOOKUP($K10,'OF Statistics 2011-Q3 2024'!$B:$B,'OF Statistics 2011-Q3 2024'!BB:BB,0,0) -> 6 | BP10: =_xlfn.XLOOKUP($K10,'OF Statistics 2011-Q3 2024'!$B:$B,'OF Statistics 2011-Q3 2024'!BC:BC,0,0) -> 13 | BQ10: =_xlfn.XLOOKUP($K10,'OF Statistics 2011-Q3 2024'!$B:$B,'OF Statistics 2011-Q3 2024'!BD:BD,0,0) -> 13 | BR10: =_xlfn.XLOOKUP($K10,'OF Statistics 2011-Q3 2024'!$B:$B,'OF Statistics 2011-Q3 2024'!BE:BE,0,0) -> 7 | BS10: =_xlfn.XLOOKUP($K10,'OF Statistics 2011-Q3 2024'!$B:$B,'OF Statistics 2011-Q3 2024'!BF:BF,0,0) -> 8 | BT10: =_xlfn.XLOOKUP($K10,'OF Statistics 2011-Q3 2024'!$B:$B,'OF Statistics 2011-Q3 2024'!BG:BG,0,0) -> 11 | BU10: =_xlfn.XLOOKUP($K10,'OF Statistics 2011-Q3 2024'!$B:$B,'OF Statistics 2011-Q3 2024'!BH:BH,0,0) -> 6 | BV10: =_xlfn.XLOOKUP($K10,'OF Statistics 2011-Q3 2024'!$B:$B,'OF Statistics 2011-Q3 2024'!BI:BI,0,0) -> 4 | BW10: =_xlfn.XLOOKUP($K10,'OF Statistics 2011-Q3 2024'!$B:$B,'OF Statistics 2011-Q3 2024'!BJ:BJ,0,0) -> 5 | BX10: =_xlfn.XLOOKUP($K10,'OF Statistics 2011-Q3 2024'!$B:$B,'OF Statistics 2011-Q3 2024'!BK:BK,0,0) -> 13 | BY10: =_xlfn.XLOOKUP($K10,'OF Statistics 2011-Q3 2024'!$B:$B,'OF Statistics 2011-Q3 2024'!BL:BL,0,0) -> 0
C11: United Kingdom | J11: 8 | K11: Lincs (pro-rata consolidated from February 2017) | L11: United Kingdom | P11: ='OF Asset Book'!G20 -> 67.5 | R11: =_xlfn.XLOOKUP($K11,'OF Statistics 2011-Q3 2024'!$B:$B,'OF Statistics 2011-Q3 2024'!E:E,0,0) -> 0 | S11: =_xlfn.XLOOKUP($K11,'OF Statistics 2011-Q3 2024'!$B:$B,'OF Statistics 2011-Q3 2024'!F:F,0,0) -> 254.1500701 | T11: =_xlfn.XLOOKUP($K11,'OF Statistics 2011-Q3 2024'!$B:$B,'OF Statistics 2011-Q3 2024'!G:G,0,0) -> 234.32 | U11: =_xlfn.XLOOKUP($K11,'OF Statistics 2011-Q3 2024'!$B:$B,'OF Statistics 2011-Q3 2024'!H:H,0,0) -> 233.39 | V11: =_xlfn.XLOOKUP($K11,'OF Statistics 2011-Q3 2024'!$B:$B,'OF Statistics 2011-Q3 2024'!I:I,0,0) -> 231.59 | W11: =_xlfn.XLOOKUP($K11,'OF Statistics 2011-Q3 2024'!$B:$B,'OF Statistics 2011-Q3 2024'!J:J,0,0) -> 272 | X11: =_xlfn.XLOOKUP($K11,'OF Statistics 2011-Q3 2024'!$B:$B,'OF Statistics 2011-Q3 2024'!K:K,0,0) -> 243 | Y11: =_xlfn.XLOOKUP($K11,'OF Statistics 2011-Q3 2024'!$B:$B,'OF Statistics 2011-Q3 2024'!L:L,0,0) -> 244.5 | Z11: =_xlfn.XLOOKUP($K11,'OF Statistics 2011-Q3 2024'!$B:$B,'OF Statistics 2011-Q3 2024'!M:M,0,0) -> 237 | AA11: =_xlfn.XLOOKUP($K11,'OF Statistics 2011-Q3 2024'!$B:$B,'OF Statistics 2011-Q3 2024'!N:N,0,0) -> 0 | AB11: =_xlfn.XLOOKUP($K11,'OF Statistics 2011-Q3 2024'!$B:$B,'OF Statistics 2011-Q3 2024'!O:O,0,0) -> 0 | AC11: =_xlfn.XLOOKUP($K11,'OF Statistics 2011-Q3 2024'!$B:$B,'OF Statistics 2011-Q3 2024'!P:P,0,0) -> 0 | AD11: =_xlfn.XLOOKUP($K11,'OF Statistics 2011-Q3 2024'!$B:$B,'OF Statistics 2011-Q3 2024'!Q:Q,0,0) -> 0 | AE11: =_xlfn.XLOOKUP($K11,'OF Statistics 2011-Q3 2024'!$B:$B,'OF Statistics 2011-Q3 2024'!R:R,0,0) -> 0 | AF11: =_xlfn.XLOOKUP($K11,'OF Statistics 2011-Q3 2024'!$B:$B,'OF Statistics 2011-Q3 2024'!S:S,0,0) -> 0 | AG11: =_xlfn.XLOOKUP($K11,'OF Statistics 2011-Q3 2024'!$B:$B,'OF Statistics 2011-Q3 2024'!T:T,0,0) -> 0 | AH11: =_xlfn.XLOOKUP($K11,'OF Statistics 2011-Q3 2024'!$B:$B,'OF Statistics 2011-Q3 2024'!U:U,0,0) -> 46.83 | AI11: =_xlfn.XLOOKUP($K11,'OF Statistics 2011-Q3 2024'!$B:$B,'OF Statistics 2011-Q3 2024'!V:V,0,0) -> 53.95 | AJ11: =_xlfn.XLOOKUP($K11,'OF Statistics 2011-Q3 2024'!$B:$B,'OF Statistics 2011-Q3 2024'!W:W,0,0) -> 89 | AK11: =_xlfn.XLOOKUP($K11,'OF Statistics 2011-Q3 2024'!$B:$B,'OF Statistics 2011-Q3 2024'!X:X,0,0) -> 69.6 | AL11: =_xlfn.XLOOKUP($K11,'OF Statistics 2011-Q3 2024'!$B:$B,'OF Statistics 2011-Q3 2024'!Y:Y,0,0) -> 48.89 | AM11: =_xlfn.XLOOKUP($K11,'OF Statistics 2011-Q3 2024'!$B:$B,'OF Statistics 2011-Q3 2024'!Z:Z,0,0) -> 41.63 | AN11: =_xlfn.XLOOKUP($K11,'OF Statistics 2011-Q3 2024'!$B:$B,'OF Statistics 2011-Q3 2024'!AA:AA,0,0) -> 74.2 | AO11: =_xlfn.XLOOKUP($K11,'OF Statistics 2011-Q3 2024'!$B:$B,'OF Statistics 2011-Q3 2024'!AB:AB,0,0) -> 77.66 | AP11: =_xlfn.XLOOKUP($K11,'OF Statistics 2011-Q3 2024'!$B:$B,'OF Statistics 2011-Q3 2024'!AC:AC,0,0) -> 29.05 | AQ11: =_xlfn.XLOOKUP($K11,'OF Statistics 2011-Q3 2024'!$B:$B,'OF Statistics 2011-Q3 2024'!AD:AD,0,0) -> 48.81 | AR11: =_xlfn.XLOOKUP($K11,'OF Statistics 2011-Q3 2024'!$B:$B,'OF Statistics 2011-Q3 2024'!AE:AE,0,0) -> 77.87 | AS11: =_xlfn.XLOOKUP($K11,'OF Statistics 2011-Q3 2024'!$B:$B,'OF Statistics 2011-Q3 2024'!AF:AF,0,0) -> 79.31 | AT11: =_xlfn.XLOOKUP($K11,'OF Statistics 2011-Q3 2024'!$B:$B,'OF Statistics 2011-Q3 2024'!AG:AG,0,0) -> 40.65 | AU11: =_xlfn.XLOOKUP($K11,'OF Statistics 2011-Q3 2024'!$B:$B,'OF Statistics 2011-Q3 2024'!AH:AH,0,0) -> 39.87079305 | AV11: =_xlfn.XLOOKUP($K11,'OF Statistics 2011-Q3 2024'!$B:$B,'OF Statistics 2011-Q3 2024'!AI:AI,0,0) -> 71.8 | AW11: =_xlfn.XLOOKUP($K11,'OF Statistics 2011-Q3 2024'!$B:$B,'OF Statistics 2011-Q3 2024'!AJ:AJ,0,0) -> 77.2 | AX11: =_xlfn.XLOOKUP($K11,'OF Statistics 2011-Q3 2024'!$B:$B,'OF Statistics 2011-Q3 2024'!AK:AK,0,0) -> 53.9 | AY11: =_xlfn.XLOOKUP($K11,'OF Statistics 2011-Q3 2024'!$B:$B,'OF Statistics 2011-Q3 2024'!AL:AL,0,0) -> 48.2 | AZ11: =_xlfn.XLOOKUP($K11,'OF Statistics 2011-Q3 2024'!$B:$B,'OF Statistics 2011-Q3 2024'!AM:AM,0,0) -> 93 | BA11: =_xlfn.XLOOKUP($K11,'OF Statistics 2011-Q3 2024'!$B:$B,'OF Statistics 2011-Q3 2024'!AN:AN,0,0) -> 73 | BB11: =_xlfn.XLOOKUP($K11,'OF Statistics 2011-Q3 2024'!$B:$B,'OF Statistics 2011-Q3 2024'!AO:AO,0,0) -> 52.9 | BC11: =_xlfn.XLOOKUP($K11,'OF Statistics 2011-Q3 2024'!$B:$B,'OF Statistics 2011-Q3 2024'!AP:AP,0,0) -> 46.6 | BD11: =_xlfn.XLOOKUP($K11,'OF Statistics 2011-Q3 2024'!$B:$B,'OF Statistics 2011-Q3 2024'!AQ:AQ,0,0) -> 70.7 | BE11: =_xlfn.XLOOKUP($K11,'OF Statistics 2011-Q3 2024'!$B:$B,'OF Statistics 2011-Q3 2024'!AR:AR,0,0) -> 76.4 | BF11: =_xlfn.XLOOKUP($K11,'OF Statistics 2011-Q3 2024'!$B:$B,'OF Statistics 2011-Q3 2024'!AS:AS,0,0) -> 43.3 | BG11: =_xlfn.XLOOKUP($K11,'OF Statistics 2011-Q3 2024'!$B:$B,'OF Statistics 2011-Q3 2024'!AT:AT,0,0) -> 42 | BH11: =_xlfn.XLOOKUP($K11,'OF Statistics 2011-Q3 2024'!$B:$B,'OF Statistics 2011-Q3 2024'!AU:AU,0,0) -> 83 | BI11: =_xlfn.XLOOKUP($K11,'OF Statistics 2011-Q3 2024'!$B:$B,'OF Statistics 2011-Q3 2024'!AV:AV,0,0) -> 79 | BJ11: =_xlfn.XLOOKUP($K11,'OF Statistics 2011-Q3 2024'!$B:$B,'OF Statistics 2011-Q3 2024'!AW:AW,0,0) -> 53 | BK11: =_xlfn.XLOOKUP($K11,'OF Statistics 2011-Q3 2024'!$B:$B,'OF Statistics 2011-Q3 2024'!AX:AX,0,0) -> 57 | BL11: =_xlfn.XLOOKUP($K11,'OF Statistics 2011-Q3 2024'!$B:$B,'OF Statistics 2011-Q3 2024'!AY:AY,0,0) -> 48 | BM11: =_xlfn.XLOOKUP($K11,'OF Statistics 2011-Q3 2024'!$B:$B,'OF Statistics 2011-Q3 2024'!AZ:AZ,0,0) -> 0 | BN11: =_xlfn.XLOOKUP($K11,'OF Statistics 2011-Q3 2024'!$B:$B,'OF Statistics 2011-Q3 2024'!BA:BA,0,0) -> 0 | BO11: =_xlfn.XLOOKUP($K11,'OF Statistics 2011-Q3 2024'!$B:$B,'OF Statistics 2011-Q3 2024'!BB:BB,0,0) -> 0 | BP11: =_xlfn.XLOOKUP($K11,'OF Statistics 2011-Q3 2024'!$B:$B,'OF Statistics 2011-Q3 2024'!BC:BC,0,0) -> 0 | BQ11: =_xlfn.XLOOKUP($K11,'OF Statistics 2011-Q3 2024'!$B:$B,'OF Statistics 2011-Q3 2024'!BD:BD,0,0) -> 0 | BR11: =_xlfn.XLOOKUP($K11,'OF Statistics 2011-Q3 2024'!$B:$B,'OF Statistics 2011-Q3 2024'!BE:BE,0,0) -> 0 | BS11: =_xlfn.XLOOKUP($K11,'OF Statistics 2011-Q3 2024'!$B:$B,'OF Statistics 2011-Q3 2024'!BF:BF,0,0) -> 0 | BT11: =_xlfn.XLOOKUP($K11,'OF Statistics 2011-Q3 2024'!$B:$B,'OF Statistics 2011-Q3 2024'!BG:BG,0,0) -> 0 | BU11: =_xlfn.XLOOKUP($K11,'OF Statistics 2011-Q3 2024'!$B:$B,'OF Statistics 2011-Q3 2024'!BH:BH,0,0) -> 0 | BV11: =_xlfn.XLOOKUP($K11,'OF Statistics 2011-Q3 2024'!$B:$B,'OF Statistics 2011-Q3 2024'!BI:BI,0,0) -> 0 | BW11: =_xlfn.XLOOKUP($K11,'OF Statistics 2011-Q3 2024'!$B:$B,'OF Statistics 2011-Q3 2024'!BJ:BJ,0,0) -> 0 | BX11: =_xlfn.XLOOKUP($K11,'OF Statistics 2011-Q3 2024'!$B:$B,'OF Statistics 2011-Q3 2024'!BK:BK,0,0) -> 0 | BY11: =_xlfn.XLOOKUP($K11,'OF Statistics 2011-Q3 2024'!$B:$B,'OF Statistics 2011-Q3 2024'!BL:BL,0,0) -> 0
C12: Barrow (one-line consolidated in 2013 and 2014) | J12: 9 | K12: London Array 1 | L12: United Kingdom | P12: =_xlfn.XLOOKUP($K12,'OF Statistics 2011-Q3 2024'!$B:$B,'OF Statistics 2011-Q3 2024'!D:D,0,0) -> 90 | R12: =_xlfn.XLOOKUP($K12,'OF Statistics 2011-Q3 2024'!$B:$B,'OF Statistics 2011-Q3 2024'!E:E,0,0) -> 0 | S12: =_xlfn.XLOOKUP($K12,'OF Statistics 2011-Q3 2024'!$B:$B,'OF Statistics 2011-Q3 2024'!F:F,0,0) -> 0 | T12: =_xlfn.XLOOKUP($K12,'OF Statistics 2011-Q3 2024'!$B:$B,'OF Statistics 2011-Q3 2024'!G:G,0,0) -> 345.42 | U12: =_xlfn.XLOOKUP($K12,'OF Statistics 2011-Q3 2024'!$B:$B,'OF Statistics 2011-Q3 2024'!H:H,0,0) -> 517.69 | V12: =_xlfn.XLOOKUP($K12,'OF Statistics 2011-Q3 2024'!$B:$B,'OF Statistics 2011-Q3 2024'!I:I,0,0) -> 540.32 | W12: =_xlfn.XLOOKUP($K12,'OF Statistics 2011-Q3 2024'!$B:$B,'OF Statistics 2011-Q3 2024'!J:J,0,0) -> 638.0436504 | X12: =_xlfn.XLOOKUP($K12,'OF Statistics 2011-Q3 2024'!$B:$B,'OF Statistics 2011-Q3 2024'!K:K,0,0) -> 490 | Y12: =_xlfn.XLOOKUP($K12,'OF Statistics 2011-Q3 2024'!$B:$B,'OF Statistics 2011-Q3 2024'!L:L,0,0) -> 519 | Z12: =_xlfn.XLOOKUP($K12,'OF Statistics 2011-Q3 2024'!$B:$B,'OF Statistics 2011-Q3 2024'!M:M,0,0) -> 536 | AA12: =_xlfn.XLOOKUP($K12,'OF Statistics 2011-Q3 2024'!$B:$B,'OF Statistics 2011-Q3 2024'!N:N,0,0) -> 567 | AB12: =_xlfn.XLOOKUP($K12,'OF Statistics 2011-Q3 2024'!$B:$B,'OF Statistics 2011-Q3 2024'!O:O,0,0) -> 610 | AC12: =_xlfn.XLOOKUP($K12,'OF Statistics 2011-Q3 2024'!$B:$B,'OF Statistics 2011-Q3 2024'!P:P,0,0) -> 745 | AD12: =_xlfn.XLOOKUP($K12,'OF Statistics 2011-Q3 2024'!$B:$B,'OF Statistics 2011-Q3 2024'!Q:Q,0,0) -> 1003 | AE12: =_xlfn.XLOOKUP($K12,'OF Statistics 2011-Q3 2024'!$B:$B,'OF Statistics 2011-Q3 2024'!R:R,0,0) -> 65 | AF12: =_xlfn.XLOOKUP($K12,'OF Statistics 2011-Q3 2024'!$B:$B,'OF Statistics 2011-Q3 2024'!S:S,0,0) -> 0 | AG12: =_xlfn.XLOOKUP($K12,'OF Statistics 2011-Q3 2024'!$B:$B,'OF Statistics 2011-Q3 2024'!T:T,0,0) -> 0 | AH12: =_xlfn.XLOOKUP($K12,'OF Statistics 2011-Q3 2024'!$B:$B,'OF Statistics 2011-Q3 2024'!U:U,0,0) -> 0 | AI12: =_xlfn.XLOOKUP($K12,'OF Statistics 2011-Q3 2024'!$B:$B,'OF Statistics 2011-Q3 2024'!V:V,0,0) -> 0 | AJ12: =_xlfn.XLOOKUP($K12,'OF Statistics 2011-Q3 2024'!$B:$B,'OF Statistics 2011-Q3 2024'!W:W,0,0) -> 0 | AK12: =_xlfn.XLOOKUP($K12,'OF Statistics 2011-Q3 2024'!$B:$B,'OF Statistics 2011-Q3 2024'!X:X,0,0) -> 0 | AL12: =_xlfn.XLOOKUP($K12,'OF Statistics 2011-Q3 2024'!$B:$B,'OF Statistics 2011-Q3 2024'!Y:Y,0,0) -> 50 | AM12: =_xlfn.XLOOKUP($K12,'OF Statistics 2011-Q3 2024'!$B:$B,'OF Statistics 2011-Q3 2024'!Z:Z,0,0) -> 122.4 | AN12: =_xlfn.XLOOKUP($K12,'OF Statistics 2011-Q3 2024'!$B:$B,'OF Statistics 2011-Q3 2024'!AA:AA,0,0) -> 173.02 | AO12: =_xlfn.XLOOKUP($K12,'OF Statistics 2011-Q3 2024'!$B:$B,'OF Statistics 2011-Q3 2024'!AB:AB,0,0) -> 171.69 | AP12: =_xlfn.XLOOKUP($K12,'OF Statistics 2011-Q3 2024'!$B:$B,'OF Statistics 2011-Q3 2024'!AC:AC,0,0) -> 76.73 | AQ12: =_xlfn.XLOOKUP($K12,'OF Statistics 2011-Q3 2024'!$B:$B,'OF Statistics 2011-Q3 2024'!AD:AD,0,0) -> 107.52 | AR12: =_xlfn.XLOOKUP($K12,'OF Statistics 2011-Q3 2024'!$B:$B,'OF Statistics 2011-Q3 2024'!AE:AE,0,0) -> 161.75 | AS12: =_xlfn.XLOOKUP($K12,'OF Statistics 2011-Q3 2024'!$B:$B,'OF Statistics 2011-Q3 2024'!AF:AF,0,0) -> 165.85 | AT12: =_xlfn.XLOOKUP($K12,'OF Statistics 2011-Q3 2024'!$B:$B,'OF Statistics 2011-Q3 2024'!AG:AG,0,0) -> 103.81 | AU12: =_xlfn.XLOOKUP($K12,'OF Statistics 2011-Q3 2024'!$B:$B,'OF Statistics 2011-Q3 2024'!AH:AH,0,0) -> 98.66351397 | AV12: =_xlfn.XLOOKUP($K12,'OF Statistics 2011-Q3 2024'!$B:$B,'OF Statistics 2011-Q3 2024'!AI:AI,0,0) -> 172 | AW12: =_xlfn.XLOOKUP($K12,'OF Statistics 2011-Q3 2024'!$B:$B,'OF Statistics 2011-Q3 2024'!AJ:AJ,0,0) -> 186 | AX12: =_xlfn.XLOOKUP($K12,'OF Statistics 2011-Q3 2024'!$B:$B,'OF Statistics 2011-Q3 2024'!AK:AK,0,0) -> 124.8 | AY12: =_xlfn.XLOOKUP($K12,'OF Statistics 2011-Q3 2024'!$B:$B,'OF Statistics 2011-Q3 2024'!AL:AL,0,0) -> 109.3 | AZ12: =_xlfn.XLOOKUP($K12,'OF Statistics 2011-Q3 2024'!$B:$B,'OF Statistics 2011-Q3 2024'!AM:AM,0,0) -> 218 | BA12: =_xlfn.XLOOKUP($K12,'OF Statistics 2011-Q3 2024'!$B:$B,'OF Statistics 2011-Q3 2024'!AN:AN,0,0) -> 200 | BB12: =_xlfn.XLOOKUP($K12,'OF Statistics 2011-Q3 2024'!$B:$B,'OF Statistics 2011-Q3 2024'!AO:AO,0,0) -> 86.8 | BC12: =_xlfn.XLOOKUP($K12,'OF Statistics 2011-Q3 2024'!$B:$B,'OF Statistics 2011-Q3 2024'!AP:AP,0,0) -> 68.2 | BD12: =_xlfn.XLOOKUP($K12,'OF Statistics 2011-Q3 2024'!$B:$B,'OF Statistics 2011-Q3 2024'!AQ:AQ,0,0) -> 134.9 | BE12: =_xlfn.XLOOKUP($K12,'OF Statistics 2011-Q3 2024'!$B:$B,'OF Statistics 2011-Q3 2024'!AR:AR,0,0) -> 151.5 | BF12: =_xlfn.XLOOKUP($K12,'OF Statistics 2011-Q3 2024'!$B:$B,'OF Statistics 2011-Q3 2024'!AS:AS,0,0) -> 89.5 | BG12: =_xlfn.XLOOKUP($K12,'OF Statistics 2011-Q3 2024'!$B:$B,'OF Statistics 2011-Q3 2024'!AT:AT,0,0) -> 89 | BH12: =_xlfn.XLOOKUP($K12,'OF Statistics 2011-Q3 2024'!$B:$B,'OF Statistics 2011-Q3 2024'!AU:AU,0,0) -> 189 | BI12: =_xlfn.XLOOKUP($K12,'OF Statistics 2011-Q3 2024'!$B:$B,'OF Statistics 2011-Q3 2024'!AV:AV,0,0) -> 180 | BJ12: =_xlfn.XLOOKUP($K12,'OF Statistics 2011-Q3 2024'!$B:$B,'OF Statistics 2011-Q3 2024'!AW:AW,0,0) -> 102 | BK12: =_xlfn.XLOOKUP($K12,'OF Statistics 2011-Q3 2024'!$B:$B,'OF Statistics 2011-Q3 2024'!AX:AX,0,0) -> 106 | BL12: =_xlfn.XLOOKUP($K12,'OF Statistics 2011-Q3 2024'!$B:$B,'OF Statistics 2011-Q3 2024'!AY:AY,0,0) -> 148 | BM12: =_xlfn.XLOOKUP($K12,'OF Statistics 2011-Q3 2024'!$B:$B,'OF Statistics 2011-Q3 2024'!AZ:AZ,0,0) -> 154 | BN12: =_xlfn.XLOOKUP($K12,'OF Statistics 2011-Q3 2024'!$B:$B,'OF Statistics 2011-Q3 2024'!BA:BA,0,0) -> 103 | BO12: =_xlfn.XLOOKUP($K12,'OF Statistics 2011-Q3 2024'!$B:$B,'OF Statistics 2011-Q3 2024'!BB:BB,0,0) -> 105 | BP12: =_xlfn.XLOOKUP($K12,'OF Statistics 2011-Q3 2024'!$B:$B,'OF Statistics 2011-Q3 2024'!BC:BC,0,0) -> 205 | BQ12: =_xlfn.XLOOKUP($K12,'OF Statistics 2011-Q3 2024'!$B:$B,'OF Statistics 2011-Q3 2024'!BD:BD,0,0) -> 205 | BR12: =_xlfn.XLOOKUP($K12,'OF Statistics 2011-Q3 2024'!$B:$B,'OF Statistics 2011-Q3 2024'!BE:BE,0,0) -> 104 | BS12: =_xlfn.XLOOKUP($K12,'OF Statistics 2011-Q3 2024'!$B:$B,'OF Statistics 2011-Q3 2024'!BF:BF,0,0) -> 126 | BT12: =_xlfn.XLOOKUP($K12,'OF Statistics 2011-Q3 2024'!$B:$B,'OF Statistics 2011-Q3 2024'!BG:BG,0,0) -> 175 | BU12: =_xlfn.XLOOKUP($K12,'OF Statistics 2011-Q3 2024'!$B:$B,'OF Statistics 2011-Q3 2024'!BH:BH,0,0) -> 176 | BV12: =_xlfn.XLOOKUP($K12,'OF Statistics 2011-Q3 2024'!$B:$B,'OF Statistics 2011-Q3 2024'!BI:BI,0,0) -> 85 | BW12: =_xlfn.XLOOKUP($K12,'OF Statistics 2011-Q3 2024'!$B:$B,'OF Statistics 2011-Q3 2024'!BJ:BJ,0,0) -> 92 | BX12: =_xlfn.XLOOKUP($K12,'OF Statistics 2011-Q3 2024'!$B:$B,'OF Statistics 2011-Q3 2024'!BK:BK,0,0) -> 392 | BY12: =_xlfn.XLOOKUP($K12,'OF Statistics 2011-Q3 2024'!$B:$B,'OF Statistics 2011-Q3 2024'!BL:BL,0,0) -> 0
B13: 5 | C13: Burbo Bank 1+2 | J13: 10 | K13: Walney 1&2 | L13: United Kingdom | P13: ='OF Asset Book'!G19 -> 183.9672 | R13: =_xlfn.XLOOKUP($K13,'OF Statistics 2011-Q3 2024'!$B:$B,'OF Statistics 2011-Q3 2024'!E:E,0,0) -> 0 | S13: =_xlfn.XLOOKUP($K13,'OF Statistics 2011-Q3 2024'!$B:$B,'OF Statistics 2011-Q3 2024'!F:F,0,0) -> 637.3584245 | T13: =_xlfn.XLOOKUP($K13,'OF Statistics 2011-Q3 2024'!$B:$B,'OF Statistics 2011-Q3 2024'!G:G,0,0) -> 653.9 | U13: =_xlfn.XLOOKUP($K13,'OF Statistics 2011-Q3 2024'!$B:$B,'OF Statistics 2011-Q3 2024'!H:H,0,0) -> 659.68 | V13: =_xlfn.XLOOKUP($K13,'OF Statistics 2011-Q3 2024'!$B:$B,'OF Statistics 2011-Q3 2024'!I:I,0,0) -> 566.91 | W13: =_xlfn.XLOOKUP($K13,'OF Statistics 2011-Q3 2024'!$B:$B,'OF Statistics 2011-Q3 2024'!J:J,0,0) -> 708.9 | X13: =_xlfn.XLOOKUP($K13,'OF Statistics 2011-Q3 2024'!$B:$B,'OF Statistics 2011-Q3 2024'!K:K,0,0) -> 691 | Y13: =_xlfn.XLOOKUP($K13,'OF Statistics 2011-Q3 2024'!$B:$B,'OF Statistics 2011-Q3 2024'!L:L,0,0) -> 676 | Z13: =_xlfn.XLOOKUP($K13,'OF Statistics 2011-Q3 2024'!$B:$B,'OF Statistics 2011-Q3 2024'!M:M,0,0) -> 765 | AA13: =_xlfn.XLOOKUP($K13,'OF Statistics 2011-Q3 2024'!$B:$B,'OF Statistics 2011-Q3 2024'!N:N,0,0) -> 567 | AB13: =_xlfn.XLOOKUP($K13,'OF Statistics 2011-Q3 2024'!$B:$B,'OF Statistics 2011-Q3 2024'!O:O,0,0) -> 707 | AC13: =_xlfn.XLOOKUP($K13,'OF Statistics 2011-Q3 2024'!$B:$B,'OF Statistics 2011-Q3 2024'!P:P,0,0) -> 726 | AD13: =_xlfn.XLOOKUP($K13,'OF Statistics 2011-Q3 2024'!$B:$B,'OF Statistics 2011-Q3 2024'!Q:Q,0,0) -> 709 | AE13: =_xlfn.XLOOKUP($K13,'OF Statistics 2011-Q3 2024'!$B:$B,'OF Statistics 2011-Q3 2024'!R:R,0,0) -> 693 | AF13: =_xlfn.XLOOKUP($K13,'OF Statistics 2011-Q3 2024'!$B:$B,'OF Statistics 2011-Q3 2024'!S:S,0,0) -> 326 | AG13: =_xlfn.XLOOKUP($K13,'OF Statistics 2011-Q3 2024'!$B:$B,'OF Statistics 2011-Q3 2024'!T:T,0,0) -> 0 | AH13: =_xlfn.XLOOKUP($K13,'OF Statistics 2011-Q3 2024'!$B:$B,'OF Statistics 2011-Q3 2024'!U:U,0,0) -> 148.76 | AI13: =_xlfn.XLOOKUP($K13,'OF Statistics 2011-Q3 2024'!$B:$B,'OF Statistics 2011-Q3 2024'!V:V,0,0) -> 128.89 | AJ13: =_xlfn.XLOOKUP($K13,'OF Statistics 2011-Q3 2024'!$B:$B,'OF Statistics 2011-Q3 2024'!W:W,0,0) -> 183 | AK13: =_xlfn.XLOOKUP($K13,'OF Statistics 2011-Q3 2024'!$B:$B,'OF Statistics 2011-Q3 2024'!X:X,0,0) -> 215.11 | AL13: =_xlfn.XLOOKUP($K13,'OF Statistics 2011-Q3 2024'!$B:$B,'OF Statistics 2011-Q3 2024'!Y:Y,0,0) -> 153.33 | AM13: =_xlfn.XLOOKUP($K13,'OF Statistics 2011-Q3 2024'!$B:$B,'OF Statistics 2011-Q3 2024'!Z:Z,0,0) -> 96.01 | AN13: =_xlfn.XLOOKUP($K13,'OF Statistics 2011-Q3 2024'!$B:$B,'OF Statistics 2011-Q3 2024'!AA:AA,0,0) -> 189.45 | AO13: =_xlfn.XLOOKUP($K13,'OF Statistics 2011-Q3 2024'!$B:$B,'OF Statistics 2011-Q3 2024'!AB:AB,0,0) -> 208.39 | AP13: =_xlfn.XLOOKUP($K13,'OF Statistics 2011-Q3 2024'!$B:$B,'OF Statistics 2011-Q3 2024'!AC:AC,0,0) -> 116.12 | AQ13: =_xlfn.XLOOKUP($K13,'OF Statistics 2011-Q3 2024'!$B:$B,'OF Statistics 2011-Q3 2024'!AD:AD,0,0) -> 136.66 | AR13: =_xlfn.XLOOKUP($K13,'OF Statistics 2011-Q3 2024'!$B:$B,'OF Statistics 2011-Q3 2024'!AE:AE,0,0) -> 198.51 | AS13: =_xlfn.XLOOKUP($K13,'OF Statistics 2011-Q3 2024'!$B:$B,'OF Statistics 2011-Q3 2024'!AF:AF,0,0) -> 210.34 | AT13: =_xlfn.XLOOKUP($K13,'OF Statistics 2011-Q3 2024'!$B:$B,'OF Statistics 2011-Q3 2024'!AG:AG,0,0) -> 75.81 | AU13: =_xlfn.XLOOKUP($K13,'OF Statistics 2011-Q3 2024'!$B:$B,'OF Statistics 2011-Q3 2024'!AH:AH,0,0) -> 86.22116854 | AV13: =_xlfn.XLOOKUP($K13,'OF Statistics 2011-Q3 2024'!$B:$B,'OF Statistics 2011-Q3 2024'!AI:AI,0,0) -> 194.5 | AW13: =_xlfn.XLOOKUP($K13,'OF Statistics 2011-Q3 2024'!$B:$B,'OF Statistics 2011-Q3 2024'!AJ:AJ,0,0) -> 206.3 | AX13: =_xlfn.XLOOKUP($K13,'OF Statistics 2011-Q3 2024'!$B:$B,'OF Statistics 2011-Q3 2024'!AK:AK,0,0) -> 152.4 | AY13: =_xlfn.XLOOKUP($K13,'OF Statistics 2011-Q3 2024'!$B:$B,'OF Statistics 2011-Q3 2024'!AL:AL,0,0) -> 120.5 | AZ13: =_xlfn.XLOOKUP($K13,'OF Statistics 2011-Q3 2024'!$B:$B,'OF Statistics 2011-Q3 2024'!AM:AM,0,0) -> 230 | BA13: =_xlfn.XLOOKUP($K13,'OF Statistics 2011-Q3 2024'!$B:$B,'OF Statistics 2011-Q3 2024'!AN:AN,0,0) -> 210 | BB13: =_xlfn.XLOOKUP($K13,'OF Statistics 2011-Q3 2024'!$B:$B,'OF Statistics 2011-Q3 2024'!AO:AO,0,0) -> 157.6 | BC13: =_xlfn.XLOOKUP($K13,'OF Statistics 2011-Q3 2024'!$B:$B,'OF Statistics 2011-Q3 2024'!AP:AP,0,0) -> 121.6 | BD13: =_xlfn.XLOOKUP($K13,'OF Statistics 2011-Q3 2024'!$B:$B,'OF Statistics 2011-Q3 2024'!AQ:AQ,0,0) -> 201.6 | BE13: =_xlfn.XLOOKUP($K13,'OF Statistics 2011-Q3 2024'!$B:$B,'OF Statistics 2011-Q3 2024'!AR:AR,0,0) -> 224.4 | BF13: =_xlfn.XLOOKUP($K13,'OF Statistics 2011-Q3 2024'!$B:$B,'OF Statistics 2011-Q3 2024'!AS:AS,0,0) -> 132.8 | BG13: =_xlfn.XLOOKUP($K13,'OF Statistics 2011-Q3 2024'!$B:$B,'OF Statistics 2011-Q3 2024'!AT:AT,0,0) -> 80 | BH13: =_xlfn.XLOOKUP($K13,'OF Statistics 2011-Q3 2024'!$B:$B,'OF Statistics 2011-Q3 2024'!AU:AU,0,0) -> 239 | BI13: =_xlfn.XLOOKUP($K13,'OF Statistics 2011-Q3 2024'!$B:$B,'OF Statistics 2011-Q3 2024'!AV:AV,0,0) -> 245 | BJ13: =_xlfn.XLOOKUP($K13,'OF Statistics 2011-Q3 2024'!$B:$B,'OF Statistics 2011-Q3 2024'!AW:AW,0,0) -> 161 | BK13: =_xlfn.XLOOKUP($K13,'OF Statistics 2011-Q3 2024'!$B:$B,'OF Statistics 2011-Q3 2024'!AX:AX,0,0) -> 157 | BL13: =_xlfn.XLOOKUP($K13,'OF Statistics 2011-Q3 2024'!$B:$B,'OF Statistics 2011-Q3 2024'!AY:AY,0,0) -> 202 | BM13: =_xlfn.XLOOKUP($K13,'OF Statistics 2011-Q3 2024'!$B:$B,'OF Statistics 2011-Q3 2024'!AZ:AZ,0,0) -> 188 | BN13: =_xlfn.XLOOKUP($K13,'OF Statistics 2011-Q3 2024'!$B:$B,'OF Statistics 2011-Q3 2024'!BA:BA,0,0) -> 157 | BO13: =_xlfn.XLOOKUP($K13,'OF Statistics 2011-Q3 2024'!$B:$B,'OF Statistics 2011-Q3 2024'!BB:BB,0,0) -> 121 | BP13: =_xlfn.XLOOKUP($K13,'OF Statistics 2011-Q3 2024'!$B:$B,'OF Statistics 2011-Q3 2024'!BC:BC,0,0) -> 101 | BQ13: =_xlfn.XLOOKUP($K13,'OF Statistics 2011-Q3 2024'!$B:$B,'OF Statistics 2011-Q3 2024'!BD:BD,0,0) -> 169 | BR13: =_xlfn.XLOOKUP($K13,'OF Statistics 2011-Q3 2024'!$B:$B,'OF Statistics 2011-Q3 2024'!BE:BE,0,0) -> 144 | BS13: =_xlfn.XLOOKUP($K13,'OF Statistics 2011-Q3 2024'!$B:$B,'OF Statistics 2011-Q3 2024'!BF:BF,0,0) -> 168 | BT13: =_xlfn.XLOOKUP($K13,'OF Statistics 2011-Q3 2024'!$B:$B,'OF Statistics 2011-Q3 2024'!BG:BG,0,0) -> 226 | BU13: =_xlfn.XLOOKUP($K13,'OF Statistics 2011-Q3 2024'!$B:$B,'OF Statistics 2011-Q3 2024'!BH:BH,0,0) -> 220 | BV13: =_xlfn.XLOOKUP($K13,'OF Statistics 2011-Q3 2024'!$B:$B,'OF Statistics 2011-Q3 2024'!BI:BI,0,0) -> 122 | BW13: =_xlfn.XLOOKUP($K13,'OF Statistics 2011-Q3 2024'!$B:$B,'OF Statistics 2011-Q3 2024'!BJ:BJ,0,0) -> 130 | BX13: =_xlfn.XLOOKUP($K13,'OF Statistics 2011-Q3 2024'!$B:$B,'OF Statistics 2011-Q3 2024'!BK:BK,0,0) -> 254 | BY13: =_xlfn.XLOOKUP($K13,'OF Statistics 2011-Q3 2024'!$B:$B,'OF Statistics 2011-Q3 2024'!BL:BL,0,0) -> 0
B14: 6 | C14: Gunfleet Sands 1+2 | J14: 11 | K14: Walney 3&4 | L14: United Kingdom | P14: ='OF Asset Book'!G28 -> 329.5 | R14: =_xlfn.XLOOKUP($K14,'OF Statistics 2011-Q3 2024'!$B:$B,'OF Statistics 2011-Q3 2024'!E:E,0,0) -> 0 | S14: =_xlfn.XLOOKUP($K14,'OF Statistics 2011-Q3 2024'!$B:$B,'OF Statistics 2011-Q3 2024'!F:F,0,0) -> 1265.684251 | T14: =_xlfn.XLOOKUP($K14,'OF Statistics 2011-Q3 2024'!$B:$B,'OF Statistics 2011-Q3 2024'!G:G,0,0) -> 1273.14 | U14: =_xlfn.XLOOKUP($K14,'OF Statistics 2011-Q3 2024'!$B:$B,'OF Statistics 2011-Q3 2024'!H:H,0,0) -> 1332.96 | V14: =_xlfn.XLOOKUP($K14,'OF Statistics 2011-Q3 2024'!$B:$B,'OF Statistics 2011-Q3 2024'!I:I,0,0) -> 1084.18 | W14: =_xlfn.XLOOKUP($K14,'OF Statistics 2011-Q3 2024'!$B:$B,'OF Statistics 2011-Q3 2024'!J:J,0,0) -> 1425.8 | X14: =_xlfn.XLOOKUP($K14,'OF Statistics 2011-Q3 2024'!$B:$B,'OF Statistics 2011-Q3 2024'!K:K,0,0) -> 1348 | Y14: =_xlfn.XLOOKUP($K14,'OF Statistics 2011-Q3 2024'!$B:$B,'OF Statistics 2011-Q3 2024'!L:L,0,0) -> 1120 | Z14: =_xlfn.XLOOKUP($K14,'OF Statistics 2011-Q3 2024'!$B:$B,'OF Statistics 2011-Q3 2024'!M:M,0,0) -> 103 | AA14: =_xlfn.XLOOKUP($K14,'OF Statistics 2011-Q3 2024'!$B:$B,'OF Statistics 2011-Q3 2024'!N:N,0,0) -> 0 | AB14: =_xlfn.XLOOKUP($K14,'OF Statistics 2011-Q3 2024'!$B:$B,'OF Statistics 2011-Q3 2024'!O:O,0,0) -> 0 | AC14: =_xlfn.XLOOKUP($K14,'OF Statistics 2011-Q3 2024'!$B:$B,'OF Statistics 2011-Q3 2024'!P:P,0,0) -> 0 | AD14: =_xlfn.XLOOKUP($K14,'OF Statistics 2011-Q3 2024'!$B:$B,'OF Statistics 2011-Q3 2024'!Q:Q,0,0) -> 0 | AE14: =_xlfn.XLOOKUP($K14,'OF Statistics 2011-Q3 2024'!$B:$B,'OF Statistics 2011-Q3 2024'!R:R,0,0) -> 0 | AF14: =_xlfn.XLOOKUP($K14,'OF Statistics 2011-Q3 2024'!$B:$B,'OF Statistics 2011-Q3 2024'!S:S,0,0) -> 0 | AG14: =_xlfn.XLOOKUP($K14,'OF Statistics 2011-Q3 2024'!$B:$B,'OF Statistics 2011-Q3 2024'!T:T,0,0) -> 0 | AH14: =_xlfn.XLOOKUP($K14,'OF Statistics 2011-Q3 2024'!$B:$B,'OF Statistics 2011-Q3 2024'!U:U,0,0) -> 275.22 | AI14: =_xlfn.XLOOKUP($K14,'OF Statistics 2011-Q3 2024'!$B:$B,'OF Statistics 2011-Q3 2024'!V:V,0,0) -> 249.07 | AJ14: =_xlfn.XLOOKUP($K14,'OF Statistics 2011-Q3 2024'!$B:$B,'OF Statistics 2011-Q3 2024'!W:W,0,0) -> 378 | AK14: =_xlfn.XLOOKUP($K14,'OF Statistics 2011-Q3 2024'!$B:$B,'OF Statistics 2011-Q3 2024'!X:X,0,0) -> 394.57 | AL14: =_xlfn.XLOOKUP($K14,'OF Statistics 2011-Q3 2024'!$B:$B,'OF Statistics 2011-Q3 2024'!Y:Y,0,0) -> 287.99 | AM14: =_xlfn.XLOOKUP($K14,'OF Statistics 2011-Q3 2024'!$B:$B,'OF Statistics 2011-Q3 2024'!Z:Z,0,0) -> 196.78 | AN14: =_xlfn.XLOOKUP($K14,'OF Statistics 2011-Q3 2024'!$B:$B,'OF Statistics 2011-Q3 2024'!AA:AA,0,0) -> 393.81 | AO14: =_xlfn.XLOOKUP($K14,'OF Statistics 2011-Q3 2024'!$B:$B,'OF Statistics 2011-Q3 2024'!AB:AB,0,0) -> 427.05 | AP14: =_xlfn.XLOOKUP($K14,'OF Statistics 2011-Q3 2024'!$B:$B,'OF Statistics 2011-Q3 2024'!AC:AC,0,0) -> 234.33 | AQ14: =_xlfn.XLOOKUP($K14,'OF Statistics 2011-Q3 2024'!$B:$B,'OF Statistics 2011-Q3 2024'!AD:AD,0,0) -> 270.95 | AR14: =_xlfn.XLOOKUP($K14,'OF Statistics 2011-Q3 2024'!$B:$B,'OF Statistics 2011-Q3 2024'!AE:AE,0,0) -> 400.64 | AS14: =_xlfn.XLOOKUP($K14,'OF Statistics 2011-Q3 2024'!$B:$B,'OF Statistics 2011-Q3 2024'!AF:AF,0,0) -> 407.79 | AT14: =_xlfn.XLOOKUP($K14,'OF Statistics 2011-Q3 2024'!$B:$B,'OF Statistics 2011-Q3 2024'!AG:AG,0,0) -> 150.94 | AU14: =_xlfn.XLOOKUP($K14,'OF Statistics 2011-Q3 2024'!$B:$B,'OF Statistics 2011-Q3 2024'!AH:AH,0,0) -> 163.109662 | AV14: =_xlfn.XLOOKUP($K14,'OF Statistics 2011-Q3 2024'!$B:$B,'OF Statistics 2011-Q3 2024'!AI:AI,0,0) -> 362.3 | AW14: =_xlfn.XLOOKUP($K14,'OF Statistics 2011-Q3 2024'!$B:$B,'OF Statistics 2011-Q3 2024'!AJ:AJ,0,0) -> 428.2 | AX14: =_xlfn.XLOOKUP($K14,'OF Statistics 2011-Q3 2024'!$B:$B,'OF Statistics 2011-Q3 2024'!AK:AK,0,0) -> 291.6 | AY14: =_xlfn.XLOOKUP($K14,'OF Statistics 2011-Q3 2024'!$B:$B,'OF Statistics 2011-Q3 2024'!AL:AL,0,0) -> 248.5 | AZ14: =_xlfn.XLOOKUP($K14,'OF Statistics 2011-Q3 2024'!$B:$B,'OF Statistics 2011-Q3 2024'!AM:AM,0,0) -> 458 | BA14: =_xlfn.XLOOKUP($K14,'OF Statistics 2011-Q3 2024'!$B:$B,'OF Statistics 2011-Q3 2024'!AN:AN,0,0) -> 410 | BB14: =_xlfn.XLOOKUP($K14,'OF Statistics 2011-Q3 2024'!$B:$B,'OF Statistics 2011-Q3 2024'!AO:AO,0,0) -> 303.3 | BC14: =_xlfn.XLOOKUP($K14,'OF Statistics 2011-Q3 2024'!$B:$B,'OF Statistics 2011-Q3 2024'!AP:AP,0,0) -> 252.8 | BD14: =_xlfn.XLOOKUP($K14,'OF Statistics 2011-Q3 2024'!$B:$B,'OF Statistics 2011-Q3 2024'!AQ:AQ,0,0) -> 381.4 | BE14: =_xlfn.XLOOKUP($K14,'OF Statistics 2011-Q3 2024'!$B:$B,'OF Statistics 2011-Q3 2024'!AR:AR,0,0) -> 422.1 | BF14: =_xlfn.XLOOKUP($K14,'OF Statistics 2011-Q3 2024'!$B:$B,'OF Statistics 2011-Q3 2024'!AS:AS,0,0) -> 271.4 | BG14: =_xlfn.XLOOKUP($K14,'OF Statistics 2011-Q3 2024'!$B:$B,'OF Statistics 2011-Q3 2024'!AT:AT,0,0) -> 204 | BH14: =_xlfn.XLOOKUP($K14,'OF Statistics 2011-Q3 2024'!$B:$B,'OF Statistics 2011-Q3 2024'!AU:AU,0,0) -> 222 | BI14: =_xlfn.XLOOKUP($K14,'OF Statistics 2011-Q3 2024'!$B:$B,'OF Statistics 2011-Q3 2024'!AV:AV,0,0) -> 101 | BJ14: =_xlfn.XLOOKUP($K14,'OF Statistics 2011-Q3 2024'!$B:$B,'OF Statistics 2011-Q3 2024'!AW:AW,0,0) -> 2 | BK14: =_xlfn.XLOOKUP($K14,'OF Statistics 2011-Q3 2024'!$B:$B,'OF Statistics 2011-Q3 2024'!AX:AX,0,0) -> 0 | BL14: =_xlfn.XLOOKUP($K14,'OF Statistics 2011-Q3 2024'!$B:$B,'OF Statistics 2011-Q3 2024'!AY:AY,0,0) -> 0 | BM14: =_xlfn.XLOOKUP($K14,'OF Statistics 2011-Q3 2024'!$B:$B,'OF Statistics 2011-Q3 2024'!AZ:AZ,0,0) -> 0 | BN14: =_xlfn.XLOOKUP($K14,'OF Statistics 2011-Q3 2024'!$B:$B,'OF Statistics 2011-Q3 2024'!BA:BA,0,0) -> 0 | BO14: =_xlfn.XLOOKUP($K14,'OF Statistics 2011-Q3 2024'!$B:$B,'OF Statistics 2011-Q3 2024'!BB:BB,0,0) -> 0 | BP14: =_xlfn.XLOOKUP($K14,'OF Statistics 2011-Q3 2024'!$B:$B,'OF Statistics 2011-Q3 2024'!BC:BC,0,0) -> 0 | BQ14: =_xlfn.XLOOKUP($K14,'OF Statistics 2011-Q3 2024'!$B:$B,'OF Statistics 2011-Q3 2024'!BD:BD,0,0) -> 0 | BR14: =_xlfn.XLOOKUP($K14,'OF Statistics 2011-Q3 2024'!$B:$B,'OF Statistics 2011-Q3 2024'!BE:BE,0,0) -> 0 | BS14: =_xlfn.XLOOKUP($K14,'OF Statistics 2011-Q3 2024'!$B:$B,'OF Statistics 2011-Q3 2024'!BF:BF,0,0) -> 0 | BT14: =_xlfn.XLOOKUP($K14,'OF Statistics 2011-Q3 2024'!$B:$B,'OF Statistics 2011-Q3 2024'!BG:BG,0,0) -> 0 | BU14: =_xlfn.XLOOKUP($K14,'OF Statistics 2011-Q3 2024'!$B:$B,'OF Statistics 2011-Q3 2024'!BH:BH,0,0) -> 0 | BV14: =_xlfn.XLOOKUP($K14,'OF Statistics 2011-Q3 2024'!$B:$B,'OF Statistics 2011-Q3 2024'!BI:BI,0,0) -> 0 | BW14: =_xlfn.XLOOKUP($K14,'OF Statistics 2011-Q3 2024'!$B:$B,'OF Statistics 2011-Q3 2024'!BJ:BJ,0,0) -> 0 | BX14: =_xlfn.XLOOKUP($K14,'OF Statistics 2011-Q3 2024'!$B:$B,'OF Statistics 2011-Q3 2024'!BK:BK,0,0) -> 0 | BY14: =_xlfn.XLOOKUP($K14,'OF Statistics 2011-Q3 2024'!$B:$B,'OF Statistics 2011-Q3 2024'!BL:BL,0,0) -> 0
B15: 7 | C15: Gunfleet Sand Demo | J15: 12 | K15: West of Duddon Sands | L15: United Kingdom | P15: ='OF Asset Book'!G18 -> 194.4 | R15: =_xlfn.XLOOKUP($K15,'OF Statistics 2011-Q3 2024'!$B:$B,'OF Statistics 2011-Q3 2024'!E:E,0,0) -> 0 | S15: =_xlfn.XLOOKUP($K15,'OF Statistics 2011-Q3 2024'!$B:$B,'OF Statistics 2011-Q3 2024'!F:F,0,0) -> 724.6517991 | T15: =_xlfn.XLOOKUP($K15,'OF Statistics 2011-Q3 2024'!$B:$B,'OF Statistics 2011-Q3 2024'!G:G,0,0) -> 741.82 | U15: =_xlfn.XLOOKUP($K15,'OF Statistics 2011-Q3 2024'!$B:$B,'OF Statistics 2011-Q3 2024'!H:H,0,0) -> 753.25 | V15: =_xlfn.XLOOKUP($K15,'OF Statistics 2011-Q3 2024'!$B:$B,'OF Statistics 2011-Q3 2024'!I:I,0,0) -> 633.95 | W15: =_xlfn.XLOOKUP($K15,'OF Statistics 2011-Q3 2024'!$B:$B,'OF Statistics 2011-Q3 2024'!J:J,0,0) -> 801.8 | X15: =_xlfn.XLOOKUP($K15,'OF Statistics 2011-Q3 2024'!$B:$B,'OF Statistics 2011-Q3 2024'!K:K,0,0) -> 734 | Y15: =_xlfn.XLOOKUP($K15,'OF Statistics 2011-Q3 2024'!$B:$B,'OF Statistics 2011-Q3 2024'!L:L,0,0) -> 754 | Z15: =_xlfn.XLOOKUP($K15,'OF Statistics 2011-Q3 2024'!$B:$B,'OF Statistics 2011-Q3 2024'!M:M,0,0) -> 808 | AA15: =_xlfn.XLOOKUP($K15,'OF Statistics 2011-Q3 2024'!$B:$B,'OF Statistics 2011-Q3 2024'!N:N,0,0) -> 735 | AB15: =_xlfn.XLOOKUP($K15,'OF Statistics 2011-Q3 2024'!$B:$B,'OF Statistics 2011-Q3 2024'!O:O,0,0) -> 734 | AC15: =_xlfn.XLOOKUP($K15,'OF Statistics 2011-Q3 2024'!$B:$B,'OF Statistics 2011-Q3 2024'!P:P,0,0) -> 374 | AD15: =_xlfn.XLOOKUP($K15,'OF Statistics 2011-Q3 2024'!$B:$B,'OF Statistics 2011-Q3 2024'!Q:Q,0,0) -> 0 | AE15: =_xlfn.XLOOKUP($K15,'OF Statistics 2011-Q3 2024'!$B:$B,'OF Statistics 2011-Q3 2024'!R:R,0,0) -> 0 | AF15: =_xlfn.XLOOKUP($K15,'OF Statistics 2011-Q3 2024'!$B:$B,'OF Statistics 2011-Q3 2024'!S:S,0,0) -> 0 | AG15: =_xlfn.XLOOKUP($K15,'OF Statistics 2011-Q3 2024'!$B:$B,'OF Statistics 2011-Q3 2024'!T:T,0,0) -> 0 | AH15: =_xlfn.XLOOKUP($K15,'OF Statistics 2011-Q3 2024'!$B:$B,'OF Statistics 2011-Q3 2024'!U:U,0,0) -> 164.3107374 | AI15: =_xlfn.XLOOKUP($K15,'OF Statistics 2011-Q3 2024'!$B:$B,'OF Statistics 2011-Q3 2024'!V:V,0,0) -> 134.95 | AJ15: =_xlfn.XLOOKUP($K15,'OF Statistics 2011-Q3 2024'!$B:$B,'OF Statistics 2011-Q3 2024'!W:W,0,0) -> 222 | AK15: =_xlfn.XLOOKUP($K15,'OF Statistics 2011-Q3 2024'!$B:$B,'OF Statistics 2011-Q3 2024'!X:X,0,0) -> 246.02 | AL15: =_xlfn.XLOOKUP($K15,'OF Statistics 2011-Q3 2024'!$B:$B,'OF Statistics 2011-Q3 2024'!Y:Y,0,0) -> 177.92 | AM15: =_xlfn.XLOOKUP($K15,'OF Statistics 2011-Q3 2024'!$B:$B,'OF Statistics 2011-Q3 2024'!Z:Z,0,0) -> 101.52 | AN15: =_xlfn.XLOOKUP($K15,'OF Statistics 2011-Q3 2024'!$B:$B,'OF Statistics 2011-Q3 2024'!AA:AA,0,0) -> 216.36 | AO15: =_xlfn.XLOOKUP($K15,'OF Statistics 2011-Q3 2024'!$B:$B,'OF Statistics 2011-Q3 2024'!AB:AB,0,0) -> 242.83 | AP15: =_xlfn.XLOOKUP($K15,'OF Statistics 2011-Q3 2024'!$B:$B,'OF Statistics 2011-Q3 2024'!AC:AC,0,0) -> 129.6 | AQ15: =_xlfn.XLOOKUP($K15,'OF Statistics 2011-Q3 2024'!$B:$B,'OF Statistics 2011-Q3 2024'!AD:AD,0,0) -> 155.52 | AR15: =_xlfn.XLOOKUP($K15,'OF Statistics 2011-Q3 2024'!$B:$B,'OF Statistics 2011-Q3 2024'!AE:AE,0,0) -> 225.29 | AS15: =_xlfn.XLOOKUP($K15,'OF Statistics 2011-Q3 2024'!$B:$B,'OF Statistics 2011-Q3 2024'!AF:AF,0,0) -> 242.11 | AT15: =_xlfn.XLOOKUP($K15,'OF Statistics 2011-Q3 2024'!$B:$B,'OF Statistics 2011-Q3 2024'!AG:AG,0,0) -> 87.12 | AU15: =_xlfn.XLOOKUP($K15,'OF Statistics 2011-Q3 2024'!$B:$B,'OF Statistics 2011-Q3 2024'!AH:AH,0,0) -> 97.93228498 | AV15: =_xlfn.XLOOKUP($K15,'OF Statistics 2011-Q3 2024'!$B:$B,'OF Statistics 2011-Q3 2024'!AI:AI,0,0) -> 206.8 | AW15: =_xlfn.XLOOKUP($K15,'OF Statistics 2011-Q3 2024'!$B:$B,'OF Statistics 2011-Q3 2024'!AJ:AJ,0,0) -> 244.5 | AX15: =_xlfn.XLOOKUP($K15,'OF Statistics 2011-Q3 2024'!$B:$B,'OF Statistics 2011-Q3 2024'!AK:AK,0,0) -> 178 | AY15: =_xlfn.XLOOKUP($K15,'OF Statistics 2011-Q3 2024'!$B:$B,'OF Statistics 2011-Q3 2024'!AL:AL,0,0) -> 128.1 | AZ15: =_xlfn.XLOOKUP($K15,'OF Statistics 2011-Q3 2024'!$B:$B,'OF Statistics 2011-Q3 2024'!AM:AM,0,0) -> 251 | BA15: =_xlfn.XLOOKUP($K15,'OF Statistics 2011-Q3 2024'!$B:$B,'OF Statistics 2011-Q3 2024'!AN:AN,0,0) -> 228 | BB15: =_xlfn.XLOOKUP($K15,'OF Statistics 2011-Q3 2024'!$B:$B,'OF Statistics 2011-Q3 2024'!AO:AO,0,0) -> 176.3 | BC15: =_xlfn.XLOOKUP($K15,'OF Statistics 2011-Q3 2024'!$B:$B,'OF Statistics 2011-Q3 2024'!AP:AP,0,0) -> 108.6 | BD15: =_xlfn.XLOOKUP($K15,'OF Statistics 2011-Q3 2024'!$B:$B,'OF Statistics 2011-Q3 2024'!AQ:AQ,0,0) -> 221.1 | BE15: =_xlfn.XLOOKUP($K15,'OF Statistics 2011-Q3 2024'!$B:$B,'OF Statistics 2011-Q3 2024'!AR:AR,0,0) -> 243.7 | BF15: =_xlfn.XLOOKUP($K15,'OF Statistics 2011-Q3 2024'!$B:$B,'OF Statistics 2011-Q3 2024'!AS:AS,0,0) -> 144 | BG15: =_xlfn.XLOOKUP($K15,'OF Statistics 2011-Q3 2024'!$B:$B,'OF Statistics 2011-Q3 2024'!AT:AT,0,0) -> 114 | BH15: =_xlfn.XLOOKUP($K15,'OF Statistics 2011-Q3 2024'!$B:$B,'OF Statistics 2011-Q3 2024'!AU:AU,0,0) -> 252 | BI15: =_xlfn.XLOOKUP($K15,'OF Statistics 2011-Q3 2024'!$B:$B,'OF Statistics 2011-Q3 2024'!AV:AV,0,0) -> 252 | BJ15: =_xlfn.XLOOKUP($K15,'OF Statistics 2011-Q3 2024'!$B:$B,'OF Statistics 2011-Q3 2024'!AW:AW,0,0) -> 176 | BK15: =_xlfn.XLOOKUP($K15,'OF Statistics 2011-Q3 2024'!$B:$B,'OF Statistics 2011-Q3 2024'!AX:AX,0,0) -> 166 | BL15: =_xlfn.XLOOKUP($K15,'OF Statistics 2011-Q3 2024'!$B:$B,'OF Statistics 2011-Q3 2024'!AY:AY,0,0) -> 214 | BM15: =_xlfn.XLOOKUP($K15,'OF Statistics 2011-Q3 2024'!$B:$B,'OF Statistics 2011-Q3 2024'!AZ:AZ,0,0) -> 208 | BN15: =_xlfn.XLOOKUP($K15,'OF Statistics 2011-Q3 2024'!$B:$B,'OF Statistics 2011-Q3 2024'!BA:BA,0,0) -> 187 | BO15: =_xlfn.XLOOKUP($K15,'OF Statistics 2011-Q3 2024'!$B:$B,'OF Statistics 2011-Q3 2024'!BB:BB,0,0) -> 125 | BP15: =_xlfn.XLOOKUP($K15,'OF Statistics 2011-Q3 2024'!$B:$B,'OF Statistics 2011-Q3 2024'!BC:BC,0,0) -> 215 | BQ15: =_xlfn.XLOOKUP($K15,'OF Statistics 2011-Q3 2024'!$B:$B,'OF Statistics 2011-Q3 2024'!BD:BD,0,0) -> 173 | BR15: =_xlfn.XLOOKUP($K15,'OF Statistics 2011-Q3 2024'!$B:$B,'OF Statistics 2011-Q3 2024'!BE:BE,0,0) -> 160 | BS15: =_xlfn.XLOOKUP($K15,'OF Statistics 2011-Q3 2024'!$B:$B,'OF Statistics 2011-Q3 2024'!BF:BF,0,0) -> 164 | BT15: =_xlfn.XLOOKUP($K15,'OF Statistics 2011-Q3 2024'!$B:$B,'OF Statistics 2011-Q3 2024'!BG:BG,0,0) -> 237 | BU15: =_xlfn.XLOOKUP($K15,'OF Statistics 2011-Q3 2024'!$B:$B,'OF Statistics 2011-Q3 2024'!BH:BH,0,0) -> 227 | BV15: =_xlfn.XLOOKUP($K15,'OF Statistics 2011-Q3 2024'!$B:$B,'OF Statistics 2011-Q3 2024'!BI:BI,0,0) -> 75 | BW15: =_xlfn.XLOOKUP($K15,'OF Statistics 2011-Q3 2024'!$B:$B,'OF Statistics 2011-Q3 2024'!BJ:BJ,0,0) -> 57 | BX15: =_xlfn.XLOOKUP($K15,'OF Statistics 2011-Q3 2024'!$B:$B,'OF Statistics 2011-Q3 2024'!BK:BK,0,0) -> 13 | BY15: =_xlfn.XLOOKUP($K15,'OF Statistics 2011-Q3 2024'!$B:$B,'OF Statistics 2011-Q3 2024'!BL:BL,0,0) -> 0
B16: 8 | C16: Lincs (pro-rata consolidated from February 2017) | J16: 13 | K16: Westermost Rough | L16: United Kingdom | P16: ='OF Asset Book'!G21 -> 105 | R16: =_xlfn.XLOOKUP($K16,'OF Statistics 2011-Q3 2024'!$B:$B,'OF Statistics 2011-Q3 2024'!E:E,0,0) -> 0 | S16: =_xlfn.XLOOKUP($K16,'OF Statistics 2011-Q3 2024'!$B:$B,'OF Statistics 2011-Q3 2024'!F:F,0,0) -> 418.223032 | T16: =_xlfn.XLOOKUP($K16,'OF Statistics 2011-Q3 2024'!$B:$B,'OF Statistics 2011-Q3 2024'!G:G,0,0) -> 391.51 | U16: =_xlfn.XLOOKUP($K16,'OF Statistics 2011-Q3 2024'!$B:$B,'OF Statistics 2011-Q3 2024'!H:H,0,0) -> 411.7 | V16: =_xlfn.XLOOKUP($K16,'OF Statistics 2011-Q3 2024'!$B:$B,'OF Statistics 2011-Q3 2024'!I:I,0,0) -> 386.37 | W16: =_xlfn.XLOOKUP($K16,'OF Statistics 2011-Q3 2024'!$B:$B,'OF Statistics 2011-Q3 2024'!J:J,0,0) -> 467.3 | X16: =_xlfn.XLOOKUP($K16,'OF Statistics 2011-Q3 2024'!$B:$B,'OF Statistics 2011-Q3 2024'!K:K,0,0) -> 430 | Y16: =_xlfn.XLOOKUP($K16,'OF Statistics 2011-Q3 2024'!$B:$B,'OF Statistics 2011-Q3 2024'!L:L,0,0) -> 439.8 | Z16: =_xlfn.XLOOKUP($K16,'OF Statistics 2011-Q3 2024'!$B:$B,'OF Statistics 2011-Q3 2024'!M:M,0,0) -> 452 | AA16: =_xlfn.XLOOKUP($K16,'OF Statistics 2011-Q3 2024'!$B:$B,'OF Statistics 2011-Q3 2024'!N:N,0,0) -> 421 | AB16: =_xlfn.XLOOKUP($K16,'OF Statistics 2011-Q3 2024'!$B:$B,'OF Statistics 2011-Q3 2024'!O:O,0,0) -> 277 | AC16: =_xlfn.XLOOKUP($K16,'OF Statistics 2011-Q3 2024'!$B:$B,'OF Statistics 2011-Q3 2024'!P:P,0,0) -> 23 | AD16: =_xlfn.XLOOKUP($K16,'OF Statistics 2011-Q3 2024'!$B:$B,'OF Statistics 2011-Q3 2024'!Q:Q,0,0) -> 0 | AE16: =_xlfn.XLOOKUP($K16,'OF Statistics 2011-Q3 2024'!$B:$B,'OF Statistics 2011-Q3 2024'!R:R,0,0) -> 0 | AF16: =_xlfn.XLOOKUP($K16,'OF Statistics 2011-Q3 2024'!$B:$B,'OF Statistics 2011-Q3 2024'!S:S,0,0) -> 0 | AG16: =_xlfn.XLOOKUP($K16,'OF Statistics 2011-Q3 2024'!$B:$B,'OF Statistics 2011-Q3 2024'!T:T,0,0) -> 0 | AH16: =_xlfn.XLOOKUP($K16,'OF Statistics 2011-Q3 2024'!$B:$B,'OF Statistics 2011-Q3 2024'!U:U,0,0) -> 77.12946252 | AI16: =_xlfn.XLOOKUP($K16,'OF Statistics 2011-Q3 2024'!$B:$B,'OF Statistics 2011-Q3 2024'!V:V,0,0) -> 98 | AJ16: =_xlfn.XLOOKUP($K16,'OF Statistics 2011-Q3 2024'!$B:$B,'OF Statistics 2011-Q3 2024'!W:W,0,0) -> 135 | AK16: =_xlfn.XLOOKUP($K16,'OF Statistics 2011-Q3 2024'!$B:$B,'OF Statistics 2011-Q3 2024'!X:X,0,0) -> 122.77 | AL16: =_xlfn.XLOOKUP($K16,'OF Statistics 2011-Q3 2024'!$B:$B,'OF Statistics 2011-Q3 2024'!Y:Y,0,0) -> 77.14 | AM16: =_xlfn.XLOOKUP($K16,'OF Statistics 2011-Q3 2024'!$B:$B,'OF Statistics 2011-Q3 2024'!Z:Z,0,0) -> 64.58 | AN16: =_xlfn.XLOOKUP($K16,'OF Statistics 2011-Q3 2024'!$B:$B,'OF Statistics 2011-Q3 2024'!AA:AA,0,0) -> 127.03 | AO16: =_xlfn.XLOOKUP($K16,'OF Statistics 2011-Q3 2024'!$B:$B,'OF Statistics 2011-Q3 2024'!AB:AB,0,0) -> 127.01 | AP16: =_xlfn.XLOOKUP($K16,'OF Statistics 2011-Q3 2024'!$B:$B,'OF Statistics 2011-Q3 2024'!AC:AC,0,0) -> 67.06 | AQ16: =_xlfn.XLOOKUP($K16,'OF Statistics 2011-Q3 2024'!$B:$B,'OF Statistics 2011-Q3 2024'!AD:AD,0,0) -> 83.82 | AR16: =_xlfn.XLOOKUP($K16,'OF Statistics 2011-Q3 2024'!$B:$B,'OF Statistics 2011-Q3 2024'!AE:AE,0,0) -> 133.81 | AS16: =_xlfn.XLOOKUP($K16,'OF Statistics 2011-Q3 2024'!$B:$B,'OF Statistics 2011-Q3 2024'!AF:AF,0,0) -> 128.95 | AT16: =_xlfn.XLOOKUP($K16,'OF Statistics 2011-Q3 2024'!$B:$B,'OF Statistics 2011-Q3 2024'!AG:AG,0,0) -> 67.74 | AU16: =_xlfn.XLOOKUP($K16,'OF Statistics 2011-Q3 2024'!$B:$B,'OF Statistics 2011-Q3 2024'!AH:AH,0,0) -> 66.28484588 | AV16: =_xlfn.XLOOKUP($K16,'OF Statistics 2011-Q3 2024'!$B:$B,'OF Statistics 2011-Q3 2024'!AI:AI,0,0) -> 123.4 | AW16: =_xlfn.XLOOKUP($K16,'OF Statistics 2011-Q3 2024'!$B:$B,'OF Statistics 2011-Q3 2024'!AJ:AJ,0,0) -> 129.4 | AX16: =_xlfn.XLOOKUP($K16,'OF Statistics 2011-Q3 2024'!$B:$B,'OF Statistics 2011-Q3 2024'!AK:AK,0,0) -> 101.1 | AY16: =_xlfn.XLOOKUP($K16,'OF Statistics 2011-Q3 2024'!$B:$B,'OF Statistics 2011-Q3 2024'!AL:AL,0,0) -> 84.2 | AZ16: =_xlfn.XLOOKUP($K16,'OF Statistics 2011-Q3 2024'!$B:$B,'OF Statistics 2011-Q3 2024'!AM:AM,0,0) -> 152 | BA16: =_xlfn.XLOOKUP($K16,'OF Statistics 2011-Q3 2024'!$B:$B,'OF Statistics 2011-Q3 2024'!AN:AN,0,0) -> 130 | BB16: =_xlfn.XLOOKUP($K16,'OF Statistics 2011-Q3 2024'!$B:$B,'OF Statistics 2011-Q3 2024'!AO:AO,0,0) -> 96.2 | BC16: =_xlfn.XLOOKUP($K16,'OF Statistics 2011-Q3 2024'!$B:$B,'OF Statistics 2011-Q3 2024'!AP:AP,0,0) -> 72.2 | BD16: =_xlfn.XLOOKUP($K16,'OF Statistics 2011-Q3 2024'!$B:$B,'OF Statistics 2011-Q3 2024'!AQ:AQ,0,0) -> 132.3 | BE16: =_xlfn.XLOOKUP($K16,'OF Statistics 2011-Q3 2024'!$B:$B,'OF Statistics 2011-Q3 2024'!AR:AR,0,0) -> 140.1 | BF16: =_xlfn.XLOOKUP($K16,'OF Statistics 2011-Q3 2024'!$B:$B,'OF Statistics 2011-Q3 2024'!AS:AS,0,0) -> 74.7 | BG16: =_xlfn.XLOOKUP($K16,'OF Statistics 2011-Q3 2024'!$B:$B,'OF Statistics 2011-Q3 2024'!AT:AT,0,0) -> 82 | BH16: =_xlfn.XLOOKUP($K16,'OF Statistics 2011-Q3 2024'!$B:$B,'OF Statistics 2011-Q3 2024'!AU:AU,0,0) -> 143 | BI16: =_xlfn.XLOOKUP($K16,'OF Statistics 2011-Q3 2024'!$B:$B,'OF Statistics 2011-Q3 2024'!AV:AV,0,0) -> 143 | BJ16: =_xlfn.XLOOKUP($K16,'OF Statistics 2011-Q3 2024'!$B:$B,'OF Statistics 2011-Q3 2024'!AW:AW,0,0) -> 90 | BK16: =_xlfn.XLOOKUP($K16,'OF Statistics 2011-Q3 2024'!$B:$B,'OF Statistics 2011-Q3 2024'!AX:AX,0,0) -> 101 | BL16: =_xlfn.XLOOKUP($K16,'OF Statistics 2011-Q3 2024'!$B:$B,'OF Statistics 2011-Q3 2024'!AY:AY,0,0) -> 118 | BM16: =_xlfn.XLOOKUP($K16,'OF Statistics 2011-Q3 2024'!$B:$B,'OF Statistics 2011-Q3 2024'!AZ:AZ,0,0) -> 116 | BN16: =_xlfn.XLOOKUP($K16,'OF Statistics 2011-Q3 2024'!$B:$B,'OF Statistics 2011-Q3 2024'!BA:BA,0,0) -> 85 | BO16: =_xlfn.XLOOKUP($K16,'OF Statistics 2011-Q3 2024'!$B:$B,'OF Statistics 2011-Q3 2024'!BB:BB,0,0) -> 91 | BP16: =_xlfn.XLOOKUP($K16,'OF Statistics 2011-Q3 2024'!$B:$B,'OF Statistics 2011-Q3 2024'!BC:BC,0,0) -> 129 | BQ16: =_xlfn.XLOOKUP($K16,'OF Statistics 2011-Q3 2024'!$B:$B,'OF Statistics 2011-Q3 2024'!BD:BD,0,0) -> 112 | BR16: =_xlfn.XLOOKUP($K16,'OF Statistics 2011-Q3 2024'!$B:$B,'OF Statistics 2011-Q3 2024'!BE:BE,0,0) -> 69 | BS16: =_xlfn.XLOOKUP($K16,'OF Statistics 2011-Q3 2024'!$B:$B,'OF Statistics 2011-Q3 2024'!BF:BF,0,0) -> 69 | BT16: =_xlfn.XLOOKUP($K16,'OF Statistics 2011-Q3 2024'!$B:$B,'OF Statistics 2011-Q3 2024'!BG:BG,0,0) -> 27 | BU16: =_xlfn.XLOOKUP($K16,'OF Statistics 2011-Q3 2024'!$B:$B,'OF Statistics 2011-Q3 2024'!BH:BH,0,0) -> 23 | BV16: =_xlfn.XLOOKUP($K16,'OF Statistics 2011-Q3 2024'!$B:$B,'OF Statistics 2011-Q3 2024'!BI:BI,0,0) -> 0 | BW16: =_xlfn.XLOOKUP($K16,'OF Statistics 2011-Q3 2024'!$B:$B,'OF Statistics 2011-Q3 2024'!BJ:BJ,0,0) -> 0 | BX16: =_xlfn.XLOOKUP($K16,'OF Statistics 2011-Q3 2024'!$B:$B,'OF Statistics 2011-Q3 2024'!BK:BK,0,0) -> 0 | BY16: =_xlfn.XLOOKUP($K16,'OF Statistics 2011-Q3 2024'!$B:$B,'OF Statistics 2011-Q3 2024'!BL:BL,0,0) -> 0
B17: 9 | C17: London Array 1 | J17: 14 | K17: Race Bank | L17: United Kingdom | P17: ='OF Asset Book'!G27 -> 273 | R17: =_xlfn.XLOOKUP($K17,'OF Statistics 2011-Q3 2024'!$B:$B,'OF Statistics 2011-Q3 2024'!E:E,0,0) -> 0 | S17: =_xlfn.XLOOKUP($K17,'OF Statistics 2011-Q3 2024'!$B:$B,'OF Statistics 2011-Q3 2024'!F:F,0,0) -> 1016.102729 | T17: =_xlfn.XLOOKUP($K17,'OF Statistics 2011-Q3 2024'!$B:$B,'OF Statistics 2011-Q3 2024'!G:G,0,0) -> 1093.87 | U17: =_xlfn.XLOOKUP($K17,'OF Statistics 2011-Q3 2024'!$B:$B,'OF Statistics 2011-Q3 2024'!H:H,0,0) -> 1074.12 | V17: =_xlfn.XLOOKUP($K17,'OF Statistics 2011-Q3 2024'!$B:$B,'OF Statistics 2011-Q3 2024'!I:I,0,0) -> 1018.75 | W17: =_xlfn.XLOOKUP($K17,'OF Statistics 2011-Q3 2024'!$B:$B,'OF Statistics 2011-Q3 2024'!J:J,0,0) -> 1195.2 | X17: =_xlfn.XLOOKUP($K17,'OF Statistics 2011-Q3 2024'!$B:$B,'OF Statistics 2011-Q3 2024'!K:K,0,0) -> 1054 | Y17: =_xlfn.XLOOKUP($K17,'OF Statistics 2011-Q3 2024'!$B:$B,'OF Statistics 2011-Q3 2024'!L:L,0,0) -> 1089.2 | Z17: =_xlfn.XLOOKUP($K17,'OF Statistics 2011-Q3 2024'!$B:$B,'OF Statistics 2011-Q3 2024'!M:M,0,0) -> 416 | AA17: =_xlfn.XLOOKUP($K17,'OF Statistics 2011-Q3 2024'!$B:$B,'OF Statistics 2011-Q3 2024'!N:N,0,0) -> 0 | AB17: =_xlfn.XLOOKUP($K17,'OF Statistics 2011-Q3 2024'!$B:$B,'OF Statistics 2011-Q3 2024'!O:O,0,0) -> 0 | AC17: =_xlfn.XLOOKUP($K17,'OF Statistics 2011-Q3 2024'!$B:$B,'OF Statistics 2011-Q3 2024'!P:P,0,0) -> 0 | AD17: =_xlfn.XLOOKUP($K17,'OF Statistics 2011-Q3 2024'!$B:$B,'OF Statistics 2011-Q3 2024'!Q:Q,0,0) -> 0 | AE17: =_xlfn.XLOOKUP($K17,'OF Statistics 2011-Q3 2024'!$B:$B,'OF Statistics 2011-Q3 2024'!R:R,0,0) -> 0 | AF17: =_xlfn.XLOOKUP($K17,'OF Statistics 2011-Q3 2024'!$B:$B,'OF Statistics 2011-Q3 2024'!S:S,0,0) -> 0 | AG17: =_xlfn.XLOOKUP($K17,'OF Statistics 2011-Q3 2024'!$B:$B,'OF Statistics 2011-Q3 2024'!T:T,0,0) -> 0 | AH17: =_xlfn.XLOOKUP($K17,'OF Statistics 2011-Q3 2024'!$B:$B,'OF Statistics 2011-Q3 2024'!U:U,0,0) -> 188.412761 | AI17: =_xlfn.XLOOKUP($K17,'OF Statistics 2011-Q3 2024'!$B:$B,'OF Statistics 2011-Q3 2024'!V:V,0,0) -> 212.64 | AJ17: =_xlfn.XLOOKUP($K17,'OF Statistics 2011-Q3 2024'!$B:$B,'OF Statistics 2011-Q3 2024'!W:W,0,0) -> 302 | AK17: =_xlfn.XLOOKUP($K17,'OF Statistics 2011-Q3 2024'!$B:$B,'OF Statistics 2011-Q3 2024'!X:X,0,0) -> 353.34 | AL17: =_xlfn.XLOOKUP($K17,'OF Statistics 2011-Q3 2024'!$B:$B,'OF Statistics 2011-Q3 2024'!Y:Y,0,0) -> 219.57 | AM17: =_xlfn.XLOOKUP($K17,'OF Statistics 2011-Q3 2024'!$B:$B,'OF Statistics 2011-Q3 2024'!Z:Z,0,0) -> 177.85 | AN17: =_xlfn.XLOOKUP($K17,'OF Statistics 2011-Q3 2024'!$B:$B,'OF Statistics 2011-Q3 2024'!AA:AA,0,0) -> 343.12 | AO17: =_xlfn.XLOOKUP($K17,'OF Statistics 2011-Q3 2024'!$B:$B,'OF Statistics 2011-Q3 2024'!AB:AB,0,0) -> 347.56 | AP17: =_xlfn.XLOOKUP($K17,'OF Statistics 2011-Q3 2024'!$B:$B,'OF Statistics 2011-Q3 2024'!AC:AC,0,0) -> 166.62 | AQ17: =_xlfn.XLOOKUP($K17,'OF Statistics 2011-Q3 2024'!$B:$B,'OF Statistics 2011-Q3 2024'!AD:AD,0,0) -> 209.14 | AR17: =_xlfn.XLOOKUP($K17,'OF Statistics 2011-Q3 2024'!$B:$B,'OF Statistics 2011-Q3 2024'!AE:AE,0,0) -> 350.81 | AS17: =_xlfn.XLOOKUP($K17,'OF Statistics 2011-Q3 2024'!$B:$B,'OF Statistics 2011-Q3 2024'!AF:AF,0,0) -> 353 | AT17: =_xlfn.XLOOKUP($K17,'OF Statistics 2011-Q3 2024'!$B:$B,'OF Statistics 2011-Q3 2024'!AG:AG,0,0) -> 172.97 | AU17: =_xlfn.XLOOKUP($K17,'OF Statistics 2011-Q3 2024'!$B:$B,'OF Statistics 2011-Q3 2024'!AH:AH,0,0) -> 166.165246 | AV17: =_xlfn.XLOOKUP($K17,'OF Statistics 2011-Q3 2024'!$B:$B,'OF Statistics 2011-Q3 2024'!AI:AI,0,0) -> 326.6 | AW17: =_xlfn.XLOOKUP($K17,'OF Statistics 2011-Q3 2024'!$B:$B,'OF Statistics 2011-Q3 2024'!AJ:AJ,0,0) -> 339.4 | AX17: =_xlfn.XLOOKUP($K17,'OF Statistics 2011-Q3 2024'!$B:$B,'OF Statistics 2011-Q3 2024'!AK:AK,0,0) -> 229.2 | AY17: =_xlfn.XLOOKUP($K17,'OF Statistics 2011-Q3 2024'!$B:$B,'OF Statistics 2011-Q3 2024'!AL:AL,0,0) -> 212.1 | AZ17: =_xlfn.XLOOKUP($K17,'OF Statistics 2011-Q3 2024'!$B:$B,'OF Statistics 2011-Q3 2024'!AM:AM,0,0) -> 414 | BA17: =_xlfn.XLOOKUP($K17,'OF Statistics 2011-Q3 2024'!$B:$B,'OF Statistics 2011-Q3 2024'!AN:AN,0,0) -> 327 | BB17: =_xlfn.XLOOKUP($K17,'OF Statistics 2011-Q3 2024'!$B:$B,'OF Statistics 2011-Q3 2024'!AO:AO,0,0) -> 234 | BC17: =_xlfn.XLOOKUP($K17,'OF Statistics 2011-Q3 2024'!$B:$B,'OF Statistics 2011-Q3 2024'!AP:AP,0,0) -> 174 | BD17: =_xlfn.XLOOKUP($K17,'OF Statistics 2011-Q3 2024'!$B:$B,'OF Statistics 2011-Q3 2024'!AQ:AQ,0,0) -> 318.5 | BE17: =_xlfn.XLOOKUP($K17,'OF Statistics 2011-Q3 2024'!$B:$B,'OF Statistics 2011-Q3 2024'!AR:AR,0,0) -> 324.8 | BF17: =_xlfn.XLOOKUP($K17,'OF Statistics 2011-Q3 2024'!$B:$B,'OF Statistics 2011-Q3 2024'!AS:AS,0,0) -> 191.1 | BG17: =_xlfn.XLOOKUP($K17,'OF Statistics 2011-Q3 2024'!$B:$B,'OF Statistics 2011-Q3 2024'!AT:AT,0,0) -> 207 | BH17: =_xlfn.XLOOKUP($K17,'OF Statistics 2011-Q3 2024'!$B:$B,'OF Statistics 2011-Q3 2024'!AU:AU,0,0) -> 366 | BI17: =_xlfn.XLOOKUP($K17,'OF Statistics 2011-Q3 2024'!$B:$B,'OF Statistics 2011-Q3 2024'!AV:AV,0,0) -> 314 | BJ17: =_xlfn.XLOOKUP($K17,'OF Statistics 2011-Q3 2024'!$B:$B,'OF Statistics 2011-Q3 2024'!AW:AW,0,0) -> 92 | BK17: =_xlfn.XLOOKUP($K17,'OF Statistics 2011-Q3 2024'!$B:$B,'OF Statistics 2011-Q3 2024'!AX:AX,0,0) -> 10 | BL17: =_xlfn.XLOOKUP($K17,'OF Statistics 2011-Q3 2024'!$B:$B,'OF Statistics 2011-Q3 2024'!AY:AY,0,0) -> 0 | BM17: =_xlfn.XLOOKUP($K17,'OF Statistics 2011-Q3 2024'!$B:$B,'OF Statistics 2011-Q3 2024'!AZ:AZ,0,0) -> 0 | BN17: =_xlfn.XLOOKUP($K17,'OF Statistics 2011-Q3 2024'!$B:$B,'OF Statistics 2011-Q3 2024'!BA:BA,0,0) -> 0 | BO17: =_xlfn.XLOOKUP($K17,'OF Statistics 2011-Q3 2024'!$B:$B,'OF Statistics 2011-Q3 2024'!BB:BB,0,0) -> 0 | BP17: =_xlfn.XLOOKUP($K17,'OF Statistics 2011-Q3 2024'!$B:$B,'OF Statistics 2011-Q3 2024'!BC:BC,0,0) -> 0 | BQ17: =_xlfn.XLOOKUP($K17,'OF Statistics 2011-Q3 2024'!$B:$B,'OF Statistics 2011-Q3 2024'!BD:BD,0,0) -> 0 | BR17: =_xlfn.XLOOKUP($K17,'OF Statistics 2011-Q3 2024'!$B:$B,'OF Statistics 2011-Q3 2024'!BE:BE,0,0) -> 0 | BS17: =_xlfn.XLOOKUP($K17,'OF Statistics 2011-Q3 2024'!$B:$B,'OF Statistics 2011-Q3 2024'!BF:BF,0,0) -> 0 | BT17: =_xlfn.XLOOKUP($K17,'OF Statistics 2011-Q3 2024'!$B:$B,'OF Statistics 2011-Q3 2024'!BG:BG,0,0) -> 0 | BU17: =_xlfn.XLOOKUP($K17,'OF Statistics 2011-Q3 2024'!$B:$B,'OF Statistics 2011-Q3 2024'!BH:BH,0,0) -> 0 | BV17: =_xlfn.XLOOKUP($K17,'OF Statistics 2011-Q3 2024'!$B:$B,'OF Statistics 2011-Q3 2024'!BI:BI,0,0) -> 0 | BW17: =_xlfn.XLOOKUP($K17,'OF Statistics 2011-Q3 2024'!$B:$B,'OF Statistics 2011-Q3 2024'!BJ:BJ,0,0) -> 0 | BX17: =_xlfn.XLOOKUP($K17,'OF Statistics 2011-Q3 2024'!$B:$B,'OF Statistics 2011-Q3 2024'!BK:BK,0,0) -> 0 | BY17: =_xlfn.XLOOKUP($K17,'OF Statistics 2011-Q3 2024'!$B:$B,'OF Statistics 2011-Q3 2024'!BL:BL,0,0) -> 0
B18: 10 | C18: Walney 1&2 | J18: 15 | K18: Hornsea 1 | L18: United Kingdom | P18: ='OF Asset Book'!G29 -> 609 | R18: =_xlfn.XLOOKUP($K18,'OF Statistics 2011-Q3 2024'!$B:$B,'OF Statistics 2011-Q3 2024'!E:E,0,0) -> 0 | S18: =_xlfn.XLOOKUP($K18,'OF Statistics 2011-Q3 2024'!$B:$B,'OF Statistics 2011-Q3 2024'!F:F,0,0) -> 2169.069504 | T18: =_xlfn.XLOOKUP($K18,'OF Statistics 2011-Q3 2024'!$B:$B,'OF Statistics 2011-Q3 2024'!G:G,0,0) -> 2435.63 | U18: =_xlfn.XLOOKUP($K18,'OF Statistics 2011-Q3 2024'!$B:$B,'OF Statistics 2011-Q3 2024'!H:H,0,0) -> 2518.67 | V18: =_xlfn.XLOOKUP($K18,'OF Statistics 2011-Q3 2024'!$B:$B,'OF Statistics 2011-Q3 2024'!I:I,0,0) -> 2305.78 | W18: =_xlfn.XLOOKUP($K18,'OF Statistics 2011-Q3 2024'!$B:$B,'OF Statistics 2011-Q3 2024'!J:J,0,0) -> 2568.8 | X18: =_xlfn.XLOOKUP($K18,'OF Statistics 2011-Q3 2024'!$B:$B,'OF Statistics 2011-Q3 2024'!K:K,0,0) -> 1150 | Y18: =_xlfn.XLOOKUP($K18,'OF Statistics 2011-Q3 2024'!$B:$B,'OF Statistics 2011-Q3 2024'!L:L,0,0) -> 0 | Z18: =_xlfn.XLOOKUP($K18,'OF Statistics 2011-Q3 2024'!$B:$B,'OF Statistics 2011-Q3 2024'!M:M,0,0) -> 0 | AA18: =_xlfn.XLOOKUP($K18,'OF Statistics 2011-Q3 2024'!$B:$B,'OF Statistics 2011-Q3 2024'!N:N,0,0) -> 0 | AB18: =_xlfn.XLOOKUP($K18,'OF Statistics 2011-Q3 2024'!$B:$B,'OF Statistics 2011-Q3 2024'!O:O,0,0) -> 0 | AC18: =_xlfn.XLOOKUP($K18,'OF Statistics 2011-Q3 2024'!$B:$B,'OF Statistics 2011-Q3 2024'!P:P,0,0) -> 0 | AD18: =_xlfn.XLOOKUP($K18,'OF Statistics 2011-Q3 2024'!$B:$B,'OF Statistics 2011-Q3 2024'!Q:Q,0,0) -> 0 | AE18: =_xlfn.XLOOKUP($K18,'OF Statistics 2011-Q3 2024'!$B:$B,'OF Statistics 2011-Q3 2024'!R:R,0,0) -> 0 | AF18: =_xlfn.XLOOKUP($K18,'OF Statistics 2011-Q3 2024'!$B:$B,'OF Statistics 2011-Q3 2024'!S:S,0,0) -> 0 | AG18: =_xlfn.XLOOKUP($K18,'OF Statistics 2011-Q3 2024'!$B:$B,'OF Statistics 2011-Q3 2024'!T:T,0,0) -> 0 | AH18: =_xlfn.XLOOKUP($K18,'OF Statistics 2011-Q3 2024'!$B:$B,'OF Statistics 2011-Q3 2024'!U:U,0,0) -> 501.2962586 | AI18: =_xlfn.XLOOKUP($K18,'OF Statistics 2011-Q3 2024'!$B:$B,'OF Statistics 2011-Q3 2024'!V:V,0,0) -> 414.86 | AJ18: =_xlfn.XLOOKUP($K18,'OF Statistics 2011-Q3 2024'!$B:$B,'OF Statistics 2011-Q3 2024'!W:W,0,0) -> 534 | AK18: =_xlfn.XLOOKUP($K18,'OF Statistics 2011-Q3 2024'!$B:$B,'OF Statistics 2011-Q3 2024'!X:X,0,0) -> 791.01 | AL18: =_xlfn.XLOOKUP($K18,'OF Statistics 2011-Q3 2024'!$B:$B,'OF Statistics 2011-Q3 2024'!Y:Y,0,0) -> 465.48 | AM18: =_xlfn.XLOOKUP($K18,'OF Statistics 2011-Q3 2024'!$B:$B,'OF Statistics 2011-Q3 2024'!Z:Z,0,0) -> 428.73 | AN18: =_xlfn.XLOOKUP($K18,'OF Statistics 2011-Q3 2024'!$B:$B,'OF Statistics 2011-Q3 2024'!AA:AA,0,0) -> 750.41 | AO18: =_xlfn.XLOOKUP($K18,'OF Statistics 2011-Q3 2024'!$B:$B,'OF Statistics 2011-Q3 2024'!AB:AB,0,0) -> 805.02 | AP18: =_xlfn.XLOOKUP($K18,'OF Statistics 2011-Q3 2024'!$B:$B,'OF Statistics 2011-Q3 2024'!AC:AC,0,0) -> 423.53 | AQ18: =_xlfn.XLOOKUP($K18,'OF Statistics 2011-Q3 2024'!$B:$B,'OF Statistics 2011-Q3 2024'!AD:AD,0,0) -> 510.96 | AR18: =_xlfn.XLOOKUP($K18,'OF Statistics 2011-Q3 2024'!$B:$B,'OF Statistics 2011-Q3 2024'!AE:AE,0,0) -> 779.14 | AS18: =_xlfn.XLOOKUP($K18,'OF Statistics 2011-Q3 2024'!$B:$B,'OF Statistics 2011-Q3 2024'!AF:AF,0,0) -> 786.76 | AT18: =_xlfn.XLOOKUP($K18,'OF Statistics 2011-Q3 2024'!$B:$B,'OF Statistics 2011-Q3 2024'!AG:AG,0,0) -> 411.72 | AU18: =_xlfn.XLOOKUP($K18,'OF Statistics 2011-Q3 2024'!$B:$B,'OF Statistics 2011-Q3 2024'!AH:AH,0,0) -> 418.0644947 | AV18: =_xlfn.XLOOKUP($K18,'OF Statistics 2011-Q3 2024'!$B:$B,'OF Statistics 2011-Q3 2024'!AI:AI,0,0) -> 689.2 | AW18: =_xlfn.XLOOKUP($K18,'OF Statistics 2011-Q3 2024'!$B:$B,'OF Statistics 2011-Q3 2024'!AJ:AJ,0,0) -> 758.6 | AX18: =_xlfn.XLOOKUP($K18,'OF Statistics 2011-Q3 2024'!$B:$B,'OF Statistics 2011-Q3 2024'!AK:AK,0,0) -> 546.7 | AY18: =_xlfn.XLOOKUP($K18,'OF Statistics 2011-Q3 2024'!$B:$B,'OF Statistics 2011-Q3 2024'!AL:AL,0,0) -> 470.1 | AZ18: =_xlfn.XLOOKUP($K18,'OF Statistics 2011-Q3 2024'!$B:$B,'OF Statistics 2011-Q3 2024'!AM:AM,0,0) -> 793 | BA18: =_xlfn.XLOOKUP($K18,'OF Statistics 2011-Q3 2024'!$B:$B,'OF Statistics 2011-Q3 2024'!AN:AN,0,0) -> 575 | BB18: =_xlfn.XLOOKUP($K18,'OF Statistics 2011-Q3 2024'!$B:$B,'OF Statistics 2011-Q3 2024'!AO:AO,0,0) -> 386.4 | BC18: =_xlfn.XLOOKUP($K18,'OF Statistics 2011-Q3 2024'!$B:$B,'OF Statistics 2011-Q3 2024'!AP:AP,0,0) -> 167.2 | BD18: =_xlfn.XLOOKUP($K18,'OF Statistics 2011-Q3 2024'!$B:$B,'OF Statistics 2011-Q3 2024'!AQ:AQ,0,0) -> 21.2 | BE18: =_xlfn.XLOOKUP($K18,'OF Statistics 2011-Q3 2024'!$B:$B,'OF Statistics 2011-Q3 2024'!AR:AR,0,0) -> 0 | BF18: =_xlfn.XLOOKUP($K18,'OF Statistics 2011-Q3 2024'!$B:$B,'OF Statistics 2011-Q3 2024'!AS:AS,0,0) -> 0 | BG18: =_xlfn.XLOOKUP($K18,'OF Statistics 2011-Q3 2024'!$B:$B,'OF Statistics 2011-Q3 2024'!AT:AT,0,0) -> 0 | BH18: =_xlfn.XLOOKUP($K18,'OF Statistics 2011-Q3 2024'!$B:$B,'OF Statistics 2011-Q3 2024'!AU:AU,0,0) -> 0 | BI18: =_xlfn.XLOOKUP($K18,'OF Statistics 2011-Q3 2024'!$B:$B,'OF Statistics 2011-Q3 2024'!AV:AV,0,0) -> 0 | BJ18: =_xlfn.XLOOKUP($K18,'OF Statistics 2011-Q3 2024'!$B:$B,'OF Statistics 2011-Q3 2024'!AW:AW,0,0) -> 0 | BK18: =_xlfn.XLOOKUP($K18,'OF Statistics 2011-Q3 2024'!$B:$B,'OF Statistics 2011-Q3 2024'!AX:AX,0,0) -> 0 | BL18: =_xlfn.XLOOKUP($K18,'OF Statistics 2011-Q3 2024'!$B:$B,'OF Statistics 2011-Q3 2024'!AY:AY,0,0) -> 0 | BM18: =_xlfn.XLOOKUP($K18,'OF Statistics 2011-Q3 2024'!$B:$B,'OF Statistics 2011-Q3 2024'!AZ:AZ,0,0) -> 0 | BN18: =_xlfn.XLOOKUP($K18,'OF Statistics 2011-Q3 2024'!$B:$B,'OF Statistics 2011-Q3 2024'!BA:BA,0,0) -> 0 | BO18: =_xlfn.XLOOKUP($K18,'OF Statistics 2011-Q3 2024'!$B:$B,'OF Statistics 2011-Q3 2024'!BB:BB,0,0) -> 0 | BP18: =_xlfn.XLOOKUP($K18,'OF Statistics 2011-Q3 2024'!$B:$B,'OF Statistics 2011-Q3 2024'!BC:BC,0,0) -> 0 | BQ18: =_xlfn.XLOOKUP($K18,'OF Statistics 2011-Q3 2024'!$B:$B,'OF Statistics 2011-Q3 2024'!BD:BD,0,0) -> 0 | BR18: =_xlfn.XLOOKUP($K18,'OF Statistics 2011-Q3 2024'!$B:$B,'OF Statistics 2011-Q3 2024'!BE:BE,0,0) -> 0 | BS18: =_xlfn.XLOOKUP($K18,'OF Statistics 2011-Q3 2024'!$B:$B,'OF Statistics 2011-Q3 2024'!BF:BF,0,0) -> 0 | BT18: =_xlfn.XLOOKUP($K18,'OF Statistics 2011-Q3 2024'!$B:$B,'OF Statistics 2011-Q3 2024'!BG:BG,0,0) -> 0 | BU18: =_xlfn.XLOOKUP($K18,'OF Statistics 2011-Q3 2024'!$B:$B,'OF Statistics 2011-Q3 2024'!BH:BH,0,0) -> 0 | BV18: =_xlfn.XLOOKUP($K18,'OF Statistics 2011-Q3 2024'!$B:$B,'OF Statistics 2011-Q3 2024'!BI:BI,0,0) -> 0 | BW18: =_xlfn.XLOOKUP($K18,'OF Statistics 2011-Q3 2024'!$B:$B,'OF Statistics 2011-Q3 2024'!BJ:BJ,0,0) -> 0 | BX18: =_xlfn.XLOOKUP($K18,'OF Statistics 2011-Q3 2024'!$B:$B,'OF Statistics 2011-Q3 2024'!BK:BK,0,0) -> 0 | BY18: =_xlfn.XLOOKUP($K18,'OF Statistics 2011-Q3 2024'!$B:$B,'OF Statistics 2011-Q3 2024'!BL:BL,0,0) -> 0
B19: 11 | C19: Walney 3&4 | J19: 16 | K19: Hornsea 2 | L19: United Kingdom | P19: ='OF Asset Book'!G30 -> 660 | R19: =_xlfn.XLOOKUP($K19,'OF Statistics 2011-Q3 2024'!$B:$B,'OF Statistics 2011-Q3 2024'!E:E,0,0) -> 0 | S19: =_xlfn.XLOOKUP($K19,'OF Statistics 2011-Q3 2024'!$B:$B,'OF Statistics 2011-Q3 2024'!F:F,0,0) -> 2647.419342 | T19: =_xlfn.XLOOKUP($K19,'OF Statistics 2011-Q3 2024'!$B:$B,'OF Statistics 2011-Q3 2024'!G:G,0,0) -> 2501.55 | U19: =_xlfn.XLOOKUP($K19,'OF Statistics 2011-Q3 2024'!$B:$B,'OF Statistics 2011-Q3 2024'!H:H,0,0) -> 2303.92 | V19: =_xlfn.XLOOKUP($K19,'OF Statistics 2011-Q3 2024'!$B:$B,'OF Statistics 2011-Q3 2024'!I:I,0,0) -> -1.15 | W19: =_xlfn.XLOOKUP($K19,'OF Statistics 2011-Q3 2024'!$B:$B,'OF Statistics 2011-Q3 2024'!J:J,0,0) -> 0 | X19: =_xlfn.XLOOKUP($K19,'OF Statistics 2011-Q3 2024'!$B:$B,'OF Statistics 2011-Q3 2024'!K:K,0,0) -> 0 | Y19: =_xlfn.XLOOKUP($K19,'OF Statistics 2011-Q3 2024'!$B:$B,'OF Statistics 2011-Q3 2024'!L:L,0,0) -> 0 | Z19: =_xlfn.XLOOKUP($K19,'OF Statistics 2011-Q3 2024'!$B:$B,'OF Statistics 2011-Q3 2024'!M:M,0,0) -> 0 | AA19: =_xlfn.XLOOKUP($K19,'OF Statistics 2011-Q3 2024'!$B:$B,'OF Statistics 2011-Q3 2024'!N:N,0,0) -> 0 | AB19: =_xlfn.XLOOKUP($K19,'OF Statistics 2011-Q3 2024'!$B:$B,'OF Statistics 2011-Q3 2024'!O:O,0,0) -> 0 | AC19: =_xlfn.XLOOKUP($K19,'OF Statistics 2011-Q3 2024'!$B:$B,'OF Statistics 2011-Q3 2024'!P:P,0,0) -> 0 | AD19: =_xlfn.XLOOKUP($K19,'OF Statistics 2011-Q3 2024'!$B:$B,'OF Statistics 2011-Q3 2024'!Q:Q,0,0) -> 0 | AE19: =_xlfn.XLOOKUP($K19,'OF Statistics 2011-Q3 2024'!$B:$B,'OF Statistics 2011-Q3 2024'!R:R,0,0) -> 0 | AF19: =_xlfn.XLOOKUP($K19,'OF Statistics 2011-Q3 2024'!$B:$B,'OF Statistics 2011-Q3 2024'!S:S,0,0) -> 0 | AG19: =_xlfn.XLOOKUP($K19,'OF Statistics 2011-Q3 2024'!$B:$B,'OF Statistics 2011-Q3 2024'!T:T,0,0) -> 0 | AH19: =_xlfn.XLOOKUP($K19,'OF Statistics 2011-Q3 2024'!$B:$B,'OF Statistics 2011-Q3 2024'!U:U,0,0) -> 463.106477 | AI19: =_xlfn.XLOOKUP($K19,'OF Statistics 2011-Q3 2024'!$B:$B,'OF Statistics 2011-Q3 2024'!V:V,0,0) -> 472.89 | AJ19: =_xlfn.XLOOKUP($K19,'OF Statistics 2011-Q3 2024'!$B:$B,'OF Statistics 2011-Q3 2024'!W:W,0,0) -> 914 | AK19: =_xlfn.XLOOKUP($K19,'OF Statistics 2011-Q3 2024'!$B:$B,'OF Statistics 2011-Q3 2024'!X:X,0,0) -> 845.79 | AL19: =_xlfn.XLOOKUP($K19,'OF Statistics 2011-Q3 2024'!$B:$B,'OF Statistics 2011-Q3 2024'!Y:Y,0,0) -> 513 | AM19: =_xlfn.XLOOKUP($K19,'OF Statistics 2011-Q3 2024'!$B:$B,'OF Statistics 2011-Q3 2024'!Z:Z,0,0) -> 354.15 | AN19: =_xlfn.XLOOKUP($K19,'OF Statistics 2011-Q3 2024'!$B:$B,'OF Statistics 2011-Q3 2024'!AA:AA,0,0) -> 788.61 | AO19: =_xlfn.XLOOKUP($K19,'OF Statistics 2011-Q3 2024'!$B:$B,'OF Statistics 2011-Q3 2024'!AB:AB,0,0) -> 839.46 | AP19: =_xlfn.XLOOKUP($K19,'OF Statistics 2011-Q3 2024'!$B:$B,'OF Statistics 2011-Q3 2024'!AC:AC,0,0) -> 774.15 | AQ19: =_xlfn.XLOOKUP($K19,'OF Statistics 2011-Q3 2024'!$B:$B,'OF Statistics 2011-Q3 2024'!AD:AD,0,0) -> 522.41 | AR19: =_xlfn.XLOOKUP($K19,'OF Statistics 2011-Q3 2024'!$B:$B,'OF Statistics 2011-Q3 2024'!AE:AE,0,0) -> 167.9 | AS19: =_xlfn.XLOOKUP($K19,'OF Statistics 2011-Q3 2024'!$B:$B,'OF Statistics 2011-Q3 2024'!AF:AF,0,0) -> -1.15 | AT19: =_xlfn.XLOOKUP($K19,'OF Statistics 2011-Q3 2024'!$B:$B,'OF Statistics 2011-Q3 2024'!AG:AG,0,0) -> 0 | AU19: =_xlfn.XLOOKUP($K19,'OF Statistics 2011-Q3 2024'!$B:$B,'OF Statistics 2011-Q3 2024'!AH:AH,0,0) -> 0 | AV19: =_xlfn.XLOOKUP($K19,'OF Statistics 2011-Q3 2024'!$B:$B,'OF Statistics 2011-Q3 2024'!AI:AI,0,0) -> 0 | AW19: =_xlfn.XLOOKUP($K19,'OF Statistics 2011-Q3 2024'!$B:$B,'OF Statistics 2011-Q3 2024'!AJ:AJ,0,0) -> 0 | AX19: =_xlfn.XLOOKUP($K19,'OF Statistics 2011-Q3 2024'!$B:$B,'OF Statistics 2011-Q3 2024'!AK:AK,0,0) -> 0 | AY19: =_xlfn.XLOOKUP($K19,'OF Statistics 2011-Q3 2024'!$B:$B,'OF Statistics 2011-Q3 2024'!AL:AL,0,0) -> 0 | AZ19: =_xlfn.XLOOKUP($K19,'OF Statistics 2011-Q3 2024'!$B:$B,'OF Statistics 2011-Q3 2024'!AM:AM,0,0) -> 0 | BA19: =_xlfn.XLOOKUP($K19,'OF Statistics 2011-Q3 2024'!$B:$B,'OF Statistics 2011-Q3 2024'!AN:AN,0,0) -> 0 | BB19: =_xlfn.XLOOKUP($K19,'OF Statistics 2011-Q3 2024'!$B:$B,'OF Statistics 2011-Q3 2024'!AO:AO,0,0) -> 0 | BC19: =_xlfn.XLOOKUP($K19,'OF Statistics 2011-Q3 2024'!$B:$B,'OF Statistics 2011-Q3 2024'!AP:AP,0,0) -> 0 | BD19: =_xlfn.XLOOKUP($K19,'OF Statistics 2011-Q3 2024'!$B:$B,'OF Statistics 2011-Q3 2024'!AQ:AQ,0,0) -> 0 | BE19: =_xlfn.XLOOKUP($K19,'OF Statistics 2011-Q3 2024'!$B:$B,'OF Statistics 2011-Q3 2024'!AR:AR,0,0) -> 0 | BF19: =_xlfn.XLOOKUP($K19,'OF Statistics 2011-Q3 2024'!$B:$B,'OF Statistics 2011-Q3 2024'!AS:AS,0,0) -> 0 | BG19: =_xlfn.XLOOKUP($K19,'OF Statistics 2011-Q3 2024'!$B:$B,'OF Statistics 2011-Q3 2024'!AT:AT,0,0) -> 0 | BH19: =_xlfn.XLOOKUP($K19,'OF Statistics 2011-Q3 2024'!$B:$B,'OF Statistics 2011-Q3 2024'!AU:AU,0,0) -> 0 | BI19: =_xlfn.XLOOKUP($K19,'OF Statistics 2011-Q3 2024'!$B:$B,'OF Statistics 2011-Q3 2024'!AV:AV,0,0) -> 0 | BJ19: =_xlfn.XLOOKUP($K19,'OF Statistics 2011-Q3 2024'!$B:$B,'OF Statistics 2011-Q3 2024'!AW:AW,0,0) -> 0 | BK19: =_xlfn.XLOOKUP($K19,'OF Statistics 2011-Q3 2024'!$B:$B,'OF Statistics 2011-Q3 2024'!AX:AX,0,0) -> 0 | BL19: =_xlfn.XLOOKUP($K19,'OF Statistics 2011-Q3 2024'!$B:$B,'OF Statistics 2011-Q3 2024'!AY:AY,0,0) -> 0 | BM19: =_xlfn.XLOOKUP($K19,'OF Statistics 2011-Q3 2024'!$B:$B,'OF Statistics 2011-Q3 2024'!AZ:AZ,0,0) -> 0 | BN19: =_xlfn.XLOOKUP($K19,'OF Statistics 2011-Q3 2024'!$B:$B,'OF Statistics 2011-Q3 2024'!BA:BA,0,0) -> 0 | BO19: =_xlfn.XLOOKUP($K19,'OF Statistics 2011-Q3 2024'!$B:$B,'OF Statistics 2011-Q3 2024'!BB:BB,0,0) -> 0 | BP19: =_xlfn.XLOOKUP($K19,'OF Statistics 2011-Q3 2024'!$B:$B,'OF Statistics 2011-Q3 2024'!BC:BC,0,0) -> 0 | BQ19: =_xlfn.XLOOKUP($K19,'OF Statistics 2011-Q3 2024'!$B:$B,'OF Statistics 2011-Q3 2024'!BD:BD,0,0) -> 0 | BR19: =_xlfn.XLOOKUP($K19,'OF Statistics 2011-Q3 2024'!$B:$B,'OF Statistics 2011-Q3 2024'!BE:BE,0,0) -> 0 | BS19: =_xlfn.XLOOKUP($K19,'OF Statistics 2011-Q3 2024'!$B:$B,'OF Statistics 2011-Q3 2024'!BF:BF,0,0) -> 0 | BT19: =_xlfn.XLOOKUP($K19,'OF Statistics 2011-Q3 2024'!$B:$B,'OF Statistics 2011-Q3 2024'!BG:BG,0,0) -> 0 | BU19: =_xlfn.XLOOKUP($K19,'OF Statistics 2011-Q3 2024'!$B:$B,'OF Statistics 2011-Q3 2024'!BH:BH,0,0) -> 0 | BV19: =_xlfn.XLOOKUP($K19,'OF Statistics 2011-Q3 2024'!$B:$B,'OF Statistics 2011-Q3 2024'!BI:BI,0,0) -> 0 | BW19: =_xlfn.XLOOKUP($K19,'OF Statistics 2011-Q3 2024'!$B:$B,'OF Statistics 2011-Q3 2024'!BJ:BJ,0,0) -> 0 | BX19: =_xlfn.XLOOKUP($K19,'OF Statistics 2011-Q3 2024'!$B:$B,'OF Statistics 2011-Q3 2024'!BK:BK,0,0) -> 0 | BY19: =_xlfn.XLOOKUP($K19,'OF Statistics 2011-Q3 2024'!$B:$B,'OF Statistics 2011-Q3 2024'!BL:BL,0,0) -> 0
B20: 12 | C20: West of Duddon Sands | J20: 17 | K20: Borkum Riffgrund 1 | L20: =$C$27 -> Germany | P20: ='OF Asset Book'!G42 -> 156 | R20: =_xlfn.XLOOKUP($K20,'OF Statistics 2011-Q3 2024'!$B:$B,'OF Statistics 2011-Q3 2024'!E:E,0,0) -> 0 | S20: =_xlfn.XLOOKUP($K20,'OF Statistics 2011-Q3 2024'!$B:$B,'OF Statistics 2011-Q3 2024'!F:F,0,0) -> 475.0774542 | T20: =_xlfn.XLOOKUP($K20,'OF Statistics 2011-Q3 2024'!$B:$B,'OF Statistics 2011-Q3 2024'!G:G,0,0) -> 449.24 | U20: =_xlfn.XLOOKUP($K20,'OF Statistics 2011-Q3 2024'!$B:$B,'OF Statistics 2011-Q3 2024'!H:H,0,0) -> 398.94 | V20: =_xlfn.XLOOKUP($K20,'OF Statistics 2011-Q3 2024'!$B:$B,'OF Statistics 2011-Q3 2024'!I:I,0,0) -> 424.13 | W20: =_xlfn.XLOOKUP($K20,'OF Statistics 2011-Q3 2024'!$B:$B,'OF Statistics 2011-Q3 2024'!J:J,0,0) -> 541.47452 | X20: =_xlfn.XLOOKUP($K20,'OF Statistics 2011-Q3 2024'!$B:$B,'OF Statistics 2011-Q3 2024'!K:K,0,0) -> 491 | Y20: =_xlfn.XLOOKUP($K20,'OF Statistics 2011-Q3 2024'!$B:$B,'OF Statistics 2011-Q3 2024'!L:L,0,0) -> 487.7 | Z20: =_xlfn.XLOOKUP($K20,'OF Statistics 2011-Q3 2024'!$B:$B,'OF Statistics 2011-Q3 2024'!M:M,0,0) -> 542 | AA20: =_xlfn.XLOOKUP($K20,'OF Statistics 2011-Q3 2024'!$B:$B,'OF Statistics 2011-Q3 2024'!N:N,0,0) -> 522 | AB20: =_xlfn.XLOOKUP($K20,'OF Statistics 2011-Q3 2024'!$B:$B,'OF Statistics 2011-Q3 2024'!O:O,0,0) -> 321 | AC20: =_xlfn.XLOOKUP($K20,'OF Statistics 2011-Q3 2024'!$B:$B,'OF Statistics 2011-Q3 2024'!P:P,0,0) -> 0 | AD20: =_xlfn.XLOOKUP($K20,'OF Statistics 2011-Q3 2024'!$B:$B,'OF Statistics 2011-Q3 2024'!Q:Q,0,0) -> 0 | AE20: =_xlfn.XLOOKUP($K20,'OF Statistics 2011-Q3 2024'!$B:$B,'OF Statistics 2011-Q3 2024'!R:R,0,0) -> 0 | AF20: =_xlfn.XLOOKUP($K20,'OF Statistics 2011-Q3 2024'!$B:$B,'OF Statistics 2011-Q3 2024'!S:S,0,0) -> 0 | AG20: =_xlfn.XLOOKUP($K20,'OF Statistics 2011-Q3 2024'!$B:$B,'OF Statistics 2011-Q3 2024'!T:T,0,0) -> 0 | AH20: =_xlfn.XLOOKUP($K20,'OF Statistics 2011-Q3 2024'!$B:$B,'OF Statistics 2011-Q3 2024'!U:U,0,0) -> 90.7772792 | AI20: =_xlfn.XLOOKUP($K20,'OF Statistics 2011-Q3 2024'!$B:$B,'OF Statistics 2011-Q3 2024'!V:V,0,0) -> 88.51 | AJ20: =_xlfn.XLOOKUP($K20,'OF Statistics 2011-Q3 2024'!$B:$B,'OF Statistics 2011-Q3 2024'!W:W,0,0) -> 167 | AK20: =_xlfn.XLOOKUP($K20,'OF Statistics 2011-Q3 2024'!$B:$B,'OF Statistics 2011-Q3 2024'!X:X,0,0) -> 171.32 | AL20: =_xlfn.XLOOKUP($K20,'OF Statistics 2011-Q3 2024'!$B:$B,'OF Statistics 2011-Q3 2024'!Y:Y,0,0) -> 82.59 | AM20: =_xlfn.XLOOKUP($K20,'OF Statistics 2011-Q3 2024'!$B:$B,'OF Statistics 2011-Q3 2024'!Z:Z,0,0) -> 73.89 | AN20: =_xlfn.XLOOKUP($K20,'OF Statistics 2011-Q3 2024'!$B:$B,'OF Statistics 2011-Q3 2024'!AA:AA,0,0) -> 121.44 | AO20: =_xlfn.XLOOKUP($K20,'OF Statistics 2011-Q3 2024'!$B:$B,'OF Statistics 2011-Q3 2024'!AB:AB,0,0) -> 128.3 | AP20: =_xlfn.XLOOKUP($K20,'OF Statistics 2011-Q3 2024'!$B:$B,'OF Statistics 2011-Q3 2024'!AC:AC,0,0) -> 74.57 | AQ20: =_xlfn.XLOOKUP($K20,'OF Statistics 2011-Q3 2024'!$B:$B,'OF Statistics 2011-Q3 2024'!AD:AD,0,0) -> 73.91 | AR20: =_xlfn.XLOOKUP($K20,'OF Statistics 2011-Q3 2024'!$B:$B,'OF Statistics 2011-Q3 2024'!AE:AE,0,0) -> 122.16 | AS20: =_xlfn.XLOOKUP($K20,'OF Statistics 2011-Q3 2024'!$B:$B,'OF Statistics 2011-Q3 2024'!AF:AF,0,0) -> 140.61 | AT20: =_xlfn.XLOOKUP($K20,'OF Statistics 2011-Q3 2024'!$B:$B,'OF Statistics 2011-Q3 2024'!AG:AG,0,0) -> 82.1 | AU20: =_xlfn.XLOOKUP($K20,'OF Statistics 2011-Q3 2024'!$B:$B,'OF Statistics 2011-Q3 2024'!AH:AH,0,0) -> 69.30394 | AV20: =_xlfn.XLOOKUP($K20,'OF Statistics 2011-Q3 2024'!$B:$B,'OF Statistics 2011-Q3 2024'!AI:AI,0,0) -> 132.1 | AW20: =_xlfn.XLOOKUP($K20,'OF Statistics 2011-Q3 2024'!$B:$B,'OF Statistics 2011-Q3 2024'!AJ:AJ,0,0) -> 167.9236892 | AX20: =_xlfn.XLOOKUP($K20,'OF Statistics 2011-Q3 2024'!$B:$B,'OF Statistics 2011-Q3 2024'!AK:AK,0,0) -> 94.5 | AY20: =_xlfn.XLOOKUP($K20,'OF Statistics 2011-Q3 2024'!$B:$B,'OF Statistics 2011-Q3 2024'!AL:AL,0,0) -> 89.3382056 | AZ20: =_xlfn.XLOOKUP($K20,'OF Statistics 2011-Q3 2024'!$B:$B,'OF Statistics 2011-Q3 2024'!AM:AM,0,0) -> 190 | BA20: =_xlfn.XLOOKUP($K20,'OF Statistics 2011-Q3 2024'!$B:$B,'OF Statistics 2011-Q3 2024'!AN:AN,0,0) -> 161 | BB20: =_xlfn.XLOOKUP($K20,'OF Statistics 2011-Q3 2024'!$B:$B,'OF Statistics 2011-Q3 2024'!AO:AO,0,0) -> 104.9 | BC20: =_xlfn.XLOOKUP($K20,'OF Statistics 2011-Q3 2024'!$B:$B,'OF Statistics 2011-Q3 2024'!AP:AP,0,0) -> 89.2 | BD20: =_xlfn.XLOOKUP($K20,'OF Statistics 2011-Q3 2024'!$B:$B,'OF Statistics 2011-Q3 2024'!AQ:AQ,0,0) -> 136.2 | BE20: =_xlfn.XLOOKUP($K20,'OF Statistics 2011-Q3 2024'!$B:$B,'OF Statistics 2011-Q3 2024'!AR:AR,0,0) -> 146.9 | BF20: =_xlfn.XLOOKUP($K20,'OF Statistics 2011-Q3 2024'!$B:$B,'OF Statistics 2011-Q3 2024'!AS:AS,0,0) -> 87.8 | BG20: =_xlfn.XLOOKUP($K20,'OF Statistics 2011-Q3 2024'!$B:$B,'OF Statistics 2011-Q3 2024'!AT:AT,0,0) -> 112 | BH20: =_xlfn.XLOOKUP($K20,'OF Statistics 2011-Q3 2024'!$B:$B,'OF Statistics 2011-Q3 2024'!AU:AU,0,0) -> 141 | BI20: =_xlfn.XLOOKUP($K20,'OF Statistics 2011-Q3 2024'!$B:$B,'OF Statistics 2011-Q3 2024'!AV:AV,0,0) -> 147 | BJ20: =_xlfn.XLOOKUP($K20,'OF Statistics 2011-Q3 2024'!$B:$B,'OF Statistics 2011-Q3 2024'!AW:AW,0,0) -> 102 | BK20: =_xlfn.XLOOKUP($K20,'OF Statistics 2011-Q3 2024'!$B:$B,'OF Statistics 2011-Q3 2024'!AX:AX,0,0) -> 121 | BL20: =_xlfn.XLOOKUP($K20,'OF Statistics 2011-Q3 2024'!$B:$B,'OF Statistics 2011-Q3 2024'!AY:AY,0,0) -> 172 | BM20: =_xlfn.XLOOKUP($K20,'OF Statistics 2011-Q3 2024'!$B:$B,'OF Statistics 2011-Q3 2024'!AZ:AZ,0,0) -> 166 | BN20: =_xlfn.XLOOKUP($K20,'OF Statistics 2011-Q3 2024'!$B:$B,'OF Statistics 2011-Q3 2024'!BA:BA,0,0) -> 99 | BO20: =_xlfn.XLOOKUP($K20,'OF Statistics 2011-Q3 2024'!$B:$B,'OF Statistics 2011-Q3 2024'!BB:BB,0,0) -> 109 | BP20: =_xlfn.XLOOKUP($K20,'OF Statistics 2011-Q3 2024'!$B:$B,'OF Statistics 2011-Q3 2024'!BC:BC,0,0) -> 148 | BQ20: =_xlfn.XLOOKUP($K20,'OF Statistics 2011-Q3 2024'!$B:$B,'OF Statistics 2011-Q3 2024'!BD:BD,0,0) -> 170 | BR20: =_xlfn.XLOOKUP($K20,'OF Statistics 2011-Q3 2024'!$B:$B,'OF Statistics 2011-Q3 2024'!BE:BE,0,0) -> 108 | BS20: =_xlfn.XLOOKUP($K20,'OF Statistics 2011-Q3 2024'!$B:$B,'OF Statistics 2011-Q3 2024'!BF:BF,0,0) -> 42 | BT20: =_xlfn.XLOOKUP($K20,'OF Statistics 2011-Q3 2024'!$B:$B,'OF Statistics 2011-Q3 2024'!BG:BG,0,0) -> 1 | BU20: =_xlfn.XLOOKUP($K20,'OF Statistics 2011-Q3 2024'!$B:$B,'OF Statistics 2011-Q3 2024'!BH:BH,0,0) -> 0 | BV20: =_xlfn.XLOOKUP($K20,'OF Statistics 2011-Q3 2024'!$B:$B,'OF Statistics 2011-Q3 2024'!BI:BI,0,0) -> 0 | BW20: =_xlfn.XLOOKUP($K20,'OF Statistics 2011-Q3 2024'!$B:$B,'OF Statistics 2011-Q3 2024'!BJ:BJ,0,0) -> 0 | BX20: =_xlfn.XLOOKUP($K20,'OF Statistics 2011-Q3 2024'!$B:$B,'OF Statistics 2011-Q3 2024'!BK:BK,0,0) -> 0 | BY20: =_xlfn.XLOOKUP($K20,'OF Statistics 2011-Q3 2024'!$B:$B,'OF Statistics 2011-Q3 2024'!BL:BL,0,0) -> 0
B21: 13 | C21: Westermost Rough | J21: 18 | K21: Borkum Riffgrund 2 | L21: =$C$27 -> Germany | P21: ='OF Asset Book'!G43 -> 225 | R21: =_xlfn.XLOOKUP($K21,'OF Statistics 2011-Q3 2024'!$B:$B,'OF Statistics 2011-Q3 2024'!E:E,0,0) -> 0 | S21: =_xlfn.XLOOKUP($K21,'OF Statistics 2011-Q3 2024'!$B:$B,'OF Statistics 2011-Q3 2024'!F:F,0,0) -> 673.400185 | T21: =_xlfn.XLOOKUP($K21,'OF Statistics 2011-Q3 2024'!$B:$B,'OF Statistics 2011-Q3 2024'!G:G,0,0) -> 670.09 | U21: =_xlfn.XLOOKUP($K21,'OF Statistics 2011-Q3 2024'!$B:$B,'OF Statistics 2011-Q3 2024'!H:H,0,0) -> 652.32 | V21: =_xlfn.XLOOKUP($K21,'OF Statistics 2011-Q3 2024'!$B:$B,'OF Statistics 2011-Q3 2024'!I:I,0,0) -> 674.13 | W21: =_xlfn.XLOOKUP($K21,'OF Statistics 2011-Q3 2024'!$B:$B,'OF Statistics 2011-Q3 2024'!J:J,0,0) -> 764.6963936 | X21: =_xlfn.XLOOKUP($K21,'OF Statistics 2011-Q3 2024'!$B:$B,'OF Statistics 2011-Q3 2024'!K:K,0,0) -> 623 | Y21: =_xlfn.XLOOKUP($K21,'OF Statistics 2011-Q3 2024'!$B:$B,'OF Statistics 2011-Q3 2024'!L:L,0,0) -> 189.9 | Z21: =_xlfn.XLOOKUP($K21,'OF Statistics 2011-Q3 2024'!$B:$B,'OF Statistics 2011-Q3 2024'!M:M,0,0) -> 0 | AA21: =_xlfn.XLOOKUP($K21,'OF Statistics 2011-Q3 2024'!$B:$B,'OF Statistics 2011-Q3 2024'!N:N,0,0) -> 0 | AB21: =_xlfn.XLOOKUP($K21,'OF Statistics 2011-Q3 2024'!$B:$B,'OF Statistics 2011-Q3 2024'!O:O,0,0) -> 0 | AC21: =_xlfn.XLOOKUP($K21,'OF Statistics 2011-Q3 2024'!$B:$B,'OF Statistics 2011-Q3 2024'!P:P,0,0) -> 0 | AD21: =_xlfn.XLOOKUP($K21,'OF Statistics 2011-Q3 2024'!$B:$B,'OF Statistics 2011-Q3 2024'!Q:Q,0,0) -> 0 | AE21: =_xlfn.XLOOKUP($K21,'OF Statistics 2011-Q3 2024'!$B:$B,'OF Statistics 2011-Q3 2024'!R:R,0,0) -> 0 | AF21: =_xlfn.XLOOKUP($K21,'OF Statistics 2011-Q3 2024'!$B:$B,'OF Statistics 2011-Q3 2024'!S:S,0,0) -> 0 | AG21: =_xlfn.XLOOKUP($K21,'OF Statistics 2011-Q3 2024'!$B:$B,'OF Statistics 2011-Q3 2024'!T:T,0,0) -> 0 | AH21: =_xlfn.XLOOKUP($K21,'OF Statistics 2011-Q3 2024'!$B:$B,'OF Statistics 2011-Q3 2024'!U:U,0,0) -> 112.876395 | AI21: =_xlfn.XLOOKUP($K21,'OF Statistics 2011-Q3 2024'!$B:$B,'OF Statistics 2011-Q3 2024'!V:V,0,0) -> 129.64 | AJ21: =_xlfn.XLOOKUP($K21,'OF Statistics 2011-Q3 2024'!$B:$B,'OF Statistics 2011-Q3 2024'!W:W,0,0) -> 243 | AK21: =_xlfn.XLOOKUP($K21,'OF Statistics 2011-Q3 2024'!$B:$B,'OF Statistics 2011-Q3 2024'!X:X,0,0) -> 237.19 | AL21: =_xlfn.XLOOKUP($K21,'OF Statistics 2011-Q3 2024'!$B:$B,'OF Statistics 2011-Q3 2024'!Y:Y,0,0) -> 121.94 | AM21: =_xlfn.XLOOKUP($K21,'OF Statistics 2011-Q3 2024'!$B:$B,'OF Statistics 2011-Q3 2024'!Z:Z,0,0) -> 123.26 | AN21: =_xlfn.XLOOKUP($K21,'OF Statistics 2011-Q3 2024'!$B:$B,'OF Statistics 2011-Q3 2024'!AA:AA,0,0) -> 187.7 | AO21: =_xlfn.XLOOKUP($K21,'OF Statistics 2011-Q3 2024'!$B:$B,'OF Statistics 2011-Q3 2024'!AB:AB,0,0) -> 211.09 | AP21: =_xlfn.XLOOKUP($K21,'OF Statistics 2011-Q3 2024'!$B:$B,'OF Statistics 2011-Q3 2024'!AC:AC,0,0) -> 123.07 | AQ21: =_xlfn.XLOOKUP($K21,'OF Statistics 2011-Q3 2024'!$B:$B,'OF Statistics 2011-Q3 2024'!AD:AD,0,0) -> 123.02 | AR21: =_xlfn.XLOOKUP($K21,'OF Statistics 2011-Q3 2024'!$B:$B,'OF Statistics 2011-Q3 2024'!AE:AE,0,0) -> 195.13 | AS21: =_xlfn.XLOOKUP($K21,'OF Statistics 2011-Q3 2024'!$B:$B,'OF Statistics 2011-Q3 2024'!AF:AF,0,0) -> 241.58 | AT21: =_xlfn.XLOOKUP($K21,'OF Statistics 2011-Q3 2024'!$B:$B,'OF Statistics 2011-Q3 2024'!AG:AG,0,0) -> 125.49 | AU21: =_xlfn.XLOOKUP($K21,'OF Statistics 2011-Q3 2024'!$B:$B,'OF Statistics 2011-Q3 2024'!AH:AH,0,0) -> 103.777395 | AV21: =_xlfn.XLOOKUP($K21,'OF Statistics 2011-Q3 2024'!$B:$B,'OF Statistics 2011-Q3 2024'!AI:AI,0,0) -> 203.3 | AW21: =_xlfn.XLOOKUP($K21,'OF Statistics 2011-Q3 2024'!$B:$B,'OF Statistics 2011-Q3 2024'!AJ:AJ,0,0) -> 267.4582536 | AX21: =_xlfn.XLOOKUP($K21,'OF Statistics 2011-Q3 2024'!$B:$B,'OF Statistics 2011-Q3 2024'!AK:AK,0,0) -> 154.4 | AY21: =_xlfn.XLOOKUP($K21,'OF Statistics 2011-Q3 2024'!$B:$B,'OF Statistics 2011-Q3 2024'!AL:AL,0,0) -> 136.3256558 | AZ21: =_xlfn.XLOOKUP($K21,'OF Statistics 2011-Q3 2024'!$B:$B,'OF Statistics 2011-Q3 2024'!AM:AM,0,0) -> 207 | BA21: =_xlfn.XLOOKUP($K21,'OF Statistics 2011-Q3 2024'!$B:$B,'OF Statistics 2011-Q3 2024'!AN:AN,0,0) -> 214 | BB21: =_xlfn.XLOOKUP($K21,'OF Statistics 2011-Q3 2024'!$B:$B,'OF Statistics 2011-Q3 2024'!AO:AO,0,0) -> 129.7 | BC21: =_xlfn.XLOOKUP($K21,'OF Statistics 2011-Q3 2024'!$B:$B,'OF Statistics 2011-Q3 2024'!AP:AP,0,0) -> 112.1 | BD21: =_xlfn.XLOOKUP($K21,'OF Statistics 2011-Q3 2024'!$B:$B,'OF Statistics 2011-Q3 2024'!AQ:AQ,0,0) -> 166.7 | BE21: =_xlfn.XLOOKUP($K21,'OF Statistics 2011-Q3 2024'!$B:$B,'OF Statistics 2011-Q3 2024'!AR:AR,0,0) -> 158.1 | BF21: =_xlfn.XLOOKUP($K21,'OF Statistics 2011-Q3 2024'!$B:$B,'OF Statistics 2011-Q3 2024'!AS:AS,0,0) -> 31.8 | BG21: =_xlfn.XLOOKUP($K21,'OF Statistics 2011-Q3 2024'!$B:$B,'OF Statistics 2011-Q3 2024'!AT:AT,0,0) -> 0 | BH21: =_xlfn.XLOOKUP($K21,'OF Statistics 2011-Q3 2024'!$B:$B,'OF Statistics 2011-Q3 2024'!AU:AU,0,0) -> 0 | BI21: =_xlfn.XLOOKUP($K21,'OF Statistics 2011-Q3 2024'!$B:$B,'OF Statistics 2011-Q3 2024'!AV:AV,0,0) -> 0 | BJ21: =_xlfn.XLOOKUP($K21,'OF Statistics 2011-Q3 2024'!$B:$B,'OF Statistics 2011-Q3 2024'!AW:AW,0,0) -> 0 | BK21: =_xlfn.XLOOKUP($K21,'OF Statistics 2011-Q3 2024'!$B:$B,'OF Statistics 2011-Q3 2024'!AX:AX,0,0) -> 0 | BL21: =_xlfn.XLOOKUP($K21,'OF Statistics 2011-Q3 2024'!$B:$B,'OF Statistics 2011-Q3 2024'!AY:AY,0,0) -> 0 | BM21: =_xlfn.XLOOKUP($K21,'OF Statistics 2011-Q3 2024'!$B:$B,'OF Statistics 2011-Q3 2024'!AZ:AZ,0,0) -> 0 | BN21: =_xlfn.XLOOKUP($K21,'OF Statistics 2011-Q3 2024'!$B:$B,'OF Statistics 2011-Q3 2024'!BA:BA,0,0) -> 0 | BO21: =_xlfn.XLOOKUP($K21,'OF Statistics 2011-Q3 2024'!$B:$B,'OF Statistics 2011-Q3 2024'!BB:BB,0,0) -> 0 | BP21: =_xlfn.XLOOKUP($K21,'OF Statistics 2011-Q3 2024'!$B:$B,'OF Statistics 2011-Q3 2024'!BC:BC,0,0) -> 0 | BQ21: =_xlfn.XLOOKUP($K21,'OF Statistics 2011-Q3 2024'!$B:$B,'OF Statistics 2011-Q3 2024'!BD:BD,0,0) -> 0 | BR21: =_xlfn.XLOOKUP($K21,'OF Statistics 2011-Q3 2024'!$B:$B,'OF Statistics 2011-Q3 2024'!BE:BE,0,0) -> 0 | BS21: =_xlfn.XLOOKUP($K21,'OF Statistics 2011-Q3 2024'!$B:$B,'OF Statistics 2011-Q3 2024'!BF:BF,0,0) -> 0 | BT21: =_xlfn.XLOOKUP($K21,'OF Statistics 2011-Q3 2024'!$B:$B,'OF Statistics 2011-Q3 2024'!BG:BG,0,0) -> 0 | BU21: =_xlfn.XLOOKUP($K21,'OF Statistics 2011-Q3 2024'!$B:$B,'OF Statistics 2011-Q3 2024'!BH:BH,0,0) -> 0 | BV21: =_xlfn.XLOOKUP($K21,'OF Statistics 2011-Q3 2024'!$B:$B,'OF Statistics 2011-Q3 2024'!BI:BI,0,0) -> 0 | BW21: =_xlfn.XLOOKUP($K21,'OF Statistics 2011-Q3 2024'!$B:$B,'OF Statistics 2011-Q3 2024'!BJ:BJ,0,0) -> 0 | BX21: =_xlfn.XLOOKUP($K21,'OF Statistics 2011-Q3 2024'!$B:$B,'OF Statistics 2011-Q3 2024'!BK:BK,0,0) -> 0 | BY21: =_xlfn.XLOOKUP($K21,'OF Statistics 2011-Q3 2024'!$B:$B,'OF Statistics 2011-Q3 2024'!BL:BL,0,0) -> 0
B22: 14 | C22: Race Bank | J22: 19 | K22: Gode Wind 1 | L22: Germany | P22: ='OF Asset Book'!G44 -> 166 | R22: =_xlfn.XLOOKUP($K22,'OF Statistics 2011-Q3 2024'!$B:$B,'OF Statistics 2011-Q3 2024'!E:E,0,0) -> 0 | S22: =_xlfn.XLOOKUP($K22,'OF Statistics 2011-Q3 2024'!$B:$B,'OF Statistics 2011-Q3 2024'!F:F,0,0) -> 570.70523 | T22: =_xlfn.XLOOKUP($K22,'OF Statistics 2011-Q3 2024'!$B:$B,'OF Statistics 2011-Q3 2024'!G:G,0,0) -> 542.53 | U22: =_xlfn.XLOOKUP($K22,'OF Statistics 2011-Q3 2024'!$B:$B,'OF Statistics 2011-Q3 2024'!H:H,0,0) -> 510.56 | V22: =_xlfn.XLOOKUP($K22,'OF Statistics 2011-Q3 2024'!$B:$B,'OF Statistics 2011-Q3 2024'!I:I,0,0) -> 525.63 | W22: =_xlfn.XLOOKUP($K22,'OF Statistics 2011-Q3 2024'!$B:$B,'OF Statistics 2011-Q3 2024'!J:J,0,0) -> 566.941206 | X22: =_xlfn.XLOOKUP($K22,'OF Statistics 2011-Q3 2024'!$B:$B,'OF Statistics 2011-Q3 2024'!K:K,0,0) -> 629 | Y22: =_xlfn.XLOOKUP($K22,'OF Statistics 2011-Q3 2024'!$B:$B,'OF Statistics 2011-Q3 2024'!L:L,0,0) -> 584.4 | Z22: =_xlfn.XLOOKUP($K22,'OF Statistics 2011-Q3 2024'!$B:$B,'OF Statistics 2011-Q3 2024'!M:M,0,0) -> 559 | AA22: =_xlfn.XLOOKUP($K22,'OF Statistics 2011-Q3 2024'!$B:$B,'OF Statistics 2011-Q3 2024'!N:N,0,0) -> 67 | AB22: =_xlfn.XLOOKUP($K22,'OF Statistics 2011-Q3 2024'!$B:$B,'OF Statistics 2011-Q3 2024'!O:O,0,0) -> 0 | AC22: =_xlfn.XLOOKUP($K22,'OF Statistics 2011-Q3 2024'!$B:$B,'OF Statistics 2011-Q3 2024'!P:P,0,0) -> 0 | AD22: =_xlfn.XLOOKUP($K22,'OF Statistics 2011-Q3 2024'!$B:$B,'OF Statistics 2011-Q3 2024'!Q:Q,0,0) -> 0 | AE22: =_xlfn.XLOOKUP($K22,'OF Statistics 2011-Q3 2024'!$B:$B,'OF Statistics 2011-Q3 2024'!R:R,0,0) -> 0 | AF22: =_xlfn.XLOOKUP($K22,'OF Statistics 2011-Q3 2024'!$B:$B,'OF Statistics 2011-Q3 2024'!S:S,0,0) -> 0 | AG22: =_xlfn.XLOOKUP($K22,'OF Statistics 2011-Q3 2024'!$B:$B,'OF Statistics 2011-Q3 2024'!T:T,0,0) -> 0 | AH22: =_xlfn.XLOOKUP($K22,'OF Statistics 2011-Q3 2024'!$B:$B,'OF Statistics 2011-Q3 2024'!U:U,0,0) -> 107.602145 | AI22: =_xlfn.XLOOKUP($K22,'OF Statistics 2011-Q3 2024'!$B:$B,'OF Statistics 2011-Q3 2024'!V:V,0,0) -> 114.24 | AJ22: =_xlfn.XLOOKUP($K22,'OF Statistics 2011-Q3 2024'!$B:$B,'OF Statistics 2011-Q3 2024'!W:W,0,0) -> 195 | AK22: =_xlfn.XLOOKUP($K22,'OF Statistics 2011-Q3 2024'!$B:$B,'OF Statistics 2011-Q3 2024'!X:X,0,0) -> 179.92 | AL22: =_xlfn.XLOOKUP($K22,'OF Statistics 2011-Q3 2024'!$B:$B,'OF Statistics 2011-Q3 2024'!Y:Y,0,0) -> 101.13 | AM22: =_xlfn.XLOOKUP($K22,'OF Statistics 2011-Q3 2024'!$B:$B,'OF Statistics 2011-Q3 2024'!Z:Z,0,0) -> 116.4 | AN22: =_xlfn.XLOOKUP($K22,'OF Statistics 2011-Q3 2024'!$B:$B,'OF Statistics 2011-Q3 2024'!AA:AA,0,0) -> 145.07 | AO22: =_xlfn.XLOOKUP($K22,'OF Statistics 2011-Q3 2024'!$B:$B,'OF Statistics 2011-Q3 2024'!AB:AB,0,0) -> 165.38 | AP22: =_xlfn.XLOOKUP($K22,'OF Statistics 2011-Q3 2024'!$B:$B,'OF Statistics 2011-Q3 2024'!AC:AC,0,0) -> 106.08 | AQ22: =_xlfn.XLOOKUP($K22,'OF Statistics 2011-Q3 2024'!$B:$B,'OF Statistics 2011-Q3 2024'!AD:AD,0,0) -> 99.79 | AR22: =_xlfn.XLOOKUP($K22,'OF Statistics 2011-Q3 2024'!$B:$B,'OF Statistics 2011-Q3 2024'!AE:AE,0,0) -> 139.31 | AS22: =_xlfn.XLOOKUP($K22,'OF Statistics 2011-Q3 2024'!$B:$B,'OF Statistics 2011-Q3 2024'!AF:AF,0,0) -> 171.89 | AT22: =_xlfn.XLOOKUP($K22,'OF Statistics 2011-Q3 2024'!$B:$B,'OF Statistics 2011-Q3 2024'!AG:AG,0,0) -> 107.38 | AU22: =_xlfn.XLOOKUP($K22,'OF Statistics 2011-Q3 2024'!$B:$B,'OF Statistics 2011-Q3 2024'!AH:AH,0,0) -> 85.63886 | AV22: =_xlfn.XLOOKUP($K22,'OF Statistics 2011-Q3 2024'!$B:$B,'OF Statistics 2011-Q3 2024'!AI:AI,0,0) -> 160.7 | AW22: =_xlfn.XLOOKUP($K22,'OF Statistics 2011-Q3 2024'!$B:$B,'OF Statistics 2011-Q3 2024'!AJ:AJ,0,0) -> 126.4132508 | AX22: =_xlfn.XLOOKUP($K22,'OF Statistics 2011-Q3 2024'!$B:$B,'OF Statistics 2011-Q3 2024'!AK:AK,0,0) -> 122.5 | AY22: =_xlfn.XLOOKUP($K22,'OF Statistics 2011-Q3 2024'!$B:$B,'OF Statistics 2011-Q3 2024'!AL:AL,0,0) -> 107.7054638 | AZ22: =_xlfn.XLOOKUP($K22,'OF Statistics 2011-Q3 2024'!$B:$B,'OF Statistics 2011-Q3 2024'!AM:AM,0,0) -> 210 | BA22: =_xlfn.XLOOKUP($K22,'OF Statistics 2011-Q3 2024'!$B:$B,'OF Statistics 2011-Q3 2024'!AN:AN,0,0) -> 193 | BB22: =_xlfn.XLOOKUP($K22,'OF Statistics 2011-Q3 2024'!$B:$B,'OF Statistics 2011-Q3 2024'!AO:AO,0,0) -> 133.7 | BC22: =_xlfn.XLOOKUP($K22,'OF Statistics 2011-Q3 2024'!$B:$B,'OF Statistics 2011-Q3 2024'!AP:AP,0,0) -> 132.4 | BD22: =_xlfn.XLOOKUP($K22,'OF Statistics 2011-Q3 2024'!$B:$B,'OF Statistics 2011-Q3 2024'!AQ:AQ,0,0) -> 169.6 | BE22: =_xlfn.XLOOKUP($K22,'OF Statistics 2011-Q3 2024'!$B:$B,'OF Statistics 2011-Q3 2024'!AR:AR,0,0) -> 178.9 | BF22: =_xlfn.XLOOKUP($K22,'OF Statistics 2011-Q3 2024'!$B:$B,'OF Statistics 2011-Q3 2024'!AS:AS,0,0) -> 110.4 | BG22: =_xlfn.XLOOKUP($K22,'OF Statistics 2011-Q3 2024'!$B:$B,'OF Statistics 2011-Q3 2024'!AT:AT,0,0) -> 141 | BH22: =_xlfn.XLOOKUP($K22,'OF Statistics 2011-Q3 2024'!$B:$B,'OF Statistics 2011-Q3 2024'!AU:AU,0,0) -> 154 | BI22: =_xlfn.XLOOKUP($K22,'OF Statistics 2011-Q3 2024'!$B:$B,'OF Statistics 2011-Q3 2024'!AV:AV,0,0) -> 160 | BJ22: =_xlfn.XLOOKUP($K22,'OF Statistics 2011-Q3 2024'!$B:$B,'OF Statistics 2011-Q3 2024'!AW:AW,0,0) -> 117 | BK22: =_xlfn.XLOOKUP($K22,'OF Statistics 2011-Q3 2024'!$B:$B,'OF Statistics 2011-Q3 2024'!AX:AX,0,0) -> 143 | BL22: =_xlfn.XLOOKUP($K22,'OF Statistics 2011-Q3 2024'!$B:$B,'OF Statistics 2011-Q3 2024'!AY:AY,0,0) -> 139 | BM22: =_xlfn.XLOOKUP($K22,'OF Statistics 2011-Q3 2024'!$B:$B,'OF Statistics 2011-Q3 2024'!AZ:AZ,0,0) -> 31 | BN22: =_xlfn.XLOOKUP($K22,'OF Statistics 2011-Q3 2024'!$B:$B,'OF Statistics 2011-Q3 2024'!BA:BA,0,0) -> 36 | BO22: =_xlfn.XLOOKUP($K22,'OF Statistics 2011-Q3 2024'!$B:$B,'OF Statistics 2011-Q3 2024'!BB:BB,0,0) -> 0 | BP22: =_xlfn.XLOOKUP($K22,'OF Statistics 2011-Q3 2024'!$B:$B,'OF Statistics 2011-Q3 2024'!BC:BC,0,0) -> 0 | BQ22: =_xlfn.XLOOKUP($K22,'OF Statistics 2011-Q3 2024'!$B:$B,'OF Statistics 2011-Q3 2024'!BD:BD,0,0) -> 0 | BR22: =_xlfn.XLOOKUP($K22,'OF Statistics 2011-Q3 2024'!$B:$B,'OF Statistics 2011-Q3 2024'!BE:BE,0,0) -> 0 | BS22: =_xlfn.XLOOKUP($K22,'OF Statistics 2011-Q3 2024'!$B:$B,'OF Statistics 2011-Q3 2024'!BF:BF,0,0) -> 0 | BT22: =_xlfn.XLOOKUP($K22,'OF Statistics 2011-Q3 2024'!$B:$B,'OF Statistics 2011-Q3 2024'!BG:BG,0,0) -> 0 | BU22: =_xlfn.XLOOKUP($K22,'OF Statistics 2011-Q3 2024'!$B:$B,'OF Statistics 2011-Q3 2024'!BH:BH,0,0) -> 0 | BV22: =_xlfn.XLOOKUP($K22,'OF Statistics 2011-Q3 2024'!$B:$B,'OF Statistics 2011-Q3 2024'!BI:BI,0,0) -> 0 | BW22: =_xlfn.XLOOKUP($K22,'OF Statistics 2011-Q3 2024'!$B:$B,'OF Statistics 2011-Q3 2024'!BJ:BJ,0,0) -> 0 | BX22: =_xlfn.XLOOKUP($K22,'OF Statistics 2011-Q3 2024'!$B:$B,'OF Statistics 2011-Q3 2024'!BK:BK,0,0) -> 0 | BY22: =_xlfn.XLOOKUP($K22,'OF Statistics 2011-Q3 2024'!$B:$B,'OF Statistics 2011-Q3 2024'!BL:BL,0,0) -> 0
B23: 15 | C23: Hornsea 1 | J23: 20 | K23: Gode Wind 2 | L23: Germany | P23: ='OF Asset Book'!G45 -> 126 | R23: =_xlfn.XLOOKUP($K23,'OF Statistics 2011-Q3 2024'!$B:$B,'OF Statistics 2011-Q3 2024'!E:E,0,0) -> 0 | S23: =_xlfn.XLOOKUP($K23,'OF Statistics 2011-Q3 2024'!$B:$B,'OF Statistics 2011-Q3 2024'!F:F,0,0) -> 429.95774 | T23: =_xlfn.XLOOKUP($K23,'OF Statistics 2011-Q3 2024'!$B:$B,'OF Statistics 2011-Q3 2024'!G:G,0,0) -> 414.21 | U23: =_xlfn.XLOOKUP($K23,'OF Statistics 2011-Q3 2024'!$B:$B,'OF Statistics 2011-Q3 2024'!H:H,0,0) -> 386.92 | V23: =_xlfn.XLOOKUP($K23,'OF Statistics 2011-Q3 2024'!$B:$B,'OF Statistics 2011-Q3 2024'!I:I,0,0) -> 398.23 | W23: =_xlfn.XLOOKUP($K23,'OF Statistics 2011-Q3 2024'!$B:$B,'OF Statistics 2011-Q3 2024'!J:J,0,0) -> 426.868574 | X23: =_xlfn.XLOOKUP($K23,'OF Statistics 2011-Q3 2024'!$B:$B,'OF Statistics 2011-Q3 2024'!K:K,0,0) -> 477 | Y23: =_xlfn.XLOOKUP($K23,'OF Statistics 2011-Q3 2024'!$B:$B,'OF Statistics 2011-Q3 2024'!L:L,0,0) -> 443.7 | Z23: =_xlfn.XLOOKUP($K23,'OF Statistics 2011-Q3 2024'!$B:$B,'OF Statistics 2011-Q3 2024'!M:M,0,0) -> 419 | AA23: =_xlfn.XLOOKUP($K23,'OF Statistics 2011-Q3 2024'!$B:$B,'OF Statistics 2011-Q3 2024'!N:N,0,0) -> 75 | AB23: =_xlfn.XLOOKUP($K23,'OF Statistics 2011-Q3 2024'!$B:$B,'OF Statistics 2011-Q3 2024'!O:O,0,0) -> 0 | AC23: =_xlfn.XLOOKUP($K23,'OF Statistics 2011-Q3 2024'!$B:$B,'OF Statistics 2011-Q3 2024'!P:P,0,0) -> 0 | AD23: =_xlfn.XLOOKUP($K23,'OF Statistics 2011-Q3 2024'!$B:$B,'OF Statistics 2011-Q3 2024'!Q:Q,0,0) -> 0 | AE23: =_xlfn.XLOOKUP($K23,'OF Statistics 2011-Q3 2024'!$B:$B,'OF Statistics 2011-Q3 2024'!R:R,0,0) -> 0 | AF23: =_xlfn.XLOOKUP($K23,'OF Statistics 2011-Q3 2024'!$B:$B,'OF Statistics 2011-Q3 2024'!S:S,0,0) -> 0 | AG23: =_xlfn.XLOOKUP($K23,'OF Statistics 2011-Q3 2024'!$B:$B,'OF Statistics 2011-Q3 2024'!T:T,0,0) -> 0 | AH23: =_xlfn.XLOOKUP($K23,'OF Statistics 2011-Q3 2024'!$B:$B,'OF Statistics 2011-Q3 2024'!U:U,0,0) -> 81.870175 | AI23: =_xlfn.XLOOKUP($K23,'OF Statistics 2011-Q3 2024'!$B:$B,'OF Statistics 2011-Q3 2024'!V:V,0,0) -> 87.07 | AJ23: =_xlfn.XLOOKUP($K23,'OF Statistics 2011-Q3 2024'!$B:$B,'OF Statistics 2011-Q3 2024'!W:W,0,0) -> 148 | AK23: =_xlfn.XLOOKUP($K23,'OF Statistics 2011-Q3 2024'!$B:$B,'OF Statistics 2011-Q3 2024'!X:X,0,0) -> 144.72 | AL23: =_xlfn.XLOOKUP($K23,'OF Statistics 2011-Q3 2024'!$B:$B,'OF Statistics 2011-Q3 2024'!Y:Y,0,0) -> 73.06 | AM23: =_xlfn.XLOOKUP($K23,'OF Statistics 2011-Q3 2024'!$B:$B,'OF Statistics 2011-Q3 2024'!Z:Z,0,0) -> 84.85 | AN23: =_xlfn.XLOOKUP($K23,'OF Statistics 2011-Q3 2024'!$B:$B,'OF Statistics 2011-Q3 2024'!AA:AA,0,0) -> 111.58 | AO23: =_xlfn.XLOOKUP($K23,'OF Statistics 2011-Q3 2024'!$B:$B,'OF Statistics 2011-Q3 2024'!AB:AB,0,0) -> 121.26 | AP23: =_xlfn.XLOOKUP($K23,'OF Statistics 2011-Q3 2024'!$B:$B,'OF Statistics 2011-Q3 2024'!AC:AC,0,0) -> 83.06 | AQ23: =_xlfn.XLOOKUP($K23,'OF Statistics 2011-Q3 2024'!$B:$B,'OF Statistics 2011-Q3 2024'!AD:AD,0,0) -> 74.78 | AR23: =_xlfn.XLOOKUP($K23,'OF Statistics 2011-Q3 2024'!$B:$B,'OF Statistics 2011-Q3 2024'!AE:AE,0,0) -> 108 | AS23: =_xlfn.XLOOKUP($K23,'OF Statistics 2011-Q3 2024'!$B:$B,'OF Statistics 2011-Q3 2024'!AF:AF,0,0) -> 125.88 | AT23: =_xlfn.XLOOKUP($K23,'OF Statistics 2011-Q3 2024'!$B:$B,'OF Statistics 2011-Q3 2024'!AG:AG,0,0) -> 83.8 | AU23: =_xlfn.XLOOKUP($K23,'OF Statistics 2011-Q3 2024'!$B:$B,'OF Statistics 2011-Q3 2024'!AH:AH,0,0) -> 73.48716 | AV23: =_xlfn.XLOOKUP($K23,'OF Statistics 2011-Q3 2024'!$B:$B,'OF Statistics 2011-Q3 2024'!AI:AI,0,0) -> 115.1 | AW23: =_xlfn.XLOOKUP($K23,'OF Statistics 2011-Q3 2024'!$B:$B,'OF Statistics 2011-Q3 2024'!AJ:AJ,0,0) -> 93.5061556 | AX23: =_xlfn.XLOOKUP($K23,'OF Statistics 2011-Q3 2024'!$B:$B,'OF Statistics 2011-Q3 2024'!AK:AK,0,0) -> 91.8 | AY23: =_xlfn.XLOOKUP($K23,'OF Statistics 2011-Q3 2024'!$B:$B,'OF Statistics 2011-Q3 2024'!AL:AL,0,0) -> 86.3985252 | AZ23: =_xlfn.XLOOKUP($K23,'OF Statistics 2011-Q3 2024'!$B:$B,'OF Statistics 2011-Q3 2024'!AM:AM,0,0) -> 155 | BA23: =_xlfn.XLOOKUP($K23,'OF Statistics 2011-Q3 2024'!$B:$B,'OF Statistics 2011-Q3 2024'!AN:AN,0,0) -> 143 | BB23: =_xlfn.XLOOKUP($K23,'OF Statistics 2011-Q3 2024'!$B:$B,'OF Statistics 2011-Q3 2024'!AO:AO,0,0) -> 102.6 | BC23: =_xlfn.XLOOKUP($K23,'OF Statistics 2011-Q3 2024'!$B:$B,'OF Statistics 2011-Q3 2024'!AP:AP,0,0) -> 105 | BD23: =_xlfn.XLOOKUP($K23,'OF Statistics 2011-Q3 2024'!$B:$B,'OF Statistics 2011-Q3 2024'!AQ:AQ,0,0) -> 126.2 | BE23: =_xlfn.XLOOKUP($K23,'OF Statistics 2011-Q3 2024'!$B:$B,'OF Statistics 2011-Q3 2024'!AR:AR,0,0) -> 132.4 | BF23: =_xlfn.XLOOKUP($K23,'OF Statistics 2011-Q3 2024'!$B:$B,'OF Statistics 2011-Q3 2024'!AS:AS,0,0) -> 81.3 | BG23: =_xlfn.XLOOKUP($K23,'OF Statistics 2011-Q3 2024'!$B:$B,'OF Statistics 2011-Q3 2024'!AT:AT,0,0) -> 112 | BH23: =_xlfn.XLOOKUP($K23,'OF Statistics 2011-Q3 2024'!$B:$B,'OF Statistics 2011-Q3 2024'!AU:AU,0,0) -> 118 | BI23: =_xlfn.XLOOKUP($K23,'OF Statistics 2011-Q3 2024'!$B:$B,'OF Statistics 2011-Q3 2024'!AV:AV,0,0) -> 123 | BJ23: =_xlfn.XLOOKUP($K23,'OF Statistics 2011-Q3 2024'!$B:$B,'OF Statistics 2011-Q3 2024'!AW:AW,0,0) -> 87 | BK23: =_xlfn.XLOOKUP($K23,'OF Statistics 2011-Q3 2024'!$B:$B,'OF Statistics 2011-Q3 2024'!AX:AX,0,0) -> 105 | BL23: =_xlfn.XLOOKUP($K23,'OF Statistics 2011-Q3 2024'!$B:$B,'OF Statistics 2011-Q3 2024'!AY:AY,0,0) -> 104 | BM23: =_xlfn.XLOOKUP($K23,'OF Statistics 2011-Q3 2024'!$B:$B,'OF Statistics 2011-Q3 2024'!AZ:AZ,0,0) -> 27 | BN23: =_xlfn.XLOOKUP($K23,'OF Statistics 2011-Q3 2024'!$B:$B,'OF Statistics 2011-Q3 2024'!BA:BA,0,0) -> 36 | BO23: =_xlfn.XLOOKUP($K23,'OF Statistics 2011-Q3 2024'!$B:$B,'OF Statistics 2011-Q3 2024'!BB:BB,0,0) -> 11 | BP23: =_xlfn.XLOOKUP($K23,'OF Statistics 2011-Q3 2024'!$B:$B,'OF Statistics 2011-Q3 2024'!BC:BC,0,0) -> 1 | BQ23: =_xlfn.XLOOKUP($K23,'OF Statistics 2011-Q3 2024'!$B:$B,'OF Statistics 2011-Q3 2024'!BD:BD,0,0) -> 0 | BR23: =_xlfn.XLOOKUP($K23,'OF Statistics 2011-Q3 2024'!$B:$B,'OF Statistics 2011-Q3 2024'!BE:BE,0,0) -> 0 | BS23: =_xlfn.XLOOKUP($K23,'OF Statistics 2011-Q3 2024'!$B:$B,'OF Statistics 2011-Q3 2024'!BF:BF,0,0) -> 0 | BT23: =_xlfn.XLOOKUP($K23,'OF Statistics 2011-Q3 2024'!$B:$B,'OF Statistics 2011-Q3 2024'!BG:BG,0,0) -> 0 | BU23: =_xlfn.XLOOKUP($K23,'OF Statistics 2011-Q3 2024'!$B:$B,'OF Statistics 2011-Q3 2024'!BH:BH,0,0) -> 0 | BV23: =_xlfn.XLOOKUP($K23,'OF Statistics 2011-Q3 2024'!$B:$B,'OF Statistics 2011-Q3 2024'!BI:BI,0,0) -> 0 | BW23: =_xlfn.XLOOKUP($K23,'OF Statistics 2011-Q3 2024'!$B:$B,'OF Statistics 2011-Q3 2024'!BJ:BJ,0,0) -> 0 | BX23: =_xlfn.XLOOKUP($K23,'OF Statistics 2011-Q3 2024'!$B:$B,'OF Statistics 2011-Q3 2024'!BK:BK,0,0) -> 0 | BY23: =_xlfn.XLOOKUP($K23,'OF Statistics 2011-Q3 2024'!$B:$B,'OF Statistics 2011-Q3 2024'!BL:BL,0,0) -> 0
B24: 16 | C24: Hornsea 2 | J24: 21 | K24: Gode Wind 3 | L24: Germany | P24: ='OF Asset Book'!G48 -> 94 | R24: =_xlfn.XLOOKUP($K24,'OF Statistics 2011-Q3 2024'!$B:$B,'OF Statistics 2011-Q3 2024'!E:E,0,0) -> 0 | S24: =_xlfn.XLOOKUP($K24,'OF Statistics 2011-Q3 2024'!$B:$B,'OF Statistics 2011-Q3 2024'!F:F,0,0) -> 206.8189644 | T24: =_xlfn.XLOOKUP($K24,'OF Statistics 2011-Q3 2024'!$B:$B,'OF Statistics 2011-Q3 2024'!G:G,0,0) -> 0 | U24: =_xlfn.XLOOKUP($K24,'OF Statistics 2011-Q3 2024'!$B:$B,'OF Statistics 2011-Q3 2024'!H:H,0,0) -> 0 | V24: =_xlfn.XLOOKUP($K24,'OF Statistics 2011-Q3 2024'!$B:$B,'OF Statistics 2011-Q3 2024'!I:I,0,0) -> 0 | W24: =_xlfn.XLOOKUP($K24,'OF Statistics 2011-Q3 2024'!$B:$B,'OF Statistics 2011-Q3 2024'!J:J,0,0) -> 0 | X24: =_xlfn.XLOOKUP($K24,'OF Statistics 2011-Q3 2024'!$B:$B,'OF Statistics 2011-Q3 2024'!K:K,0,0) -> 0 | Y24: =_xlfn.XLOOKUP($K24,'OF Statistics 2011-Q3 2024'!$B:$B,'OF Statistics 2011-Q3 2024'!L:L,0,0) -> 0 | Z24: =_xlfn.XLOOKUP($K24,'OF Statistics 2011-Q3 2024'!$B:$B,'OF Statistics 2011-Q3 2024'!M:M,0,0) -> 0 | AA24: =_xlfn.XLOOKUP($K24,'OF Statistics 2011-Q3 2024'!$B:$B,'OF Statistics 2011-Q3 2024'!N:N,0,0) -> 0 | AB24: =_xlfn.XLOOKUP($K24,'OF Statistics 2011-Q3 2024'!$B:$B,'OF Statistics 2011-Q3 2024'!O:O,0,0) -> 0 | AC24: =_xlfn.XLOOKUP($K24,'OF Statistics 2011-Q3 2024'!$B:$B,'OF Statistics 2011-Q3 2024'!P:P,0,0) -> 0 | AD24: =_xlfn.XLOOKUP($K24,'OF Statistics 2011-Q3 2024'!$B:$B,'OF Statistics 2011-Q3 2024'!Q:Q,0,0) -> 0 | AE24: =_xlfn.XLOOKUP($K24,'OF Statistics 2011-Q3 2024'!$B:$B,'OF Statistics 2011-Q3 2024'!R:R,0,0) -> 0 | AF24: =_xlfn.XLOOKUP($K24,'OF Statistics 2011-Q3 2024'!$B:$B,'OF Statistics 2011-Q3 2024'!S:S,0,0) -> 0 | AG24: =_xlfn.XLOOKUP($K24,'OF Statistics 2011-Q3 2024'!$B:$B,'OF Statistics 2011-Q3 2024'!T:T,0,0) -> 0 | AH24: =_xlfn.XLOOKUP($K24,'OF Statistics 2011-Q3 2024'!$B:$B,'OF Statistics 2011-Q3 2024'!U:U,0,0) -> 74.17702 | AI24: =_xlfn.XLOOKUP($K24,'OF Statistics 2011-Q3 2024'!$B:$B,'OF Statistics 2011-Q3 2024'!V:V,0,0) -> 14.6 | AJ24: =_xlfn.XLOOKUP($K24,'OF Statistics 2011-Q3 2024'!$B:$B,'OF Statistics 2011-Q3 2024'!W:W,0,0) -> 0 | AK24: =_xlfn.XLOOKUP($K24,'OF Statistics 2011-Q3 2024'!$B:$B,'OF Statistics 2011-Q3 2024'!X:X,0,0) -> 0 | AL24: =_xlfn.XLOOKUP($K24,'OF Statistics 2011-Q3 2024'!$B:$B,'OF Statistics 2011-Q3 2024'!Y:Y,0,0) -> 0 | AM24: =_xlfn.XLOOKUP($K24,'OF Statistics 2011-Q3 2024'!$B:$B,'OF Statistics 2011-Q3 2024'!Z:Z,0,0) -> 0 | AN24: =_xlfn.XLOOKUP($K24,'OF Statistics 2011-Q3 2024'!$B:$B,'OF Statistics 2011-Q3 2024'!AA:AA,0,0) -> 0 | AO24: =_xlfn.XLOOKUP($K24,'OF Statistics 2011-Q3 2024'!$B:$B,'OF Statistics 2011-Q3 2024'!AB:AB,0,0) -> 0 | AP24: =_xlfn.XLOOKUP($K24,'OF Statistics 2011-Q3 2024'!$B:$B,'OF Statistics 2011-Q3 2024'!AC:AC,0,0) -> 0 | AQ24: =_xlfn.XLOOKUP($K24,'OF Statistics 2011-Q3 2024'!$B:$B,'OF Statistics 2011-Q3 2024'!AD:AD,0,0) -> 0 | AR24: =_xlfn.XLOOKUP($K24,'OF Statistics 2011-Q3 2024'!$B:$B,'OF Statistics 2011-Q3 2024'!AE:AE,0,0) -> 0 | AS24: =_xlfn.XLOOKUP($K24,'OF Statistics 2011-Q3 2024'!$B:$B,'OF Statistics 2011-Q3 2024'!AF:AF,0,0) -> 0 | AT24: =_xlfn.XLOOKUP($K24,'OF Statistics 2011-Q3 2024'!$B:$B,'OF Statistics 2011-Q3 2024'!AG:AG,0,0) -> 0 | AU24: =_xlfn.XLOOKUP($K24,'OF Statistics 2011-Q3 2024'!$B:$B,'OF Statistics 2011-Q3 2024'!AH:AH,0,0) -> 0 | AV24: =_xlfn.XLOOKUP($K24,'OF Statistics 2011-Q3 2024'!$B:$B,'OF Statistics 2011-Q3 2024'!AI:AI,0,0) -> 0 | AW24: =_xlfn.XLOOKUP($K24,'OF Statistics 2011-Q3 2024'!$B:$B,'OF Statistics 2011-Q3 2024'!AJ:AJ,0,0) -> 0 | AX24: =_xlfn.XLOOKUP($K24,'OF Statistics 2011-Q3 2024'!$B:$B,'OF Statistics 2011-Q3 2024'!AK:AK,0,0) -> 0 | AY24: =_xlfn.XLOOKUP($K24,'OF Statistics 2011-Q3 2024'!$B:$B,'OF Statistics 2011-Q3 2024'!AL:AL,0,0) -> 0 | AZ24: =_xlfn.XLOOKUP($K24,'OF Statistics 2011-Q3 2024'!$B:$B,'OF Statistics 2011-Q3 2024'!AM:AM,0,0) -> 0 | BA24: =_xlfn.XLOOKUP($K24,'OF Statistics 2011-Q3 2024'!$B:$B,'OF Statistics 2011-Q3 2024'!AN:AN,0,0) -> 0 | BB24: =_xlfn.XLOOKUP($K24,'OF Statistics 2011-Q3 2024'!$B:$B,'OF Statistics 2011-Q3 2024'!AO:AO,0,0) -> 0 | BC24: =_xlfn.XLOOKUP($K24,'OF Statistics 2011-Q3 2024'!$B:$B,'OF Statistics 2011-Q3 2024'!AP:AP,0,0) -> 0 | BD24: =_xlfn.XLOOKUP($K24,'OF Statistics 2011-Q3 2024'!$B:$B,'OF Statistics 2011-Q3 2024'!AQ:AQ,0,0) -> 0 | BE24: =_xlfn.XLOOKUP($K24,'OF Statistics 2011-Q3 2024'!$B:$B,'OF Statistics 2011-Q3 2024'!AR:AR,0,0) -> 0 | BF24: =_xlfn.XLOOKUP($K24,'OF Statistics 2011-Q3 2024'!$B:$B,'OF Statistics 2011-Q3 2024'!AS:AS,0,0) -> 0 | BG24: =_xlfn.XLOOKUP($K24,'OF Statistics 2011-Q3 2024'!$B:$B,'OF Statistics 2011-Q3 2024'!AT:AT,0,0) -> 0 | BH24: =_xlfn.XLOOKUP($K24,'OF Statistics 2011-Q3 2024'!$B:$B,'OF Statistics 2011-Q3 2024'!AU:AU,0,0) -> 0 | BI24: =_xlfn.XLOOKUP($K24,'OF Statistics 2011-Q3 2024'!$B:$B,'OF Statistics 2011-Q3 2024'!AV:AV,0,0) -> 0 | BJ24: =_xlfn.XLOOKUP($K24,'OF Statistics 2011-Q3 2024'!$B:$B,'OF Statistics 2011-Q3 2024'!AW:AW,0,0) -> 0 | BK24: =_xlfn.XLOOKUP($K24,'OF Statistics 2011-Q3 2024'!$B:$B,'OF Statistics 2011-Q3 2024'!AX:AX,0,0) -> 0 | BL24: =_xlfn.XLOOKUP($K24,'OF Statistics 2011-Q3 2024'!$B:$B,'OF Statistics 2011-Q3 2024'!AY:AY,0,0) -> 0 | BM24: =_xlfn.XLOOKUP($K24,'OF Statistics 2011-Q3 2024'!$B:$B,'OF Statistics 2011-Q3 2024'!AZ:AZ,0,0) -> 0 | BN24: =_xlfn.XLOOKUP($K24,'OF Statistics 2011-Q3 2024'!$B:$B,'OF Statistics 2011-Q3 2024'!BA:BA,0,0) -> 0 | BO24: =_xlfn.XLOOKUP($K24,'OF Statistics 2011-Q3 2024'!$B:$B,'OF Statistics 2011-Q3 2024'!BB:BB,0,0) -> 0 | BP24: =_xlfn.XLOOKUP($K24,'OF Statistics 2011-Q3 2024'!$B:$B,'OF Statistics 2011-Q3 2024'!BC:BC,0,0) -> 0 | BQ24: =_xlfn.XLOOKUP($K24,'OF Statistics 2011-Q3 2024'!$B:$B,'OF Statistics 2011-Q3 2024'!BD:BD,0,0) -> 0 | BR24: =_xlfn.XLOOKUP($K24,'OF Statistics 2011-Q3 2024'!$B:$B,'OF Statistics 2011-Q3 2024'!BE:BE,0,0) -> 0 | BS24: =_xlfn.XLOOKUP($K24,'OF Statistics 2011-Q3 2024'!$B:$B,'OF Statistics 2011-Q3 2024'!BF:BF,0,0) -> 0 | BT24: =_xlfn.XLOOKUP($K24,'OF Statistics 2011-Q3 2024'!$B:$B,'OF Statistics 2011-Q3 2024'!BG:BG,0,0) -> 0 | BU24: =_xlfn.XLOOKUP($K24,'OF Statistics 2011-Q3 2024'!$B:$B,'OF Statistics 2011-Q3 2024'!BH:BH,0,0) -> 0 | BV24: =_xlfn.XLOOKUP($K24,'OF Statistics 2011-Q3 2024'!$B:$B,'OF Statistics 2011-Q3 2024'!BI:BI,0,0) -> 0 | BW24: =_xlfn.XLOOKUP($K24,'OF Statistics 2011-Q3 2024'!$B:$B,'OF Statistics 2011-Q3 2024'!BJ:BJ,0,0) -> 0 | BX24: =_xlfn.XLOOKUP($K24,'OF Statistics 2011-Q3 2024'!$B:$B,'OF Statistics 2011-Q3 2024'!BK:BK,0,0) -> 0 | BY24: =_xlfn.XLOOKUP($K24,'OF Statistics 2011-Q3 2024'!$B:$B,'OF Statistics 2011-Q3 2024'!BL:BL,0,0) -> 0
C25: Sub total | J25: 22 | K25: Borssele 1&2 | L25: =C35 -> Netherlands | P25: ='OF Asset Book'!G64 -> 376 | R25: =_xlfn.XLOOKUP($K25,'OF Statistics 2011-Q3 2024'!$B:$B,'OF Statistics 2011-Q3 2024'!E:E,0,0) -> 0 | S25: =_xlfn.XLOOKUP($K25,'OF Statistics 2011-Q3 2024'!$B:$B,'OF Statistics 2011-Q3 2024'!F:F,0,0) -> 1332.633375 | T25: =_xlfn.XLOOKUP($K25,'OF Statistics 2011-Q3 2024'!$B:$B,'OF Statistics 2011-Q3 2024'!G:G,0,0) -> 1449.05 | U25: =_xlfn.XLOOKUP($K25,'OF Statistics 2011-Q3 2024'!$B:$B,'OF Statistics 2011-Q3 2024'!H:H,0,0) -> 1258.92 | V25: =_xlfn.XLOOKUP($K25,'OF Statistics 2011-Q3 2024'!$B:$B,'OF Statistics 2011-Q3 2024'!I:I,0,0) -> 1904.5 | W25: =_xlfn.XLOOKUP($K25,'OF Statistics 2011-Q3 2024'!$B:$B,'OF Statistics 2011-Q3 2024'!J:J,0,0) -> 1206.948676 | X25: =_xlfn.XLOOKUP($K25,'OF Statistics 2011-Q3 2024'!$B:$B,'OF Statistics 2011-Q3 2024'!K:K,0,0) -> 0 | Y25: =_xlfn.XLOOKUP($K25,'OF Statistics 2011-Q3 2024'!$B:$B,'OF Statistics 2011-Q3 2024'!L:L,0,0) -> 0 | Z25: =_xlfn.XLOOKUP($K25,'OF Statistics 2011-Q3 2024'!$B:$B,'OF Statistics 2011-Q3 2024'!M:M,0,0) -> 0 | AA25: =_xlfn.XLOOKUP($K25,'OF Statistics 2011-Q3 2024'!$B:$B,'OF Statistics 2011-Q3 2024'!N:N,0,0) -> 0 | AB25: =_xlfn.XLOOKUP($K25,'OF Statistics 2011-Q3 2024'!$B:$B,'OF Statistics 2011-Q3 2024'!O:O,0,0) -> 0 | AC25: =_xlfn.XLOOKUP($K25,'OF Statistics 2011-Q3 2024'!$B:$B,'OF Statistics 2011-Q3 2024'!P:P,0,0) -> 0 | AD25: =_xlfn.XLOOKUP($K25,'OF Statistics 2011-Q3 2024'!$B:$B,'OF Statistics 2011-Q3 2024'!Q:Q,0,0) -> 0 | AE25: =_xlfn.XLOOKUP($K25,'OF Statistics 2011-Q3 2024'!$B:$B,'OF Statistics 2011-Q3 2024'!R:R,0,0) -> 0 | AF25: =_xlfn.XLOOKUP($K25,'OF Statistics 2011-Q3 2024'!$B:$B,'OF Statistics 2011-Q3 2024'!S:S,0,0) -> 0 | AG25: =_xlfn.XLOOKUP($K25,'OF Statistics 2011-Q3 2024'!$B:$B,'OF Statistics 2011-Q3 2024'!T:T,0,0) -> 0 | AH25: =_xlfn.XLOOKUP($K25,'OF Statistics 2011-Q3 2024'!$B:$B,'OF Statistics 2011-Q3 2024'!U:U,0,0) -> 257.77 | AI25: =_xlfn.XLOOKUP($K25,'OF Statistics 2011-Q3 2024'!$B:$B,'OF Statistics 2011-Q3 2024'!V:V,0,0) -> 269.09 | AJ25: =_xlfn.XLOOKUP($K25,'OF Statistics 2011-Q3 2024'!$B:$B,'OF Statistics 2011-Q3 2024'!W:W,0,0) -> 444 | AK25: =_xlfn.XLOOKUP($K25,'OF Statistics 2011-Q3 2024'!$B:$B,'OF Statistics 2011-Q3 2024'!X:X,0,0) -> 489.76 | AL25: =_xlfn.XLOOKUP($K25,'OF Statistics 2011-Q3 2024'!$B:$B,'OF Statistics 2011-Q3 2024'!Y:Y,0,0) -> 259.46 | AM25: =_xlfn.XLOOKUP($K25,'OF Statistics 2011-Q3 2024'!$B:$B,'OF Statistics 2011-Q3 2024'!Z:Z,0,0) -> 288.08 | AN25: =_xlfn.XLOOKUP($K25,'OF Statistics 2011-Q3 2024'!$B:$B,'OF Statistics 2011-Q3 2024'!AA:AA,0,0) -> 411.75 | AO25: =_xlfn.XLOOKUP($K25,'OF Statistics 2011-Q3 2024'!$B:$B,'OF Statistics 2011-Q3 2024'!AB:AB,0,0) -> 400.87 | AP25: =_xlfn.XLOOKUP($K25,'OF Statistics 2011-Q3 2024'!$B:$B,'OF Statistics 2011-Q3 2024'!AC:AC,0,0) -> 197 | AQ25: =_xlfn.XLOOKUP($K25,'OF Statistics 2011-Q3 2024'!$B:$B,'OF Statistics 2011-Q3 2024'!AD:AD,0,0) -> 261.65 | AR25: =_xlfn.XLOOKUP($K25,'OF Statistics 2011-Q3 2024'!$B:$B,'OF Statistics 2011-Q3 2024'!AE:AE,0,0) -> 399.97 | AS25: =_xlfn.XLOOKUP($K25,'OF Statistics 2011-Q3 2024'!$B:$B,'OF Statistics 2011-Q3 2024'!AF:AF,0,0) -> 383.12 | AT25: =_xlfn.XLOOKUP($K25,'OF Statistics 2011-Q3 2024'!$B:$B,'OF Statistics 2011-Q3 2024'!AG:AG,0,0) -> 235.11 | AU25: =_xlfn.XLOOKUP($K25,'OF Statistics 2011-Q3 2024'!$B:$B,'OF Statistics 2011-Q3 2024'!AH:AH,0,0) -> 451.1611075 | AV25: =_xlfn.XLOOKUP($K25,'OF Statistics 2011-Q3 2024'!$B:$B,'OF Statistics 2011-Q3 2024'!AI:AI,0,0) -> 835.1 | AW25: =_xlfn.XLOOKUP($K25,'OF Statistics 2011-Q3 2024'!$B:$B,'OF Statistics 2011-Q3 2024'!AJ:AJ,0,0) -> 835.1 | AX25: =_xlfn.XLOOKUP($K25,'OF Statistics 2011-Q3 2024'!$B:$B,'OF Statistics 2011-Q3 2024'!AK:AK,0,0) -> 308.2 | AY25: =_xlfn.XLOOKUP($K25,'OF Statistics 2011-Q3 2024'!$B:$B,'OF Statistics 2011-Q3 2024'!AL:AL,0,0) -> 63.4 | AZ25: =_xlfn.XLOOKUP($K25,'OF Statistics 2011-Q3 2024'!$B:$B,'OF Statistics 2011-Q3 2024'!AM:AM,0,0) -> 0 | BA25: =_xlfn.XLOOKUP($K25,'OF Statistics 2011-Q3 2024'!$B:$B,'OF Statistics 2011-Q3 2024'!AN:AN,0,0) -> 0 | BB25: =_xlfn.XLOOKUP($K25,'OF Statistics 2011-Q3 2024'!$B:$B,'OF Statistics 2011-Q3 2024'!AO:AO,0,0) -> 0 | BC25: =_xlfn.XLOOKUP($K25,'OF Statistics 2011-Q3 2024'!$B:$B,'OF Statistics 2011-Q3 2024'!AP:AP,0,0) -> 0 | BD25: =_xlfn.XLOOKUP($K25,'OF Statistics 2011-Q3 2024'!$B:$B,'OF Statistics 2011-Q3 2024'!AQ:AQ,0,0) -> 0 | BE25: =_xlfn.XLOOKUP($K25,'OF Statistics 2011-Q3 2024'!$B:$B,'OF Statistics 2011-Q3 2024'!AR:AR,0,0) -> 0 | BF25: =_xlfn.XLOOKUP($K25,'OF Statistics 2011-Q3 2024'!$B:$B,'OF Statistics 2011-Q3 2024'!AS:AS,0,0) -> 0 | BG25: =_xlfn.XLOOKUP($K25,'OF Statistics 2011-Q3 2024'!$B:$B,'OF Statistics 2011-Q3 2024'!AT:AT,0,0) -> 0 | BH25: =_xlfn.XLOOKUP($K25,'OF Statistics 2011-Q3 2024'!$B:$B,'OF Statistics 2011-Q3 2024'!AU:AU,0,0) -> 0 | BI25: =_xlfn.XLOOKUP($K25,'OF Statistics 2011-Q3 2024'!$B:$B,'OF Statistics 2011-Q3 2024'!AV:AV,0,0) -> 0 | BJ25: =_xlfn.XLOOKUP($K25,'OF Statistics 2011-Q3 2024'!$B:$B,'OF Statistics 2011-Q3 2024'!AW:AW,0,0) -> 0 | BK25: =_xlfn.XLOOKUP($K25,'OF Statistics 2011-Q3 2024'!$B:$B,'OF Statistics 2011-Q3 2024'!AX:AX,0,0) -> 0 | BL25: =_xlfn.XLOOKUP($K25,'OF Statistics 2011-Q3 2024'!$B:$B,'OF Statistics 2011-Q3 2024'!AY:AY,0,0) -> 0 | BM25: =_xlfn.XLOOKUP($K25,'OF Statistics 2011-Q3 2024'!$B:$B,'OF Statistics 2011-Q3 2024'!AZ:AZ,0,0) -> 0 | BN25: =_xlfn.XLOOKUP($K25,'OF Statistics 2011-Q3 2024'!$B:$B,'OF Statistics 2011-Q3 2024'!BA:BA,0,0) -> 0 | BO25: =_xlfn.XLOOKUP($K25,'OF Statistics 2011-Q3 2024'!$B:$B,'OF Statistics 2011-Q3 2024'!BB:BB,0,0) -> 0 | BP25: =_xlfn.XLOOKUP($K25,'OF Statistics 2011-Q3 2024'!$B:$B,'OF Statistics 2011-Q3 2024'!BC:BC,0,0) -> 0 | BQ25: =_xlfn.XLOOKUP($K25,'OF Statistics 2011-Q3 2024'!$B:$B,'OF Statistics 2011-Q3 2024'!BD:BD,0,0) -> 0 | BR25: =_xlfn.XLOOKUP($K25,'OF Statistics 2011-Q3 2024'!$B:$B,'OF Statistics 2011-Q3 2024'!BE:BE,0,0) -> 0 | BS25: =_xlfn.XLOOKUP($K25,'OF Statistics 2011-Q3 2024'!$B:$B,'OF Statistics 2011-Q3 2024'!BF:BF,0,0) -> 0 | BT25: =_xlfn.XLOOKUP($K25,'OF Statistics 2011-Q3 2024'!$B:$B,'OF Statistics 2011-Q3 2024'!BG:BG,0,0) -> 0 | BU25: =_xlfn.XLOOKUP($K25,'OF Statistics 2011-Q3 2024'!$B:$B,'OF Statistics 2011-Q3 2024'!BH:BH,0,0) -> 0 | BV25: =_xlfn.XLOOKUP($K25,'OF Statistics 2011-Q3 2024'!$B:$B,'OF Statistics 2011-Q3 2024'!BI:BI,0,0) -> 0 | BW25: =_xlfn.XLOOKUP($K25,'OF Statistics 2011-Q3 2024'!$B:$B,'OF Statistics 2011-Q3 2024'!BJ:BJ,0,0) -> 0 | BX25: =_xlfn.XLOOKUP($K25,'OF Statistics 2011-Q3 2024'!$B:$B,'OF Statistics 2011-Q3 2024'!BK:BK,0,0) -> 0 | BY25: =_xlfn.XLOOKUP($K25,'OF Statistics 2011-Q3 2024'!$B:$B,'OF Statistics 2011-Q3 2024'!BL:BL,0,0) -> 0
J26: 23 | K26: Block Island | L26: =C39 -> United States | P26: ='OF Asset Book'!G54 -> 30 | R26: =_xlfn.XLOOKUP($K26,'OF Statistics 2011-Q3 2024'!$B:$B,'OF Statistics 2011-Q3 2024'!E:E,0,0) -> 0 | S26: =_xlfn.XLOOKUP($K26,'OF Statistics 2011-Q3 2024'!$B:$B,'OF Statistics 2011-Q3 2024'!F:F,0,0) -> 92.23362 | T26: =_xlfn.XLOOKUP($K26,'OF Statistics 2011-Q3 2024'!$B:$B,'OF Statistics 2011-Q3 2024'!G:G,0,0) -> 86.6 | U26: =_xlfn.XLOOKUP($K26,'OF Statistics 2011-Q3 2024'!$B:$B,'OF Statistics 2011-Q3 2024'!H:H,0,0) -> 109.79 | V26: =_xlfn.XLOOKUP($K26,'OF Statistics 2011-Q3 2024'!$B:$B,'OF Statistics 2011-Q3 2024'!I:I,0,0) -> 83.78 | W26: =_xlfn.XLOOKUP($K26,'OF Statistics 2011-Q3 2024'!$B:$B,'OF Statistics 2011-Q3 2024'!J:J,0,0) -> 120 | X26: =_xlfn.XLOOKUP($K26,'OF Statistics 2011-Q3 2024'!$B:$B,'OF Statistics 2011-Q3 2024'!K:K,0,0) -> 120 | Y26: =_xlfn.XLOOKUP($K26,'OF Statistics 2011-Q3 2024'!$B:$B,'OF Statistics 2011-Q3 2024'!L:L,0,0) -> 22.8 | Z26: =_xlfn.XLOOKUP($K26,'OF Statistics 2011-Q3 2024'!$B:$B,'OF Statistics 2011-Q3 2024'!M:M,0,0) -> 0 | AA26: =_xlfn.XLOOKUP($K26,'OF Statistics 2011-Q3 2024'!$B:$B,'OF Statistics 2011-Q3 2024'!N:N,0,0) -> 0 | AB26: =_xlfn.XLOOKUP($K26,'OF Statistics 2011-Q3 2024'!$B:$B,'OF Statistics 2011-Q3 2024'!O:O,0,0) -> 0 | AC26: =_xlfn.XLOOKUP($K26,'OF Statistics 2011-Q3 2024'!$B:$B,'OF Statistics 2011-Q3 2024'!P:P,0,0) -> 0 | AD26: =_xlfn.XLOOKUP($K26,'OF Statistics 2011-Q3 2024'!$B:$B,'OF Statistics 2011-Q3 2024'!Q:Q,0,0) -> 0 | AE26: =_xlfn.XLOOKUP($K26,'OF Statistics 2011-Q3 2024'!$B:$B,'OF Statistics 2011-Q3 2024'!R:R,0,0) -> 0 | AF26: =_xlfn.XLOOKUP($K26,'OF Statistics 2011-Q3 2024'!$B:$B,'OF Statistics 2011-Q3 2024'!S:S,0,0) -> 0 | AG26: =_xlfn.XLOOKUP($K26,'OF Statistics 2011-Q3 2024'!$B:$B,'OF Statistics 2011-Q3 2024'!T:T,0,0) -> 0 | AH26: =_xlfn.XLOOKUP($K26,'OF Statistics 2011-Q3 2024'!$B:$B,'OF Statistics 2011-Q3 2024'!U:U,0,0) -> 16.078611 | AI26: =_xlfn.XLOOKUP($K26,'OF Statistics 2011-Q3 2024'!$B:$B,'OF Statistics 2011-Q3 2024'!V:V,0,0) -> 22.12 | AJ26: =_xlfn.XLOOKUP($K26,'OF Statistics 2011-Q3 2024'!$B:$B,'OF Statistics 2011-Q3 2024'!W:W,0,0) -> 31.47 | AK26: =_xlfn.XLOOKUP($K26,'OF Statistics 2011-Q3 2024'!$B:$B,'OF Statistics 2011-Q3 2024'!X:X,0,0) -> 25.14 | AL26: =_xlfn.XLOOKUP($K26,'OF Statistics 2011-Q3 2024'!$B:$B,'OF Statistics 2011-Q3 2024'!Y:Y,0,0) -> 15.67 | AM26: =_xlfn.XLOOKUP($K26,'OF Statistics 2011-Q3 2024'!$B:$B,'OF Statistics 2011-Q3 2024'!Z:Z,0,0) -> 17.66 | AN26: =_xlfn.XLOOKUP($K26,'OF Statistics 2011-Q3 2024'!$B:$B,'OF Statistics 2011-Q3 2024'!AA:AA,0,0) -> 28.13 | AO26: =_xlfn.XLOOKUP($K26,'OF Statistics 2011-Q3 2024'!$B:$B,'OF Statistics 2011-Q3 2024'!AB:AB,0,0) -> 33.68 | AP26: =_xlfn.XLOOKUP($K26,'OF Statistics 2011-Q3 2024'!$B:$B,'OF Statistics 2011-Q3 2024'!AC:AC,0,0) -> 21.33 | AQ26: =_xlfn.XLOOKUP($K26,'OF Statistics 2011-Q3 2024'!$B:$B,'OF Statistics 2011-Q3 2024'!AD:AD,0,0) -> 20.46 | AR26: =_xlfn.XLOOKUP($K26,'OF Statistics 2011-Q3 2024'!$B:$B,'OF Statistics 2011-Q3 2024'!AE:AE,0,0) -> 34.310232 | AS26: =_xlfn.XLOOKUP($K26,'OF Statistics 2011-Q3 2024'!$B:$B,'OF Statistics 2011-Q3 2024'!AF:AF,0,0) -> 20.4 | AT26: =_xlfn.XLOOKUP($K26,'OF Statistics 2011-Q3 2024'!$B:$B,'OF Statistics 2011-Q3 2024'!AG:AG,0,0) -> 5.59 | AU26: =_xlfn.XLOOKUP($K26,'OF Statistics 2011-Q3 2024'!$B:$B,'OF Statistics 2011-Q3 2024'!AH:AH,0,0) -> 25.646662 | AV26: =_xlfn.XLOOKUP($K26,'OF Statistics 2011-Q3 2024'!$B:$B,'OF Statistics 2011-Q3 2024'!AI:AI,0,0) -> 32.1 | AW26: =_xlfn.XLOOKUP($K26,'OF Statistics 2011-Q3 2024'!$B:$B,'OF Statistics 2011-Q3 2024'!AJ:AJ,0,0) -> 33.8 | AX26: =_xlfn.XLOOKUP($K26,'OF Statistics 2011-Q3 2024'!$B:$B,'OF Statistics 2011-Q3 2024'!AK:AK,0,0) -> 20 | AY26: =_xlfn.XLOOKUP($K26,'OF Statistics 2011-Q3 2024'!$B:$B,'OF Statistics 2011-Q3 2024'!AL:AL,0,0) -> 33.8 | AZ26: =_xlfn.XLOOKUP($K26,'OF Statistics 2011-Q3 2024'!$B:$B,'OF Statistics 2011-Q3 2024'!AM:AM,0,0) -> 32 | BA26: =_xlfn.XLOOKUP($K26,'OF Statistics 2011-Q3 2024'!$B:$B,'OF Statistics 2011-Q3 2024'!AN:AN,0,0) -> 35 | BB26: =_xlfn.XLOOKUP($K26,'OF Statistics 2011-Q3 2024'!$B:$B,'OF Statistics 2011-Q3 2024'!AO:AO,0,0) -> 22.2 | BC26: =_xlfn.XLOOKUP($K26,'OF Statistics 2011-Q3 2024'!$B:$B,'OF Statistics 2011-Q3 2024'!AP:AP,0,0) -> 31 | BD26: =_xlfn.XLOOKUP($K26,'OF Statistics 2011-Q3 2024'!$B:$B,'OF Statistics 2011-Q3 2024'!AQ:AQ,0,0) -> 31.8 | BE26: =_xlfn.XLOOKUP($K26,'OF Statistics 2011-Q3 2024'!$B:$B,'OF Statistics 2011-Q3 2024'!AR:AR,0,0) -> 22.8 | BF26: =_xlfn.XLOOKUP($K26,'OF Statistics 2011-Q3 2024'!$B:$B,'OF Statistics 2011-Q3 2024'!AS:AS,0,0) -> 0 | BG26: =_xlfn.XLOOKUP($K26,'OF Statistics 2011-Q3 2024'!$B:$B,'OF Statistics 2011-Q3 2024'!AT:AT,0,0) -> 0 | BH26: =_xlfn.XLOOKUP($K26,'OF Statistics 2011-Q3 2024'!$B:$B,'OF Statistics 2011-Q3 2024'!AU:AU,0,0) -> 0 | BI26: =_xlfn.XLOOKUP($K26,'OF Statistics 2011-Q3 2024'!$B:$B,'OF Statistics 2011-Q3 2024'!AV:AV,0,0) -> 0 | BJ26: =_xlfn.XLOOKUP($K26,'OF Statistics 2011-Q3 2024'!$B:$B,'OF Statistics 2011-Q3 2024'!AW:AW,0,0) -> 0 | BK26: =_xlfn.XLOOKUP($K26,'OF Statistics 2011-Q3 2024'!$B:$B,'OF Statistics 2011-Q3 2024'!AX:AX,0,0) -> 0 | BL26: =_xlfn.XLOOKUP($K26,'OF Statistics 2011-Q3 2024'!$B:$B,'OF Statistics 2011-Q3 2024'!AY:AY,0,0) -> 0 | BM26: =_xlfn.XLOOKUP($K26,'OF Statistics 2011-Q3 2024'!$B:$B,'OF Statistics 2011-Q3 2024'!AZ:AZ,0,0) -> 0 | BN26: =_xlfn.XLOOKUP($K26,'OF Statistics 2011-Q3 2024'!$B:$B,'OF Statistics 2011-Q3 2024'!BA:BA,0,0) -> 0 | BO26: =_xlfn.XLOOKUP($K26,'OF Statistics 2011-Q3 2024'!$B:$B,'OF Statistics 2011-Q3 2024'!BB:BB,0,0) -> 0 | BP26: =_xlfn.XLOOKUP($K26,'OF Statistics 2011-Q3 2024'!$B:$B,'OF Statistics 2011-Q3 2024'!BC:BC,0,0) -> 0 | BQ26: =_xlfn.XLOOKUP($K26,'OF Statistics 2011-Q3 2024'!$B:$B,'OF Statistics 2011-Q3 2024'!BD:BD,0,0) -> 0 | BR26: =_xlfn.XLOOKUP($K26,'OF Statistics 2011-Q3 2024'!$B:$B,'OF Statistics 2011-Q3 2024'!BE:BE,0,0) -> 0 | BS26: =_xlfn.XLOOKUP($K26,'OF Statistics 2011-Q3 2024'!$B:$B,'OF Statistics 2011-Q3 2024'!BF:BF,0,0) -> 0 | BT26: =_xlfn.XLOOKUP($K26,'OF Statistics 2011-Q3 2024'!$B:$B,'OF Statistics 2011-Q3 2024'!BG:BG,0,0) -> 0 | BU26: =_xlfn.XLOOKUP($K26,'OF Statistics 2011-Q3 2024'!$B:$B,'OF Statistics 2011-Q3 2024'!BH:BH,0,0) -> 0 | BV26: =_xlfn.XLOOKUP($K26,'OF Statistics 2011-Q3 2024'!$B:$B,'OF Statistics 2011-Q3 2024'!BI:BI,0,0) -> 0 | BW26: =_xlfn.XLOOKUP($K26,'OF Statistics 2011-Q3 2024'!$B:$B,'OF Statistics 2011-Q3 2024'!BJ:BJ,0,0) -> 0 | BX26: =_xlfn.XLOOKUP($K26,'OF Statistics 2011-Q3 2024'!$B:$B,'OF Statistics 2011-Q3 2024'!BK:BK,0,0) -> 0 | BY26: =_xlfn.XLOOKUP($K26,'OF Statistics 2011-Q3 2024'!$B:$B,'OF Statistics 2011-Q3 2024'!BL:BL,0,0) -> 0
C27: Germany | J27: 24 | K27: South Fork | L27: =C39 -> United States | P27: ='OF Asset Book'!G55 -> 66 | R27: =_xlfn.XLOOKUP($K27,'OF Statistics 2011-Q3 2024'!$B:$B,'OF Statistics 2011-Q3 2024'!E:E,0,0) -> 0 | S27: =_xlfn.XLOOKUP($K27,'OF Statistics 2011-Q3 2024'!$B:$B,'OF Statistics 2011-Q3 2024'!F:F,0,0) -> 179.568285 | T27: =_xlfn.XLOOKUP($K27,'OF Statistics 2011-Q3 2024'!$B:$B,'OF Statistics 2011-Q3 2024'!G:G,0,0) -> 1.11 | U27: =_xlfn.XLOOKUP($K27,'OF Statistics 2011-Q3 2024'!$B:$B,'OF Statistics 2011-Q3 2024'!H:H,0,0) -> 0 | V27: =_xlfn.XLOOKUP($K27,'OF Statistics 2011-Q3 2024'!$B:$B,'OF Statistics 2011-Q3 2024'!I:I,0,0) -> 0 | W27: =_xlfn.XLOOKUP($K27,'OF Statistics 2011-Q3 2024'!$B:$B,'OF Statistics 2011-Q3 2024'!J:J,0,0) -> 0 | X27: =_xlfn.XLOOKUP($K27,'OF Statistics 2011-Q3 2024'!$B:$B,'OF Statistics 2011-Q3 2024'!K:K,0,0) -> 0 | Y27: =_xlfn.XLOOKUP($K27,'OF Statistics 2011-Q3 2024'!$B:$B,'OF Statistics 2011-Q3 2024'!L:L,0,0) -> 0 | Z27: =_xlfn.XLOOKUP($K27,'OF Statistics 2011-Q3 2024'!$B:$B,'OF Statistics 2011-Q3 2024'!M:M,0,0) -> 0 | AA27: =_xlfn.XLOOKUP($K27,'OF Statistics 2011-Q3 2024'!$B:$B,'OF Statistics 2011-Q3 2024'!N:N,0,0) -> 0 | AB27: =_xlfn.XLOOKUP($K27,'OF Statistics 2011-Q3 2024'!$B:$B,'OF Statistics 2011-Q3 2024'!O:O,0,0) -> 0 | AC27: =_xlfn.XLOOKUP($K27,'OF Statistics 2011-Q3 2024'!$B:$B,'OF Statistics 2011-Q3 2024'!P:P,0,0) -> 0 | AD27: =_xlfn.XLOOKUP($K27,'OF Statistics 2011-Q3 2024'!$B:$B,'OF Statistics 2011-Q3 2024'!Q:Q,0,0) -> 0 | AE27: =_xlfn.XLOOKUP($K27,'OF Statistics 2011-Q3 2024'!$B:$B,'OF Statistics 2011-Q3 2024'!R:R,0,0) -> 0 | AF27: =_xlfn.XLOOKUP($K27,'OF Statistics 2011-Q3 2024'!$B:$B,'OF Statistics 2011-Q3 2024'!S:S,0,0) -> 0 | AG27: =_xlfn.XLOOKUP($K27,'OF Statistics 2011-Q3 2024'!$B:$B,'OF Statistics 2011-Q3 2024'!T:T,0,0) -> 0 | AH27: =_xlfn.XLOOKUP($K27,'OF Statistics 2011-Q3 2024'!$B:$B,'OF Statistics 2011-Q3 2024'!U:U,0,0) -> 32.0608 | AI27: =_xlfn.XLOOKUP($K27,'OF Statistics 2011-Q3 2024'!$B:$B,'OF Statistics 2011-Q3 2024'!V:V,0,0) -> 47.9 | AJ27: =_xlfn.XLOOKUP($K27,'OF Statistics 2011-Q3 2024'!$B:$B,'OF Statistics 2011-Q3 2024'!W:W,0,0) -> 29.49 | AK27: =_xlfn.XLOOKUP($K27,'OF Statistics 2011-Q3 2024'!$B:$B,'OF Statistics 2011-Q3 2024'!X:X,0,0) -> 1.11 | AL27: =_xlfn.XLOOKUP($K27,'OF Statistics 2011-Q3 2024'!$B:$B,'OF Statistics 2011-Q3 2024'!Y:Y,0,0) -> 0 | AM27: =_xlfn.XLOOKUP($K27,'OF Statistics 2011-Q3 2024'!$B:$B,'OF Statistics 2011-Q3 2024'!Z:Z,0,0) -> 0 | AN27: =_xlfn.XLOOKUP($K27,'OF Statistics 2011-Q3 2024'!$B:$B,'OF Statistics 2011-Q3 2024'!AA:AA,0,0) -> 0 | AO27: =_xlfn.XLOOKUP($K27,'OF Statistics 2011-Q3 2024'!$B:$B,'OF Statistics 2011-Q3 2024'!AB:AB,0,0) -> 0 | AP27: =_xlfn.XLOOKUP($K27,'OF Statistics 2011-Q3 2024'!$B:$B,'OF Statistics 2011-Q3 2024'!AC:AC,0,0) -> 0 | AQ27: =_xlfn.XLOOKUP($K27,'OF Statistics 2011-Q3 2024'!$B:$B,'OF Statistics 2011-Q3 2024'!AD:AD,0,0) -> 0 | AR27: =_xlfn.XLOOKUP($K27,'OF Statistics 2011-Q3 2024'!$B:$B,'OF Statistics 2011-Q3 2024'!AE:AE,0,0) -> 0 | AS27: =_xlfn.XLOOKUP($K27,'OF Statistics 2011-Q3 2024'!$B:$B,'OF Statistics 2011-Q3 2024'!AF:AF,0,0) -> 0 | AT27: =_xlfn.XLOOKUP($K27,'OF Statistics 2011-Q3 2024'!$B:$B,'OF Statistics 2011-Q3 2024'!AG:AG,0,0) -> 0 | AU27: =_xlfn.XLOOKUP($K27,'OF Statistics 2011-Q3 2024'!$B:$B,'OF Statistics 2011-Q3 2024'!AH:AH,0,0) -> 0 | AV27: =_xlfn.XLOOKUP($K27,'OF Statistics 2011-Q3 2024'!$B:$B,'OF Statistics 2011-Q3 2024'!AI:AI,0,0) -> 0 | AW27: =_xlfn.XLOOKUP($K27,'OF Statistics 2011-Q3 2024'!$B:$B,'OF Statistics 2011-Q3 2024'!AJ:AJ,0,0) -> 0 | AX27: =_xlfn.XLOOKUP($K27,'OF Statistics 2011-Q3 2024'!$B:$B,'OF Statistics 2011-Q3 2024'!AK:AK,0,0) -> 0 | AY27: =_xlfn.XLOOKUP($K27,'OF Statistics 2011-Q3 2024'!$B:$B,'OF Statistics 2011-Q3 2024'!AL:AL,0,0) -> 0 | AZ27: =_xlfn.XLOOKUP($K27,'OF Statistics 2011-Q3 2024'!$B:$B,'OF Statistics 2011-Q3 2024'!AM:AM,0,0) -> 0 | BA27: =_xlfn.XLOOKUP($K27,'OF Statistics 2011-Q3 2024'!$B:$B,'OF Statistics 2011-Q3 2024'!AN:AN,0,0) -> 0 | BB27: =_xlfn.XLOOKUP($K27,'OF Statistics 2011-Q3 2024'!$B:$B,'OF Statistics 2011-Q3 2024'!AO:AO,0,0) -> 0 | BC27: =_xlfn.XLOOKUP($K27,'OF Statistics 2011-Q3 2024'!$B:$B,'OF Statistics 2011-Q3 2024'!AP:AP,0,0) -> 0 | BD27: =_xlfn.XLOOKUP($K27,'OF Statistics 2011-Q3 2024'!$B:$B,'OF Statistics 2011-Q3 2024'!AQ:AQ,0,0) -> 0 | BE27: =_xlfn.XLOOKUP($K27,'OF Statistics 2011-Q3 2024'!$B:$B,'OF Statistics 2011-Q3 2024'!AR:AR,0,0) -> 0 | BF27: =_xlfn.XLOOKUP($K27,'OF Statistics 2011-Q3 2024'!$B:$B,'OF Statistics 2011-Q3 2024'!AS:AS,0,0) -> 0 | BG27: =_xlfn.XLOOKUP($K27,'OF Statistics 2011-Q3 2024'!$B:$B,'OF Statistics 2011-Q3 2024'!AT:AT,0,0) -> 0 | BH27: =_xlfn.XLOOKUP($K27,'OF Statistics 2011-Q3 2024'!$B:$B,'OF Statistics 2011-Q3 2024'!AU:AU,0,0) -> 0 | BI27: =_xlfn.XLOOKUP($K27,'OF Statistics 2011-Q3 2024'!$B:$B,'OF Statistics 2011-Q3 2024'!AV:AV,0,0) -> 0 | BJ27: =_xlfn.XLOOKUP($K27,'OF Statistics 2011-Q3 2024'!$B:$B,'OF Statistics 2011-Q3 2024'!AW:AW,0,0) -> 0 | BK27: =_xlfn.XLOOKUP($K27,'OF Statistics 2011-Q3 2024'!$B:$B,'OF Statistics 2011-Q3 2024'!AX:AX,0,0) -> 0 | BL27: =_xlfn.XLOOKUP($K27,'OF Statistics 2011-Q3 2024'!$B:$B,'OF Statistics 2011-Q3 2024'!AY:AY,0,0) -> 0 | BM27: =_xlfn.XLOOKUP($K27,'OF Statistics 2011-Q3 2024'!$B:$B,'OF Statistics 2011-Q3 2024'!AZ:AZ,0,0) -> 0 | BN27: =_xlfn.XLOOKUP($K27,'OF Statistics 2011-Q3 2024'!$B:$B,'OF Statistics 2011-Q3 2024'!BA:BA,0,0) -> 0 | BO27: =_xlfn.XLOOKUP($K27,'OF Statistics 2011-Q3 2024'!$B:$B,'OF Statistics 2011-Q3 2024'!BB:BB,0,0) -> 0 | BP27: =_xlfn.XLOOKUP($K27,'OF Statistics 2011-Q3 2024'!$B:$B,'OF Statistics 2011-Q3 2024'!BC:BC,0,0) -> 0 | BQ27: =_xlfn.XLOOKUP($K27,'OF Statistics 2011-Q3 2024'!$B:$B,'OF Statistics 2011-Q3 2024'!BD:BD,0,0) -> 0 | BR27: =_xlfn.XLOOKUP($K27,'OF Statistics 2011-Q3 2024'!$B:$B,'OF Statistics 2011-Q3 2024'!BE:BE,0,0) -> 0 | BS27: =_xlfn.XLOOKUP($K27,'OF Statistics 2011-Q3 2024'!$B:$B,'OF Statistics 2011-Q3 2024'!BF:BF,0,0) -> 0 | BT27: =_xlfn.XLOOKUP($K27,'OF Statistics 2011-Q3 2024'!$B:$B,'OF Statistics 2011-Q3 2024'!BG:BG,0,0) -> 0 | BU27: =_xlfn.XLOOKUP($K27,'OF Statistics 2011-Q3 2024'!$B:$B,'OF Statistics 2011-Q3 2024'!BH:BH,0,0) -> 0 | BV27: =_xlfn.XLOOKUP($K27,'OF Statistics 2011-Q3 2024'!$B:$B,'OF Statistics 2011-Q3 2024'!BI:BI,0,0) -> 0 | BW27: =_xlfn.XLOOKUP($K27,'OF Statistics 2011-Q3 2024'!$B:$B,'OF Statistics 2011-Q3 2024'!BJ:BJ,0,0) -> 0 | BX27: =_xlfn.XLOOKUP($K27,'OF Statistics 2011-Q3 2024'!$B:$B,'OF Statistics 2011-Q3 2024'!BK:BK,0,0) -> 0 | BY27: =_xlfn.XLOOKUP($K27,'OF Statistics 2011-Q3 2024'!$B:$B,'OF Statistics 2011-Q3 2024'!BL:BL,0,0) -> 0
B28: 17 | C28: Borkum Riffgrund 1 | J28: 26 | K28: Greater Changhua 1 | P28: =_xlfn.XLOOKUP($K28,'OF Statistics 2011-Q3 2024'!$B:$B,'OF Statistics 2011-Q3 2024'!D:D,0,0) -> 302.5 | R28: =_xlfn.XLOOKUP($K28,'OF Statistics 2011-Q3 2024'!$B:$B,'OF Statistics 2011-Q3 2024'!E:E,0,0) -> 0 | S28: =_xlfn.XLOOKUP($K28,'OF Statistics 2011-Q3 2024'!$B:$B,'OF Statistics 2011-Q3 2024'!F:F,0,0) -> 1110.2862 | T28: =_xlfn.XLOOKUP($K28,'OF Statistics 2011-Q3 2024'!$B:$B,'OF Statistics 2011-Q3 2024'!G:G,0,0) -> 514.05 | U28: =_xlfn.XLOOKUP($K28,'OF Statistics 2011-Q3 2024'!$B:$B,'OF Statistics 2011-Q3 2024'!H:H,0,0) -> 42.85 | V28: =_xlfn.XLOOKUP($K28,'OF Statistics 2011-Q3 2024'!$B:$B,'OF Statistics 2011-Q3 2024'!I:I,0,0) -> 0 | W28: =_xlfn.XLOOKUP($K28,'OF Statistics 2011-Q3 2024'!$B:$B,'OF Statistics 2011-Q3 2024'!J:J,0,0) -> 0 | X28: =_xlfn.XLOOKUP($K28,'OF Statistics 2011-Q3 2024'!$B:$B,'OF Statistics 2011-Q3 2024'!K:K,0,0) -> 0 | Y28: =_xlfn.XLOOKUP($K28,'OF Statistics 2011-Q3 2024'!$B:$B,'OF Statistics 2011-Q3 2024'!L:L,0,0) -> 0 | Z28: =_xlfn.XLOOKUP($K28,'OF Statistics 2011-Q3 2024'!$B:$B,'OF Statistics 2011-Q3 2024'!M:M,0,0) -> 0 | AA28: =_xlfn.XLOOKUP($K28,'OF Statistics 2011-Q3 2024'!$B:$B,'OF Statistics 2011-Q3 2024'!N:N,0,0) -> 0 | AB28: =_xlfn.XLOOKUP($K28,'OF Statistics 2011-Q3 2024'!$B:$B,'OF Statistics 2011-Q3 2024'!O:O,0,0) -> 0 | AC28: =_xlfn.XLOOKUP($K28,'OF Statistics 2011-Q3 2024'!$B:$B,'OF Statistics 2011-Q3 2024'!P:P,0,0) -> 0 | AD28: =_xlfn.XLOOKUP($K28,'OF Statistics 2011-Q3 2024'!$B:$B,'OF Statistics 2011-Q3 2024'!Q:Q,0,0) -> 0 | AE28: =_xlfn.XLOOKUP($K28,'OF Statistics 2011-Q3 2024'!$B:$B,'OF Statistics 2011-Q3 2024'!R:R,0,0) -> 0 | AF28: =_xlfn.XLOOKUP($K28,'OF Statistics 2011-Q3 2024'!$B:$B,'OF Statistics 2011-Q3 2024'!S:S,0,0) -> 0 | AG28: =_xlfn.XLOOKUP($K28,'OF Statistics 2011-Q3 2024'!$B:$B,'OF Statistics 2011-Q3 2024'!T:T,0,0) -> 0 | AH28: =_xlfn.XLOOKUP($K28,'OF Statistics 2011-Q3 2024'!$B:$B,'OF Statistics 2011-Q3 2024'!U:U,0,0) -> 126.77444 | AI28: =_xlfn.XLOOKUP($K28,'OF Statistics 2011-Q3 2024'!$B:$B,'OF Statistics 2011-Q3 2024'!V:V,0,0) -> 234.78 | AJ28: =_xlfn.XLOOKUP($K28,'OF Statistics 2011-Q3 2024'!$B:$B,'OF Statistics 2011-Q3 2024'!W:W,0,0) -> 278.13 | AK28: =_xlfn.XLOOKUP($K28,'OF Statistics 2011-Q3 2024'!$B:$B,'OF Statistics 2011-Q3 2024'!X:X,0,0) -> 320.06 | AL28: =_xlfn.XLOOKUP($K28,'OF Statistics 2011-Q3 2024'!$B:$B,'OF Statistics 2011-Q3 2024'!Y:Y,0,0) -> 94.18 | AM28: =_xlfn.XLOOKUP($K28,'OF Statistics 2011-Q3 2024'!$B:$B,'OF Statistics 2011-Q3 2024'!Z:Z,0,0) -> 47.27 | AN28: =_xlfn.XLOOKUP($K28,'OF Statistics 2011-Q3 2024'!$B:$B,'OF Statistics 2011-Q3 2024'!AA:AA,0,0) -> 52.54 | AO28: =_xlfn.XLOOKUP($K28,'OF Statistics 2011-Q3 2024'!$B:$B,'OF Statistics 2011-Q3 2024'!AB:AB,0,0) -> 42.85 | AP28: =_xlfn.XLOOKUP($K28,'OF Statistics 2011-Q3 2024'!$B:$B,'OF Statistics 2011-Q3 2024'!AC:AC,0,0) -> 0 | AQ28: =_xlfn.XLOOKUP($K28,'OF Statistics 2011-Q3 2024'!$B:$B,'OF Statistics 2011-Q3 2024'!AD:AD,0,0) -> 0 | AR28: =_xlfn.XLOOKUP($K28,'OF Statistics 2011-Q3 2024'!$B:$B,'OF Statistics 2011-Q3 2024'!AE:AE,0,0) -> 0 | AS28: =_xlfn.XLOOKUP($K28,'OF Statistics 2011-Q3 2024'!$B:$B,'OF Statistics 2011-Q3 2024'!AF:AF,0,0) -> 0 | AT28: =_xlfn.XLOOKUP($K28,'OF Statistics 2011-Q3 2024'!$B:$B,'OF Statistics 2011-Q3 2024'!AG:AG,0,0) -> 0 | AU28: =_xlfn.XLOOKUP($K28,'OF Statistics 2011-Q3 2024'!$B:$B,'OF Statistics 2011-Q3 2024'!AH:AH,0,0) -> 0 | AV28: =_xlfn.XLOOKUP($K28,'OF Statistics 2011-Q3 2024'!$B:$B,'OF Statistics 2011-Q3 2024'!AI:AI,0,0) -> 0 | AW28: =_xlfn.XLOOKUP($K28,'OF Statistics 2011-Q3 2024'!$B:$B,'OF Statistics 2011-Q3 2024'!AJ:AJ,0,0) -> 0 | AX28: =_xlfn.XLOOKUP($K28,'OF Statistics 2011-Q3 2024'!$B:$B,'OF Statistics 2011-Q3 2024'!AK:AK,0,0) -> 0 | AY28: =_xlfn.XLOOKUP($K28,'OF Statistics 2011-Q3 2024'!$B:$B,'OF Statistics 2011-Q3 2024'!AL:AL,0,0) -> 0 | AZ28: =_xlfn.XLOOKUP($K28,'OF Statistics 2011-Q3 2024'!$B:$B,'OF Statistics 2011-Q3 2024'!AM:AM,0,0) -> 0 | BA28: =_xlfn.XLOOKUP($K28,'OF Statistics 2011-Q3 2024'!$B:$B,'OF Statistics 2011-Q3 2024'!AN:AN,0,0) -> 0 | BB28: =_xlfn.XLOOKUP($K28,'OF Statistics 2011-Q3 2024'!$B:$B,'OF Statistics 2011-Q3 2024'!AO:AO,0,0) -> 0 | BC28: =_xlfn.XLOOKUP($K28,'OF Statistics 2011-Q3 2024'!$B:$B,'OF Statistics 2011-Q3 2024'!AP:AP,0,0) -> 0 | BD28: =_xlfn.XLOOKUP($K28,'OF Statistics 2011-Q3 2024'!$B:$B,'OF Statistics 2011-Q3 2024'!AQ:AQ,0,0) -> 0 | BE28: =_xlfn.XLOOKUP($K28,'OF Statistics 2011-Q3 2024'!$B:$B,'OF Statistics 2011-Q3 2024'!AR:AR,0,0) -> 0 | BF28: =_xlfn.XLOOKUP($K28,'OF Statistics 2011-Q3 2024'!$B:$B,'OF Statistics 2011-Q3 2024'!AS:AS,0,0) -> 0 | BG28: =_xlfn.XLOOKUP($K28,'OF Statistics 2011-Q3 2024'!$B:$B,'OF Statistics 2011-Q3 2024'!AT:AT,0,0) -> 0 | BH28: =_xlfn.XLOOKUP($K28,'OF Statistics 2011-Q3 2024'!$B:$B,'OF Statistics 2011-Q3 2024'!AU:AU,0,0) -> 0 | BI28: =_xlfn.XLOOKUP($K28,'OF Statistics 2011-Q3 2024'!$B:$B,'OF Statistics 2011-Q3 2024'!AV:AV,0,0) -> 0 | BJ28: =_xlfn.XLOOKUP($K28,'OF Statistics 2011-Q3 2024'!$B:$B,'OF Statistics 2011-Q3 2024'!AW:AW,0,0) -> 0 | BK28: =_xlfn.XLOOKUP($K28,'OF Statistics 2011-Q3 2024'!$B:$B,'OF Statistics 2011-Q3 2024'!AX:AX,0,0) -> 0 | BL28: =_xlfn.XLOOKUP($K28,'OF Statistics 2011-Q3 2024'!$B:$B,'OF Statistics 2011-Q3 2024'!AY:AY,0,0) -> 0 | BM28: =_xlfn.XLOOKUP($K28,'OF Statistics 2011-Q3 2024'!$B:$B,'OF Statistics 2011-Q3 2024'!AZ:AZ,0,0) -> 0 | BN28: =_xlfn.XLOOKUP($K28,'OF Statistics 2011-Q3 2024'!$B:$B,'OF Statistics 2011-Q3 2024'!BA:BA,0,0) -> 0 | BO28: =_xlfn.XLOOKUP($K28,'OF Statistics 2011-Q3 2024'!$B:$B,'OF Statistics 2011-Q3 2024'!BB:BB,0,0) -> 0 | BP28: =_xlfn.XLOOKUP($K28,'OF Statistics 2011-Q3 2024'!$B:$B,'OF Statistics 2011-Q3 2024'!BC:BC,0,0) -> 0 | BQ28: =_xlfn.XLOOKUP($K28,'OF Statistics 2011-Q3 2024'!$B:$B,'OF Statistics 2011-Q3 2024'!BD:BD,0,0) -> 0 | BR28: =_xlfn.XLOOKUP($K28,'OF Statistics 2011-Q3 2024'!$B:$B,'OF Statistics 2011-Q3 2024'!BE:BE,0,0) -> 0 | BS28: =_xlfn.XLOOKUP($K28,'OF Statistics 2011-Q3 2024'!$B:$B,'OF Statistics 2011-Q3 2024'!BF:BF,0,0) -> 0 | BT28: =_xlfn.XLOOKUP($K28,'OF Statistics 2011-Q3 2024'!$B:$B,'OF Statistics 2011-Q3 2024'!BG:BG,0,0) -> 0 | BU28: =_xlfn.XLOOKUP($K28,'OF Statistics 2011-Q3 2024'!$B:$B,'OF Statistics 2011-Q3 2024'!BH:BH,0,0) -> 0 | BV28: =_xlfn.XLOOKUP($K28,'OF Statistics 2011-Q3 2024'!$B:$B,'OF Statistics 2011-Q3 2024'!BI:BI,0,0) -> 0 | BW28: =_xlfn.XLOOKUP($K28,'OF Statistics 2011-Q3 2024'!$B:$B,'OF Statistics 2011-Q3 2024'!BJ:BJ,0,0) -> 0 | BX28: =_xlfn.XLOOKUP($K28,'OF Statistics 2011-Q3 2024'!$B:$B,'OF Statistics 2011-Q3 2024'!BK:BK,0,0) -> 0 | BY28: =_xlfn.XLOOKUP($K28,'OF Statistics 2011-Q3 2024'!$B:$B,'OF Statistics 2011-Q3 2024'!BL:BL,0,0) -> 0
B29: 18 | C29: Borkum Riffgrund 2 | J29: 27 | K29: Greater Changhua 2a | L29: =K28 -> Greater Changhua 1 | P29: ='OF Asset Book'!G72 -> 302.5 | R29: =_xlfn.XLOOKUP($K29,'OF Statistics 2011-Q3 2024'!$B:$B,'OF Statistics 2011-Q3 2024'!E:E,0,0) -> 0 | S29: =_xlfn.XLOOKUP($K29,'OF Statistics 2011-Q3 2024'!$B:$B,'OF Statistics 2011-Q3 2024'!F:F,0,0) -> 1109.67704 | T29: =_xlfn.XLOOKUP($K29,'OF Statistics 2011-Q3 2024'!$B:$B,'OF Statistics 2011-Q3 2024'!G:G,0,0) -> 776.77 | U29: =_xlfn.XLOOKUP($K29,'OF Statistics 2011-Q3 2024'!$B:$B,'OF Statistics 2011-Q3 2024'!H:H,0,0) -> 49.87 | V29: =_xlfn.XLOOKUP($K29,'OF Statistics 2011-Q3 2024'!$B:$B,'OF Statistics 2011-Q3 2024'!I:I,0,0) -> 0 | W29: =_xlfn.XLOOKUP($K29,'OF Statistics 2011-Q3 2024'!$B:$B,'OF Statistics 2011-Q3 2024'!J:J,0,0) -> 0 | X29: =_xlfn.XLOOKUP($K29,'OF Statistics 2011-Q3 2024'!$B:$B,'OF Statistics 2011-Q3 2024'!K:K,0,0) -> 0 | Y29: =_xlfn.XLOOKUP($K29,'OF Statistics 2011-Q3 2024'!$B:$B,'OF Statistics 2011-Q3 2024'!L:L,0,0) -> 0 | Z29: =_xlfn.XLOOKUP($K29,'OF Statistics 2011-Q3 2024'!$B:$B,'OF Statistics 2011-Q3 2024'!M:M,0,0) -> 0 | AA29: =_xlfn.XLOOKUP($K29,'OF Statistics 2011-Q3 2024'!$B:$B,'OF Statistics 2011-Q3 2024'!N:N,0,0) -> 0 | AB29: =_xlfn.XLOOKUP($K29,'OF Statistics 2011-Q3 2024'!$B:$B,'OF Statistics 2011-Q3 2024'!O:O,0,0) -> 0 | AC29: =_xlfn.XLOOKUP($K29,'OF Statistics 2011-Q3 2024'!$B:$B,'OF Statistics 2011-Q3 2024'!P:P,0,0) -> 0 | AD29: =_xlfn.XLOOKUP($K29,'OF Statistics 2011-Q3 2024'!$B:$B,'OF Statistics 2011-Q3 2024'!Q:Q,0,0) -> 0 | AE29: =_xlfn.XLOOKUP($K29,'OF Statistics 2011-Q3 2024'!$B:$B,'OF Statistics 2011-Q3 2024'!R:R,0,0) -> 0 | AF29: =_xlfn.XLOOKUP($K29,'OF Statistics 2011-Q3 2024'!$B:$B,'OF Statistics 2011-Q3 2024'!S:S,0,0) -> 0 | AG29: =_xlfn.XLOOKUP($K29,'OF Statistics 2011-Q3 2024'!$B:$B,'OF Statistics 2011-Q3 2024'!T:T,0,0) -> 0 | AH29: =_xlfn.XLOOKUP($K29,'OF Statistics 2011-Q3 2024'!$B:$B,'OF Statistics 2011-Q3 2024'!U:U,0,0) -> 143.82828 | AI29: =_xlfn.XLOOKUP($K29,'OF Statistics 2011-Q3 2024'!$B:$B,'OF Statistics 2011-Q3 2024'!V:V,0,0) -> 212.62 | AJ29: =_xlfn.XLOOKUP($K29,'OF Statistics 2011-Q3 2024'!$B:$B,'OF Statistics 2011-Q3 2024'!W:W,0,0) -> 301.09 | AK29: =_xlfn.XLOOKUP($K29,'OF Statistics 2011-Q3 2024'!$B:$B,'OF Statistics 2011-Q3 2024'!X:X,0,0) -> 385.04 | AL29: =_xlfn.XLOOKUP($K29,'OF Statistics 2011-Q3 2024'!$B:$B,'OF Statistics 2011-Q3 2024'!Y:Y,0,0) -> 159.83 | AM29: =_xlfn.XLOOKUP($K29,'OF Statistics 2011-Q3 2024'!$B:$B,'OF Statistics 2011-Q3 2024'!Z:Z,0,0) -> 142.88 | AN29: =_xlfn.XLOOKUP($K29,'OF Statistics 2011-Q3 2024'!$B:$B,'OF Statistics 2011-Q3 2024'!AA:AA,0,0) -> 89.02 | AO29: =_xlfn.XLOOKUP($K29,'OF Statistics 2011-Q3 2024'!$B:$B,'OF Statistics 2011-Q3 2024'!AB:AB,0,0) -> 42.67 | AP29: =_xlfn.XLOOKUP($K29,'OF Statistics 2011-Q3 2024'!$B:$B,'OF Statistics 2011-Q3 2024'!AC:AC,0,0) -> 5.87 | AQ29: =_xlfn.XLOOKUP($K29,'OF Statistics 2011-Q3 2024'!$B:$B,'OF Statistics 2011-Q3 2024'!AD:AD,0,0) -> 1.32 | AR29: =_xlfn.XLOOKUP($K29,'OF Statistics 2011-Q3 2024'!$B:$B,'OF Statistics 2011-Q3 2024'!AE:AE,0,0) -> 0 | AS29: =_xlfn.XLOOKUP($K29,'OF Statistics 2011-Q3 2024'!$B:$B,'OF Statistics 2011-Q3 2024'!AF:AF,0,0) -> 0 | AT29: =_xlfn.XLOOKUP($K29,'OF Statistics 2011-Q3 2024'!$B:$B,'OF Statistics 2011-Q3 2024'!AG:AG,0,0) -> 0 | AU29: =_xlfn.XLOOKUP($K29,'OF Statistics 2011-Q3 2024'!$B:$B,'OF Statistics 2011-Q3 2024'!AH:AH,0,0) -> 0 | AV29: =_xlfn.XLOOKUP($K29,'OF Statistics 2011-Q3 2024'!$B:$B,'OF Statistics 2011-Q3 2024'!AI:AI,0,0) -> 0 | AW29: =_xlfn.XLOOKUP($K29,'OF Statistics 2011-Q3 2024'!$B:$B,'OF Statistics 2011-Q3 2024'!AJ:AJ,0,0) -> 0 | AX29: =_xlfn.XLOOKUP($K29,'OF Statistics 2011-Q3 2024'!$B:$B,'OF Statistics 2011-Q3 2024'!AK:AK,0,0) -> 0 | AY29: =_xlfn.XLOOKUP($K29,'OF Statistics 2011-Q3 2024'!$B:$B,'OF Statistics 2011-Q3 2024'!AL:AL,0,0) -> 0 | AZ29: =_xlfn.XLOOKUP($K29,'OF Statistics 2011-Q3 2024'!$B:$B,'OF Statistics 2011-Q3 2024'!AM:AM,0,0) -> 0 | BA29: =_xlfn.XLOOKUP($K29,'OF Statistics 2011-Q3 2024'!$B:$B,'OF Statistics 2011-Q3 2024'!AN:AN,0,0) -> 0 | BB29: =_xlfn.XLOOKUP($K29,'OF Statistics 2011-Q3 2024'!$B:$B,'OF Statistics 2011-Q3 2024'!AO:AO,0,0) -> 0 | BC29: =_xlfn.XLOOKUP($K29,'OF Statistics 2011-Q3 2024'!$B:$B,'OF Statistics 2011-Q3 2024'!AP:AP,0,0) -> 0 | BD29: =_xlfn.XLOOKUP($K29,'OF Statistics 2011-Q3 2024'!$B:$B,'OF Statistics 2011-Q3 2024'!AQ:AQ,0,0) -> 0 | BE29: =_xlfn.XLOOKUP($K29,'OF Statistics 2011-Q3 2024'!$B:$B,'OF Statistics 2011-Q3 2024'!AR:AR,0,0) -> 0 | BF29: =_xlfn.XLOOKUP($K29,'OF Statistics 2011-Q3 2024'!$B:$B,'OF Statistics 2011-Q3 2024'!AS:AS,0,0) -> 0 | BG29: =_xlfn.XLOOKUP($K29,'OF Statistics 2011-Q3 2024'!$B:$B,'OF Statistics 2011-Q3 2024'!AT:AT,0,0) -> 0 | BH29: =_xlfn.XLOOKUP($K29,'OF Statistics 2011-Q3 2024'!$B:$B,'OF Statistics 2011-Q3 2024'!AU:AU,0,0) -> 0 | BI29: =_xlfn.XLOOKUP($K29,'OF Statistics 2011-Q3 2024'!$B:$B,'OF Statistics 2011-Q3 2024'!AV:AV,0,0) -> 0 | BJ29: =_xlfn.XLOOKUP($K29,'OF Statistics 2011-Q3 2024'!$B:$B,'OF Statistics 2011-Q3 2024'!AW:AW,0,0) -> 0 | BK29: =_xlfn.XLOOKUP($K29,'OF Statistics 2011-Q3 2024'!$B:$B,'OF Statistics 2011-Q3 2024'!AX:AX,0,0) -> 0 | BL29: =_xlfn.XLOOKUP($K29,'OF Statistics 2011-Q3 2024'!$B:$B,'OF Statistics 2011-Q3 2024'!AY:AY,0,0) -> 0 | BM29: =_xlfn.XLOOKUP($K29,'OF Statistics 2011-Q3 2024'!$B:$B,'OF Statistics 2011-Q3 2024'!AZ:AZ,0,0) -> 0 | BN29: =_xlfn.XLOOKUP($K29,'OF Statistics 2011-Q3 2024'!$B:$B,'OF Statistics 2011-Q3 2024'!BA:BA,0,0) -> 0 | BO29: =_xlfn.XLOOKUP($K29,'OF Statistics 2011-Q3 2024'!$B:$B,'OF Statistics 2011-Q3 2024'!BB:BB,0,0) -> 0 | BP29: =_xlfn.XLOOKUP($K29,'OF Statistics 2011-Q3 2024'!$B:$B,'OF Statistics 2011-Q3 2024'!BC:BC,0,0) -> 0 | BQ29: =_xlfn.XLOOKUP($K29,'OF Statistics 2011-Q3 2024'!$B:$B,'OF Statistics 2011-Q3 2024'!BD:BD,0,0) -> 0 | BR29: =_xlfn.XLOOKUP($K29,'OF Statistics 2011-Q3 2024'!$B:$B,'OF Statistics 2011-Q3 2024'!BE:BE,0,0) -> 0 | BS29: =_xlfn.XLOOKUP($K29,'OF Statistics 2011-Q3 2024'!$B:$B,'OF Statistics 2011-Q3 2024'!BF:BF,0,0) -> 0 | BT29: =_xlfn.XLOOKUP($K29,'OF Statistics 2011-Q3 2024'!$B:$B,'OF Statistics 2011-Q3 2024'!BG:BG,0,0) -> 0 | BU29: =_xlfn.XLOOKUP($K29,'OF Statistics 2011-Q3 2024'!$B:$B,'OF Statistics 2011-Q3 2024'!BH:BH,0,0) -> 0 | BV29: =_xlfn.XLOOKUP($K29,'OF Statistics 2011-Q3 2024'!$B:$B,'OF Statistics 2011-Q3 2024'!BI:BI,0,0) -> 0 | BW29: =_xlfn.XLOOKUP($K29,'OF Statistics 2011-Q3 2024'!$B:$B,'OF Statistics 2011-Q3 2024'!BJ:BJ,0,0) -> 0 | BX29: =_xlfn.XLOOKUP($K29,'OF Statistics 2011-Q3 2024'!$B:$B,'OF Statistics 2011-Q3 2024'!BK:BK,0,0) -> 0 | BY29: =_xlfn.XLOOKUP($K29,'OF Statistics 2011-Q3 2024'!$B:$B,'OF Statistics 2011-Q3 2024'!BL:BL,0,0) -> 0
B30: 19 | C30: Gode Wind 1
B31: 20 | C31: Gode Wind 2 | P31: =_xlfn.XLOOKUP($K31,'OF Statistics 2011-Q3 2024'!$B:$B,'OF Statistics 2011-Q3 2024'!D:D,0,0) -> 0 | T31: =_xlfn.XLOOKUP($K31,'OF Statistics 2011-Q3 2024'!$B:$B,'OF Statistics 2011-Q3 2024'!G:G,0,0) -> 0 | U31: =_xlfn.XLOOKUP($K31,'OF Statistics 2011-Q3 2024'!$B:$B,'OF Statistics 2011-Q3 2024'!H:H,0,0) -> 0 | V31: =_xlfn.XLOOKUP($K31,'OF Statistics 2011-Q3 2024'!$B:$B,'OF Statistics 2011-Q3 2024'!I:I,0,0) -> 0 | W31: =_xlfn.XLOOKUP($K31,'OF Statistics 2011-Q3 2024'!$B:$B,'OF Statistics 2011-Q3 2024'!J:J,0,0) -> 0 | X31: =_xlfn.XLOOKUP($K31,'OF Statistics 2011-Q3 2024'!$B:$B,'OF Statistics 2011-Q3 2024'!K:K,0,0) -> 0 | Y31: =_xlfn.XLOOKUP($K31,'OF Statistics 2011-Q3 2024'!$B:$B,'OF Statistics 2011-Q3 2024'!L:L,0,0) -> 0 | Z31: =_xlfn.XLOOKUP($K31,'OF Statistics 2011-Q3 2024'!$B:$B,'OF Statistics 2011-Q3 2024'!M:M,0,0) -> 0 | AA31: =_xlfn.XLOOKUP($K31,'OF Statistics 2011-Q3 2024'!$B:$B,'OF Statistics 2011-Q3 2024'!N:N,0,0) -> 0 | AB31: =_xlfn.XLOOKUP($K31,'OF Statistics 2011-Q3 2024'!$B:$B,'OF Statistics 2011-Q3 2024'!O:O,0,0) -> 0 | AC31: =_xlfn.XLOOKUP($K31,'OF Statistics 2011-Q3 2024'!$B:$B,'OF Statistics 2011-Q3 2024'!P:P,0,0) -> 0 | AD31: =_xlfn.XLOOKUP($K31,'OF Statistics 2011-Q3 2024'!$B:$B,'OF Statistics 2011-Q3 2024'!Q:Q,0,0) -> 0 | AE31: =_xlfn.XLOOKUP($K31,'OF Statistics 2011-Q3 2024'!$B:$B,'OF Statistics 2011-Q3 2024'!R:R,0,0) -> 0 | AF31: =_xlfn.XLOOKUP($K31,'OF Statistics 2011-Q3 2024'!$B:$B,'OF Statistics 2011-Q3 2024'!S:S,0,0) -> 0 | AG31: =_xlfn.XLOOKUP($K31,'OF Statistics 2011-Q3 2024'!$B:$B,'OF Statistics 2011-Q3 2024'!T:T,0,0) -> 0 | AH31: =_xlfn.XLOOKUP($K31,'OF Statistics 2011-Q3 2024'!$B:$B,'OF Statistics 2011-Q3 2024'!U:U,0,0) -> 0 | AI31: =_xlfn.XLOOKUP($K31,'OF Statistics 2011-Q3 2024'!$B:$B,'OF Statistics 2011-Q3 2024'!V:V,0,0) -> 0 | AJ31: =_xlfn.XLOOKUP($K31,'OF Statistics 2011-Q3 2024'!$B:$B,'OF Statistics 2011-Q3 2024'!W:W,0,0) -> 0 | AK31: =_xlfn.XLOOKUP($K31,'OF Statistics 2011-Q3 2024'!$B:$B,'OF Statistics 2011-Q3 2024'!X:X,0,0) -> 0 | AL31: =_xlfn.XLOOKUP($K31,'OF Statistics 2011-Q3 2024'!$B:$B,'OF Statistics 2011-Q3 2024'!Y:Y,0,0) -> 0 | AM31: =_xlfn.XLOOKUP($K31,'OF Statistics 2011-Q3 2024'!$B:$B,'OF Statistics 2011-Q3 2024'!Z:Z,0,0) -> 0 | AN31: =_xlfn.XLOOKUP($K31,'OF Statistics 2011-Q3 2024'!$B:$B,'OF Statistics 2011-Q3 2024'!AA:AA,0,0) -> 0 | AO31: =_xlfn.XLOOKUP($K31,'OF Statistics 2011-Q3 2024'!$B:$B,'OF Statistics 2011-Q3 2024'!AB:AB,0,0) -> 0 | AP31: =_xlfn.XLOOKUP($K31,'OF Statistics 2011-Q3 2024'!$B:$B,'OF Statistics 2011-Q3 2024'!AC:AC,0,0) -> 0 | AQ31: =_xlfn.XLOOKUP($K31,'OF Statistics 2011-Q3 2024'!$B:$B,'OF Statistics 2011-Q3 2024'!AD:AD,0,0) -> 0 | AR31: =_xlfn.XLOOKUP($K31,'OF Statistics 2011-Q3 2024'!$B:$B,'OF Statistics 2011-Q3 2024'!AE:AE,0,0) -> 0 | AS31: =_xlfn.XLOOKUP($K31,'OF Statistics 2011-Q3 2024'!$B:$B,'OF Statistics 2011-Q3 2024'!AF:AF,0,0) -> 0 | AT31: =_xlfn.XLOOKUP($K31,'OF Statistics 2011-Q3 2024'!$B:$B,'OF Statistics 2011-Q3 2024'!AG:AG,0,0) -> 0 | AU31: =_xlfn.XLOOKUP($K31,'OF Statistics 2011-Q3 2024'!$B:$B,'OF Statistics 2011-Q3 2024'!AH:AH,0,0) -> 0 | AV31: =_xlfn.XLOOKUP($K31,'OF Statistics 2011-Q3 2024'!$B:$B,'OF Statistics 2011-Q3 2024'!AI:AI,0,0) -> 0 | AW31: =_xlfn.XLOOKUP($K31,'OF Statistics 2011-Q3 2024'!$B:$B,'OF Statistics 2011-Q3 2024'!AJ:AJ,0,0) -> 0 | AX31: =_xlfn.XLOOKUP($K31,'OF Statistics 2011-Q3 2024'!$B:$B,'OF Statistics 2011-Q3 2024'!AK:AK,0,0) -> 0 | AY31: =_xlfn.XLOOKUP($K31,'OF Statistics 2011-Q3 2024'!$B:$B,'OF Statistics 2011-Q3 2024'!AL:AL,0,0) -> 0 | AZ31: =_xlfn.XLOOKUP($K31,'OF Statistics 2011-Q3 2024'!$B:$B,'OF Statistics 2011-Q3 2024'!AM:AM,0,0) -> 0 | BA31: =_xlfn.XLOOKUP($K31,'OF Statistics 2011-Q3 2024'!$B:$B,'OF Statistics 2011-Q3 2024'!AN:AN,0,0) -> 0 | BB31: =_xlfn.XLOOKUP($K31,'OF Statistics 2011-Q3 2024'!$B:$B,'OF Statistics 2011-Q3 2024'!AO:AO,0,0) -> 0 | BC31: =_xlfn.XLOOKUP($K31,'OF Statistics 2011-Q3 2024'!$B:$B,'OF Statistics 2011-Q3 2024'!AP:AP,0,0) -> 0 | BD31: =_xlfn.XLOOKUP($K31,'OF Statistics 2011-Q3 2024'!$B:$B,'OF Statistics 2011-Q3 2024'!AQ:AQ,0,0) -> 0 | BE31: =_xlfn.XLOOKUP($K31,'OF Statistics 2011-Q3 2024'!$B:$B,'OF Statistics 2011-Q3 2024'!AR:AR,0,0) -> 0 | BF31: =_xlfn.XLOOKUP($K31,'OF Statistics 2011-Q3 2024'!$B:$B,'OF Statistics 2011-Q3 2024'!AS:AS,0,0) -> 0 | BG31: =_xlfn.XLOOKUP($K31,'OF Statistics 2011-Q3 2024'!$B:$B,'OF Statistics 2011-Q3 2024'!AT:AT,0,0) -> 0 | BH31: =_xlfn.XLOOKUP($K31,'OF Statistics 2011-Q3 2024'!$B:$B,'OF Statistics 2011-Q3 2024'!AU:AU,0,0) -> 0 | BI31: =_xlfn.XLOOKUP($K31,'OF Statistics 2011-Q3 2024'!$B:$B,'OF Statistics 2011-Q3 2024'!AV:AV,0,0) -> 0 | BJ31: =_xlfn.XLOOKUP($K31,'OF Statistics 2011-Q3 2024'!$B:$B,'OF Statistics 2011-Q3 2024'!AW:AW,0,0) -> 0 | BK31: =_xlfn.XLOOKUP($K31,'OF Statistics 2011-Q3 2024'!$B:$B,'OF Statistics 2011-Q3 2024'!AX:AX,0,0) -> 0 | BL31: =_xlfn.XLOOKUP($K31,'OF Statistics 2011-Q3 2024'!$B:$B,'OF Statistics 2011-Q3 2024'!AY:AY,0,0) -> 0 | BM31: =_xlfn.XLOOKUP($K31,'OF Statistics 2011-Q3 2024'!$B:$B,'OF Statistics 2011-Q3 2024'!AZ:AZ,0,0) -> 0 | BN31: =_xlfn.XLOOKUP($K31,'OF Statistics 2011-Q3 2024'!$B:$B,'OF Statistics 2011-Q3 2024'!BA:BA,0,0) -> 0 | BO31: =_xlfn.XLOOKUP($K31,'OF Statistics 2011-Q3 2024'!$B:$B,'OF Statistics 2011-Q3 2024'!BB:BB,0,0) -> 0 | BP31: =_xlfn.XLOOKUP($K31,'OF Statistics 2011-Q3 2024'!$B:$B,'OF Statistics 2011-Q3 2024'!BC:BC,0,0) -> 0 | BQ31: =_xlfn.XLOOKUP($K31,'OF Statistics 2011-Q3 2024'!$B:$B,'OF Statistics 2011-Q3 2024'!BD:BD,0,0) -> 0 | BR31: =_xlfn.XLOOKUP($K31,'OF Statistics 2011-Q3 2024'!$B:$B,'OF Statistics 2011-Q3 2024'!BE:BE,0,0) -> 0 | BS31: =_xlfn.XLOOKUP($K31,'OF Statistics 2011-Q3 2024'!$B:$B,'OF Statistics 2011-Q3 2024'!BF:BF,0,0) -> 0 | BT31: =_xlfn.XLOOKUP($K31,'OF Statistics 2011-Q3 2024'!$B:$B,'OF Statistics 2011-Q3 2024'!BG:BG,0,0) -> 0 | BU31: =_xlfn.XLOOKUP($K31,'OF Statistics 2011-Q3 2024'!$B:$B,'OF Statistics 2011-Q3 2024'!BH:BH,0,0) -> 0 | BV31: =_xlfn.XLOOKUP($K31,'OF Statistics 2011-Q3 2024'!$B:$B,'OF Statistics 2011-Q3 2024'!BI:BI,0,0) -> 0 | BW31: =_xlfn.XLOOKUP($K31,'OF Statistics 2011-Q3 2024'!$B:$B,'OF Statistics 2011-Q3 2024'!BJ:BJ,0,0) -> 0 | BX31: =_xlfn.XLOOKUP($K31,'OF Statistics 2011-Q3 2024'!$B:$B,'OF Statistics 2011-Q3 2024'!BK:BK,0,0) -> 0 | BY31: =_xlfn.XLOOKUP($K31,'OF Statistics 2011-Q3 2024'!$B:$B,'OF Statistics 2011-Q3 2024'!BL:BL,0,0) -> 0
B32: 21 | C32: Gode Wind 3
C33: Sub total | L33: Plant | M33: 14
P34: =SUM(P4:P33) -> 5099.04
C35: Netherlands
B36: 22 | C36: Borssele 1&2 | S36: 2024 | T36: 2023 | U36: =T36-1 -> 2022 | V36: =U36-1 -> 2021 | W36: 2020 | X36: 2019 | Y36: 2018 | Z36: 2017 | AA36: 2016 | AB36: 2015 | AC36: 2014 | AD36: 2013 | AE36: 2012
C37: Sub total | K37: =INDEX($K$4:$K$30,$M$33) -> Race Bank | L37: =INDEX(L4:L30,M33) -> United Kingdom | S37: =INDEX(S4:S30,$M$33)/8760/INDEX($P$4:$P$30,$M$33)*1000 -> 0.4248844771 | T37: =INDEX(T4:T30,$M$33)/8760/INDEX($P$4:$P$30,$M$33)*1000 -> 0.4574029471 | U37: =INDEX(U4:U30,$M$33)/8760/INDEX($P$4:$P$30,$M$33)*1000 -> 0.4491444628 | V37: =INDEX(V4:V30,$M$33)/8760/INDEX($P$4:$P$30,$M$33)*1000 -> 0.4259914363 | W37: =INDEX(W4:W30,$M$33)/8760/INDEX($P$4:$P$30,$M$33)*1000 -> 0.4997741984 | X37: =INDEX(X4:X30,$M$33)/8760/INDEX($P$4:$P$30,$M$33)*1000 -> 0.4407312626 | Y37: =INDEX(Y4:Y30,$M$33)/8760/INDEX($P$4:$P$30,$M$33)*1000 -> 0.4554501815 | Z37: =INDEX(Z4:Z30,$M$33)/8760/INDEX($P$4:$P$30,$M$33)*1000 -> 0.1739508589 | AA37: =INDEX(AA4:AA30,$M$33)/8760/INDEX($P$4:$P$30,$M$33)*1000 -> 0 | AB37: =INDEX(AB4:AB30,$M$33)/8760/INDEX($P$4:$P$30,$M$33)*1000 -> 0 | AC37: =INDEX(AC4:AC30,$M$33)/8760/INDEX($P$4:$P$30,$M$33)*1000 -> 0 | AD37: =INDEX(AD4:AD30,$M$33)/8760/INDEX($P$4:$P$30,$M$33)*1000 -> 0 | AE37: =INDEX(AE4:AE30,$M$33)/8760/INDEX($P$4:$P$30,$M$33)*1000 -> 0 | AF37: =INDEX(AF4:AF30,$M$33)/8760/INDEX($P$4:$P$30,$M$33)*1000 -> 0
C39: United States | S39: =DATE(S40,12,31) -> 2012-12-31 | T39: =DATE(T40,12,31) -> 2012-12-31 | U39: =DATE(U40,12,31) -> 2013-12-31 | V39: 2014-12-31 | W39: 2015-12-31 | X39: 2016-12-31 | Y39: 2017-12-31 | Z39: 2018-12-31 | AA39: 2019-12-31 | AB39: 2020-12-31 | AC39: 2021-12-31 | AD39: 2022-12-31 | AE39: 2023-12-31 | AF39: 2024-12-31
B40: 23 | C40: Block Island | S40: 2012 | T40: 2012 | U40: =T40+1 -> 2013 | V40: =U40+1 -> 2014 | W40: 2015 | X40: 2016 | Y40: 2017 | Z40: 2018 | AA40: 2019 | AB40: 2020 | AC40: 2021 | AD40: 2022 | AE40: 2023 | AF40: 2024
B41: 24 | C41: South Fork | K41: =K37 -> Race Bank | L41: =L37 -> United Kingdom | S41: =_xlfn.XLOOKUP(S40,$T$36:$AE$36,$T$37:$AE$37,0,0) -> 0 | T41: =_xlfn.XLOOKUP(T40,$T$36:$AE$36,$T$37:$AE$37,0,0) -> 0 | U41: 0 | V41: 0 | W41: 0 | X41: 0 | Y41: 0.1739508589 | Z41: 0.4554501815 | AA41: 0.4407312626 | AB41: 0.4997741984 | AC41: 0.4259914363 | AD41: 0.4491444628 | AE41: =_xlfn.XLOOKUP(AE40,$S$36:$AE$36,$S$37:$AE$37,0,0) -> 0.4574029471 | AF41: =_xlfn.XLOOKUP(AF40,$S$36:$AE$36,$S$37:$AE$37,0,0) -> 0.4248844771
C42: Sub total
B44: 25 | C44: Taiwan | S44: =IF(S41<>0,S39,NA()) ->  | T44: =IF(T41<>0,T39,NA()) ->  | U44: =IF(U41<>0,U39,NA()) ->  | Y44: 2017-12-31 | Z44: =IF(Z41<>0,Z39,NA()) -> 2018-12-31 | AA44: 2019-12-31 | AB44: 2020-12-31 | AC44: 2021-12-31 | AD44: 2022-12-31 | AE44: 2023-12-31 | AF44: 2024-12-31
B45: 26 | C45: Greater Changhua 1 | K45: =K41 -> Race Bank | L45: =L41 -> United Kingdom | M45: =INDEX(P4:P31,Plant) -> 273 | N45: MW | S45: =S41 -> 0 | T45: =T41 -> 0 | U45: =U41 -> 0 | V45: 0 | W45: 0 | X45: 0 | Y45: 0.1739508589 | Z45: 0.4554501815 | AA45: 0.4407312626 | AB45: 0.4997741984 | AC45: 0.4259914363 | AD45: 0.4491444628 | AE45: 0.4574029471 | AF45: 0.4248844771
B46: 27 | C46: Greater Changhua 2a

Sheet OF Statistics 2011-Q3 2024
B2: Offshore
B4: Generation Ørsted share, GWh | D4: FY 2024 | E4: ='OF Statistics 2020-Q2 2025'!D4 -> FY 2025 | F4: ='OF Statistics 2020-Q2 2025'!E4 -> FY 2024 | G4: FY 2023 | H4: FY 2022 | I4: FY 2021 | J4: FY 2020 | K4: FY 2019 | L4: FY 20181 | M4: FY 2017 | N4: FY 2016 | O4: FY 2015 | P4: FY 2014 | Q4: FY 2013 | R4: FY 2012 | S4: FY 2011 | U4: Q3 2024 | V4: Q2 2024 | W4: Q1 2024 | X4: Q4 2023 | Y4: Q3 2023 | Z4: Q2 2023 | AA4: Q1 2023 | AB4: Q4 2022 | AC4: Q3 2022 | AD4: Q2 2022 | AE4: Q1 2022 | AF4: Q4 2021 | AG4: Q3 2021 | AH4: Q2 2021 | AI4: Q1 2021 | AJ4: Q4 2020 | AK4: Q3 2020 | AL4: Q2 2020 | AM4: Q1 2020 | AN4: Q4 2019 | AO4: Q3 20192 | AP4: Q2 20191 | AQ4: Q1 20191 | AR4: Q4 20181 | AS4: Q3 20181 | AT4: Q2 20181 | AU4: Q1 20181 | AV4: Q4 2017 | AW4: Q3 2017 | AX4: Q2 2017 | AY4: Q1 2017 | AZ4: Q4 2016 | BA4: Q3 2016 | BB4: Q2 2016 | BC4: Q1 2016 | BD4: Q4 2015 | BE4: Q3 2015 | BF4: Q2 2015 | BG4: Q1 2015 | BH4: Q4 2014 | BI4: Q3 2014 | BJ4: Q2 2014 | BK4: Q1 2014
B5: Denmark
B6: Anholt | D6: ='OF Asset Book'!G6 -> 199.8 | F6: ='OF Statistics 2020-Q2 2025'!E6 -> 802.32 | G6: 791.18 | H6: 827.51 | I6: 754.18 | J6: 913.927944 | K6: 884 | L6: 837.3 | M6: 944 | N6: 839 | O6: 797 | P6: 908 | Q6: 593 | R6: 16 | S6: 0 | U6: 136.638852 | V6: 166.24 | W6: 255.44 | X6: 259.13 | Y6: 150.38 | Z6: 143.45 | AA6: 238.22 | AB6: 257.67 | AC6: 155.59 | AD6: 157.07 | AE6: 257.18 | AF6: 234.67 | AG6: 157.32 | AH6: 150.4321535 | AI6: 211.8 | AJ6: 261.806587 | AK6: 190.3 | AL6: 162.6 | AM6: 299 | AN6: 248 | AO6: 194.2 | AP6: 190.3 | AQ6: 251.1 | AR6: 275.8 | AS6: 177.3 | AT6: 164 | AU6: 220 | AV6: 298 | AW6: 173 | AX6: 224 | AY6: 249 | AZ6: 294 | BA6: 158 | BB6: 176 | BC6: 211 | BD6: 189 | BE6: 210 | BF6: 227 | BG6: 171 | BH6: 287 | BI6: 160 | BJ6: 132 | BK6: 329
B7: Horns Rev 1 | D7: ='OF Asset Book'!G7 -> 209.3 | F7: ='OF Statistics 2020-Q2 2025'!E7 -> 227.82 | G7: 225.45 | H7: 216.74 | I7: 193.18 | J7: 172.84153 | K7: 156 | L7: 168.5 | M7: 233 | N7: 235 | O7: 246 | P7: 264 | Q7: 239 | R7: 264 | S7: 268 | U7: 37.815 | V7: 50.55 | W7: 78.25 | X7: 70.73 | Y7: 46.09 | Z7: 43.55 | AA7: 65.09 | AB7: 64 | AC7: 46.47 | AD7: 39.84 | AE7: 66.43 | AF7: 57.51 | AG7: 28.85 | AH7: 46.72146905 | AI7: 60.09754 | AJ7: 35.90046 | AK7: 41.8 | AL7: 33.4 | AM7: 62 | AN7: 67 | AO7: 44.2 | AP7: 41.4 | AQ7: 3.6 | AR7: 14.6 | AS7: 42.4 | AT7: 47 | AU7: 65 | AV7: 66 | AW7: 50 | AX7: 53 | AY7: 64 | AZ7: 66 | BA7: 51 | BB7: 46 | BC7: 72 | BD7: 63 | BE7: 50 | BF7: 58 | BG7: 75 | BH7: 73 | BI7: 51 | BJ7: 65 | BK7: 75
B8: Horns Rev 2 | D8: ='OF Asset Book'!G8 -> 81 | F8: ='OF Statistics 2020-Q2 2025'!E8 -> 764.34 | G8: 718.16 | H8: 812.3 | I8: 728.17 | J8: 821.58358 | K8: 899 | L8: 878.8 | M8: 932 | N8: 847 | O8: 769 | P8: 950 | Q8: 886 | R8: 956 | S8: 911 | U8: 140.114151 | V8: 150.75 | W8: 257.14 | X8: 225.23 | Y8: 139.35 | Z8: 136.34 | AA8: 217.25 | AB8: 245.37 | AC8: 179.68 | AD8: 145.86 | AE8: 241.4 | AF8: 247.57 | AG8: 142.49 | AH8: 141.483142 | AI8: 196.616545 | AJ8: 232.628484 | AK8: 154.8 | AL8: 146.6 | AM8: 288 | AN8: 260 | AO8: 204.2 | AP8: 161.6 | AQ8: 273.6 | AR8: 294.3 | AS8: 169 | AT8: 176 | AU8: 240 | AV8: 302 | AW8: 164 | AX8: 197 | AY8: 269 | AZ8: 260 | BA8: 177 | BB8: 216 | BC8: 194 | BD8: 68 | BE8: 192 | BF8: 237 | BG8: 272 | BH8: 280 | BI8: 173 | BJ8: 157 | BK8: 340
B9: Nysted | D9: ='OF Asset Book'!G9 -> 64 | F9: ='OF Statistics 2020-Q2 2025'!E9 -> 247.11 | G9: 211.75 | H9: 203 | I9: 220.54 | J9: 231.4753585 | K9: 247 | L9: 254.9 | M9: 290 | N9: 253 | O9: 288 | P9: 293 | Q9: 261 | R9: 288 | S9: 300 | U9: 39.1266215 | V9: 46.06 | W9: 91.7 | X9: 61.97 | Y9: 35.9 | Z9: 42.79 | AA9: 71.1 | AB9: 59.55 | AC9: 37.22 | AD9: 38.31 | AE9: 67.92 | AF9: 64.9 | AG9: 42.16 | AH9: 42.9387425 | AI9: 70.5370195 | AJ9: 66.247264 | AK9: 39.2 | AL9: 51.6 | AM9: 75 | AN9: 56 | AO9: 55 | AP9: 54.3 | AQ9: 81.5 | AR9: 78.9 | AS9: 45.9 | AT9: 55 | AU9: 75 | AV9: 96 | AW9: 50 | AX9: 71 | AY9: 73 | AZ9: 76 | BA9: 45 | BB9: 57 | BC9: 75 | BD9: 82 | BE9: 66 | BF9: 47 | BG9: 93 | BH9: 83 | BI9: 59 | BJ9: 50 | BK9: 101
B10: Other DK farms (Avedøre Holme) | D10: ='OF Asset Book'!G10 -> 7.2 | F10: ='OF Statistics 2020-Q2 2025'!E10 -> 19.64 | G10: 22.92 | H10: 24.35 | I10: 21.83 | J10: 25.248682 | K10: 23 | L10: 57.2 | M10: 77 | N10: 68 | O10: 80 | P10: 84 | Q10: 67 | R10: 74 | S10: 63 | U10: 2.713579 | V10: 4.44 | W10: 7.95 | X10: 6.06 | Y10: 4.99 | Z10: 4.53 | AA10: 7.35 | AB10: 7.37 | AC10: 4.44 | AD10: 4.05 | AE10: 8.48 | AF10: 6.72 | AG10: 4.09 | AH10: 4.687031 | AI10: 6.329873 | AJ10: 7.216092 | AK10: 4.8 | AL10: 4.7 | AM10: 8 | AN10: 7 | AO10: 5.4 | AP10: 5.3 | AQ10: 6.8 | AR10: 14 | AS10: 10.5 | AT10: 13 | AU10: 19 | AV10: 25 | AW10: 13 | AX10: 19 | AY10: 20 | AZ10: 24 | BA10: 11 | BB10: 14 | BC10: 19 | BD10: 21 | BE10: 19 | BF10: 18 | BG10: 22 | BH10: 27 | BI10: 15 | BJ10: 11 | BK10: 31
B11: Sub total | F11: ='OF Statistics 2020-Q2 2025'!E11 -> 2061.23 | G11: 1969.46 | H11: 2083.9 | I11: 1917.9 | J11: 2165.077094 | K11: 2209 | L11: 2196.7 | M11: 2476 | N11: 2242 | O11: 2180 | P11: 2499 | Q11: 2046 | R11: 1598 | S11: 1542 | U11: 356.4082035 | V11: 418.04 | W11: 690.48 | X11: 623.12 | Y11: 376.71 | Z11: 370.66 | AA11: 599.01 | AB11: 633.96 | AC11: 423.4 | AD11: 385.13 | AE11: 641.41 | AF11: 611.37 | AG11: 374.91 | AH11: 386.2625381 | AI11: 545.3809775 | AJ11: 603.798887 | AK11: 430.9 | AL11: 398.9 | AM11: 732 | AN11: 638 | AO11: 503 | AP11: 452.9 | AQ11: 616.6 | AR11: 677.6 | AS11: 445.1 | AT11: 455 | AU11: 619 | AV11: 787 | AW11: 450 | AX11: 564 | AY11: 675 | AZ11: 720 | BA11: 442 | BB11: 509 | BC11: 571 | BD11: 423 | BE11: 537 | BF11: 587 | BG11: 633 | BH11: 750 | BI11: 458 | BJ11: 415 | BK11: 876
B13: United Kingdom
B14: Barrow (one-line consolidated in 2013 and 2014) | D14: ='OF Asset Book'!G18 -> 194.4 | F14: ='OF Statistics 2020-Q2 2025'!E14 -> 243.1697842 | G14: 246.12 | H14: 258.76 | I14: 232.83 | J14: 252.3157338 | K14: 278 | L14: 276.9 | M14: 290 | N14: 280 | O14: 307 | P14: 0 | Q14: 0 | R14: 149 | S14: 160 | U14: 53.01913189 | V14: 54.25 | W14: 77 | X14: 81.28 | Y14: 58.83 | Z14: 33.75 | AA14: 72.26 | AB14: 83.01 | AC14: 45.83 | AD14: 50.14 | AE14: 79.78 | AF14: 82.87 | AG14: 34.32 | AH14: 35.78210493 | AI14: 79.85346226 | AJ14: 81.7 | AK14: 42.9 | AL14: 51.5 | AM14: 76 | AN14: 83 | AO14: 65.7 | AP14: 51.5 | AQ14: 78.4 | AR14: 88.3 | AS14: 52.1 | AT14: 44 | AU14: 93 | AV14: 92 | AW14: 56 | AX14: 61 | AY14: 81 | AZ14: 76 | BA14: 67 | BB14: 46 | BC14: 91 | BD14: 87 | BE14: 57 | BF14: 68 | BG14: 95 | BH14: 0 | BI14: 0 | BJ14: 0 | BK14: 0
B15: Burbo Bank 1+2 | D15: ='OF Asset Book'!G19 -> 183.9672 | F15: ='OF Statistics 2020-Q2 2025'!E15 -> 683.9165641 | G15: 657.29 | H15: 661.32 | I15: 615.12 | J15: 789.8 | K15: 711 | L15: 690 | M15: 618 | N15: 264 | O15: 325 | P15: 293 | Q15: 294 | R15: 257 | S15: 293 | U15: 145.39 | V15: 143.86 | W15: 210 | X15: 214.76 | Y15: 146.27 | Z15: 96.57 | AA15: 199.69 | AB15: 213.97 | AC15: 109.26 | AD15: 133.07 | AE15: 205.02 | AF15: 218.23 | AG15: 83.62 | AH15: 100.824706 | AI15: 212.4 | AJ15: 240 | AK15: 153.9 | AL15: 134.3 | AM15: 262 | AN15: 214 | AO15: 160.9 | AP15: 122 | AQ15: 214 | AR15: 234 | AS15: 126.3 | AT15: 87 | AU15: 243 | AV15: 175 | AW15: 149 | AX15: 134 | AY15: 160 | AZ15: 75 | BA15: 63 | BB15: 38 | BC15: 88 | BD15: 102 | BE15: 54 | BF15: 71 | BG15: 98 | BH15: 95 | BI15: 48 | BJ15: 46 | BK15: 104
B16: Gunfleet Sands 1+2 | D16: ='OF Asset Book'!G20 -> 67.5 | F16: ='OF Statistics 2020-Q2 2025'!E16 -> 265.4946363 | G16: 282.37 | H16: 248.09 | I16: 241.68 | J16: 298.8 | K16: 255 | L16: 272.7 | M16: 256 | N16: 269 | O16: 291 | P16: 255 | Q16: 271 | R16: 262 | S16: 493 | U16: 52.98 | V16: 57.35 | W16: 88 | X16: 91.33 | Y16: 53.23 | Z16: 58.89 | AA16: 78.93 | AB16: 80.92 | AC16: 35.56 | AD16: 50.86 | AE16: 80.75 | AF16: 75.04 | AG16: 41.29 | AH16: 47.78105173 | AI16: 77.6 | AJ16: 83.3 | AK16: 60.7 | AL16: 50.7 | AM16: 104 | AN16: 85 | AO16: 51.1 | AP16: 41.8 | AQ16: 75.8 | AR16: 84.8 | AS16: 48.9 | AT16: 43 | AU16: 96 | AV16: 85 | AW16: 46 | AX16: 52 | AY16: 73 | AZ16: 70 | BA16: 50 | BB16: 51 | BC16: 98 | BD16: 94 | BE16: 50 | BF16: 62 | BG16: 85 | BH16: 80 | BI16: 38 | BJ16: 41 | BK16: 96
B17: Gunfleet Sand Demo | D17: ='OF Asset Book'!G21 -> 105 | F17: ='OF Statistics 2020-Q2 2025'!E17 -> 31.80674086 | G17: 30.47 | H17: 15.21 | I17: 23.47 | J17: 37 | K17: 32 | L17: 34.2 | M17: 35 | N17: 35 | O17: 39 | P17: 28 | Q17: 15 | R17: 0 | S17: 0 | U17: 5.76 | V17: 8 | W17: 10 | X17: 7.87 | Y17: 7.47 | Z17: 6.28 | AA17: 8.85 | AB17: 6.36 | AC17: 4.18 | AD17: 4.37 | AE17: 0.29 | AF17: 8.1 | AG17: 1.72 | AH17: 5.353208524 | AI17: 8.3 | AJ17: 9.4 | AK17: 6.8 | AL17: 6.3 | AM17: 15 | AN17: 12 | AO17: 6.5 | AP17: 5.4 | AQ17: 8.5 | AR17: 10.2 | AS17: 5.9 | AT17: 5 | AU17: 13 | AV17: 12 | AW17: 7 | AX17: 7 | AY17: 9 | AZ17: 9 | BA17: 7 | BB17: 6 | BC17: 13 | BD17: 13 | BE17: 7 | BF17: 8 | BG17: 11 | BH17: 6 | BI17: 4 | BJ17: 5 | BK17: 13
B18: Lincs (pro-rata consolidated from February 2017) | D18: ='OF Asset Book'!G22 -> 86.5728 | F18: ='OF Statistics 2020-Q2 2025'!E18 -> 254.1500701 | G18: 234.32 | H18: 233.39 | I18: 231.59 | J18: 272 | K18: 243 | L18: 244.5 | M18: 237 | N18: 0 | O18: 0 | P18: 0 | Q18: 0 | R18: 0 | S18: 0 | U18: 46.83 | V18: 53.95 | W18: 89 | X18: 69.6 | Y18: 48.89 | Z18: 41.63 | AA18: 74.2 | AB18: 77.66 | AC18: 29.05 | AD18: 48.81 | AE18: 77.87 | AF18: 79.31 | AG18: 40.65 | AH18: 39.87079305 | AI18: 71.8 | AJ18: 77.2 | AK18: 53.9 | AL18: 48.2 | AM18: 93 | AN18: 73 | AO18: 52.9 | AP18: 46.6 | AQ18: 70.7 | AR18: 76.4 | AS18: 43.3 | AT18: 42 | AU18: 83 | AV18: 79 | AW18: 53 | AX18: 57 | AY18: 48 | AZ18: 0 | BA18: 0 | BB18: 0 | BC18: 0 | BD18: 0 | BE18: 0 | BF18: 0 | BG18: 0 | BH18: 0 | BI18: 0 | BJ18: 0 | BK18: 0
B19: London Array 1 | D19: ='OF Asset Book'!G23 -> 90 | F19: ='OF Statistics 2020-Q2 2025'!E19 -> 0 | G19: 345.42 | H19: 517.69 | I19: 540.32 | J19: 638.0436504 | K19: 490 | L19: 519 | M19: 536 | N19: 567 | O19: 610 | P19: 745 | Q19: 1003 | R19: 65 | S19: 0 | U19: 0 | V19: 0 | W19: 0 | X19: 0 | Y19: 50 | Z19: 122.4 | AA19: 173.02 | AB19: 171.69 | AC19: 76.73 | AD19: 107.52 | AE19: 161.75 | AF19: 165.85 | AG19: 103.81 | AH19: 98.66351397 | AI19: 172 | AJ19: 186 | AK19: 124.8 | AL19: 109.3 | AM19: 218 | AN19: 200 | AO19: 86.8 | AP19: 68.2 | AQ19: 134.9 | AR19: 151.5 | AS19: 89.5 | AT19: 89 | AU19: 189 | AV19: 180 | AW19: 102 | AX19: 106 | AY19: 148 | AZ19: 154 | BA19: 103 | BB19: 105 | BC19: 205 | BD19: 205 | BE19: 104 | BF19: 126 | BG19: 175 | BH19: 176 | BI19: 85 | BJ19: 92 | BK19: 392
B20: Walney 1&2 | D20: ='OF Asset Book'!G24 -> 90 | F20: ='OF Statistics 2020-Q2 2025'!E20 -> 637.3584245 | G20: 653.9 | H20: 659.68 | I20: 566.91 | J20: 708.9 | K20: 691 | L20: 676 | M20: 765 | N20: 567 | O20: 707 | P20: 726 | Q20: 709 | R20: 693 | S20: 326 | U20: 148.76 | V20: 128.89 | W20: 183 | X20: 215.11 | Y20: 153.33 | Z20: 96.01 | AA20: 189.45 | AB20: 208.39 | AC20: 116.12 | AD20: 136.66 | AE20: 198.51 | AF20: 210.34 | AG20: 75.81 | AH20: 86.22116854 | AI20: 194.5 | AJ20: 206.3 | AK20: 152.4 | AL20: 120.5 | AM20: 230 | AN20: 210 | AO20: 157.6 | AP20: 121.6 | AQ20: 201.6 | AR20: 224.4 | AS20: 132.8 | AT20: 80 | AU20: 239 | AV20: 245 | AW20: 161 | AX20: 157 | AY20: 202 | AZ20: 188 | BA20: 157 | BB20: 121 | BC20: 101 | BD20: 169 | BE20: 144 | BF20: 168 | BG20: 226 | BH20: 220 | BI20: 122 | BJ20: 130 | BK20: 254
B21: Walney 3&4 | D21: ='OF Asset Book'!G25 -> 12 | F21: ='OF Statistics 2020-Q2 2025'!E21 -> 1265.684251 | G21: 1273.14 | H21: 1332.96 | I21: 1084.18 | J21: 1425.8 | K21: 1348 | L21: 1120 | M21: 103 | N21: 0 | O21: 0 | P21: 0 | Q21: 0 | R21: 0 | S21: 0 | U21: 275.22 | V21: 249.07 | W21: 378 | X21: 394.57 | Y21: 287.99 | Z21: 196.78 | AA21: 393.81 | AB21: 427.05 | AC21: 234.33 | AD21: 270.95 | AE21: 400.64 | AF21: 407.79 | AG21: 150.94 | AH21: 163.109662 | AI21: 362.3 | AJ21: 428.2 | AK21: 291.6 | AL21: 248.5 | AM21: 458 | AN21: 410 | AO21: 303.3 | AP21: 252.8 | AQ21: 381.4 | AR21: 422.1 | AS21: 271.4 | AT21: 204 | AU21: 222 | AV21: 101 | AW21: 2
B22: West of Duddon Sands | D22: ='OF Asset Book'!G26 -> 129.5 | F22: ='OF Statistics 2020-Q2 2025'!E22 -> 724.6517991 | G22: 741.82 | H22: 753.25 | I22: 633.95 | J22: 801.8 | K22: 734 | L22: 754 | M22: 808 | N22: 735 | O22: 734 | P22: 374 | Q22: 0 | R22: 0 | S22: 0 | U22: 164.3107374 | V22: 134.95 | W22: 222 | X22: 246.02 | Y22: 177.92 | Z22: 101.52 | AA22: 216.36 | AB22: 242.83 | AC22: 129.6 | AD22: 155.52 | AE22: 225.29 | AF22: 242.11 | AG22: 87.12 | AH22: 97.93228498 | AI22: 206.8 | AJ22: 244.5 | AK22: 178 | AL22: 128.1 | AM22: 251 | AN22: 228 | AO22: 176.3 | AP22: 108.6 | AQ22: 221.1 | AR22: 243.7 | AS22: 144 | AT22: 114 | AU22: 252 | AV22: 252 | AW22: 176 | AX22: 166 | AY22: 214 | AZ22: 208 | BA22: 187 | BB22: 125 | BC22: 215 | BD22: 173 | BE22: 160 | BF22: 164 | BG22: 237 | BH22: 227 | BI22: 75 | BJ22: 57 | BK22: 13
B23: Westermost Rough | D23: ='OF Asset Book'!G27 -> 273 | F23: ='OF Statistics 2020-Q2 2025'!E23 -> 418.223032 | G23: 391.51 | H23: 411.7 | I23: 386.37 | J23: 467.3 | K23: 430 | L23: 439.8 | M23: 452 | N23: 421 | O23: 277 | P23: 23 | Q23: 0 | R23: 0 | S23: 0 | U23: 77.12946252 | V23: 98 | W23: 135 | X23: 122.77 | Y23: 77.14 | Z23: 64.58 | AA23: 127.03 | AB23: 127.01 | AC23: 67.06 | AD23: 83.82 | AE23: 133.81 | AF23: 128.95 | AG23: 67.74 | AH23: 66.28484588 | AI23: 123.4 | AJ23: 129.4 | AK23: 101.1 | AL23: 84.2 | AM23: 152 | AN23: 130 | AO23: 96.2 | AP23: 72.2 | AQ23: 132.3 | AR23: 140.1 | AS23: 74.7 | AT23: 82 | AU23: 143 | AV23: 143 | AW23: 90 | AX23: 101 | AY23: 118 | AZ23: 116 | BA23: 85 | BB23: 91 | BC23: 129 | BD23: 112 | BE23: 69 | BF23: 69 | BG23: 27 | BH23: 23 | BI23: 0 | BJ23: 0 | BK23: 0
B24: Race Bank | D24: ='OF Asset Book'!G28 -> 329.5 | F24: ='OF Statistics 2020-Q2 2025'!E24 -> 1016.102729 | G24: 1093.87 | H24: 1074.12 | I24: 1018.75 | J24: 1195.2 | K24: 1054 | L24: 1089.2 | M24: 416 | N24: 0 | O24: 0 | P24: 0 | Q24: 0 | R24: 0 | S24: 0 | U24: 188.412761 | V24: 212.64 | W24: 302 | X24: 353.34 | Y24: 219.57 | Z24: 177.85 | AA24: 343.12 | AB24: 347.56 | AC24: 166.62 | AD24: 209.14 | AE24: 350.81 | AF24: 353 | AG24: 172.97 | AH24: 166.165246 | AI24: 326.6 | AJ24: 339.4 | AK24: 229.2 | AL24: 212.1 | AM24: 414 | AN24: 327 | AO24: 234 | AP24: 174 | AQ24: 318.5 | AR24: 324.8 | AS24: 191.1 | AT24: 207 | AU24: 366 | AV24: 314 | AW24: 92 | AX24: 10
B25: Hornsea 1 | D25: ='OF Asset Book'!G29 -> 609 | F25: ='OF Statistics 2020-Q2 2025'!E25 -> 2169.069504 | G25: 2435.63 | H25: 2518.67 | I25: 2305.78 | J25: 2568.8 | K25: 1150 | L25: 0 | M25: 0 | N25: 0 | O25: 0 | P25: 0 | Q25: 0 | R25: 0 | S25: 0 | U25: 501.2962586 | V25: 414.86 | W25: 534 | X25: 791.01 | Y25: 465.48 | Z25: 428.73 | AA25: 750.41 | AB25: 805.02 | AC25: 423.53 | AD25: 510.96 | AE25: 779.14 | AF25: 786.76 | AG25: 411.72 | AH25: 418.0644947 | AI25: 689.2 | AJ25: 758.6 | AK25: 546.7 | AL25: 470.1 | AM25: 793 | AN25: 575 | AO25: 386.4 | AP25: 167.2 | AQ25: 21.2
B26: Hornsea 2 | D26: ='OF Asset Book'!G30 -> 660 | F26: ='OF Statistics 2020-Q2 2025'!E26 -> 2647.419342 | G26: 2501.55 | H26: 2303.92 | I26: -1.15 | J26: 0 | K26: 0 | L26: 0 | M26: 0 | N26: 0 | O26: 0 | P26: 0 | Q26: 0 | R26: 0 | S26: 0 | U26: 463.106477 | V26: 472.89 | W26: 914 | X26: 845.79 | Y26: 513 | Z26: 354.15 | AA26: 788.61 | AB26: 839.46 | AC26: 774.15 | AD26: 522.41 | AE26: 167.9 | AF26: -1.15
B27: Sub total | F27: ='OF Statistics 2020-Q2 2025'!E27 -> 10357.04688 | G27: 10887.41 | H27: 10988.76 | I27: 7879.8 | J27: 9455.759384 | K27: 7416 | L27: 6116.3 | M27: 4516 | N27: 3138 | O27: 3290 | P27: 2444 | Q27: 2292 | R27: 1426 | S27: 1272 | U27: 2122.214828 | V27: 2028.71 | W27: 3142 | X27: 3433.45 | Y27: 2259.12 | Z27: 1779.14 | AA27: 3415.74 | AB27: 3630.93 | AC27: 2212.02 | AD27: 2284.23 | AE27: 2861.56 | AF27: 2757.2 | AG27: 1271.71 | AH27: 1326.05308 | AI27: 2524.753462 | AJ27: 2784 | AK27: 1942 | AL27: 1663.8 | AM27: 3066 | AN27: 2547 | AO27: 1777.7 | AP27: 1231.9 | AQ27: 1858.4 | AR27: 2000.3 | AS27: 1180 | AT27: 997 | AU27: 1939 | AV27: 1678 | AW27: 934 | AX27: 851 | AY27: 1053 | AZ27: 896 | BA27: 719 | BB27: 583 | BC27: 940 | BD27: 955 | BE27: 645 | BF27: 736 | BG27: 954 | BH27: 827 | BI27: 372 | BJ27: 371 | BK27: 872
B29: Germany
B30: Borkum Riffgrund 1 | D30: ='OF Asset Book'!G42 -> 156 | F30: ='OF Statistics 2020-Q2 2025'!E30 -> 475.0774542 | G30: 449.24 | H30: 398.94 | I30: 424.13 | J30: 541.47452 | K30: 491 | L30: 487.7 | M30: 542 | N30: 522 | O30: 321 | P30: 0 | Q30: 0 | R30: 0 | S30: 0 | U30: 90.7772792 | V30: 88.51 | W30: 167 | X30: 171.32 | Y30: 82.59 | Z30: 73.89 | AA30: 121.44 | AB30: 128.3 | AC30: 74.57 | AD30: 73.91 | AE30: 122.16 | AF30: 140.61 | AG30: 82.1 | AH30: 69.30394 | AI30: 132.1 | AJ30: 167.9236892 | AK30: 94.5 | AL30: 89.3382056 | AM30: 190 | AN30: 161 | AO30: 104.9 | AP30: 89.2 | AQ30: 136.2 | AR30: 146.9 | AS30: 87.8 | AT30: 112 | AU30: 141 | AV30: 147 | AW30: 102 | AX30: 121 | AY30: 172 | AZ30: 166 | BA30: 99 | BB30: 109 | BC30: 148 | BD30: 170 | BE30: 108 | BF30: 42 | BG30: 1 | BH30: 0 | BI30: 0 | BJ30: 0 | BK30: 0
B31: Borkum Riffgrund 2 | D31: ='OF Asset Book'!G43 -> 225 | F31: ='OF Statistics 2020-Q2 2025'!E31 -> 673.400185 | G31: 670.09 | H31: 652.32 | I31: 674.13 | J31: 764.6963936 | K31: 623 | L31: 189.9 | M31: 0 | N31: 0 | O31: 0 | P31: 0 | Q31: 0 | R31: 0 | S31: 0 | U31: 112.876395 | V31: 129.64 | W31: 243 | X31: 237.19 | Y31: 121.94 | Z31: 123.26 | AA31: 187.7 | AB31: 211.09 | AC31: 123.07 | AD31: 123.02 | AE31: 195.13 | AF31: 241.58 | AG31: 125.49 | AH31: 103.777395 | AI31: 203.3 | AJ31: 267.4582536 | AK31: 154.4 | AL31: 136.3256558 | AM31: 207 | AN31: 214 | AO31: 129.7 | AP31: 112.1 | AQ31: 166.7 | AR31: 158.1 | AS31: 31.8
B32: Gode Wind 1 | D32: ='OF Asset Book'!G44 -> 166 | F32: ='OF Statistics 2020-Q2 2025'!E32 -> 570.70523 | G32: 542.53 | H32: 510.56 | I32: 525.63 | J32: 566.941206 | K32: 629 | L32: 584.4 | M32: 559 | N32: 67 | O32: 0 | P32: 0 | Q32: 0 | R32: 0 | S32: 0 | U32: 107.602145 | V32: 114.24 | W32: 195 | X32: 179.92 | Y32: 101.13 | Z32: 116.4 | AA32: 145.07 | AB32: 165.38 | AC32: 106.08 | AD32: 99.79 | AE32: 139.31 | AF32: 171.89 | AG32: 107.38 | AH32: 85.63886 | AI32: 160.7 | AJ32: 126.4132508 | AK32: 122.5 | AL32: 107.7054638 | AM32: 210 | AN32: 193 | AO32: 133.7 | AP32: 132.4 | AQ32: 169.6 | AR32: 178.9 | AS32: 110.4 | AT32: 141 | AU32: 154 | AV32: 160 | AW32: 117 | AX32: 143 | AY32: 139 | AZ32: 31 | BA32: 36 | BB32: 0 | BC32: 0 | BD32: 0 | BE32: 0 | BF32: 0 | BG32: 0 | BH32: 0 | BI32: 0 | BJ32: 0 | BK32: 0
B33: Gode Wind 2 | D33: ='OF Asset Book'!G45 -> 126 | F33: ='OF Statistics 2020-Q2 2025'!E33 -> 429.95774 | G33: 414.21 | H33: 386.92 | I33: 398.23 | J33: 426.868574 | K33: 477 | L33: 443.7 | M33: 419 | N33: 75 | O33: 0 | P33: 0 | Q33: 0 | R33: 0 | S33: 0 | U33: 81.870175 | V33: 87.07 | W33: 148 | X33: 144.72 | Y33: 73.06 | Z33: 84.85 | AA33: 111.58 | AB33: 121.26 | AC33: 83.06 | AD33: 74.78 | AE33: 108 | AF33: 125.88 | AG33: 83.8 | AH33: 73.48716 | AI33: 115.1 | AJ33: 93.5061556 | AK33: 91.8 | AL33: 86.3985252 | AM33: 155 | AN33: 143 | AO33: 102.6 | AP33: 105 | AQ33: 126.2 | AR33: 132.4 | AS33: 81.3 | AT33: 112 | AU33: 118 | AV33: 123 | AW33: 87 | AX33: 105 | AY33: 104 | AZ33: 27 | BA33: 36 | BB33: 11 | BC33: 1 | BD33: 0 | BE33: 0 | BF33: 0 | BG33: 0 | BH33: 0 | BI33: 0 | BJ33: 0 | BK33: 0
B34: Gode Wind 3 | D34: ='OF Asset Book'!G46 -> 673 | F34: ='OF Statistics 2020-Q2 2025'!E34 -> 206.8189644 | U34: 74.17702 | V34: 14.6
B35: Sub total | F35: ='OF Statistics 2020-Q2 2025'!E35 -> 2355.959574 | G35: 2076.07 | H35: 1948.74 | I35: 2022.12 | J35: 2299.980694 | K35: 2220 | L35: 1705.7 | M35: 1520 | N35: 664 | O35: 321 | P35: 0 | Q35: 0 | R35: 0 | S35: 0 | U35: 467.3030142 | V35: 434.06 | W35: 753 | X35: 733.15 | Y35: 378.72 | Z35: 398.4 | AA35: 565.79 | AB35: 626.03 | AC35: 386.78 | AD35: 371.5 | AE35: 564.6 | AF35: 679.96 | AG35: 398.77 | AH35: 332.207355 | AI35: 611.2 | AJ35: 655.3013492 | AK35: 463.2 | AL35: 419.7678504 | AM35: 762 | AN35: 711 | AO35: 470.9 | AP35: 438.7 | AQ35: 598.7 | AR35: 616.3 | AS35: 311.3 | AT35: 365 | AU35: 413 | AV35: 430 | AW35: 306 | AX35: 369 | AY35: 415 | AZ35: 224 | BA35: 171 | BB35: 120 | BC35: 149 | BD35: 170 | BE35: 108 | BF35: 42 | BG35: 1 | BH35: 0 | BI35: 0 | BJ35: 0 | BK35: 0
B37: Netherlands
B38: Borssele 1&2 | D38: ='OF Asset Book'!G64 -> 376 | F38: ='OF Statistics 2020-Q2 2025'!E38 -> 1332.633375 | G38: 1449.05 | H38: 1258.92 | I38: 1904.5 | J38: 1206.948676 | K38: 0 | L38: 0 | M38: 0 | N38: 0 | O38: 0 | P38: 0 | Q38: 0 | R38: 0 | S38: 0 | U38: 257.77 | V38: 269.09 | W38: 444 | X38: 489.76 | Y38: 259.46 | Z38: 288.08 | AA38: 411.75 | AB38: 400.87 | AC38: 197 | AD38: 261.65 | AE38: 399.97 | AF38: 383.12 | AG38: 235.11 | AH38: 451.1611075 | AI38: 835.1 | AJ38: 835.1 | AK38: 308.2 | AL38: 63.4 | AM38: 0 | AN38: 0 | AO38: 0 | AP38: 0 | AQ38: 0 | AR38: 0 | AS38: 0 | AT38: 0 | AU38: 0 | AV38: 0 | AW38: 0 | AX38: 0 | AY38: 0 | AZ38: 0 | BA38: 0 | BB38: 0 | BC38: 0 | BD38: 0 | BE38: 0 | BF38: 0 | BG38: 0 | BH38: 0 | BI38: 0 | BJ38: 0 | BK38: 0
B39: Sub total | F39: ='OF Statistics 2020-Q2 2025'!E39 -> 1332.633375 | G39: 1449.05 | H39: 1258.92 | I39: 1904.5 | J39: 1206.948676 | K39: 0 | L39: 0 | M39: 0 | N39: 0 | O39: 0 | P39: 0 | Q39: 0 | R39: 0 | S39: 0 | U39: 257.77 | V39: 269.09 | W39: 444 | X39: 489.76 | Y39: 259.46 | Z39: 288.08 | AA39: 411.75 | AB39: 400.87 | AC39: 197 | AD39: 261.65 | AE39: 399.97 | AF39: 383.12 | AG39: 235.11 | AH39: 451.1611075 | AI39: 835.1 | AJ39: 835.1 | AK39: 308.2 | AL39: 63.4 | AM39: 0 | AN39: 0 | AO39: 0 | AP39: 0 | AQ39: 0 | AR39: 0 | AS39: 0 | AT39: 0 | AU39: 0 | AV39: 0 | AW39: 0 | AX39: 0 | AY39: 0 | AZ39: 0 | BA39: 0 | BB39: 0 | BC39: 0 | BD39: 0 | BE39: 0 | BF39: 0 | BG39: 0 | BH39: 0 | BI39: 0 | BJ39: 0 | BK39: 0
B41: United States
B42: Block Island | D42: ='OF Asset Book'!G54 -> 30 | F42: ='OF Statistics 2020-Q2 2025'!E42 -> 92.23362 | G42: 86.6 | H42: 109.79 | I42: 83.78 | J42: 120 | K42: 120 | L42: 22.8 | M42: 0 | N42: 0 | O42: 0 | P42: 0 | Q42: 0 | R42: 0 | S42: 0 | U42: 16.078611 | V42: 22.12 | W42: 31.47 | X42: 25.14 | Y42: 15.67 | Z42: 17.66 | AA42: 28.13 | AB42: 33.68 | AC42: 21.33 | AD42: 20.46 | AE42: 34.310232 | AF42: 20.4 | AG42: 5.59 | AH42: 25.646662 | AI42: 32.1 | AJ42: 33.8 | AK42: 20 | AL42: 33.8 | AM42: 32 | AN42: 35 | AO42: 22.2 | AP42: 31 | AQ42: 31.8 | AR42: 22.8 | AS42: 0 | AT42: 0 | AU42: 0 | AV42: 0 | AW42: 0 | AX42: 0 | AY42: 0 | AZ42: 0 | BA42: 0 | BB42: 0 | BC42: 0 | BD42: 0 | BE42: 0 | BF42: 0 | BG42: 0 | BH42: 0 | BI42: 0 | BJ42: 0 | BK42: 0
B43: South Fork | D43: ='OF Asset Book'!G55 -> 66 | F43: ='OF Statistics 2020-Q2 2025'!E43 -> 179.568285 | G43: 1.11 | U43: 32.0608 | V43: 47.9 | W43: 29.49 | X43: 1.11
B44: Sub total | F44: ='OF Statistics 2020-Q2 2025'!E44 -> 271.801905 | G44: 87.71 | H44: 109.79 | I44: 83.78 | J44: 120 | K44: 120 | L44: 22.8 | M44: 0 | N44: 0 | O44: 0 | P44: 0 | Q44: 0 | R44: 0 | S44: 0 | U44: 48.139411 | V44: 70.02 | W44: 60.96 | X44: 26.25 | Y44: 15.67 | Z44: 17.66 | AA44: 28.13 | AB44: 33.68 | AC44: 21.33 | AD44: 20.46 | AE44: 34.310232 | AF44: 20.4 | AG44: 5.59 | AH44: 25.646662 | AI44: 32.1 | AJ44: 33.8 | AK44: 20 | AL44: 33.8 | AM44: 32 | AN44: 35 | AO44: 22.2 | AP44: 31 | AQ44: 31.8 | AR44: 22.8 | AS44: 0 | AT44: 0 | AU44: 0 | AV44: 0 | AW44: 0 | AX44: 0 | AY44: 0 | AZ44: 0 | BA44: 0 | BB44: 0 | BC44: 0 | BD44: 0 | BE44: 0 | BF44: 0 | BG44: 0 | BH44: 0 | BI44: 0 | BJ44: 0 | BK44: 0
B46: Taiwan
B47: Greater Changhua 1 | D47: ='OF Asset Book'!G72 -> 302.5 | F47: ='OF Statistics 2020-Q2 2025'!E47 -> 1110.2862 | G47: 514.05 | H47: 42.85 | I47: 0 | J47: 0 | K47: 0 | L47: 0 | M47: 0 | N47: 0 | O47: 0 | P47: 0 | Q47: 0 | R47: 0 | S47: 0 | U47: 126.77444 | V47: 234.78 | W47: 278.13 | X47: 320.06 | Y47: 94.18 | Z47: 47.27 | AA47: 52.54 | AB47: 42.85 | AC47: 0 | AD47: 0 | AE47: 0 | AF47: 0 | AG47: 0 | AH47: 0 | AI47: 0 | AJ47: 0 | AK47: 0 | AL47: 0 | AM47: 0 | AN47: 0 | AO47: 0 | AP47: 0 | AQ47: 0 | AR47: 0 | AS47: 0 | AT47: 0 | AU47: 0 | AV47: 0 | AW47: 0 | AX47: 0 | AY47: 0 | AZ47: 0 | BA47: 0 | BB47: 0 | BC47: 0 | BD47: 0 | BE47: 0 | BF47: 0 | BG47: 0 | BH47: 0 | BI47: 0 | BJ47: 0 | BK47: 0
B48: Greater Changhua 2a | D48: ='OF Asset Book'!G73 -> 295 | F48: ='OF Statistics 2020-Q2 2025'!E48 -> 1109.67704 | G48: 776.77 | H48: 49.87 | I48: 0 | J48: 0 | K48: 0 | L48: 0 | M48: 0 | N48: 0 | O48: 0 | P48: 0 | Q48: 0 | R48: 0 | S48: 0 | U48: 143.82828 | V48: 212.62 | W48: 301.09 | X48: 385.04 | Y48: 159.83 | Z48: 142.88 | AA48: 89.02 | AB48: 42.67 | AC48: 5.87 | AD48: 1.32 | AE48: 0 | AF48: 0 | AG48: 0 | AH48: 0 | AI48: 0 | AJ48: 0 | AK48: 0 | AL48: 0 | AM48: 0 | AN48: 0 | AO48: 0 | AP48: 0 | AQ48: 0 | AR48: 0 | AS48: 0 | AT48: 0 | AU48: 0 | AV48: 0 | AW48: 0 | AX48: 0 | AY48: 0 | AZ48: 0 | BA48: 0 | BB48: 0 | BC48: 0 | BD48: 0 | BE48: 0 | BF48: 0 | BG48: 0 | BH48: 0 | BI48: 0 | BJ48: 0 | BK48: 0
B49: Sub total | F49: ='OF Statistics 2020-Q2 2025'!E49 -> 2219.96324 | G49: 1290.82 | H49: 92.72 | I49: 0 | J49: 0 | K49: 0 | L49: 0 | M49: 0 | N49: 0 | O49: 0 | P49: 0 | Q49: 0 | R49: 0 | S49: 0 | U49: 270.60272 | V49: 447.4 | W49: 579.22 | X49: 705.1 | Y49: 254.01 | Z49: 190.15 | AA49: 141.56 | AB49: 85.52 | AC49: 5.87 | AD49: 1.32 | AE49: 0 | AF49: 0 | AG49: 0 | AH49: 0 | AI49: 0 | AJ49: 0 | AK49: 0 | AL49: 0 | AM49: 0 | AN49: 0 | AO49: 0 | AP49: 0 | AQ49: 0 | AR49: 0 | AS49: 0 | AT49: 0 | AU49: 0 | AV49: 0 | AW49: 0 | AX49: 0 | AY49: 0 | AZ49: 0 | BA49: 0 | BB49: 0 | BC49: 0 | BD49: 0 | BE49: 0 | BF49: 0 | BG49: 0 | BH49: 0 | BI49: 0 | BJ49: 0 | BK49: 0
B51: Total generation, GWh | F51: ='OF Statistics 2020-Q2 2025'!E51 -> 18598.63497 | G51: 17760.52 | H51: 16482.83 | I51: 13808.1 | J51: 15247.76585 | K51: 11965 | L51: 10041.5 | M51: 8512 | N51: 6044 | O51: 5791 | P51: 4943 | Q51: 4338 | R51: 3024 | S51: 2814 | U51: 3522.438177 | V51: 3667.32 | W51: 5669.66 | X51: 6010.83 | Y51: 3543.69 | Z51: 3044.09 | AA51: 5161.98 | AB51: 5410.99 | AC51: 3246.4 | AD51: 3324.29 | AE51: 4501.850232 | AF51: 4452.05 | AG51: 2286.09 | AH51: 2521.330743 | AI51: 4548.53444 | AJ51: 4912.000236 | AK51: 3164.3 | AL51: 2579.66785 | AM51: 4592 | AN51: 3931 | AO51: 2773.8 | AP51: 2154.5 | AQ51: 3105.5 | AR51: 3317 | AS51: 1936.4 | AT51: 1817 | AU51: 2971 | AV51: 2895 | AW51: 1690 | AX51: 1784 | AY51: 2143 | AZ51: 1840 | BA51: 0 | BB51: 1212 | BC51: 1660 | BD51: 1548 | BE51: 1290 | BF51: 1365 | BG51: 1588 | BH51: 0 | BI51: 0 | BJ51: 0 | BK51: 0
B53: Other generation, GWh
B54: Lincs one-line consolidation | H54: 0 | I54: 0 | J54: 0 | K54: 0 | L54: 0 | M54: 0 | N54: 245 | O54: 251 | P54: 248 | Q54: 105 | R54: 0 | S54: 0 | U54: 0 | Z54: 0 | AA54: 0 | AB54: 0 | AC54: 0 | AD54: 0 | AE54: 0 | AF54: 0 | AG54: 0 | AH54: 0 | AI54: 0 | AJ54: 0 | AK54: 0 | AL54: 0 | AM54: 0 | AN54: 0 | AO54: 0 | AP54: 0 | AQ54: 0 | AR54: 0 | AS54: 0 | AT54: 0 | AU54: 0 | AV54: 0 | AW54: 0 | AX54: 0 | AY54: 0 | AZ54: 69 | BA54: 44 | BB54: 53 | BC54: 79 | BD54: 70 | BE54: 46 | BF54: 54 | BG54: 81 | BH54: 101 | BI54: 17 | BJ54: 41 | BK54: 89
B55: Barrow one-line consolidation | H55: 0 | I55: 0 | J55: 0 | K55: 0 | L55: 0 | M55: 0 | N55: 0 | O55: 0 | P55: 160 | Q55: 152 | R55: 0 | S55: 0 | U55: 0 | Z55: 0 | AA55: 0 | AB55: 0 | AC55: 0 | AD55: 0 | AE55: 0 | AF55: 0 | AG55: 0 | AH55: 0 | AI55: 0 | AJ55: 0 | AK55: 0 | AL55: 0 | AM55: 0 | AN55: 0 | AO55: 0 | AP55: 0 | AQ55: 0 | AR55: 0 | AS55: 0 | AT55: 0 | AU55: 0 | AV55: 0 | AW55: 0 | AX55: 0 | AY55: 0 | AZ55: 0 | BA55: 0 | BB55: 0 | BC55: 0 | BD55: 0 | BE55: 0 | BF55: 0 | BG55: 0 | BH55: 51 | BI55: 25 | BJ55: 28 | BK55: 56
B56: Formosa 1 one-line consolidation | G56: 173 | H56: 172 | I56: 157 | J56: 171 | K56: 47.6 | L56: 9.2 | M56: 4 | N56: 0 | O56: 0 | P56: 0 | Q56: 0 | R56: 0 | S56: 0 | U56: 27 | V56: 36 | W56: 52 | X56: 39 | Y56: 27 | Z56: 37 | AA56: 70 | AB56: 54 | AC56: 25 | AD56: 27 | AE56: 66 | AF56: 35 | AG56: 24 | AH56: 39 | AI56: 59 | AK56: 39 | AL56: 34.6 | AM56: 34 | AN56: 38 | AO56: 5.7 | AP56: 1.6 | AQ56: 2.3 | AR56: 3.1 | AS56: 1.8 | AT56: 1.7 | AU56: 2.6 | AV56: 4 | AW56: 1.2 | AX56: 1.5 | AY56: 0 | AZ56: 0 | BA56: 0 | BB56: 0 | BC56: 0 | BD56: 0 | BE56: 0 | BF56: 0 | BG56: 0 | BH56: 0 | BI56: 0 | BJ56: 0 | BK56: 0
B57: Sub total | G57: 173 | H57: 172 | I57: 157 | J57: 170.6 | K57: 47.6 | L57: 9.2 | M57: 4 | N57: 245 | O57: 251 | P57: 408 | Q57: 257 | R57: 0 | S57: 0 | U57: 27 | V57: 36 | W57: 52 | X57: 39 | Y57: 27 | Z57: 37 | AA57: 70 | AB57: 54 | AC57: 25 | AD57: 27 | AE57: 66 | AF57: 35 | AG57: 24 | AH57: 39 | AI57: 59 | AJ57: 59 | AK57: 39 | AL57: 34.6 | AM57: 38 | AN57: 38 | AO57: 5.7 | AP57: 1.6 | AQ57: 2.3 | AR57: 3.1 | AS57: 1.8 | AT57: 1.7 | AU57: 2.6 | AV57: 4 | AW57: 1.2 | AX57: 1.5 | AY57: 0 | AZ57: 69 | BA57: 44 | BB57: 53 | BC57: 79 | BD57: 70 | BE57: 46 | BF57: 54 | BG57: 81 | BH57: 152 | BI57: 42 | BJ57: 69 | BK57: 145
B58: Total generation, including one-line consolidation, GWh | G58: 17933.52 | H58: 16654.83 | I58: 13965.1 | J58: 15418.36585 | K58: 12012.6 | L58: 10050.7 | M58: 8516 | N58: 6289 | O58: 6042 | P58: 5408 | Q58: 5574 | R58: 4636 | S58: 4412 | U58: 3549.438177 | V58: 3703.32 | W58: 5721.66 | X58: 6049.83 | Y58: 3570.69 | Z58: 3081.09 | AA58: 5231.98 | AB58: 5464.99 | AC58: 3271.4 | AD58: 3351.29 | AE58: 4567.850232 | AF58: 4487.05 | AG58: 2310.09 | AH58: 2560.330743 | AI58: 4607.53444 | AJ58: 4971.000236 | AK58: 3203.3 | AL58: 2614.26785 | AM58: 4630 | AN58: 3969 | AO58: 2779.5 | AP58: 2156.1 | AQ58: 3107.8 | AR58: 3320.1 | AS58: 1938.2 | AT58: 1818.7 | AU58: 2973.6 | AV58: 2899 | AW58: 1691 | AX58: 1786 | AY58: 2143 | AZ58: 1909 | BA58: 44 | BB58: 1265 | BC58: 1739 | BD58: 1618 | BE58: 1336 | BF58: 1419 | BG58: 1669 | BH58: 1738 | BI58: 879 | BJ58: 877 | BK58: 1912
B60: Sales, GWh
B61: Power sales | G61: 21448 | H61: 23194 | I61: 25019.53 | J61: 29151.92438 | K61: 27615 | L61: 27434 | U61: 4010 | V61: 3854 | W61: 6264 | X61: 6244 | Y61: 3948 | Z61: 4158 | AA61: 7098 | AB61: 7645 | AC61: 3483 | AD61: 5258 | AE61: 6808 | AF61: 8790.73 | AG61: 4802.6 | AH61: 4541.412951 | AI61: 6885 | AJ61: 8560.580946 | AK61: 6282 | AL61: 5519 | AM61: 8790 | AN61: 7682 | AO61: 7003 | AP61: 5700 | AQ61: 7229 | AR61: 7692 | AS61: 5206 | AT61: 5360 | AU61: 9176
B63: Business drivers Offshore
B64: Decided (FID'ed) and installed capacity, GW | G64: 15.543 | H64: 11.1 | I64: 10.9 | J64: 9.9 | K64: 9.9 | L64: 9 | M64: 8.9 | N64: 7.4 | O64: 5.1 | P64: 3.8 | Q64: 3.6 | R64: 2.8 | S64: 2.8 | U64: 16.769 | V64: 16.767 | W64: 16.467 | X64: 15.543 | Y64: 11.99 | Z64: 12 | AA64: 11.987 | AB64: 11.1 | AC64: 11.1 | AD64: 11.1 | AE64: 11.1 | AF64: 10.9 | AG64: 9.8 | AH64: 9.8 | AI64: 9.9 | AJ64: 9.9 | AK64: 9.9 | AL64: 9.9 | AM64: 9.9 | AN64: 9.9 | AO64: 9.858 | AP64: 9.858 | AQ64: 9 | AR64: 9 | AS64: 8.9 | AT64: 8.9 | AU64: 8.9 | AV64: 8.9 | AW64: 8.9 | AX64: 7.5 | AY64: 7.4 | AZ64: 7.4 | BA64: 7.4 | BB64: 6.7 | BC64: 6.3 | BD64: 5.1 | BE64: 4.4 | BF64: 4.4 | BG64: 3.8 | BH64: 3.8 | BI64: 3.6 | BJ64: 3.6 | BK64: 3.6
B65: Installed capacity, offshore wind, GW | G65: 8.871 | H65: 8.9 | I65: 7.6 | J65: 7.6 | K65: 6.8 | L65: 5.6 | M65: 3.9 | N65: 3.6 | O65: 3 | P65: 2.5 | Q65: 2.1 | R65: 1.7 | S65: 1.2 | U65: 9.90275 | V65: 9.8 | W65: 8.871 | X65: 8.871 | Y65: 8.87 | Z65: 8.9 | AA65: 8.9 | AB65: 8.9 | AC65: 8.87 | AD65: 7.6 | AE65: 7.6 | AF65: 7.6 | AG65: 7.6 | AH65: 7.6 | AI65: 7.6 | AJ65: 7.6 | AK65: 6.8 | AL65: 6.8 | AM65: 6.8 | AN65: 6.8 | AO65: 5.602 | AP65: 5.602 | AQ65: 5.6 | AR65: 5.6 | AS65: 5.1 | AT65: 5.1 | AU65: 4.4 | AV65: 3.9 | AW65: 3.8 | AX65: 3.8 | AY65: 3.6 | AZ65: 3.6 | BA65: 3 | BB65: 3 | BC65: 3 | BD65: 3 | BE65: 2.7 | BF65: 2.7 | BG65: 2.5 | BH65: 2.5 | BI65: 2.1 | BJ65: 2.1 | BK65: 2.1
B66: Generation capacity, offshore wind, GW | G66: 4.986 | H66: 4.7 | I66: 4 | J66: 4.4 | K66: 3.6 | L66: 3 | M66: 2.5 | N66: 2 | O66: 1.7 | P66: 1.4 | Q66: 1.3 | R66: 1.1 | S66: 0.7 | U66: 5.22824 | V66: 5.1 | W66: 5.067 | X66: 4.986 | Y66: 4.95 | Z66: 4.9 | AA66: 4.7 | AB66: 4.7 | AC66: 5.288 | AD66: 4.8 | AE66: 4.2 | AF66: 4 | AG66: 4 | AH66: 4 | AI66: 4.4 | AJ66: 4.4 | AK66: 4.09 | AL66: 3.8 | AM66: 3.6 | AN66: 3.6 | AO66: 3.564 | AP66: 3.328 | AQ66: 3 | AR66: 3 | AS66: 2.9 | AT66: 2.8 | AU66: 2.7 | AV66: 2.5 | AW66: 2.3 | AX66: 2.2 | AY66: 2.1 | AZ66: 2 | BA66: 1.8 | BB66: 1.7 | BC66: 1.7 | BD66: 1.7 | BE66: 1.5 | BF66: 1.5 | BG66: 1.4 | BH66: 1.4 | BI66: 1.1 | BJ66: 1.1 | BK66: 1.1
B67: Wind speed, m/s | G67: 9.8 | H67: 9.5 | I67: 9.14 | J67: 10 | K67: 9.2 | L67: 9.1 | M67: 9.3 | N67: 0 | O67: 0 | P67: 0 | Q67: 0 | R67: 0 | S67: 0 | U67: 8.41 | V67: 9 | W67: 11.4 | X67: 11.5 | Y67: 8.63 | Z67: 8.1 | AA67: 10.9 | AB67: 10.7 | AC67: 7.7 | AD67: 8.4 | AE67: 11.3 | AF67: 10.55 | AG67: 7.62 | AH67: 7.825732519 | AI67: 10.5 | AJ67: 10.6 | AK67: 8.6 | AL67: 8.4 | AM67: 12.5 | AN67: 10 | AO67: 8.5 | AP67: 8 | AQ67: 10.4 | AR67: 10.3 | AS67: 7.7 | AT67: 7.9 | AU67: 10.3 | AV67: 11 | AW67: 7.9 | AX67: 8.5 | AY67: 9.9 | AZ67: 0 | BA67: 0 | BB67: 0 | BC67: 0 | BD67: 0 | BE67: 0 | BF67: 0 | BG67: 0 | BH67: 0 | BI67: 0 | BJ67: 0 | BK67: 0
B68: Load factor, % | G68: 0.43 | H68: 0.42 | I68: 0.3924 | J68: 0.45 | K68: 0.42 | L68: 0.42 | M68: 0.44 | N68: 0.41 | O68: 0.45 | P68: 0.44 | Q68: 0.42 | R68: 0.43 | S68: 0.43 | U68: 0.31 | V68: 0.3349 | W68: 0.52 | X68: 0.56 | Y68: 0.33 | Z68: 0.29 | AA68: 0.53 | AB68: 0.54 | AC68: 0.28 | AD68: 0.35 | AE68: 0.54 | AF68: 0.5252 | AG68: 0.2684 | AH68: 0.2868300878 | AI68: 0.496 | AJ68: 0.53 | AK68: 0.351 | AL68: 0.321 | AM68: 0.598 | AN68: 0.5 | AO68: 0.37 | AP68: 0.31 | AQ68: 0.51 | AR68: 0.53 | AS68: 0.32 | AT68: 0.31 | AU68: 0.55 | AV68: 0.54 | AW68: 0.34 | AX68: 0.38 | AY68: 0.5 | AZ68: 0.49 | BA68: 0.35 | BB68: 0.34 | BC68: 0.46 | BD68: 0.5 | BE68: 0.36 | BF68: 0.41 | BG68: 0.55 | BH68: 0.54 | BI68: 0.29 | BJ68: 0.3 | BK68: 0.64
B69: Availability, % | G69: 0.93 | H69: 0.94 | I69: 0.9423 | J69: 0.936995672 | K69: 0.93 | L69: 0.93 | M69: 0.93 | N69: 0.92 | O69: 0.93 | P69: 0.94 | Q69: 0.93 | R69: 0.94 | S69: 0.94 | U69: 0.89 | V69: 0.83 | W69: 0.85 | X69: 0.92 | Y69: 0.93 | Z69: 0.91 | AA69: 0.95 | AB69: 0.95 | AC69: 0.91 | AD69: 0.94 | AE69: 0.95 | AF69: 0.9488 | AG69: 0.9256 | AH69: 0.9290758851 | AI69: 0.952 | AJ69: 0.94 | AK69: 0.943 | AL69: 0.95 | AM69: 0.927 | AN69: 0.93 | AO69: 0.93 | AP69: 0.87 | AQ69: 0.96 | AR69: 0.93 | AS69: 0.92 | AT69: 0.93 | AU69: 0.94 | AV69: 0.92 | AW69: 0.92 | AX69: 0.93 | AY69: 0.93 | AZ69: 0.94 | BA69: 0.92 | BB69: 0.94 | BC69: 0.89 | BD69: 0.9 | BE69: 0.93 | BF69: 0.94 | BG69: 0.94 | BH69: 0.93 | BI69: 0.91 | BJ69: 0.94 | BK69: 0.96
B70: For accounting policies, please see pages 94-97 in our annual report 2023.
B71: 1 Reportable segments are reorganised as of November 2019. 2018 and 2019 figures are restated.
G77: 1243
G78: 263 | H78: =G78/G77 -> 0.2115848753 | I78: =1-H78 -> 0.7884151247

Sheet ON Asset Book
B2: ONSHORE1 - Asset Book updated as of 30 September 2024
D4: Park capacity, MW | E4: Renewable capacity9, MW | F4: Orsted ownership share, % | G4: Generation capacity, MW | H4: Financial consolidation | I4: Commercial operational date
B5: USA | C5: Partners | J5: Subsidy regime | K5: Subsidy expiry | L5: Subsidy Qualification Level3
B6: Wind
B7: Willow Springs (100 x GE-2.5) | D7: 250 | E7: 250 | F7: 100% | G7: 250 | H7: Full | I7: 2017 | J7: PTC2 | K7: 2027 | L7: 100% PTC
B8: Dermott (110 x GE-2.3) | D8: 253 | E8: 253 | F8: 100% | G8: 253 | H8: Full | I8: 2017 | J8: PTC2 | K8: 2027 | L8: 100% PTC
B9: Tahoka (120 x GE-2.5) | D9: 300 | E9: 300 | F9: 100% | G9: 300 | H9: Full | I9: 2018 | J9: PTC2 | K9: 2028 | L9: 100% PTC
B10: Lockett (75 x GE-2.45) | D10: 183.75 | E10: 183.75 | F10: 100% | G10: 183.75 | H10: Full | I10: 2019 | J10: PTC2 | K10: 2029 | L10: 100% PTC
B11: Sage Draw (120 x GE-2.82) | D11: 338.4 | E11: 338.4 | F11: 100% | G11: 338.4 | H11: Full | I11: 2020 | J11: PTC2 | K11: 2030 | L11: 100% PTC
B12: Plum Creek (82 x GE-2.8)8 | D12: 229.6 | E12: 229.6 | F12: 100% | G12: 229.6 | H12: Full | I12: 2020 | J12: PTC2 | K12: 2030 | L12: 100% PTC
B13: Willow Creek (5 x GE-2.3, 33 x GE-2.78)8 | D13: 103.24 | E13: 103.24 | F13: 100% | G13: 103.24 | H13: Full | I13: 2020 | J13: PTC2 | K13: 2030 | L13: 100% PTC
B14: Western Trail (130 x GE-2.82)11 | D14: 367 | E14: 367 | F14: 100% | G14: 366.6 | H14: Full | I14: 2021 | J14: PTC2 | K14: 2031 | L14: 100% PTC
B15: Lincoln Land (107 x GE-2.82)8 | D15: 302 | E15: 302 | F15: 100% | G15: 301.74 | H15: Full | I15: 2021 | J15: PTC2 | K15: 2031 | L15: 100% PTC
B16: Haystack (51 x SG-5.0, 18 x SWT-2.4) | D16: 298 | E16: 298 | F16: 100% | G16: 298.47 | H16: Full | I16: 2022 | J16: PTC2 | K16: 2032 | L16: 100% PTC
B17: Helena Energy Center (Helena Wind) (51 x V-4.2, 15 x V-3.6)11 | D17: 268.2 | E17: 268.2 | F17: 100% | G17: 268 | H17: Full | I17: 2022 | J17: PTC2 | K17: 2032 | L17: 100% PTC
B18: Ford Ridge (43 x GE-2.82)11 | D18: 121 | E18: 121 | F18: 100% | G18: 121 | H18: Full | I18: 2022 | J18: PTC2 | K18: 2032 | L18: 100% PTC
B19: Sunflower Wind (76 x GE-2.82)11 | D19: 201 | E19: 201 | F19: 100% | G19: 201 | H19: Full | I19: 2023 | J19: PTC2 | K19: 2033 | L19: 100% PTC
B20: Total, Installed | E20: 3215.19 | G20: 3214.8
B21: Total onshore wind, USA | E21: 3215.19 | G21: 3214.8
D23: Park capacity, MW | E23: Renewable capacity9, MW | F23: Orsted ownership share, % | G23: Generation capacity, MW | H23: Financial consolidation | I23: Commercial operational date
B24: USA | C24: Partners | J24: Subsidy regime | K24: Subsidy expiry | L24: Subsidy Qualification Level3
B25: Solar
B26: Permian Energy Center4 | D26: 460 | E26: 460 | F26: 100% | G26: 420 | H26: Full | I26: 2021 | J26: ITC | K26: n/a | L26: 30% ITC
B27: Muscle Shoals8 | D27: 227 | E27: 227 | F27: 100% | G27: 227 | H27: Full | I27: 2021 | J27: ITC | K27: n/a | L27: 30% ITC
B28: Old 300 Solar7 | D28: 430 | E28: 430 | F28: 1 | G28: 430 | H28: Full | I28: 2023
B29: Helena Energy Center (Sparta Solar) | D29: 250 | E29: 250 | F29: 1 | G29: 250 | H29: Full | I29: 2024
B30: Eleven Mile6 | D30: 600 | E30: 600 | F30: 1 | G30: 300 | H30: Full | I30: 2024
B31: Total, Installed | E31: 1967 | G31: 1627
B32: Total, Divested but constructed by Ørsted5 | E32: 10
B33: Mockingbird | D33: 471 | E33: 471 | F33: 1 | G33: 0 | H33: Full | I33: 2024
B34: Total, Decided (FID'ed) | E34: 471 | G34: 0
B35: Total solar PV, USA | E35: 2448 | G35: 1627
D37: Park capacity, MW | E37: Renewable capacity9, MW | F37: Orsted ownership share, % | G37: Generation capacity, MW | H37: Financial consolidation | I37: Commercial operational date
B38: Europe | C38: Partners | J38: Subsidy regime | K38: Subsidy expiry
B39: Wind
B40: Knockawarriga 1 (9 x Nordex-N90) | D40: 22.5 | E40: 22.5 | F40: 1 | G40: 22.5 | H40: Full | I40: 2008 | J40: Expired | K40: N/A
B41: Knockawarriga 2 (3 x Nordex-N90) | D41: 7.5 | E41: 7.5 | F41: 1 | G41: 7.5 | H41: Full | I41: 2020 | J41: REFIT 2 | K41: 2032
B42: Booltiagh 1 (12 x GE-1.5) | D42: 18 | E42: 18 | F42: 1 | G42: 18 | H42: Full | I42: 2005 | J42: CPPA | K42: 2028
B43: Booltiagh 2 (6 x Enercon-E82) | D43: 12 | E43: 12 | F43: 1 | G43: 12 | H43: Full | I43: 2013 | J43: REFIT 1 | K43: 2028
B44: Smithstown (4 x Enercon-E82) | D44: 8 | E44: 8 | F44: 1 | G44: 8 | H44: Full | I44: 2013 | J44: REFIT2 | K44: 2028
B45: Lisheen 1 (18 x Vestas-V90) | D45: 36 | E45: 36 | F45: 1 | G45: 36 | H45: Full | I45: 2009 | J45: REFIT 1 | K45: 2024
B46: Lisheen 2 (12 x Vestas-V90) | D46: 24 | E46: 24 | F46: 1 | G46: 24 | H46: Full | I46: 2013 | J46: REFIT 1 | K46: 2028
B47: Lisheen 3 (8 x Vestas-V136) | D47: 29 | E47: 29 | F47: 1 | G47: 29 | H47: Full | I47: 2023 | J47: CPPA | K47: 2043
B48: Garracummer (17 x Nordex-N90) | D48: 42.5 | E48: 42.5 | F48: 1 | G48: 42.5 | H48: Full | I48: 2013 | J48: REFIT 1 | K48: 2028
B49: Ballymartin (3 x Enercon-E82) | D49: 6.9 | E49: 6.9 | F49: 1 | G49: 6.9 | H49: Full | I49: 2011 | J49: REFIT 2 | K49: 2026
B50: Flughland (4 x Enercon-E70) | D50: 9.2 | E50: 9.2 | F50: 1 | G50: 9.2 | H50: Full | I50: 2009 | J50: REFIT 1 | K50: 2024
B51: Inchincoosh (13 x Nordex-N90) | D51: 32.5 | E51: 32.5 | F51: 1 | G51: 32.5 | H51: Full | I51: 2009 | J51: REFIT 1 | K51: 2024
B52: Sillahertane (10 x Vestas-V52) | D52: 8.5 | E52: 8.5 | F52: 1 | G52: 8.5 | H52: Full | I52: 2009 | J52: REFIT 1 | K52: 2024
B53: Sorne Hill 1 (16 x Enercon-E70) | D53: 32 | E53: 32 | F53: 1 | G53: 32 | H53: Full | I53: 2006 | J53: CPPA | K53: 2024
B54: Sorne Hill 2 (3 x Enercon-E70) | D54: 6.9 | E54: 6.9 | F54: 1 | G54: 6.9 | H54: Full | I54: 2009 | J54: REFIT 1 | K54: 2024
B55: Kilgarvan (15 x Vestas-V90) | D55: 45 | E55: 45 | F55: 1 | G55: 45 | H55: Full | I55: 2007 | J55: CPPA | K55: 2028
B56: Gneeves (8 x Vestas-V52) | D56: 9.35 | E56: 9.35 | F56: 1 | G56: 9.35 | H56: Full | I56: 2006 | J56: Expired | K56: N/A
B57: Mienvee (1 x Vestas-V52) | D57: 0.9 | E57: 0.9 | F57: 1 | G57: 0.9 | H57: Full | I57: 2004 | J57: Expired | K57: N/A
B58: Owenreagh 1 (9 x Zond-Z40) | D58: 2.475 | E58: 2.475 | F58: 0.5 | G58: 0 | H58: One-line | I58: 1997 | J58: ROC | K58: 2025
B59: Owenreagh 2 (6 x Vestas-V52) | D59: 2.55 | E59: 2.55 | F59: 0.5 | G59: 0 | H59: One-line | I59: 2008 | J59: ROC | K59: 2025
B60: Kennoxhead phase 1 (13 x Nordex-N133) | D60: 62 | E60: 62 | F60: 1 | G60: 62 | H60: Full | I60: 2022 | J60: CPPA | K60: 2034
B61: Amazon Wind Farm Northern Ireland - Ballykeel | D61: 16 | E61: 16 | F61: 1 | G61: 16 | H61: Full | I61: 2023 | J61: CPPA | K61: 2038
B62: Schiederhof (2 x Vestas-V126) | D62: 7.2 | E62: 7.2 | F62: 1 | G62: 7.2 | H62: Full | I62: 2018 | J62: CPPA | K62: 2028
B63: Rotmainquelle (5 x Enercon-E115) | D63: 15 | E63: 15 | F63: 1 | G63: 15 | H63: Full | I63: 2015/2016 | J63: CPPA | K63: 2025
B64: Granswang (3 x Enercon-E101) | D64: 9.15 | E64: 4.575 | F64: 0.5 | G64: 0 | H64: One-line | I64: 2016 | J64: CPPA | K64: 2026
B65: Total, Installed | E65: 460.55 | G65: 450.95
B66: Total, Divested but constructed by Ørsted10 | E66: 50
B67: Bahren West 1 | D67: 50.4 | E67: 50 | F67: 1 | G67: 0 | H67: Full | I67: 2024 | J67: EEG | K67: 2044
B68: St. Wendel | D68: 17 | E68: 17 | F68: 1 | G68: 0 | H68: Full | I68: 2025 | J68: EEG | K68: 2045
B69: Farranrory (9 x Nordex-N133) | D69: 43.2 | E69: 43.2 | F69: 1 | G69: - | H69: Full | I69: 2026 | J69: RESS 3
B70: Total, Decided (FID'ed) | E70: 110.2 | G70: 0
B71: Total onshore wind, Europe | E71: 620.75 | G71: 450.95
D73: Park capacity, MW | E73: Renewable capacity9, MW | F73: Orsted ownership share, % | G73: Generation capacity, MW | H73: Financial consolidation | I73: Commercial operational date
B74: Europe | C74: Partners | J74: Subsidy regime | K74: Subsidy expiry
B75: Solar
B76: Altenschwand | D76: 10.434 | E76: 10.434 | F76: 1 | G76: 10.434 | H76: Full | I76: 2022 | J76: CPPA | K76: 2024
B77: Amberg Sud | D77: 4.3 | E77: 4.3 | F77: 1 | G77: 4 | H77: Full | I77: 2024
B78: Total, Installed | E78: 14.734 | G78: 14.434
B79: Total, Divested but constructed by Ørsted10 | E79: 3.78
B80: Garreenleen, phase 1 | D80: 81 | E80: 81 | F80: 1 | G80: 0 | H80: Full | I80: 2026 | J80: RESS 3
B81: Total, Decided (FID'ed) | E81: 81 | G81: 0
B82: Rottenegg Solarpark | E82: 6 | F82: 1 | G82: 0 | H82: Full | I82: 2025 | J82: EEG
B83: Hatzenhof Solarpark | E83: 9 | F83: 1 | G83: 0 | H83: Full | I83: 2025 | J83: EEG
B84: Ballinrea Solarfarm | E84: 55 | F84: 1 | G84: 0 | H84: Full | I84: 2026 | J84: RESS 4
B85: Total, Awarded & Contracted | E85: 70
B86: Total solar PV, Europe | E86: 169.514 | G86: 14.434
B87: Totals | E87: MW
B88: Total renewable capacity (Installed capacity (incl. divested farms), decided capacity (parks under construction), and contracted capacity) | E88: 6454.454
B89: Installed capacity (incl. divested farms) | E89: 5722.254
B90: Generation capacity (incl. parks under construction but excl. divested and one-line consolidated farms) | E90: 5308.184
B92: 1 Assets in operation and assets where Final Investment Decision has been taken | G92: =G86+G71+G35+G21 -> 5307.184
B93: 2 Production tax credits
B94: 3 100% PTC qualification yielded $24/MWh tax credit in 2018 and is adjusted yearly with inflation
B95: 4 Including storage (40 MWAC)
B96: 5 Oak solar divested in June 2020
B97: 6 Including storage (300MWAC)
B98: 7 As of Q1 2023, approx. 80% of the park has been installed
B99: 8 In Q4 2022, 50% of the ownership stake was divested. Ørsted remains having control of the company after the divestment and continues to consolidate the company 100%. See Interrim financial report, First nine months 2022 p39 for more details.
B100: 9 Renewable capacity is the sum of installed, decided (FID'ed), and awarded capacity
B101: 10 Ostwind, France divested in Q2 2024
B102: 11 In Q1 2024, an agreement was signed to divest a share of the asset. Ørsted continues to have full operational control, and will continue to consolidate the company 100%. See interim report, First quarter 2024 p 4.

Sheet On Shore
B2: Onshore
G3: Capacity Factor
B4: Generation Ørsted share, GWh | D4: Capacity | E4: 2023 | F4: =E4-1 -> 2022 | G4: =F4-1 -> 2021 | H4: 2020 | I4: 2019 | J4: 2018 | L4: Q3 2024 | M4: Q2 2024 | N4: Q1 2024 | O4: Q4 2023 | P4: Q3 2023 | Q4: Q2 2023 | R4: Q1 2023 | S4: Q4 2022 | T4: Q3 2022 | U4: Q2 2022 | V4: Q1 2022 | W4: Q4 2021 | X4: Q3 2021 | Y4: Q2 2021 | Z4: Q1 2021 | AA4: Q4 2020 | AB4: Q3 2020 | AC4: Q2 2020 | AD4: Q1 2020 | AE4: Q4 2019 | AF4: Q3 2019 | AG4: Q2 2019 | AH4: Q1 2019 | AI4: Q4 2018
B5: United states - wind farms
B6: Willow Springs | C6: =$B$5 -> United states - wind farms | D6: ='ON Asset Book'!G7 -> 250 | E6: 845.87 | F6: 873.8 | G6: 922.62 | H6: 953.6730129 | I6: 959 | J6: 220 | L6: 163.6587821 | M6: 245.94 | N6: 243.09 | O6: 221.96 | P6: 191.91 | Q6: 203.91 | R6: 228.08 | S6: 159.34 | T6: 163.45 | U6: 289.25 | V6: 261.76 | W6: 258.15 | X6: 191.05 | Y6: 214.4438286 | Z6: 259 | AA6: 258.8325683 | AB6: 188 | AC6: 261.5022322 | AD6: 245 | AE6: 239 | AF6: 221 | AG6: 253 | AH6: 246.7 | AI6: 220
B7: Dermott | C7: =$B$5 -> United states - wind farms | D7: ='ON Asset Book'!G8 -> 253 | E7: 870.93 | F7: 946.44 | G7: 933.21 | H7: 977.7434954 | I7: 989 | J7: 231.9 | L7: 167.8868017 | M7: 263.4 | N7: 237.83 | O7: 219.7 | P7: 185.57 | Q7: 198.29 | R7: 267.38 | S7: 220.81 | T7: 169.15 | U7: 293.84 | V7: 262.65 | W7: 260.82 | X7: 172.16 | Y7: 244.5197229 | Z7: 255.7 | AA7: 271.5398615 | AB7: 197 | AC7: 257.58154 | AD7: 251 | AE7: 251 | AF7: 218 | AG7: 261 | AH7: 258.4 | AI7: 231.9
B8: Tahoka | C8: United states - wind farms | D8: ='ON Asset Book'!G9 -> 300 | E8: 1114.59 | F8: 1185.44 | G8: 1130.47 | H8: 1254.165543 | I8: 1152 | J8: 97 | L8: 210.3399717 | M8: 322.5 | N8: 304.71 | O8: 269.19 | P8: 216.02 | Q8: 276.79 | R8: 352.59 | S8: 284.93 | T8: 209.98 | U8: 362.97 | V8: 327.56 | W8: 330.02 | X8: 229.18 | Y8: 289.3763323 | Z8: 281.9 | AA8: 340.8835168 | AB8: 233 | AC8: 341.329405 | AD8: 339 | AE8: 309 | AF8: 242 | AG8: 283 | AH8: 317.6 | AI8: 97
B9: Lockett | C9: United states - wind farms | D9: ='ON Asset Book'!G10 -> 183.75 | E9: 722.14 | F9: 770.79 | G9: 746.97 | H9: 742.1480612 | I9: 398 | J9: 0 | L9: 147.2238393 | M9: 193.36 | N9: 196.97 | O9: 182.75 | P9: 163.33 | Q9: 163.3 | R9: 212.75 | S9: 177.29 | T9: 152.92 | U9: 247.12 | V9: 193.45 | W9: 200.6 | X9: 130.28 | Y9: 210.9304569 | Z9: 205.2 | AA9: 209.9236977 | AB9: 162 | AC9: 201.0550234 | AD9: 170 | AE9: 196 | AF9: 175 | AG9: 27 | AH9: 0 | AI9: 0
B10: Sage draw | C10: United states - wind farms | D10: ='ON Asset Book'!G11 -> 338.4 | E10: 1129.77 | F10: 1255.91 | G10: 1191.06 | H10: 1110.64831 | I10: 0 | J10: 0 | L10: 216.2232563 | M10: 333.73 | N10: 316.63 | O10: 269.87 | P10: 224.54 | Q10: 279.88 | R10: 355.49 | S10: 296.26 | T10: 205.49 | U10: 395.35 | V10: 358.81 | W10: 347.43 | X10: 210.49 | Y10: 332.4100108 | Z10: 300.7 | AA10: 361.7938043 | AB10: 248 | AC10: 365.2243088 | AD10: 136 | AE10: 0 | AF10: 0 | AG10: 0 | AH10: 0 | AI10: 0
B11: Plum Creek | C11: United states - wind farms | D11: ='ON Asset Book'!G12 -> 229.6 | E11: 833.51 | F11: 1008.87 | G11: 887.46 | H11: 560 | I11: 0 | J11: 0 | L11: 156.2730461 | M11: 215.1 | N11: 221.24 | O11: 230.4 | P11: 156.4 | Q11: 205.8 | R11: 240.92 | S11: 277.66 | T11: 191.61 | U11: 235.52 | V11: 304.08 | W11: 278.13 | X11: 208.44 | Y11: 201.969791 | Z11: 198.9 | AA11: 257.073658 | AB11: 217 | AC11: 84.92030706 | AD11: 0 | AE11: 0 | AF11: 0 | AG11: 0 | AH11: 0 | AI11: 0
B12: Willow Creek | C12: United states - wind farms | D12: ='ON Asset Book'!G13 -> 103.24 | E12: 370.24 | F12: 431.93 | G12: 408.42 | H12: 133.606651 | I12: 0 | J12: 0 | L12: 79.98118536 | M12: 110.97 | N12: 89.23 | O12: 91.94 | P12: 77.03 | Q12: 98 | R12: 103.79 | S12: 101.41 | T12: 92.06 | U12: 104.52 | V12: 133.95 | W12: 117.83 | X12: 65.53 | Y12: 127.2582216 | Z12: 97.8 | AA12: 116.688527 | AB12: 17 | AC12: 0 | AD12: 0 | AE12: 0 | AF12: 0 | AG12: 0 | AH12: 0 | AI12: 0
B13: Western Trail | C13: United states - wind farms | D13: ='ON Asset Book'!G14 -> 366.6 | E13: 834.19 | F13: 1332.74 | G13: 567.42 | H13: 0 | I13: 0 | J13: 0 | L13: 215.5691331 | M13: 309.84 | N13: 268.9 | O13: 74.39 | P13: 128.28 | Q13: 254.38 | R13: 377.13 | S13: 300.26 | T13: 231.72 | U13: 433.71 | V13: 367.06 | W13: 333.46 | X13: 233.96 | Y13: 0 | Z13: 0 | AA13: 0 | AB13: 0 | AC13: 0 | AD13: 0 | AE13: 0 | AF13: 0 | AG13: 0 | AH13: 0 | AI13: 0
B14: Lincoln Land | C14: United states - wind farms | D14: ='ON Asset Book'!G15 -> 301.74 | E14: 948.23 | F14: 1007.76 | G14: 162.66 | H14: 0 | I14: 0 | J14: 0 | L14: 145.8031087 | M14: 280.5 | N14: 317.59 | O14: 269.82 | P14: 139.25 | Q14: 255.3 | R14: 283.86 | S14: 291.9 | T14: 164.64 | U14: 303.12 | V14: 248.1 | W14: 162.66 | X14: 0 | Y14: 0 | Z14: 0 | AA14: 0 | AB14: 0 | AC14: 0 | AD14: 0 | AE14: 0 | AF14: 0 | AG14: 0 | AH14: 0 | AI14: 0
B15: Haystack | C15: United states - wind farms | D15: ='ON Asset Book'!G16 -> 298.47 | E15: 869.37 | F15: 871.18 | G15: 46.6 | H15: 0 | I15: 0 | J15: 0 | L15: 104.578876 | M15: 231.94 | N15: 221.63 | O15: 253.54 | P15: 151.61 | Q15: 222.94 | R15: 241.28 | S15: 276.99 | T15: 169.74 | U15: 206.94 | V15: 217.5 | W15: 46.6 | X15: 0 | Y15: 0 | Z15: 0 | AA15: 0 | AB15: 0 | AC15: 0 | AD15: 0 | AE15: 0 | AF15: 0 | AG15: 0 | AH15: 0 | AI15: 0
B16: Helena Wind | C16: United states - wind farms | D16: ='ON Asset Book'!G17 -> 268 | E16: 776.54 | F16: 507.95 | G16: 0 | H16: 0 | I16: 0 | J16: 0 | L16: 128.8996997 | M16: 219.79 | N16: 218.02 | O16: 183.77 | P16: 165.38 | Q16: 182.25 | R16: 245.13 | S16: 176.6 | T16: 146.78 | U16: 184.57 | V16: 0 | W16: 0 | X16: 0 | Y16: 0 | Z16: 0 | AA16: 0 | AB16: 0 | AC16: 0 | AD16: 0 | AE16: 0 | AF16: 0 | AG16: 0 | AH16: 0 | AI16: 0
B17: Ford Ridge | C17: United states - wind farms | D17: ='ON Asset Book'!G18 -> 121 | E17: 460.45 | F17: 196.05 | G17: 0 | H17: 0 | I17: 0 | J17: 0 | L17: 61.19160858 | M17: 129.93 | N17: 144.23 | O17: 137.9 | P17: 62.63 | Q17: 113.11 | R17: 146.8 | S17: 147.73 | T17: 48.32 | U17: 0 | V17: 0 | W17: 0 | X17: 0 | Y17: 0 | Z17: 0 | AA17: 0 | AB17: 0 | AC17: 0 | AD17: 0 | AE17: 0 | AF17: 0 | AG17: 0 | AH17: 0 | AI17: 0
B18: Sunflower Wind | C18: United states - wind farms | D18: ='ON Asset Book'!G19 -> 201 | E18: 347.91 | F18: 0 | G18: 0 | H18: 0 | I18: 0 | J18: 0 | L18: 149.2571195 | M18: 206.64 | N18: 222.73 | O18: 235.01 | P18: 112.9 | Q18: 0 | R18: 0 | S18: 0 | T18: 0 | U18: 0 | V18: 0 | W18: 0 | X18: 0 | Y18: 0 | Z18: 0 | AA18: 0 | AB18: 0 | AC18: 0 | AD18: 0 | AE18: 0 | AF18: 0 | AG18: 0 | AH18: 0 | AI18: 0
B19: United states - solar farms
B20: Oak | C20: =$B$19 -> United states - solar farms | D20: ='ON Asset Book'!G26 -> 420 | F20: 0 | G20: 0 | H20: 7.3 | I20: 15 | J20: 2.8 | L20: 0 | M20: 0 | N20: 0 | O20: 0 | P20: 0 | Q20: 0 | R20: 0 | S20: 0 | T20: 0 | U20: 0 | V20: 0 | W20: 0 | X20: 0 | Y20: 0 | Z20: 0 | AA20: 0 | AB20: 0 | AC20: 4 | AD20: 3 | AE20: 2.7 | AF20: 4 | AG20: 5 | AH20: 2.9 | AI20: 2.8
B21: Permian Energy Center | C21: =$B$19 -> United states - solar farms | D21: ='ON Asset Book'!G27 -> 227 | E21: 908.84 | F21: 938.42 | G21: 717.38 | H21: 0 | I21: 0 | J21: 0 | L21: 285.828076 | M21: 271.27 | N21: 176.18 | O21: 166.79 | P21: 307.5 | Q21: 301.39 | R21: 133.16 | S21: 159.18 | T21: 316.84 | U21: 276.99 | V21: 185.4 | W21: 164.64 | X21: 249.95 | Y21: 254.9579344 | Z21: 47.8 | AA21: 0 | AB21: 0 | AC21: 0 | AD21: 0 | AE21: 0 | AF21: 0 | AG21: 0 | AH21: 0 | AI21: 0
B22: Muscle Shoals | C22: United states - solar farms | D22: ='ON Asset Book'!G28 -> 430 | E22: 426.03 | F22: 490.85 | G22: 300.84 | H22: 0 | I22: 0 | J22: 0 | L22: 133.4243754 | M22: 132.01 | N22: 76.4 | O22: 79.21 | P22: 134.98 | Q22: 127.95 | R22: 83.89 | S22: 87.44 | T22: 134.89 | U22: 164.86 | V22: 103.65 | W22: 107.93 | X22: 125.51 | Y22: 67.390648 | Z22: 0 | AA22: 0 | AB22: 0 | AC22: 0 | AD22: 0 | AE22: 0 | AF22: 0 | AG22: 0 | AH22: 0 | AI22: 0
B23: Old 300 | C23: United states - solar farms | D23: ='ON Asset Book'!G29 -> 250 | E23: 796.16 | F23: 491.29 | G23: 0 | H23: 0 | I23: 0 | J23: 0 | L23: 241.1620035 | M23: 213.41 | N23: 146.89 | O23: 145.39 | P23: 265.79 | Q23: 238.82 | R23: 146.17 | S23: 141.78 | T23: 224.65 | U23: 124.87 | V23: 0 | W23: 0 | X23: 0 | Y23: 0 | Z23: 0 | AA23: 0 | AB23: 0 | AC23: 0 | AD23: 0 | AE23: 0 | AF23: 0 | AG23: 0 | AH23: 0 | AI23: 0
B24: Helena Energy Center | C24: United states - solar farms | D24: ='ON Asset Book'!G30 -> 300 | L24: 175.439271 | M24: 213.3
B25: Eleven Mile | C25: United states - solar farms | D25: ='ON Asset Book'!G31 -> 1627 | L25: 241.7268602 | M25: 75.71
B26: Mockingbird | C26: United states - solar farms | D26: ='ON Asset Book'!G32 -> 0 | L26: 80
B27: Europe - wind farms
B28: Knockawarriga 1 (9 x Nordex-N90) | C28: =$B$27 -> Europe - wind farms | D28: ='ON Statistics 2018-Q3 2024'!D31 -> 22.5 | E28: 56.83 | F28: 52.35 | G28: 23.28 | H28: 0 | I28: 0 | J28: 0 | L28: 10.84966528 | M28: 10.12 | N28: 17.6 | O28: 17.23 | P28: 13.25 | Q28: 10.08 | R28: 16.28 | S28: 16.73 | T28: 8.25 | U28: 11.98 | V28: 15.4 | W28: 13.61 | X28: 7.54 | Y28: 2.131650334 | Z28: 0 | AA28: 0 | AB28: 0 | AC28: 0 | AD28: 0 | AE28: 0 | AF28: 0 | AG28: 0 | AH28: 0 | AI28: 0
B29: Knockawarriga 2 (3 x Nordex-N90) | C29: =$B$27 -> Europe - wind farms | D29: ='ON Statistics 2018-Q3 2024'!D32 -> 7.5 | E29: 17.39 | F29: 15.85 | G29: 7.27 | H29: 0 | I29: 0 | J29: 0 | L29: 3.324729125 | M29: 3.13 | N29: 5.17 | O29: 5.17 | P29: 3.96 | Q29: 2.94 | R29: 5.32 | S29: 4.83 | T29: 2.4 | U29: 3.68 | V29: 4.94 | W29: 4.22 | X29: 2.4 | Y29: 0.659 | Z29: 0 | AA29: 0 | AB29: 0 | AC29: 0 | AD29: 0 | AE29: 0 | AF29: 0 | AG29: 0 | AH29: 0 | AI29: 0
B30: Booltiagh 1 (12 x GE-1.5) | C30: Europe - wind farms | D30: ='ON Statistics 2018-Q3 2024'!D33 -> 18 | E30: 24.25 | F30: 25.03 | G30: 10.6 | H30: 0 | I30: 0 | J30: 0 | L30: 3.48627148 | M30: 4.65 | N30: 7.63 | O30: 7.52 | P30: 5.31 | Q30: 4.03 | R30: 7.41 | S30: 6.82 | T30: 3.1 | U30: 6.58 | V30: 8.54 | W30: 6.48 | X30: 2.99 | Y30: 1.12515 | Z30: 0 | AA30: 0 | AB30: 0 | AC30: 0 | AD30: 0 | AE30: 0 | AF30: 0 | AG30: 0 | AH30: 0 | AI30: 0
B31: Booltiagh 2 (6 x Enercon-E82) | C31: Europe - wind farms | D31: ='ON Statistics 2018-Q3 2024'!D34 -> 12 | E31: 30.8 | F31: 30.98 | G31: 14.04 | H31: 0 | I31: 0 | J31: 0 | L31: 4.374789463 | M31: 5.55 | N31: 9.46 | O31: 9.32 | P31: 7.14 | Q31: 5.5 | R31: 8.84 | S31: 8.76 | T31: 4.52 | U31: 7.29 | V31: 10.4 | W31: 8.37 | X31: 4.15 | Y31: 1.516 | Z31: 0 | AA31: 0 | AB31: 0 | AC31: 0 | AD31: 0 | AE31: 0 | AF31: 0 | AG31: 0 | AH31: 0 | AI31: 0
B32: Smithstown (4 x Enercon-E82) | C32: Europe - wind farms | D32: ='ON Statistics 2018-Q3 2024'!D35 -> 8 | E32: 21.91 | F32: 24.16 | G32: 10.38 | H32: 0 | I32: 0 | J32: 0 | L32: 5.054859727 | M32: 4.66 | N32: 7.3 | O32: 7.16 | P32: 5.34 | Q32: 3.42 | R32: 5.99 | S32: 8.03 | T32: 3.93 | U32: 5.11 | V32: 7.08 | W32: 6.88 | X32: 2.12 | Y32: 1.374 | Z32: 0 | AA32: 0 | AB32: 0 | AC32: 0 | AD32: 0 | AE32: 0 | AF32: 0 | AG32: 0 | AH32: 0 | AI32: 0
B33: Lisheen 1 (18 x Vestas-V90) | C33: Europe - wind farms | D33: ='ON Statistics 2018-Q3 2024'!D36 -> 36 | E33: 84.37 | F33: 87.42 | G33: 40.54 | H33: 0 | I33: 0 | J33: 0 | L33: 14.50668726 | M33: 17.59 | N33: 27.43 | O33: 25.89 | P33: 18.49 | Q33: 14.84 | R33: 25.16 | S33: 29.25 | T33: 9.55 | U33: 21.6 | V33: 27.01 | W33: 25.96 | X33: 9.98 | Y33: 4.596588 | Z33: 0 | AA33: 0 | AB33: 0 | AC33: 0 | AD33: 0 | AE33: 0 | AF33: 0 | AG33: 0 | AH33: 0 | AI33: 0
B34: Lisheen 2 (12 x Vestas-V90) | C34: Europe - wind farms | D34: ='ON Statistics 2018-Q3 2024'!D37 -> 24 | E34: 58.19 | F34: 58.4 | G34: 27.16 | H34: 0 | I34: 0 | J34: 0 | L34: 10.44334909 | M34: 11.68 | N34: 19 | O34: 17.92 | P34: 12.69 | Q34: 10.19 | R34: 17.39 | S34: 20.08 | T34: 5.32 | U34: 14.36 | V34: 18.64 | W34: 17.28 | X34: 6.74 | Y34: 3.149045 | Z34: 0 | AA34: 0 | AB34: 0 | AC34: 0 | AD34: 0 | AE34: 0 | AF34: 0 | AG34: 0 | AH34: 0 | AI34: 0
B35: Lisheen 3 (8 x Vestas-V136) | C35: Europe - wind farms | D35: ='ON Statistics 2018-Q3 2024'!D38 -> 29 | E35: 75.1 | F35: 6.17 | G35: 0 | H35: 0 | I35: 0 | J35: 0 | L35: 15.15762202 | M35: 16.94 | N35: 25.84 | O35: 22.6 | P35: 15.8 | Q35: 14.01 | R35: 22.69 | S35: 6.17 | T35: 0 | U35: 0 | V35: 0 | W35: 0 | X35: 0 | Y35: 0 | Z35: 0 | AA35: 0 | AB35: 0 | AC35: 0 | AD35: 0 | AE35: 0 | AF35: 0 | AG35: 0 | AH35: 0 | AI35: 0
B36: Garracummer (17 x Nordex-N90) | C36: Europe - wind farms | D36: ='ON Statistics 2018-Q3 2024'!D39 -> 42.5 | E36: 113.45 | F36: 116.77 | G36: 53.4 | H36: 0 | I36: 0 | J36: 0 | L36: 20.81819773 | M36: 20.24 | N36: 35.44 | O36: 34.11 | P36: 27.22 | Q36: 18.56 | R36: 33.57 | S36: 38.02 | T36: 17.56 | U36: 25.35 | V36: 35.85 | W36: 32.45 | X36: 15.02 | Y36: 5.929 | Z36: 0 | AA36: 0 | AB36: 0 | AC36: 0 | AD36: 0 | AE36: 0 | AF36: 0 | AG36: 0 | AH36: 0 | AI36: 0
B37: Ballymartin (3 x Enercon-E82) | C37: Europe - wind farms | D37: ='ON Statistics 2018-Q3 2024'!D40 -> 6.9 | E37: 14.96 | F37: 16.62 | G37: 7.03 | H37: 0 | I37: 0 | J37: 0 | L37: 3.285349357 | M37: 3 | N37: 4.91 | O37: 4.68 | P37: 3.66 | Q37: 2.42 | R37: 4.2 | S37: 5.67 | T37: 2.52 | U37: 3.52 | V37: 4.9 | W37: 4.69 | X37: 1.44 | Y37: 0.908 | Z37: 0 | AA37: 0 | AB37: 0 | AC37: 0 | AD37: 0 | AE37: 0 | AF37: 0 | AG37: 0 | AH37: 0 | AI37: 0
B38: Flughland (4 x Enercon-E70) | C38: Europe - wind farms | D38: ='ON Statistics 2018-Q3 2024'!D41 -> 9.2 | E38: 18.44 | F38: 21.45 | G38: 9.59 | H38: 0 | I38: 0 | J38: 0 | L38: 2.676799838 | M38: 3.54 | N38: 6.49 | O38: 5.54 | P38: 3.42 | Q38: 3.24 | R38: 6.23 | S38: 5.4 | T38: 3.25 | U38: 4.58 | V38: 8.22 | W38: 6.24 | X38: 2.33 | Y38: 1.025622 | Z38: 0 | AA38: 0 | AB38: 0 | AC38: 0 | AD38: 0 | AE38: 0 | AF38: 0 | AG38: 0 | AH38: 0 | AI38: 0
B39: Inchincoosh (13 x Nordex-N90) | C39: Europe - wind farms | D39: ='ON Statistics 2018-Q3 2024'!D42 -> 32.5 | E39: 81.53 | F39: 82.94 | G39: 36.27 | H39: 0 | I39: 0 | J39: 0 | L39: 13.29968058 | M39: 14.93 | N39: 26.27 | O39: 22.68 | P39: 17.84 | Q39: 16 | R39: 25.01 | S39: 28.83 | T39: 10.99 | U39: 18.82 | V39: 24.31 | W39: 22.47 | X39: 9.07 | Y39: 4.72 | Z39: 0 | AA39: 0 | AB39: 0 | AC39: 0 | AD39: 0 | AE39: 0 | AF39: 0 | AG39: 0 | AH39: 0 | AI39: 0
B40: Sillahertane (10 x Vestas-V52) | C40: Europe - wind farms | D40: ='ON Statistics 2018-Q3 2024'!D43 -> 8.5 | E40: 19.77 | F40: 20.47 | G40: 8.42 | H40: 0 | I40: 0 | J40: 0 | L40: 3.207321726 | M40: 3.25 | N40: 6.74 | O40: 6.03 | P40: 4.32 | Q40: 3.23 | R40: 6.18 | S40: 7.54 | T40: 2.26 | U40: 4.46 | V40: 6.21 | W40: 5.46 | X40: 2.13 | Y40: 0.826 | Z40: 0 | AA40: 0 | AB40: 0 | AC40: 0 | AD40: 0 | AE40: 0 | AF40: 0 | AG40: 0 | AH40: 0 | AI40: 0
B41: Sorne Hill 1 (16 x Enercon-E70) | C41: Europe - wind farms | D41: ='ON Statistics 2018-Q3 2024'!D44 -> 32 | E41: 64.02 | F41: 76.81 | G41: 32.65 | H41: 0 | I41: 0 | J41: 0 | L41: 8.632896971 | M41: 12.71 | N41: 22.67 | O41: 17.74 | P41: 12.27 | Q41: 11.84 | R41: 22.17 | S41: 21.7 | T41: 10.28 | U41: 17.16 | V41: 27.67 | W41: 20.45 | X41: 7.5 | Y41: 4.695 | Z41: 0 | AA41: 0 | AB41: 0 | AC41: 0 | AD41: 0 | AE41: 0 | AF41: 0 | AG41: 0 | AH41: 0 | AI41: 0
B42: Kilgarvan (15 x Vestas-V90) | C42: Europe - wind farms | D42: ='ON Statistics 2018-Q3 2024'!D45 -> 45 | E42: 101.39 | F42: 99.98 | G42: 44.3 | H42: 0 | I42: 0 | J42: 0 | L42: 15.04524687 | M42: 16.99 | N42: 32.16 | O42: 29.3 | P42: 21.99 | Q42: 19.66 | R42: 30.44 | S42: 33.95 | T42: 13.08 | U42: 21.15 | V42: 31.8 | W42: 27.9 | X42: 11.19 | Y42: 5.219 | Z42: 0 | AA42: 0 | AB42: 0 | AC42: 0 | AD42: 0 | AE42: 0 | AF42: 0 | AG42: 0 | AH42: 0 | AI42: 0
B43: Gneeves (8 x Vestas-V52) | C43: Europe - wind farms | D43: ='ON Statistics 2018-Q3 2024'!D46 -> 9.35 | E43: 24.68 | F43: 24.08 | G43: 11.28 | H43: 0 | I43: 0 | J43: 0 | L43: 4.116501258 | M43: 4.14 | N43: 7.58 | O43: 7.4 | P43: 5.52 | Q43: 4.04 | R43: 7.72 | S43: 7.99 | T43: 3.7 | U43: 5.06 | V43: 7.34 | W43: 6.94 | X43: 3 | Y43: 1.337 | Z43: 0 | AA43: 0 | AB43: 0 | AC43: 0 | AD43: 0 | AE43: 0 | AF43: 0 | AG43: 0 | AH43: 0 | AI43: 0
B44: Mienvee (1 x Vestas-V52) | C44: Europe - wind farms | D44: ='ON Statistics 2018-Q3 2024'!D47 -> 0.9 | E44: 1.82 | F44: 2.02 | G44: 0.88 | H44: 0 | I44: 0 | J44: 0 | L44: 0.3887801447 | M44: 0.33 | N44: 0.63 | O44: 0.57 | P44: 0.31 | Q44: 0.32 | R44: 0.62 | S44: 0.77 | T44: 0.23 | U44: 0.39 | V44: 0.63 | W44: 0.58 | X44: 0.21 | Y44: 0.0826 | Z44: 0 | AA44: 0 | AB44: 0 | AC44: 0 | AD44: 0 | AE44: 0 | AF44: 0 | AG44: 0 | AH44: 0 | AI44: 0
B45: Owenreagh 1 (9 x Zond-Z40) | C45: Europe - wind farms | D45: ='ON Statistics 2018-Q3 2024'!D48 -> 0 | F45: 0 | G45: 0 | H45: 0 | I45: 0 | J45: 0 | L45: 0 | M45: 0 | N45: 0 | O45: 0 | P45: 0 | Q45: 0 | R45: 0 | S45: 0 | T45: 0 | U45: 0 | V45: 0 | W45: 0 | X45: 0 | Y45: 0 | Z45: 0 | AA45: 0 | AB45: 0 | AC45: 0 | AD45: 0 | AE45: 0 | AF45: 0 | AG45: 0 | AH45: 0 | AI45: 0
B46: Owenreagh 2 (6 x Vestas-V52) | C46: Europe - wind farms | D46: ='ON Statistics 2018-Q3 2024'!D49 -> 0 | F46: 0 | G46: 0 | H46: 0 | I46: 0 | J46: 0 | L46: 0 | M46: 0 | N46: 0 | O46: 0 | P46: 0 | Q46: 0 | R46: 0 | S46: 0 | T46: 0 | U46: 0 | V46: 0 | W46: 0 | X46: 0 | Y46: 0 | Z46: 0 | AA46: 0 | AB46: 0 | AC46: 0 | AD46: 0 | AE46: 0 | AF46: 0 | AG46: 0 | AH46: 0 | AI46: 0
B47: Kennoxhead phase 1 (13 x Nordex-N133) | C47: Europe - wind farms | D47: ='ON Statistics 2018-Q3 2024'!D50 -> 62 | E47: 120.29 | F47: 43.76 | G47: 0 | H47: 0 | I47: 0 | J47: 0 | L47: 8.629559936 | M47: 26.14 | N47: 38.6 | O47: 33.69 | P47: 25.28 | Q47: 19.08 | R47: 42.26 | S47: 43.76 | T47: 0 | U47: 0 | V47: 0 | W47: 0 | X47: 0 | Y47: 0 | Z47: 0 | AA47: 0 | AB47: 0 | AC47: 0 | AD47: 0 | AE47: 0 | AF47: 0 | AG47: 0 | AH47: 0 | AI47: 0
B48: Amazon Wind Farm Northern Ireland - Ballykeel | C48: Europe - wind farms | D48: ='ON Statistics 2018-Q3 2024'!D51 -> 16 | E48: 27.83 | F48: 0 | G48: 0 | H48: 0 | I48: 0 | J48: 0 | L48: 6.546066329 | M48: 7.43 | N48: 12.98 | O48: 15.49 | P48: 10.88 | Q48: 1.46 | R48: 0 | S48: 0 | T48: 0 | U48: 0 | V48: 0 | W48: 0 | X48: 0 | Y48: 0 | Z48: 0 | AA48: 0 | AB48: 0 | AC48: 0 | AD48: 0 | AE48: 0 | AF48: 0 | AG48: 0 | AH48: 0 | AI48: 0
B50: Business drivers1
B51: Decided (FID'ed) and installed capacity, onshore wind and solar2, GW | E51: 6.364 | F51: 6.2 | G51: 4.7 | H51: 3.4 | I51: 2.1 | J51: 1 | L51: 6.384 | M51: 6.383 | N51: 6.407 | O51: 6.364 | P51: 6.24 | Q51: 6.2 | R51: 6.2 | S51: 6.2 | T51: 5.1 | U51: 4.9 | V51: 4.7 | W51: 4.7 | X51: 4.7 | Y51: 4.7 | Z51: 4 | AA51: 3.4 | AB51: 2.7 | AC51: 2.1 | AD51: 2.1 | AE51: 2.1 | AF51: 1.7 | AG51: 1.4 | AH51: 1 | AI51: 1
B52: Installed capacity, onshore wind and solar2, GW | E52: 4.785 | F52: 4.2 | G52: 3.4 | H52: 1.7 | I52: 1 | J52: 0.8 | L52: 5.722 | M52: 5.644 | N52: 4.794 | O52: 4.785 | P52: 4.77 | Q52: 4.6 | R52: 4.5 | S52: 4.2 | T52: 4.2 | U52: 4 | V52: 3.6 | W52: 3.4 | X52: 3 | Y52: 2.4 | Z52: 1.7 | AA52: 1.7 | AB52: 1.7 | AC52: 1.6 | AD52: 1.3 | AE52: 1 | AF52: 1 | AG52: 0.8 | AH52: 0.8 | AI52: 0.8
B53: Generation capacity, onshore wind and solar, GW | E53: 4.725 | F53: 4.1 | G53: 3.3 | H53: 1.7 | I53: 1 | J53: 0.8 | L53: 5.308 | M53: 5.23 | N53: 4.734 | O53: 4.725 | P53: 4.71 | Q53: 4.5 | R53: 4.5 | S53: 4.1 | T53: 4.1 | U53: 3.9 | V53: 3.6 | W53: 3.3 | X53: 3 | Y53: 2.4 | Z53: 1.7 | AA53: 1.7 | AB53: 1.7 | AC53: 1.6 | AD53: 1.3 | AE53: 1 | AF53: 1 | AG53: 0.8 | AH53: 0.8 | AI53: 0.8
B54: Wind speed3, m/s | E54: 7.2 | F54: 7.4 | G54: 7.4 | H54: 7.6 | I54: 7.3 | J54: 7.3 | L54: 6.2 | M54: 7.4 | N54: 7.9 | O54: 7.6 | P54: 6.2 | Q54: 6.7 | R54: 8.1 | S54: 7.7 | T54: 6 | U54: 7.8 | V54: 7.9 | W54: 7.9 | X54: 6.439170111 | Y54: 7.3 | Z54: 7.7 | AA54: 8 | AB54: 6.7 | AC54: 8 | AD54: 7.5 | AE54: 7.3 | AF54: 6.6 | AG54: 7.7 | AH54: 7.8 | AI54: 7.3
B55: Load factor3, wind, % | E55: 0.36 | F55: 0.399 | G55: 0.424 | H55: 0.448 | I55: 0.446 | J55: 0.412 | L55: 0.26 | M55: 0.41 | N55: 0.42 | O55: 0.36 | P55: 0.27 | Q55: 0.35 | R55: 0.45 | S55: 0.397 | T55: 0.28 | U55: 0.469 | V55: 0.47 | W55: 0.466 | X55: 0.334 | Y55: 0.448 | Z55: 0.447 | AA55: 0.5 | AB55: 0.36 | AC55: 0.494 | AD55: 0.44 | AE55: 0.46 | AF55: 0.39 | AG55: 0.47 | AH55: 0.47 | AI55: 0.41
B56: Load factor, solar, % | E56: 0.24 | F56: 0.252 | G56: 0.238 | H56: 0 | I56: 0 | J56: 0 | L56: 0.31 | M56: 0.29 | N56: 0.18 | O56: 0.17 | P56: 0.32 | Q56: 0.3 | R56: 0.16 | S56: 0.172 | T56: 0.316 | U56: 0.313 | V56: 0.207 | W56: 0.191 | X56: 0.271 | Y56: 0.29 | Z56: 0 | AA56: 0 | AB56: 0 | AC56: 0 | AD56: 0 | AE56: 0 | AF56: 0 | AG56: 0 | AH56: 0 | AI56: 0
B57: Availability3, wind, % | E57: 0.88 | F57: 0.93 | G57: 0.96 | H57: 0.96 | I57: 0.98 | J57: 0 | L57: 0.87 | M57: 0.92 | N57: 0.89 | O57: 0.85 | P57: 0.85 | Q57: 0.92 | R57: 0.91 | S57: 0.91 | T57: 0.92 | U57: 0.92 | V57: 0.96 | W57: 0.96 | X57: 0.98 | Y57: 0.97 | Z57: 0.93 | AA57: 0.95 | AB57: 0.97 | AC57: 0.955 | AD57: 0.95 | AE57: 0.98 | AF57: 0.98 | AG57: 0.97 | AH57: 0.97 | AI57: 0.98
B58: Availability, solar, % | E58: 0.98 | F58: 0.98 | G58: 0.96 | H58: 0 | I58: 0 | J58: 0 | L58: 0.97 | M58: 0.97 | N58: 0.98 | O58: 0.98 | P58: 0.98 | Q58: 0.98 | R58: 0.99 | S58: 0.99 | T58: 0.96 | U58: 0.99 | V58: 0.99 | W58: 0.99 | X58: 0.98 | Y58: 0.9 | Z58: 0 | AA58: 0 | AB58: 0 | AC58: 0 | AD58: 0 | AE58: 0 | AF58: 0 | AG58: 0 | AH58: 0 | AI58: 0
B59: Decided (FID'ed) and installed capacity, solar, MW | E59: 2207 | F59: 2122 | G59: 1337 | H59: 1087 | I59: 420 | J59: 0 | L59: 2208 | M59: 2207 | N59: 2207 | O59: 2207 | P59: 2122.21 | Q59: 2122 | R59: 2122 | S59: 2122 | T59: 1341 | U59: 1337 | V59: 1337 | W59: 1337 | X59: 1337 | Y59: 1337 | Z59: 1337 | AA59: 657 | AB59: 657 | AC59: 420 | AD59: 420 | AE59: 420 | AF59: 0 | AG59: 0 | AH59: 0 | AI59: 0
B60: Installed capacity, solar, MW | E60: 1028 | F60: 671 | G60: 657 | H60: 10 | I60: 10 | J60: 10 | L60: 1656 | M60: 1578 | N60: 1028 | O60: 1028.11 | P60: 1028.11 | Q60: 1028 | R60: 1028 | S60: 671 | T60: 661 | U60: 657 | V60: 657 | W60: 657 | X60: 657 | Y60: 430 | Z60: 10 | AA60: 10 | AB60: 10 | AC60: 10 | AD60: 10 | AE60: 10 | AF60: 10 | AG60: 10 | AH60: 10 | AI60: 10
B61: Generation capacity, solar, MW | E61: 1018 | F61: 661 | G61: 647 | H61: 0 | I61: 10 | J61: 10 | L61: 1642 | M61: 1564 | N61: 1018 | O61: 1018.11 | P61: 1018.11 | Q61: 1018 | R61: 1018 | S61: 661 | T61: 651 | U61: 647 | V61: 647 | W61: 647 | X61: 647 | Y61: 420 | Z61: 0 | AA61: 0 | AB61: 0 | AC61: 0 1 | AD61: 10 | AE61: 10 | AF61: 10 | AG61: 10 | AH61: 10 | AI61: 10
B62: For accounting policies, please see pages 94-97 in our annual report 2023.
B63: 1 Oak solar divested in June 2020
B64: 2 Including storage
B65: 3 2021 onshore data is for the US only. We did not have any onshore wind farms outside the US in 2018-2020.
C68: Plant Number | D68: 34
E70: 2023 | F70: 2022 | G70: 2021 | H70: 2020 | I70: 2019 | J70: 2018
B71: =INDEX(B6:B48,$D$68) -> Inchincoosh (13 x Nordex-N90) | C71: =INDEX(C6:C48,$D$68) -> Europe - wind farms | D71: =INDEX(D6:D48,$D$68) -> 32.5 | E71: =INDEX(E6:E48,$D$68) -> 81.53 | F71: =INDEX(F6:F48,$D$68) -> 82.94 | G71: =INDEX(G6:G48,$D$68) -> 36.27 | H71: =INDEX(H6:H48,$D$68) -> 0 | I71: =INDEX(I6:I48,$D$68) -> 0 | J71: =INDEX(J6:J48,$D$68) -> 0
B72: =B71 -> Inchincoosh (13 x Nordex-N90) | C72: =C71 -> Europe - wind farms | E72: =E71*1000/8760/$D$71 -> 0.2863716192 | F72: =F71*1000/8760/$D$71 -> 0.2913242009 | G72: 0.1273972603 | H72: 0 | I72: 0 | J72: 0
G76: Capacity Factor
B77: Generation Ørsted share, GWh | D77: Capacity | E77: FY 2023 | F77: FY 2022 | G77: FY 2021 | H77: FY 2020 | I77: FY 2019 | J77: FY 2018
B78: United states - wind farms
B79: Willow Springs | C79: United states - wind farms | D79: 250 | E79: =E6*1000/8760/$D79 -> 0.3862420091 | F79: =F6*1000/8760/$D79 -> 0.3989954338 | G79: 0.4212876712 | H79: 0.4354671292 | I79: 0.4378995434 | J79: 0.100456621
B80: Dermott | C80: United states - wind farms | D80: 253 | E80: =E7*1000/8760/$D80 -> 0.3929692999 | F80: 0.4270399047 | G80: 0.4210704424 | H80: 0.4411642461 | I80: 0.4462432545 | J80: 0.1046347934
B81: Tahoka | C81: United states - wind farms | D81: 300 | E81: =E8*1000/8760/$D81 -> 0.4241210046 | F81: 0.4510806697 | G81: 0.4301636225 | H81: 0.4772319416 | I81: 0.4383561644 | J81: 0.03691019787
B82: Lockett | C82: United states - wind farms | D82: 183.75 | E82: =E9*1000/8760/$D82 -> 0.4486316901 | F82: 0.4788556518 | G82: 0.4640574038 | H82: 0.4610617595 | I82: 0.2472587208 | J82: 0
